Workbook

Sheet FEM
F1: SOUVENIR Daniel BOBHOT MONACO | Q1: DATE : | S1: 2016-03-05
P2: AUTEUR : | S2: Daniel MENONI
A4: SEXE | B4: ZONE | C4: REG. | D4: Cl. | E4: LICENCE | F4: NOMS | G4: Prénoms | H4: AN | I4: POIDS | J4: CLUB | K4: NAT | L4: 1 | M4: 2 | N4: 3 | O4: ARR | P4: 1 | Q4: 2 | R4: 3 | S4: EP-J | T4: Total | U4: IWF SMM | V4: SERIE | Y4: Catég | AA4: N.CL. | AB4: REG + | AC4: FRA + | AD4: EUR + | AE4: MON + | AF4: INTB + | AG4: INTA + | AH4: OLY + | AI4: NCL
A5: F | B5: SE | C5: CAZ | F5: ROSON | G5: STEPHANIE | H5: 1979 | I5: 45.18 | J5: ASPTT DRAGUIGNAN | K5: F | L5: -35 | M5: 35 | N5: 38 | O5: =IF(I5="","",IF(MAXA(L5:N5)<=0,0,MAXA(L5:N5))) -> 38 | P5: 45 | Q5: 47 | R5: -50 | S5: =IF(I5="","",IF(MAXA(P5:R5)<=0,0,MAXA(P5:R5))) -> 47 | T5: =IF(I5="","",IF(OR(O5=0,S5=0),0,O5+S5)) -> 85 | U5: =IF(I5="","",IF(A5="H",10^(0.794358141*LOG(I5/174.393)^2)*T5*AS5,IF(A5="F",10^(0.89726074 * LOG(I5/148.026)^2)*T5*AS5,""))) -> 161.8638255 | V5: =IF(I5="","",AP5) -> MON + | W5: =IF(I5="","",IF(AH5>=0,AH5,IF(AG5>=0,AG5,IF(AF5>=0,AF5,IF(AE5>=0,AE5,IF(AD5>=0,AD5,IF(AC5>=0,AC5,IF(AB5>=0,AB5,AA5)))))))) -> 3 | X5: =IF(AQ5<95,IF(AQ5<=90,VLOOKUP(AQ5,$AQ$464:$AR$519,2))) -> V1 F35 | Y5: =IF(AND(H5<1936),VLOOKUP(I5,Feuil1!$F$10:$O$24,9),IF(AND(H5>=1942,H5<1947),VLOOKUP(I5,Feuil1!$F$10:$O$24,9),IF(AND(H5>=1947,H5<1952),VLOOKUP(I5,Feuil1!$F$10:$O$24,8),IF(AND(H5>=1952,H5<1957),VLOOKUP(I5,Feuil1!$F$10:$O$24,7),IF(AND(H5>=1957,H5<1962),VLOOKUP(I5,Feuil1!$F$10:$O$24,6),IF(AND(H5>=1962,H5<1967),VLOOKUP(I5,Feuil1!$F$10:$O$24,5),IF(AND(H5>=1967,H5<1972),VLOOKUP(I5,Feuil1!$F$10:$O$24,4),IF(AND(H5>=1972,H5<1977),VLOOKUP(I5,Feuil1!$F$10:$O$24,3),IF(AND(H5>=1977,H5<1982),VLOOKUP(I5,Feuil1!$F$10:$O$24,2),VLOOKUP(I5,Feuil1!$F$10:$O$24,2)))))))))) -> VF35-48 | AA5: =T5-HLOOKUP(Y5,Feuil1!$C$1:$BF$9,2,FALSE) -> 85 | AB5: =T5-HLOOKUP(Y5,Feuil1!$C$1:$BF$9,3,FALSE) -> 30 | AC5: =T5-HLOOKUP(Y5,Feuil1!$C$1:$BF$9,4,FALSE) -> 25 | AD5: =T5-HLOOKUP(Y5,Feuil1!$C$1:$BF$9,5,FALSE) -> 15 | AE5: =T5-HLOOKUP(Y5,Feuil1!$C$1:$BF$9,6,FALSE) -> 3 | AF5: =T5-HLOOKUP(Y5,Feuil1!$C$1:$BF$9,7,FALSE) -> -915 | AG5: =T5-HLOOKUP(Y5,Feuil1!$C$1:$BF$9,8,FALSE) -> -915 | AH5: =T5-HLOOKUP(Y5,Feuil1!$C$1:$BF$9,9,FALSE) -> -915 | AP5: =IF(AH5>=0,$AH$4,IF(AG5>=0,$AG$4,IF(AF5>=0,$AF$4,IF(AE5>=0,$AE$4,IF(AD5>=0,$AD$4,IF(AC5>=0,$AC$4,IF(AB5>=0,$AB$4,IF(AA5>=0,$AA$4,$AI$4)))))))) -> MON + | AQ5: =2016-H5 -> 37 | AS5: =IF(AQ5,VLOOKUP(AQ5,HOM!$AR$551:$AS$606,2)) -> 1.1
A6: F | X6: =IF(AQ6<95,IF(AQ6<=90,VLOOKUP(AQ6,$AQ$464:$AR$519,2))) -> FALSE | Y6: =IF(AND(H6<1936),VLOOKUP(I6,Feuil1!$F$10:$O$24,9),IF(AND(H6>=1942,H6<1947),VLOOKUP(I6,Feuil1!$F$10:$O$24,9),IF(AND(H6>=1947,H6<1952),VLOOKUP(I6,Feuil1!$F$10:$O$24,8),IF(AND(H6>=1952,H6<1957),VLOOKUP(I6,Feuil1!$F$10:$O$24,7),IF(AND(H6>=1957,H6<1962),VLOOKUP(I6,Feuil1!$F$10:$O$24,6),IF(AND(H6>=1962,H6<1967),VLOOKUP(I6,Feuil1!$F$10:$O$24,5),IF(AND(H6>=1967,H6<1972),VLOOKUP(I6,Feuil1!$F$10:$O$24,4),IF(AND(H6>=1972,H6<1977),VLOOKUP(I6,Feuil1!$F$10:$O$24,3),IF(AND(H6>=1977,H6<1982),VLOOKUP(I6,Feuil1!$F$10:$O$24,2),VLOOKUP(I6,Feuil1!$F$10:$O$24,2)))))))))) ->  | AA6: =T6-HLOOKUP(Y6,Feuil1!$C$1:$BF$9,2,FALSE) ->  | AB6: =T6-HLOOKUP(Y6,Feuil1!$C$1:$BF$9,3,FALSE) ->  | AC6: =T6-HLOOKUP(Y6,Feuil1!$C$1:$BF$9,4,FALSE) ->  | AD6: =T6-HLOOKUP(Y6,Feuil1!$C$1:$BF$9,5,FALSE) ->  | AE6: =T6-HLOOKUP(Y6,Feuil1!$C$1:$BF$9,6,FALSE) ->  | AF6: =T6-HLOOKUP(Y6,Feuil1!$C$1:$BF$9,7,FALSE) ->  | AG6: =T6-HLOOKUP(Y6,Feuil1!$C$1:$BF$9,8,FALSE) ->  | AH6: =T6-HLOOKUP(Y6,Feuil1!$C$1:$BF$9,9,FALSE) ->  | AQ6: 2016 | AS6: =IF(AQ6,VLOOKUP(AQ6,HOM!$AR$551:$AS$606,2)) -> 3.571
A7: F | B7: SE | C7: CAZ | F7: CLAPIER | G7: HELENE | H7: 1979 | I7: 78.41 | J7: AS MONACO | K7: MC | L7: 47 | M7: 50 | N7: 52 | O7: =IF(I7="","",IF(MAXA(L7:N7)<=0,0,MAXA(L7:N7))) -> 52 | P7: 64 | Q7: -70 | R7: -70 | S7: 64 | T7: 116 | U7: 149.3426461 | V7: MON + | W7: 4 | X7: =IF(AQ7<95,IF(AQ7<=90,VLOOKUP(AQ7,$AQ$464:$AR$519,2))) -> V1 F35 | Y7: =IF(AND(H7<1936),VLOOKUP(I7,Feuil1!$F$10:$O$24,9),IF(AND(H7>=1942,H7<1947),VLOOKUP(I7,Feuil1!$F$10:$O$24,9),IF(AND(H7>=1947,H7<1952),VLOOKUP(I7,Feuil1!$F$10:$O$24,8),IF(AND(H7>=1952,H7<1957),VLOOKUP(I7,Feuil1!$F$10:$O$24,7),IF(AND(H7>=1957,H7<1962),VLOOKUP(I7,Feuil1!$F$10:$O$24,6),IF(AND(H7>=1962,H7<1967),VLOOKUP(I7,Feuil1!$F$10:$O$24,5),IF(AND(H7>=1967,H7<1972),VLOOKUP(I7,Feuil1!$F$10:$O$24,4),IF(AND(H7>=1972,H7<1977),VLOOKUP(I7,Feuil1!$F$10:$O$24,3),IF(AND(H7>=1977,H7<1982),VLOOKUP(I7,Feuil1!$F$10:$O$24,2),VLOOKUP(I7,Feuil1!$F$10:$O$24,2)))))))))) -> VF35+75 | AA7: =T7-HLOOKUP(Y7,Feuil1!$C$1:$BF$9,2,FALSE) -> 116 | AB7: =T7-HLOOKUP(Y7,Feuil1!$C$1:$BF$9,3,FALSE) -> 36 | AC7: =T7-HLOOKUP(Y7,Feuil1!$C$1:$BF$9,4,FALSE) -> 31 | AD7: =T7-HLOOKUP(Y7,Feuil1!$C$1:$BF$9,5,FALSE) -> 21 | AE7: =T7-HLOOKUP(Y7,Feuil1!$C$1:$BF$9,6,FALSE) -> 4 | AF7: =T7-HLOOKUP(Y7,Feuil1!$C$1:$BF$9,7,FALSE) -> -884 | AG7: =T7-HLOOKUP(Y7,Feuil1!$C$1:$BF$9,8,FALSE) -> -884 | AH7: =T7-HLOOKUP(Y7,Feuil1!$C$1:$BF$9,9,FALSE) -> -884 | AP7: MON + | AQ7: 37 | AS7: =IF(AQ7,VLOOKUP(AQ7,HOM!$AR$551:$AS$606,2)) -> 1.1
A8: F | X8: =IF(AQ8<95,IF(AQ8<=90,VLOOKUP(AQ8,$AQ$464:$AR$519,2))) -> FALSE | Y8: =IF(AND(H8<1936),VLOOKUP(I8,Feuil1!$F$10:$O$24,9),IF(AND(H8>=1942,H8<1947),VLOOKUP(I8,Feuil1!$F$10:$O$24,9),IF(AND(H8>=1947,H8<1952),VLOOKUP(I8,Feuil1!$F$10:$O$24,8),IF(AND(H8>=1952,H8<1957),VLOOKUP(I8,Feuil1!$F$10:$O$24,7),IF(AND(H8>=1957,H8<1962),VLOOKUP(I8,Feuil1!$F$10:$O$24,6),IF(AND(H8>=1962,H8<1967),VLOOKUP(I8,Feuil1!$F$10:$O$24,5),IF(AND(H8>=1967,H8<1972),VLOOKUP(I8,Feuil1!$F$10:$O$24,4),IF(AND(H8>=1972,H8<1977),VLOOKUP(I8,Feuil1!$F$10:$O$24,3),IF(AND(H8>=1977,H8<1982),VLOOKUP(I8,Feuil1!$F$10:$O$24,2),VLOOKUP(I8,Feuil1!$F$10:$O$24,2)))))))))) ->  | AA8: =T8-HLOOKUP(Y8,Feuil1!$C$1:$BF$9,2,FALSE) ->  | AB8: =T8-HLOOKUP(Y8,Feuil1!$C$1:$BF$9,3,FALSE) ->  | AC8: =T8-HLOOKUP(Y8,Feuil1!$C$1:$BF$9,4,FALSE) ->  | AD8: =T8-HLOOKUP(Y8,Feuil1!$C$1:$BF$9,5,FALSE) ->  | AE8: =T8-HLOOKUP(Y8,Feuil1!$C$1:$BF$9,6,FALSE) ->  | AF8: =T8-HLOOKUP(Y8,Feuil1!$C$1:$BF$9,7,FALSE) ->  | AG8: =T8-HLOOKUP(Y8,Feuil1!$C$1:$BF$9,8,FALSE) ->  | AH8: =T8-HLOOKUP(Y8,Feuil1!$C$1:$BF$9,9,FALSE) ->  | AQ8: 2016 | AS8: =IF(AQ8,VLOOKUP(AQ8,HOM!$AR$551:$AS$606,2)) -> 3.571
A9: F | X9: =IF(AQ9<95,IF(AQ9<=90,VLOOKUP(AQ9,$AQ$464:$AR$519,2))) -> FALSE | Y9: =IF(AND(H9<1936),VLOOKUP(I9,Feuil1!$F$10:$O$24,9),IF(AND(H9>=1942,H9<1947),VLOOKUP(I9,Feuil1!$F$10:$O$24,9),IF(AND(H9>=1947,H9<1952),VLOOKUP(I9,Feuil1!$F$10:$O$24,8),IF(AND(H9>=1952,H9<1957),VLOOKUP(I9,Feuil1!$F$10:$O$24,7),IF(AND(H9>=1957,H9<1962),VLOOKUP(I9,Feuil1!$F$10:$O$24,6),IF(AND(H9>=1962,H9<1967),VLOOKUP(I9,Feuil1!$F$10:$O$24,5),IF(AND(H9>=1967,H9<1972),VLOOKUP(I9,Feuil1!$F$10:$O$24,4),IF(AND(H9>=1972,H9<1977),VLOOKUP(I9,Feuil1!$F$10:$O$24,3),IF(AND(H9>=1977,H9<1982),VLOOKUP(I9,Feuil1!$F$10:$O$24,2),VLOOKUP(I9,Feuil1!$F$10:$O$24,2)))))))))) ->  | AA9: =T9-HLOOKUP(Y9,Feuil1!$C$1:$BF$9,2,FALSE) ->  | AB9: =T9-HLOOKUP(Y9,Feuil1!$C$1:$BF$9,3,FALSE) ->  | AC9: =T9-HLOOKUP(Y9,Feuil1!$C$1:$BF$9,4,FALSE) ->  | AD9: =T9-HLOOKUP(Y9,Feuil1!$C$1:$BF$9,5,FALSE) ->  | AE9: =T9-HLOOKUP(Y9,Feuil1!$C$1:$BF$9,6,FALSE) ->  | AF9: =T9-HLOOKUP(Y9,Feuil1!$C$1:$BF$9,7,FALSE) ->  | AG9: =T9-HLOOKUP(Y9,Feuil1!$C$1:$BF$9,8,FALSE) ->  | AH9: =T9-HLOOKUP(Y9,Feuil1!$C$1:$BF$9,9,FALSE) ->  | AQ9: 2016 | AS9: =IF(AQ9,VLOOKUP(AQ9,HOM!$AR$551:$AS$606,2)) -> 3.571
A10: F | X10: =IF(AQ10<95,IF(AQ10<=90,VLOOKUP(AQ10,$AQ$464:$AR$519,2))) -> FALSE | Y10: =IF(AND(H10<1936),VLOOKUP(I10,Feuil1!$F$10:$O$24,9),IF(AND(H10>=1942,H10<1947),VLOOKUP(I10,Feuil1!$F$10:$O$24,9),IF(AND(H10>=1947,H10<1952),VLOOKUP(I10,Feuil1!$F$10:$O$24,8),IF(AND(H10>=1952,H10<1957),VLOOKUP(I10,Feuil1!$F$10:$O$24,7),IF(AND(H10>=1957,H10<1962),VLOOKUP(I10,Feuil1!$F$10:$O$24,6),IF(AND(H10>=1962,H10<1967),VLOOKUP(I10,Feuil1!$F$10:$O$24,5),IF(AND(H10>=1967,H10<1972),VLOOKUP(I10,Feuil1!$F$10:$O$24,4),IF(AND(H10>=1972,H10<1977),VLOOKUP(I10,Feuil1!$F$10:$O$24,3),IF(AND(H10>=1977,H10<1982),VLOOKUP(I10,Feuil1!$F$10:$O$24,2),VLOOKUP(I10,Feuil1!$F$10:$O$24,2)))))))))) ->  | AA10: =T10-HLOOKUP(Y10,Feuil1!$C$1:$BF$9,2,FALSE) ->  | AB10: =T10-HLOOKUP(Y10,Feuil1!$C$1:$BF$9,3,FALSE) ->  | AC10: =T10-HLOOKUP(Y10,Feuil1!$C$1:$BF$9,4,FALSE) ->  | AD10: =T10-HLOOKUP(Y10,Feuil1!$C$1:$BF$9,5,FALSE) ->  | AE10: =T10-HLOOKUP(Y10,Feuil1!$C$1:$BF$9,6,FALSE) ->  | AF10: =T10-HLOOKUP(Y10,Feuil1!$C$1:$BF$9,7,FALSE) ->  | AG10: =T10-HLOOKUP(Y10,Feuil1!$C$1:$BF$9,8,FALSE) ->  | AH10: =T10-HLOOKUP(Y10,Feuil1!$C$1:$BF$9,9,FALSE) ->  | AQ10: 2016 | AS10: =IF(AQ10,VLOOKUP(AQ10,HOM!$AR$551:$AS$606,2)) -> 3.571
A11: F | X11: =IF(AQ11<95,IF(AQ11<=90,VLOOKUP(AQ11,$AQ$464:$AR$519,2))) -> FALSE | Y11: =IF(AND(H11<1936),VLOOKUP(I11,Feuil1!$F$10:$O$24,9),IF(AND(H11>=1942,H11<1947),VLOOKUP(I11,Feuil1!$F$10:$O$24,9),IF(AND(H11>=1947,H11<1952),VLOOKUP(I11,Feuil1!$F$10:$O$24,8),IF(AND(H11>=1952,H11<1957),VLOOKUP(I11,Feuil1!$F$10:$O$24,7),IF(AND(H11>=1957,H11<1962),VLOOKUP(I11,Feuil1!$F$10:$O$24,6),IF(AND(H11>=1962,H11<1967),VLOOKUP(I11,Feuil1!$F$10:$O$24,5),IF(AND(H11>=1967,H11<1972),VLOOKUP(I11,Feuil1!$F$10:$O$24,4),IF(AND(H11>=1972,H11<1977),VLOOKUP(I11,Feuil1!$F$10:$O$24,3),IF(AND(H11>=1977,H11<1982),VLOOKUP(I11,Feuil1!$F$10:$O$24,2),VLOOKUP(I11,Feuil1!$F$10:$O$24,2)))))))))) ->  | AA11: =T11-HLOOKUP(Y11,Feuil1!$C$1:$BF$9,2,FALSE) ->  | AB11: =T11-HLOOKUP(Y11,Feuil1!$C$1:$BF$9,3,FALSE) ->  | AC11: =T11-HLOOKUP(Y11,Feuil1!$C$1:$BF$9,4,FALSE) ->  | AD11: =T11-HLOOKUP(Y11,Feuil1!$C$1:$BF$9,5,FALSE) ->  | AE11: =T11-HLOOKUP(Y11,Feuil1!$C$1:$BF$9,6,FALSE) ->  | AF11: =T11-HLOOKUP(Y11,Feuil1!$C$1:$BF$9,7,FALSE) ->  | AG11: =T11-HLOOKUP(Y11,Feuil1!$C$1:$BF$9,8,FALSE) ->  | AH11: =T11-HLOOKUP(Y11,Feuil1!$C$1:$BF$9,9,FALSE) ->  | AQ11: 2016 | AS11: =IF(AQ11,VLOOKUP(AQ11,HOM!$AR$551:$AS$606,2)) -> 3.571
A12: F | X12: =IF(AQ12<95,IF(AQ12<=90,VLOOKUP(AQ12,$AQ$464:$AR$519,2))) -> FALSE | Y12: =IF(AND(H12<1936),VLOOKUP(I12,Feuil1!$F$10:$O$24,9),IF(AND(H12>=1942,H12<1947),VLOOKUP(I12,Feuil1!$F$10:$O$24,9),IF(AND(H12>=1947,H12<1952),VLOOKUP(I12,Feuil1!$F$10:$O$24,8),IF(AND(H12>=1952,H12<1957),VLOOKUP(I12,Feuil1!$F$10:$O$24,7),IF(AND(H12>=1957,H12<1962),VLOOKUP(I12,Feuil1!$F$10:$O$24,6),IF(AND(H12>=1962,H12<1967),VLOOKUP(I12,Feuil1!$F$10:$O$24,5),IF(AND(H12>=1967,H12<1972),VLOOKUP(I12,Feuil1!$F$10:$O$24,4),IF(AND(H12>=1972,H12<1977),VLOOKUP(I12,Feuil1!$F$10:$O$24,3),IF(AND(H12>=1977,H12<1982),VLOOKUP(I12,Feuil1!$F$10:$O$24,2),VLOOKUP(I12,Feuil1!$F$10:$O$24,2)))))))))) ->  | AA12: =T12-HLOOKUP(Y12,Feuil1!$C$1:$BF$9,2,FALSE) ->  | AB12: =T12-HLOOKUP(Y12,Feuil1!$C$1:$BF$9,3,FALSE) ->  | AC12: =T12-HLOOKUP(Y12,Feuil1!$C$1:$BF$9,4,FALSE) ->  | AD12: =T12-HLOOKUP(Y12,Feuil1!$C$1:$BF$9,5,FALSE) ->  | AE12: =T12-HLOOKUP(Y12,Feuil1!$C$1:$BF$9,6,FALSE) ->  | AF12: =T12-HLOOKUP(Y12,Feuil1!$C$1:$BF$9,7,FALSE) ->  | AG12: =T12-HLOOKUP(Y12,Feuil1!$C$1:$BF$9,8,FALSE) ->  | AH12: =T12-HLOOKUP(Y12,Feuil1!$C$1:$BF$9,9,FALSE) ->  | AQ12: 2016 | AS12: =IF(AQ12,VLOOKUP(AQ12,HOM!$AR$551:$AS$606,2)) -> 3.571
A13: F | X13: =IF(AQ13<95,IF(AQ13<=90,VLOOKUP(AQ13,$AQ$464:$AR$519,2))) -> FALSE | Y13: =IF(AND(H13<1936),VLOOKUP(I13,Feuil1!$F$10:$O$24,9),IF(AND(H13>=1942,H13<1947),VLOOKUP(I13,Feuil1!$F$10:$O$24,9),IF(AND(H13>=1947,H13<1952),VLOOKUP(I13,Feuil1!$F$10:$O$24,8),IF(AND(H13>=1952,H13<1957),VLOOKUP(I13,Feuil1!$F$10:$O$24,7),IF(AND(H13>=1957,H13<1962),VLOOKUP(I13,Feuil1!$F$10:$O$24,6),IF(AND(H13>=1962,H13<1967),VLOOKUP(I13,Feuil1!$F$10:$O$24,5),IF(AND(H13>=1967,H13<1972),VLOOKUP(I13,Feuil1!$F$10:$O$24,4),IF(AND(H13>=1972,H13<1977),VLOOKUP(I13,Feuil1!$F$10:$O$24,3),IF(AND(H13>=1977,H13<1982),VLOOKUP(I13,Feuil1!$F$10:$O$24,2),VLOOKUP(I13,Feuil1!$F$10:$O$24,2)))))))))) ->  | AA13: =T13-HLOOKUP(Y13,Feuil1!$C$1:$BF$9,2,FALSE) ->  | AB13: =T13-HLOOKUP(Y13,Feuil1!$C$1:$BF$9,3,FALSE) ->  | AC13: =T13-HLOOKUP(Y13,Feuil1!$C$1:$BF$9,4,FALSE) ->  | AD13: =T13-HLOOKUP(Y13,Feuil1!$C$1:$BF$9,5,FALSE) ->  | AE13: =T13-HLOOKUP(Y13,Feuil1!$C$1:$BF$9,6,FALSE) ->  | AF13: =T13-HLOOKUP(Y13,Feuil1!$C$1:$BF$9,7,FALSE) ->  | AG13: =T13-HLOOKUP(Y13,Feuil1!$C$1:$BF$9,8,FALSE) ->  | AH13: =T13-HLOOKUP(Y13,Feuil1!$C$1:$BF$9,9,FALSE) ->  | AQ13: 2016 | AS13: =IF(AQ13,VLOOKUP(AQ13,HOM!$AR$551:$AS$606,2)) -> 3.571
A14: F | X14: =IF(AQ14<95,IF(AQ14<=90,VLOOKUP(AQ14,$AQ$464:$AR$519,2))) -> FALSE | Y14: =IF(AND(H14<1936),VLOOKUP(I14,Feuil1!$F$10:$O$24,9),IF(AND(H14>=1942,H14<1947),VLOOKUP(I14,Feuil1!$F$10:$O$24,9),IF(AND(H14>=1947,H14<1952),VLOOKUP(I14,Feuil1!$F$10:$O$24,8),IF(AND(H14>=1952,H14<1957),VLOOKUP(I14,Feuil1!$F$10:$O$24,7),IF(AND(H14>=1957,H14<1962),VLOOKUP(I14,Feuil1!$F$10:$O$24,6),IF(AND(H14>=1962,H14<1967),VLOOKUP(I14,Feuil1!$F$10:$O$24,5),IF(AND(H14>=1967,H14<1972),VLOOKUP(I14,Feuil1!$F$10:$O$24,4),IF(AND(H14>=1972,H14<1977),VLOOKUP(I14,Feuil1!$F$10:$O$24,3),IF(AND(H14>=1977,H14<1982),VLOOKUP(I14,Feuil1!$F$10:$O$24,2),VLOOKUP(I14,Feuil1!$F$10:$O$24,2)))))))))) ->  | AA14: =T14-HLOOKUP(Y14,Feuil1!$C$1:$BF$9,2,FALSE) ->  | AB14: =T14-HLOOKUP(Y14,Feuil1!$C$1:$BF$9,3,FALSE) ->  | AC14: =T14-HLOOKUP(Y14,Feuil1!$C$1:$BF$9,4,FALSE) ->  | AD14: =T14-HLOOKUP(Y14,Feuil1!$C$1:$BF$9,5,FALSE) ->  | AE14: =T14-HLOOKUP(Y14,Feuil1!$C$1:$BF$9,6,FALSE) ->  | AF14: =T14-HLOOKUP(Y14,Feuil1!$C$1:$BF$9,7,FALSE) ->  | AG14: =T14-HLOOKUP(Y14,Feuil1!$C$1:$BF$9,8,FALSE) ->  | AH14: =T14-HLOOKUP(Y14,Feuil1!$C$1:$BF$9,9,FALSE) ->  | AQ14: 2016 | AS14: =IF(AQ14,VLOOKUP(AQ14,HOM!$AR$551:$AS$606,2)) -> 3.571
A15: F | X15: =IF(AQ15<95,IF(AQ15<=90,VLOOKUP(AQ15,$AQ$464:$AR$519,2))) -> FALSE | Y15: =IF(AND(H15<1936),VLOOKUP(I15,Feuil1!$F$10:$O$24,9),IF(AND(H15>=1942,H15<1947),VLOOKUP(I15,Feuil1!$F$10:$O$24,9),IF(AND(H15>=1947,H15<1952),VLOOKUP(I15,Feuil1!$F$10:$O$24,8),IF(AND(H15>=1952,H15<1957),VLOOKUP(I15,Feuil1!$F$10:$O$24,7),IF(AND(H15>=1957,H15<1962),VLOOKUP(I15,Feuil1!$F$10:$O$24,6),IF(AND(H15>=1962,H15<1967),VLOOKUP(I15,Feuil1!$F$10:$O$24,5),IF(AND(H15>=1967,H15<1972),VLOOKUP(I15,Feuil1!$F$10:$O$24,4),IF(AND(H15>=1972,H15<1977),VLOOKUP(I15,Feuil1!$F$10:$O$24,3),IF(AND(H15>=1977,H15<1982),VLOOKUP(I15,Feuil1!$F$10:$O$24,2),VLOOKUP(I15,Feuil1!$F$10:$O$24,2)))))))))) ->  | AA15: =T15-HLOOKUP(Y15,Feuil1!$C$1:$BF$9,2,FALSE) ->  | AB15: =T15-HLOOKUP(Y15,Feuil1!$C$1:$BF$9,3,FALSE) ->  | AC15: =T15-HLOOKUP(Y15,Feuil1!$C$1:$BF$9,4,FALSE) ->  | AD15: =T15-HLOOKUP(Y15,Feuil1!$C$1:$BF$9,5,FALSE) ->  | AE15: =T15-HLOOKUP(Y15,Feuil1!$C$1:$BF$9,6,FALSE) ->  | AF15: =T15-HLOOKUP(Y15,Feuil1!$C$1:$BF$9,7,FALSE) ->  | AG15: =T15-HLOOKUP(Y15,Feuil1!$C$1:$BF$9,8,FALSE) ->  | AH15: =T15-HLOOKUP(Y15,Feuil1!$C$1:$BF$9,9,FALSE) ->  | AQ15: 2016 | AS15: =IF(AQ15,VLOOKUP(AQ15,HOM!$AR$551:$AS$606,2)) -> 3.571
A16: F | X16: =IF(AQ16<95,IF(AQ16<=90,VLOOKUP(AQ16,$AQ$464:$AR$519,2))) -> FALSE | Y16: =IF(AND(H16<1936),VLOOKUP(I16,Feuil1!$F$10:$O$24,9),IF(AND(H16>=1942,H16<1947),VLOOKUP(I16,Feuil1!$F$10:$O$24,9),IF(AND(H16>=1947,H16<1952),VLOOKUP(I16,Feuil1!$F$10:$O$24,8),IF(AND(H16>=1952,H16<1957),VLOOKUP(I16,Feuil1!$F$10:$O$24,7),IF(AND(H16>=1957,H16<1962),VLOOKUP(I16,Feuil1!$F$10:$O$24,6),IF(AND(H16>=1962,H16<1967),VLOOKUP(I16,Feuil1!$F$10:$O$24,5),IF(AND(H16>=1967,H16<1972),VLOOKUP(I16,Feuil1!$F$10:$O$24,4),IF(AND(H16>=1972,H16<1977),VLOOKUP(I16,Feuil1!$F$10:$O$24,3),IF(AND(H16>=1977,H16<1982),VLOOKUP(I16,Feuil1!$F$10:$O$24,2),VLOOKUP(I16,Feuil1!$F$10:$O$24,2)))))))))) ->  | AA16: =T16-HLOOKUP(Y16,Feuil1!$C$1:$BF$9,2,FALSE) ->  | AB16: =T16-HLOOKUP(Y16,Feuil1!$C$1:$BF$9,3,FALSE) ->  | AC16: =T16-HLOOKUP(Y16,Feuil1!$C$1:$BF$9,4,FALSE) ->  | AD16: =T16-HLOOKUP(Y16,Feuil1!$C$1:$BF$9,5,FALSE) ->  | AE16: =T16-HLOOKUP(Y16,Feuil1!$C$1:$BF$9,6,FALSE) ->  | AF16: =T16-HLOOKUP(Y16,Feuil1!$C$1:$BF$9,7,FALSE) ->  | AG16: =T16-HLOOKUP(Y16,Feuil1!$C$1:$BF$9,8,FALSE) ->  | AH16: =T16-HLOOKUP(Y16,Feuil1!$C$1:$BF$9,9,FALSE) ->  | AQ16: 2016 | AS16: =IF(AQ16,VLOOKUP(AQ16,HOM!$AR$551:$AS$606,2)) -> 3.571
A17: F | X17: =IF(AQ17<95,IF(AQ17<=90,VLOOKUP(AQ17,$AQ$464:$AR$519,2))) -> FALSE | Y17: =IF(AND(H17<1936),VLOOKUP(I17,Feuil1!$F$10:$O$24,9),IF(AND(H17>=1942,H17<1947),VLOOKUP(I17,Feuil1!$F$10:$O$24,9),IF(AND(H17>=1947,H17<1952),VLOOKUP(I17,Feuil1!$F$10:$O$24,8),IF(AND(H17>=1952,H17<1957),VLOOKUP(I17,Feuil1!$F$10:$O$24,7),IF(AND(H17>=1957,H17<1962),VLOOKUP(I17,Feuil1!$F$10:$O$24,6),IF(AND(H17>=1962,H17<1967),VLOOKUP(I17,Feuil1!$F$10:$O$24,5),IF(AND(H17>=1967,H17<1972),VLOOKUP(I17,Feuil1!$F$10:$O$24,4),IF(AND(H17>=1972,H17<1977),VLOOKUP(I17,Feuil1!$F$10:$O$24,3),IF(AND(H17>=1977,H17<1982),VLOOKUP(I17,Feuil1!$F$10:$O$24,2),VLOOKUP(I17,Feuil1!$F$10:$O$24,2)))))))))) ->  | AA17: =T17-HLOOKUP(Y17,Feuil1!$C$1:$BF$9,2,FALSE) ->  | AB17: =T17-HLOOKUP(Y17,Feuil1!$C$1:$BF$9,3,FALSE) ->  | AC17: =T17-HLOOKUP(Y17,Feuil1!$C$1:$BF$9,4,FALSE) ->  | AD17: =T17-HLOOKUP(Y17,Feuil1!$C$1:$BF$9,5,FALSE) ->  | AE17: =T17-HLOOKUP(Y17,Feuil1!$C$1:$BF$9,6,FALSE) ->  | AF17: =T17-HLOOKUP(Y17,Feuil1!$C$1:$BF$9,7,FALSE) ->  | AG17: =T17-HLOOKUP(Y17,Feuil1!$C$1:$BF$9,8,FALSE) ->  | AH17: =T17-HLOOKUP(Y17,Feuil1!$C$1:$BF$9,9,FALSE) ->  | AQ17: 2016 | AS17: =IF(AQ17,VLOOKUP(AQ17,HOM!$AR$551:$AS$606,2)) -> 3.571
A18: F | X18: =IF(AQ18<95,IF(AQ18<=90,VLOOKUP(AQ18,$AQ$464:$AR$519,2))) -> FALSE | Y18: =IF(AND(H18<1936),VLOOKUP(I18,Feuil1!$F$10:$O$24,9),IF(AND(H18>=1942,H18<1947),VLOOKUP(I18,Feuil1!$F$10:$O$24,9),IF(AND(H18>=1947,H18<1952),VLOOKUP(I18,Feuil1!$F$10:$O$24,8),IF(AND(H18>=1952,H18<1957),VLOOKUP(I18,Feuil1!$F$10:$O$24,7),IF(AND(H18>=1957,H18<1962),VLOOKUP(I18,Feuil1!$F$10:$O$24,6),IF(AND(H18>=1962,H18<1967),VLOOKUP(I18,Feuil1!$F$10:$O$24,5),IF(AND(H18>=1967,H18<1972),VLOOKUP(I18,Feuil1!$F$10:$O$24,4),IF(AND(H18>=1972,H18<1977),VLOOKUP(I18,Feuil1!$F$10:$O$24,3),IF(AND(H18>=1977,H18<1982),VLOOKUP(I18,Feuil1!$F$10:$O$24,2),VLOOKUP(I18,Feuil1!$F$10:$O$24,2)))))))))) ->  | AA18: =T18-HLOOKUP(Y18,Feuil1!$C$1:$BF$9,2,FALSE) ->  | AB18: =T18-HLOOKUP(Y18,Feuil1!$C$1:$BF$9,3,FALSE) ->  | AC18: =T18-HLOOKUP(Y18,Feuil1!$C$1:$BF$9,4,FALSE) ->  | AD18: =T18-HLOOKUP(Y18,Feuil1!$C$1:$BF$9,5,FALSE) ->  | AE18: =T18-HLOOKUP(Y18,Feuil1!$C$1:$BF$9,6,FALSE) ->  | AF18: =T18-HLOOKUP(Y18,Feuil1!$C$1:$BF$9,7,FALSE) ->  | AG18: =T18-HLOOKUP(Y18,Feuil1!$C$1:$BF$9,8,FALSE) ->  | AH18: =T18-HLOOKUP(Y18,Feuil1!$C$1:$BF$9,9,FALSE) ->  | AQ18: 2016 | AS18: =IF(AQ18,VLOOKUP(AQ18,HOM!$AR$551:$AS$606,2)) -> 3.571
A19: F | X19: =IF(AQ19<95,IF(AQ19<=90,VLOOKUP(AQ19,$AQ$464:$AR$519,2))) -> FALSE | Y19: =IF(AND(H19<1936),VLOOKUP(I19,Feuil1!$F$10:$O$24,9),IF(AND(H19>=1942,H19<1947),VLOOKUP(I19,Feuil1!$F$10:$O$24,9),IF(AND(H19>=1947,H19<1952),VLOOKUP(I19,Feuil1!$F$10:$O$24,8),IF(AND(H19>=1952,H19<1957),VLOOKUP(I19,Feuil1!$F$10:$O$24,7),IF(AND(H19>=1957,H19<1962),VLOOKUP(I19,Feuil1!$F$10:$O$24,6),IF(AND(H19>=1962,H19<1967),VLOOKUP(I19,Feuil1!$F$10:$O$24,5),IF(AND(H19>=1967,H19<1972),VLOOKUP(I19,Feuil1!$F$10:$O$24,4),IF(AND(H19>=1972,H19<1977),VLOOKUP(I19,Feuil1!$F$10:$O$24,3),IF(AND(H19>=1977,H19<1982),VLOOKUP(I19,Feuil1!$F$10:$O$24,2),VLOOKUP(I19,Feuil1!$F$10:$O$24,2)))))))))) ->  | AA19: =T19-HLOOKUP(Y19,Feuil1!$C$1:$BF$9,2,FALSE) ->  | AB19: =T19-HLOOKUP(Y19,Feuil1!$C$1:$BF$9,3,FALSE) ->  | AC19: =T19-HLOOKUP(Y19,Feuil1!$C$1:$BF$9,4,FALSE) ->  | AD19: =T19-HLOOKUP(Y19,Feuil1!$C$1:$BF$9,5,FALSE) ->  | AE19: =T19-HLOOKUP(Y19,Feuil1!$C$1:$BF$9,6,FALSE) ->  | AF19: =T19-HLOOKUP(Y19,Feuil1!$C$1:$BF$9,7,FALSE) ->  | AG19: =T19-HLOOKUP(Y19,Feuil1!$C$1:$BF$9,8,FALSE) ->  | AH19: =T19-HLOOKUP(Y19,Feuil1!$C$1:$BF$9,9,FALSE) ->  | AQ19: 2016 | AS19: =IF(AQ19,VLOOKUP(AQ19,HOM!$AR$551:$AS$606,2)) -> 3.571
A20: F | X20: =IF(AQ20<95,IF(AQ20<=90,VLOOKUP(AQ20,$AQ$464:$AR$519,2))) -> FALSE | Y20: =IF(AND(H20<1936),VLOOKUP(I20,Feuil1!$F$10:$O$24,9),IF(AND(H20>=1942,H20<1947),VLOOKUP(I20,Feuil1!$F$10:$O$24,9),IF(AND(H20>=1947,H20<1952),VLOOKUP(I20,Feuil1!$F$10:$O$24,8),IF(AND(H20>=1952,H20<1957),VLOOKUP(I20,Feuil1!$F$10:$O$24,7),IF(AND(H20>=1957,H20<1962),VLOOKUP(I20,Feuil1!$F$10:$O$24,6),IF(AND(H20>=1962,H20<1967),VLOOKUP(I20,Feuil1!$F$10:$O$24,5),IF(AND(H20>=1967,H20<1972),VLOOKUP(I20,Feuil1!$F$10:$O$24,4),IF(AND(H20>=1972,H20<1977),VLOOKUP(I20,Feuil1!$F$10:$O$24,3),IF(AND(H20>=1977,H20<1982),VLOOKUP(I20,Feuil1!$F$10:$O$24,2),VLOOKUP(I20,Feuil1!$F$10:$O$24,2)))))))))) ->  | AA20: =T20-HLOOKUP(Y20,Feuil1!$C$1:$BF$9,2,FALSE) ->  | AB20: =T20-HLOOKUP(Y20,Feuil1!$C$1:$BF$9,3,FALSE) ->  | AC20: =T20-HLOOKUP(Y20,Feuil1!$C$1:$BF$9,4,FALSE) ->  | AD20: =T20-HLOOKUP(Y20,Feuil1!$C$1:$BF$9,5,FALSE) ->  | AE20: =T20-HLOOKUP(Y20,Feuil1!$C$1:$BF$9,6,FALSE) ->  | AF20: =T20-HLOOKUP(Y20,Feuil1!$C$1:$BF$9,7,FALSE) ->  | AG20: =T20-HLOOKUP(Y20,Feuil1!$C$1:$BF$9,8,FALSE) ->  | AH20: =T20-HLOOKUP(Y20,Feuil1!$C$1:$BF$9,9,FALSE) ->  | AQ20: 2016 | AS20: =IF(AQ20,VLOOKUP(AQ20,HOM!$AR$551:$AS$606,2)) -> 3.571
A21: F | X21: =IF(AQ21<95,IF(AQ21<=90,VLOOKUP(AQ21,$AQ$464:$AR$519,2))) -> FALSE | Y21: =IF(AND(H21<1936),VLOOKUP(I21,Feuil1!$F$10:$O$24,9),IF(AND(H21>=1942,H21<1947),VLOOKUP(I21,Feuil1!$F$10:$O$24,9),IF(AND(H21>=1947,H21<1952),VLOOKUP(I21,Feuil1!$F$10:$O$24,8),IF(AND(H21>=1952,H21<1957),VLOOKUP(I21,Feuil1!$F$10:$O$24,7),IF(AND(H21>=1957,H21<1962),VLOOKUP(I21,Feuil1!$F$10:$O$24,6),IF(AND(H21>=1962,H21<1967),VLOOKUP(I21,Feuil1!$F$10:$O$24,5),IF(AND(H21>=1967,H21<1972),VLOOKUP(I21,Feuil1!$F$10:$O$24,4),IF(AND(H21>=1972,H21<1977),VLOOKUP(I21,Feuil1!$F$10:$O$24,3),IF(AND(H21>=1977,H21<1982),VLOOKUP(I21,Feuil1!$F$10:$O$24,2),VLOOKUP(I21,Feuil1!$F$10:$O$24,2)))))))))) ->  | AA21: =T21-HLOOKUP(Y21,Feuil1!$C$1:$BF$9,2,FALSE) ->  | AB21: =T21-HLOOKUP(Y21,Feuil1!$C$1:$BF$9,3,FALSE) ->  | AC21: =T21-HLOOKUP(Y21,Feuil1!$C$1:$BF$9,4,FALSE) ->  | AD21: =T21-HLOOKUP(Y21,Feuil1!$C$1:$BF$9,5,FALSE) ->  | AE21: =T21-HLOOKUP(Y21,Feuil1!$C$1:$BF$9,6,FALSE) ->  | AF21: =T21-HLOOKUP(Y21,Feuil1!$C$1:$BF$9,7,FALSE) ->  | AG21: =T21-HLOOKUP(Y21,Feuil1!$C$1:$BF$9,8,FALSE) ->  | AH21: =T21-HLOOKUP(Y21,Feuil1!$C$1:$BF$9,9,FALSE) ->  | AQ21: 2016 | AS21: =IF(AQ21,VLOOKUP(AQ21,HOM!$AR$551:$AS$606,2)) -> 3.571
A22: F | X22: =IF(AQ22<95,IF(AQ22<=90,VLOOKUP(AQ22,$AQ$464:$AR$519,2))) -> FALSE | Y22: =IF(AND(H22<1936),VLOOKUP(I22,Feuil1!$F$10:$O$24,9),IF(AND(H22>=1942,H22<1947),VLOOKUP(I22,Feuil1!$F$10:$O$24,9),IF(AND(H22>=1947,H22<1952),VLOOKUP(I22,Feuil1!$F$10:$O$24,8),IF(AND(H22>=1952,H22<1957),VLOOKUP(I22,Feuil1!$F$10:$O$24,7),IF(AND(H22>=1957,H22<1962),VLOOKUP(I22,Feuil1!$F$10:$O$24,6),IF(AND(H22>=1962,H22<1967),VLOOKUP(I22,Feuil1!$F$10:$O$24,5),IF(AND(H22>=1967,H22<1972),VLOOKUP(I22,Feuil1!$F$10:$O$24,4),IF(AND(H22>=1972,H22<1977),VLOOKUP(I22,Feuil1!$F$10:$O$24,3),IF(AND(H22>=1977,H22<1982),VLOOKUP(I22,Feuil1!$F$10:$O$24,2),VLOOKUP(I22,Feuil1!$F$10:$O$24,2)))))))))) ->  | AA22: =T22-HLOOKUP(Y22,Feuil1!$C$1:$BF$9,2,FALSE) ->  | AB22: =T22-HLOOKUP(Y22,Feuil1!$C$1:$BF$9,3,FALSE) ->  | AC22: =T22-HLOOKUP(Y22,Feuil1!$C$1:$BF$9,4,FALSE) ->  | AD22: =T22-HLOOKUP(Y22,Feuil1!$C$1:$BF$9,5,FALSE) ->  | AE22: =T22-HLOOKUP(Y22,Feuil1!$C$1:$BF$9,6,FALSE) ->  | AF22: =T22-HLOOKUP(Y22,Feuil1!$C$1:$BF$9,7,FALSE) ->  | AG22: =T22-HLOOKUP(Y22,Feuil1!$C$1:$BF$9,8,FALSE) ->  | AH22: =T22-HLOOKUP(Y22,Feuil1!$C$1:$BF$9,9,FALSE) ->  | AQ22: 2016 | AS22: =IF(AQ22,VLOOKUP(AQ22,HOM!$AR$551:$AS$606,2)) -> 3.571
A23: F | X23: =IF(AQ23<95,IF(AQ23<=90,VLOOKUP(AQ23,$AQ$464:$AR$519,2))) -> FALSE | Y23: =IF(AND(H23<1936),VLOOKUP(I23,Feuil1!$F$10:$O$24,9),IF(AND(H23>=1942,H23<1947),VLOOKUP(I23,Feuil1!$F$10:$O$24,9),IF(AND(H23>=1947,H23<1952),VLOOKUP(I23,Feuil1!$F$10:$O$24,8),IF(AND(H23>=1952,H23<1957),VLOOKUP(I23,Feuil1!$F$10:$O$24,7),IF(AND(H23>=1957,H23<1962),VLOOKUP(I23,Feuil1!$F$10:$O$24,6),IF(AND(H23>=1962,H23<1967),VLOOKUP(I23,Feuil1!$F$10:$O$24,5),IF(AND(H23>=1967,H23<1972),VLOOKUP(I23,Feuil1!$F$10:$O$24,4),IF(AND(H23>=1972,H23<1977),VLOOKUP(I23,Feuil1!$F$10:$O$24,3),IF(AND(H23>=1977,H23<1982),VLOOKUP(I23,Feuil1!$F$10:$O$24,2),VLOOKUP(I23,Feuil1!$F$10:$O$24,2)))))))))) ->  | AA23: =T23-HLOOKUP(Y23,Feuil1!$C$1:$BF$9,2,FALSE) ->  | AB23: =T23-HLOOKUP(Y23,Feuil1!$C$1:$BF$9,3,FALSE) ->  | AC23: =T23-HLOOKUP(Y23,Feuil1!$C$1:$BF$9,4,FALSE) ->  | AD23: =T23-HLOOKUP(Y23,Feuil1!$C$1:$BF$9,5,FALSE) ->  | AE23: =T23-HLOOKUP(Y23,Feuil1!$C$1:$BF$9,6,FALSE) ->  | AF23: =T23-HLOOKUP(Y23,Feuil1!$C$1:$BF$9,7,FALSE) ->  | AG23: =T23-HLOOKUP(Y23,Feuil1!$C$1:$BF$9,8,FALSE) ->  | AH23: =T23-HLOOKUP(Y23,Feuil1!$C$1:$BF$9,9,FALSE) ->  | AQ23: 2016 | AS23: =IF(AQ23,VLOOKUP(AQ23,HOM!$AR$551:$AS$606,2)) -> 3.571
A24: F | X24: =IF(AQ24<95,IF(AQ24<=90,VLOOKUP(AQ24,$AQ$464:$AR$519,2))) -> FALSE | Y24: =IF(AND(H24<1936),VLOOKUP(I24,Feuil1!$F$10:$O$24,9),IF(AND(H24>=1942,H24<1947),VLOOKUP(I24,Feuil1!$F$10:$O$24,9),IF(AND(H24>=1947,H24<1952),VLOOKUP(I24,Feuil1!$F$10:$O$24,8),IF(AND(H24>=1952,H24<1957),VLOOKUP(I24,Feuil1!$F$10:$O$24,7),IF(AND(H24>=1957,H24<1962),VLOOKUP(I24,Feuil1!$F$10:$O$24,6),IF(AND(H24>=1962,H24<1967),VLOOKUP(I24,Feuil1!$F$10:$O$24,5),IF(AND(H24>=1967,H24<1972),VLOOKUP(I24,Feuil1!$F$10:$O$24,4),IF(AND(H24>=1972,H24<1977),VLOOKUP(I24,Feuil1!$F$10:$O$24,3),IF(AND(H24>=1977,H24<1982),VLOOKUP(I24,Feuil1!$F$10:$O$24,2),VLOOKUP(I24,Feuil1!$F$10:$O$24,2)))))))))) ->  | AA24: =T24-HLOOKUP(Y24,Feuil1!$C$1:$BF$9,2,FALSE) ->  | AB24: =T24-HLOOKUP(Y24,Feuil1!$C$1:$BF$9,3,FALSE) ->  | AC24: =T24-HLOOKUP(Y24,Feuil1!$C$1:$BF$9,4,FALSE) ->  | AD24: =T24-HLOOKUP(Y24,Feuil1!$C$1:$BF$9,5,FALSE) ->  | AE24: =T24-HLOOKUP(Y24,Feuil1!$C$1:$BF$9,6,FALSE) ->  | AF24: =T24-HLOOKUP(Y24,Feuil1!$C$1:$BF$9,7,FALSE) ->  | AG24: =T24-HLOOKUP(Y24,Feuil1!$C$1:$BF$9,8,FALSE) ->  | AH24: =T24-HLOOKUP(Y24,Feuil1!$C$1:$BF$9,9,FALSE) ->  | AQ24: 2016 | AS24: =IF(AQ24,VLOOKUP(AQ24,HOM!$AR$551:$AS$606,2)) -> 3.571
A25: F | X25: =IF(AQ25<95,IF(AQ25<=90,VLOOKUP(AQ25,$AQ$464:$AR$519,2))) -> FALSE | Y25: =IF(AND(H25<1936),VLOOKUP(I25,Feuil1!$F$10:$O$24,9),IF(AND(H25>=1942,H25<1947),VLOOKUP(I25,Feuil1!$F$10:$O$24,9),IF(AND(H25>=1947,H25<1952),VLOOKUP(I25,Feuil1!$F$10:$O$24,8),IF(AND(H25>=1952,H25<1957),VLOOKUP(I25,Feuil1!$F$10:$O$24,7),IF(AND(H25>=1957,H25<1962),VLOOKUP(I25,Feuil1!$F$10:$O$24,6),IF(AND(H25>=1962,H25<1967),VLOOKUP(I25,Feuil1!$F$10:$O$24,5),IF(AND(H25>=1967,H25<1972),VLOOKUP(I25,Feuil1!$F$10:$O$24,4),IF(AND(H25>=1972,H25<1977),VLOOKUP(I25,Feuil1!$F$10:$O$24,3),IF(AND(H25>=1977,H25<1982),VLOOKUP(I25,Feuil1!$F$10:$O$24,2),VLOOKUP(I25,Feuil1!$F$10:$O$24,2)))))))))) ->  | AA25: =T25-HLOOKUP(Y25,Feuil1!$C$1:$BF$9,2,FALSE) ->  | AB25: =T25-HLOOKUP(Y25,Feuil1!$C$1:$BF$9,3,FALSE) ->  | AC25: =T25-HLOOKUP(Y25,Feuil1!$C$1:$BF$9,4,FALSE) ->  | AD25: =T25-HLOOKUP(Y25,Feuil1!$C$1:$BF$9,5,FALSE) ->  | AE25: =T25-HLOOKUP(Y25,Feuil1!$C$1:$BF$9,6,FALSE) ->  | AF25: =T25-HLOOKUP(Y25,Feuil1!$C$1:$BF$9,7,FALSE) ->  | AG25: =T25-HLOOKUP(Y25,Feuil1!$C$1:$BF$9,8,FALSE) ->  | AH25: =T25-HLOOKUP(Y25,Feuil1!$C$1:$BF$9,9,FALSE) ->  | AQ25: 2016 | AS25: =IF(AQ25,VLOOKUP(AQ25,HOM!$AR$551:$AS$606,2)) -> 3.571
A26: F | H26: 1980 | I26: 48 | O26: 0 | S26: 0 | T26: 0 | U26: 0 | V26: N.CL. | W26: 0 | X26: =IF(AQ26<95,IF(AQ26<=90,VLOOKUP(AQ26,$AQ$464:$AR$519,2))) -> V1 F35 | Y26: =IF(AND(H26<1936),VLOOKUP(I26,Feuil1!$F$10:$O$24,9),IF(AND(H26>=1942,H26<1947),VLOOKUP(I26,Feuil1!$F$10:$O$24,9),IF(AND(H26>=1947,H26<1952),VLOOKUP(I26,Feuil1!$F$10:$O$24,8),IF(AND(H26>=1952,H26<1957),VLOOKUP(I26,Feuil1!$F$10:$O$24,7),IF(AND(H26>=1957,H26<1962),VLOOKUP(I26,Feuil1!$F$10:$O$24,6),IF(AND(H26>=1962,H26<1967),VLOOKUP(I26,Feuil1!$F$10:$O$24,5),IF(AND(H26>=1967,H26<1972),VLOOKUP(I26,Feuil1!$F$10:$O$24,4),IF(AND(H26>=1972,H26<1977),VLOOKUP(I26,Feuil1!$F$10:$O$24,3),IF(AND(H26>=1977,H26<1982),VLOOKUP(I26,Feuil1!$F$10:$O$24,2),VLOOKUP(I26,Feuil1!$F$10:$O$24,2)))))))))) -> VF35-48 | AA26: =T26-HLOOKUP(Y26,Feuil1!$C$1:$BF$9,2,FALSE) -> 0 | AB26: =T26-HLOOKUP(Y26,Feuil1!$C$1:$BF$9,3,FALSE) -> -55 | AC26: =T26-HLOOKUP(Y26,Feuil1!$C$1:$BF$9,4,FALSE) -> -60 | AD26: =T26-HLOOKUP(Y26,Feuil1!$C$1:$BF$9,5,FALSE) -> -70 | AE26: =T26-HLOOKUP(Y26,Feuil1!$C$1:$BF$9,6,FALSE) -> -82 | AF26: =T26-HLOOKUP(Y26,Feuil1!$C$1:$BF$9,7,FALSE) -> -1000 | AG26: =T26-HLOOKUP(Y26,Feuil1!$C$1:$BF$9,8,FALSE) -> -1000 | AH26: =T26-HLOOKUP(Y26,Feuil1!$C$1:$BF$9,9,FALSE) -> -1000 | AP26: N.CL. | AQ26: 36 | AS26: =IF(AQ26,VLOOKUP(AQ26,HOM!$AR$551:$AS$606,2)) -> 1.087
A27: F | H27: 1980 | I27: 53 | O27: 0 | S27: 0 | T27: 0 | U27: 0 | V27: N.CL. | W27: 0 | X27: =IF(AQ27<95,IF(AQ27<=90,VLOOKUP(AQ27,$AQ$464:$AR$519,2))) -> V1 F35 | Y27: =IF(AND(H27<1936),VLOOKUP(I27,Feuil1!$F$10:$O$24,9),IF(AND(H27>=1942,H27<1947),VLOOKUP(I27,Feuil1!$F$10:$O$24,9),IF(AND(H27>=1947,H27<1952),VLOOKUP(I27,Feuil1!$F$10:$O$24,8),IF(AND(H27>=1952,H27<1957),VLOOKUP(I27,Feuil1!$F$10:$O$24,7),IF(AND(H27>=1957,H27<1962),VLOOKUP(I27,Feuil1!$F$10:$O$24,6),IF(AND(H27>=1962,H27<1967),VLOOKUP(I27,Feuil1!$F$10:$O$24,5),IF(AND(H27>=1967,H27<1972),VLOOKUP(I27,Feuil1!$F$10:$O$24,4),IF(AND(H27>=1972,H27<1977),VLOOKUP(I27,Feuil1!$F$10:$O$24,3),IF(AND(H27>=1977,H27<1982),VLOOKUP(I27,Feuil1!$F$10:$O$24,2),VLOOKUP(I27,Feuil1!$F$10:$O$24,2)))))))))) -> VF35-53 | AA27: =T27-HLOOKUP(Y27,Feuil1!$C$1:$BF$9,2,FALSE) -> 0 | AB27: =T27-HLOOKUP(Y27,Feuil1!$C$1:$BF$9,3,FALSE) -> -60 | AC27: =T27-HLOOKUP(Y27,Feuil1!$C$1:$BF$9,4,FALSE) -> -62 | AD27: =T27-HLOOKUP(Y27,Feuil1!$C$1:$BF$9,5,FALSE) -> -72 | AE27: =T27-HLOOKUP(Y27,Feuil1!$C$1:$BF$9,6,FALSE) -> -90 | AF27: =T27-HLOOKUP(Y27,Feuil1!$C$1:$BF$9,7,FALSE) -> -1000 | AG27: =T27-HLOOKUP(Y27,Feuil1!$C$1:$BF$9,8,FALSE) -> -1000 | AH27: =T27-HLOOKUP(Y27,Feuil1!$C$1:$BF$9,9,FALSE) -> -1000 | AP27: N.CL. | AQ27: 36 | AS27: =IF(AQ27,VLOOKUP(AQ27,HOM!$AR$551:$AS$606,2)) -> 1.087
A28: F | H28: 1975 | I28: 58 | O28: 0 | S28: 0 | T28: 0 | U28: 0 | V28: N.CL. | W28: 0 | X28: =IF(AQ28<95,IF(AQ28<=90,VLOOKUP(AQ28,$AQ$464:$AR$519,2))) -> V2 F40 | Y28: =IF(AND(H28<1936),VLOOKUP(I28,Feuil1!$F$10:$O$24,9),IF(AND(H28>=1942,H28<1947),VLOOKUP(I28,Feuil1!$F$10:$O$24,9),IF(AND(H28>=1947,H28<1952),VLOOKUP(I28,Feuil1!$F$10:$O$24,8),IF(AND(H28>=1952,H28<1957),VLOOKUP(I28,Feuil1!$F$10:$O$24,7),IF(AND(H28>=1957,H28<1962),VLOOKUP(I28,Feuil1!$F$10:$O$24,6),IF(AND(H28>=1962,H28<1967),VLOOKUP(I28,Feuil1!$F$10:$O$24,5),IF(AND(H28>=1967,H28<1972),VLOOKUP(I28,Feuil1!$F$10:$O$24,4),IF(AND(H28>=1972,H28<1977),VLOOKUP(I28,Feuil1!$F$10:$O$24,3),IF(AND(H28>=1977,H28<1982),VLOOKUP(I28,Feuil1!$F$10:$O$24,2),VLOOKUP(I28,Feuil1!$F$10:$O$24,2)))))))))) -> VF40-58 | AA28: =T28-HLOOKUP(Y28,Feuil1!$C$1:$BF$9,2,FALSE) -> 0 | AB28: =T28-HLOOKUP(Y28,Feuil1!$C$1:$BF$9,3,FALSE) -> -60 | AC28: =T28-HLOOKUP(Y28,Feuil1!$C$1:$BF$9,4,FALSE) -> -62 | AD28: =T28-HLOOKUP(Y28,Feuil1!$C$1:$BF$9,5,FALSE) -> -72 | AE28: =T28-HLOOKUP(Y28,Feuil1!$C$1:$BF$9,6,FALSE) -> -90 | AF28: =T28-HLOOKUP(Y28,Feuil1!$C$1:$BF$9,7,FALSE) -> -1000 | AG28: =T28-HLOOKUP(Y28,Feuil1!$C$1:$BF$9,8,FALSE) -> -1000 | AH28: =T28-HLOOKUP(Y28,Feuil1!$C$1:$BF$9,9,FALSE) -> -1000 | AP28: N.CL. | AQ28: 41 | AS28: =IF(AQ28,VLOOKUP(AQ28,HOM!$AR$551:$AS$606,2)) -> 1.147
A29: F | H29: 1975 | I29: 63 | O29: 0 | S29: 0 | T29: 0 | U29: 0 | V29: N.CL. | W29: 0 | X29: =IF(AQ29<95,IF(AQ29<=90,VLOOKUP(AQ29,$AQ$464:$AR$519,2))) -> V2 F40 | Y29: =IF(AND(H29<1936),VLOOKUP(I29,Feuil1!$F$10:$O$24,9),IF(AND(H29>=1942,H29<1947),VLOOKUP(I29,Feuil1!$F$10:$O$24,9),IF(AND(H29>=1947,H29<1952),VLOOKUP(I29,Feuil1!$F$10:$O$24,8),IF(AND(H29>=1952,H29<1957),VLOOKUP(I29,Feuil1!$F$10:$O$24,7),IF(AND(H29>=1957,H29<1962),VLOOKUP(I29,Feuil1!$F$10:$O$24,6),IF(AND(H29>=1962,H29<1967),VLOOKUP(I29,Feuil1!$F$10:$O$24,5),IF(AND(H29>=1967,H29<1972),VLOOKUP(I29,Feuil1!$F$10:$O$24,4),IF(AND(H29>=1972,H29<1977),VLOOKUP(I29,Feuil1!$F$10:$O$24,3),IF(AND(H29>=1977,H29<1982),VLOOKUP(I29,Feuil1!$F$10:$O$24,2),VLOOKUP(I29,Feuil1!$F$10:$O$24,2)))))))))) -> VF40-63 | AA29: =T29-HLOOKUP(Y29,Feuil1!$C$1:$BF$9,2,FALSE) -> 0 | AB29: =T29-HLOOKUP(Y29,Feuil1!$C$1:$BF$9,3,FALSE) -> -62 | AC29: =T29-HLOOKUP(Y29,Feuil1!$C$1:$BF$9,4,FALSE) -> -65 | AD29: =T29-HLOOKUP(Y29,Feuil1!$C$1:$BF$9,5,FALSE) -> -75 | AE29: =T29-HLOOKUP(Y29,Feuil1!$C$1:$BF$9,6,FALSE) -> -95 | AF29: =T29-HLOOKUP(Y29,Feuil1!$C$1:$BF$9,7,FALSE) -> -1000 | AG29: =T29-HLOOKUP(Y29,Feuil1!$C$1:$BF$9,8,FALSE) -> -1000 | AH29: =T29-HLOOKUP(Y29,Feuil1!$C$1:$BF$9,9,FALSE) -> -1000 | AP29: N.CL. | AQ29: 41 | AS29: =IF(AQ29,VLOOKUP(AQ29,HOM!$AR$551:$AS$606,2)) -> 1.147
A30: F | H30: 1970 | I30: 69 | O30: 0 | S30: 0 | T30: 0 | U30: 0 | V30: N.CL. | W30: 0 | X30: =IF(AQ30<95,IF(AQ30<=90,VLOOKUP(AQ30,$AQ$464:$AR$519,2))) -> V3 F45 | Y30: =IF(AND(H30<1936),VLOOKUP(I30,Feuil1!$F$10:$O$24,9),IF(AND(H30>=1942,H30<1947),VLOOKUP(I30,Feuil1!$F$10:$O$24,9),IF(AND(H30>=1947,H30<1952),VLOOKUP(I30,Feuil1!$F$10:$O$24,8),IF(AND(H30>=1952,H30<1957),VLOOKUP(I30,Feuil1!$F$10:$O$24,7),IF(AND(H30>=1957,H30<1962),VLOOKUP(I30,Feuil1!$F$10:$O$24,6),IF(AND(H30>=1962,H30<1967),VLOOKUP(I30,Feuil1!$F$10:$O$24,5),IF(AND(H30>=1967,H30<1972),VLOOKUP(I30,Feuil1!$F$10:$O$24,4),IF(AND(H30>=1972,H30<1977),VLOOKUP(I30,Feuil1!$F$10:$O$24,3),IF(AND(H30>=1977,H30<1982),VLOOKUP(I30,Feuil1!$F$10:$O$24,2),VLOOKUP(I30,Feuil1!$F$10:$O$24,2)))))))))) -> VF45-69 | AA30: =T30-HLOOKUP(Y30,Feuil1!$C$1:$BF$9,2,FALSE) -> 0 | AB30: =T30-HLOOKUP(Y30,Feuil1!$C$1:$BF$9,3,FALSE) -> -62 | AC30: =T30-HLOOKUP(Y30,Feuil1!$C$1:$BF$9,4,FALSE) -> -65 | AD30: =T30-HLOOKUP(Y30,Feuil1!$C$1:$BF$9,5,FALSE) -> -75 | AE30: =T30-HLOOKUP(Y30,Feuil1!$C$1:$BF$9,6,FALSE) -> -90 | AF30: =T30-HLOOKUP(Y30,Feuil1!$C$1:$BF$9,7,FALSE) -> -1000 | AG30: =T30-HLOOKUP(Y30,Feuil1!$C$1:$BF$9,8,FALSE) -> -1000 | AH30: =T30-HLOOKUP(Y30,Feuil1!$C$1:$BF$9,9,FALSE) -> -1000 | AP30: N.CL. | AQ30: 46 | AS30: =IF(AQ30,VLOOKUP(AQ30,HOM!$AR$551:$AS$606,2)) -> 1.207
A31: F | H31: 1965 | I31: 75 | O31: 0 | S31: 0 | T31: 0 | U31: 0 | V31: N.CL. | W31: 0 | X31: =IF(AQ31<95,IF(AQ31<=90,VLOOKUP(AQ31,$AQ$464:$AR$519,2))) -> V4 F50 | Y31: =IF(AND(H31<1936),VLOOKUP(I31,Feuil1!$F$10:$O$24,9),IF(AND(H31>=1942,H31<1947),VLOOKUP(I31,Feuil1!$F$10:$O$24,9),IF(AND(H31>=1947,H31<1952),VLOOKUP(I31,Feuil1!$F$10:$O$24,8),IF(AND(H31>=1952,H31<1957),VLOOKUP(I31,Feuil1!$F$10:$O$24,7),IF(AND(H31>=1957,H31<1962),VLOOKUP(I31,Feuil1!$F$10:$O$24,6),IF(AND(H31>=1962,H31<1967),VLOOKUP(I31,Feuil1!$F$10:$O$24,5),IF(AND(H31>=1967,H31<1972),VLOOKUP(I31,Feuil1!$F$10:$O$24,4),IF(AND(H31>=1972,H31<1977),VLOOKUP(I31,Feuil1!$F$10:$O$24,3),IF(AND(H31>=1977,H31<1982),VLOOKUP(I31,Feuil1!$F$10:$O$24,2),VLOOKUP(I31,Feuil1!$F$10:$O$24,2)))))))))) -> VF50-75 | AA31: =T31-HLOOKUP(Y31,Feuil1!$C$1:$BF$9,2,FALSE) -> 0 | AB31: =T31-HLOOKUP(Y31,Feuil1!$C$1:$BF$9,3,FALSE) -> -60 | AC31: =T31-HLOOKUP(Y31,Feuil1!$C$1:$BF$9,4,FALSE) -> -65 | AD31: =T31-HLOOKUP(Y31,Feuil1!$C$1:$BF$9,5,FALSE) -> -75 | AE31: =T31-HLOOKUP(Y31,Feuil1!$C$1:$BF$9,6,FALSE) -> -85 | AF31: =T31-HLOOKUP(Y31,Feuil1!$C$1:$BF$9,7,FALSE) -> -1000 | AG31: =T31-HLOOKUP(Y31,Feuil1!$C$1:$BF$9,8,FALSE) -> -1000 | AH31: =T31-HLOOKUP(Y31,Feuil1!$C$1:$BF$9,9,FALSE) -> -1000 | AP31: N.CL. | AQ31: 51 | AS31: =IF(AQ31,VLOOKUP(AQ31,HOM!$AR$551:$AS$606,2)) -> 1.255
A32: F | H32: 1950 | I32: 76 | O32: 0 | S32: 0 | T32: 0 | U32: 0 | V32: N.CL. | W32: 0 | X32: =IF(AQ32<95,IF(AQ32<=90,VLOOKUP(AQ32,$AQ$464:$AR$519,2))) -> V7 F65 | Y32: =IF(AND(H32<1936),VLOOKUP(I32,Feuil1!$F$10:$O$24,9),IF(AND(H32>=1942,H32<1947),VLOOKUP(I32,Feuil1!$F$10:$O$24,9),IF(AND(H32>=1947,H32<1952),VLOOKUP(I32,Feuil1!$F$10:$O$24,8),IF(AND(H32>=1952,H32<1957),VLOOKUP(I32,Feuil1!$F$10:$O$24,7),IF(AND(H32>=1957,H32<1962),VLOOKUP(I32,Feuil1!$F$10:$O$24,6),IF(AND(H32>=1962,H32<1967),VLOOKUP(I32,Feuil1!$F$10:$O$24,5),IF(AND(H32>=1967,H32<1972),VLOOKUP(I32,Feuil1!$F$10:$O$24,4),IF(AND(H32>=1972,H32<1977),VLOOKUP(I32,Feuil1!$F$10:$O$24,3),IF(AND(H32>=1977,H32<1982),VLOOKUP(I32,Feuil1!$F$10:$O$24,2),VLOOKUP(I32,Feuil1!$F$10:$O$24,2)))))))))) -> VF65+75 | AA32: =T32-HLOOKUP(Y32,Feuil1!$C$1:$BF$9,2,FALSE) -> 0 | AB32: =T32-HLOOKUP(Y32,Feuil1!$C$1:$BF$9,3,FALSE) -> -52 | AC32: =T32-HLOOKUP(Y32,Feuil1!$C$1:$BF$9,4,FALSE) -> -55 | AD32: =T32-HLOOKUP(Y32,Feuil1!$C$1:$BF$9,5,FALSE) -> -65 | AE32: =T32-HLOOKUP(Y32,Feuil1!$C$1:$BF$9,6,FALSE) -> -65 | AF32: =T32-HLOOKUP(Y32,Feuil1!$C$1:$BF$9,7,FALSE) -> -1000 | AG32: =T32-HLOOKUP(Y32,Feuil1!$C$1:$BF$9,8,FALSE) -> -1000 | AH32: =T32-HLOOKUP(Y32,Feuil1!$C$1:$BF$9,9,FALSE) -> -1000 | AP32: N.CL. | AQ32: 66 | AS32: =IF(AQ32,VLOOKUP(AQ32,HOM!$AR$551:$AS$606,2)) -> 1.671
A33: F | H33: 1945 | I33: 48 | L33: 17 | O33: 17 | P33: 19 | S33: 19 | T33: 36 | U33: 118.1422893 | V33: REG + | W33: 0 | X33: =IF(AQ33<95,IF(AQ33<=90,VLOOKUP(AQ33,$AQ$464:$AR$519,2))) -> V8 F70+ | Y33: =IF(AND(H33<1936),VLOOKUP(I33,Feuil1!$F$10:$O$24,9),IF(AND(H33>=1942,H33<1947),VLOOKUP(I33,Feuil1!$F$10:$O$24,9),IF(AND(H33>=1947,H33<1952),VLOOKUP(I33,Feuil1!$F$10:$O$24,8),IF(AND(H33>=1952,H33<1957),VLOOKUP(I33,Feuil1!$F$10:$O$24,7),IF(AND(H33>=1957,H33<1962),VLOOKUP(I33,Feuil1!$F$10:$O$24,6),IF(AND(H33>=1962,H33<1967),VLOOKUP(I33,Feuil1!$F$10:$O$24,5),IF(AND(H33>=1967,H33<1972),VLOOKUP(I33,Feuil1!$F$10:$O$24,4),IF(AND(H33>=1972,H33<1977),VLOOKUP(I33,Feuil1!$F$10:$O$24,3),IF(AND(H33>=1977,H33<1982),VLOOKUP(I33,Feuil1!$F$10:$O$24,2),VLOOKUP(I33,Feuil1!$F$10:$O$24,2)))))))))) -> VF70+-48 | AA33: =T33-HLOOKUP(Y33,Feuil1!$C$1:$BF$9,2,FALSE) ->  | AB33: =T33-HLOOKUP(Y33,Feuil1!$C$1:$BF$9,3,FALSE) -> 0 | AC33: =T33-HLOOKUP(Y33,Feuil1!$C$1:$BF$9,4,FALSE) -> -2 | AD33: =T33-HLOOKUP(Y33,Feuil1!$C$1:$BF$9,5,FALSE) -> -9 | AE33: =T33-HLOOKUP(Y33,Feuil1!$C$1:$BF$9,6,FALSE) -> -10 | AF33: =T33-HLOOKUP(Y33,Feuil1!$C$1:$BF$9,7,FALSE) -> -964 | AG33: =T33-HLOOKUP(Y33,Feuil1!$C$1:$BF$9,8,FALSE) -> -964 | AH33: =T33-HLOOKUP(Y33,Feuil1!$C$1:$BF$9,9,FALSE) -> -964 | AP33: REG + | AQ33: 71 | AS33: =IF(AQ33,VLOOKUP(AQ33,HOM!$AR$551:$AS$606,2)) -> 2.002
A34: F | H34: 1940 | I34: 53 | O34: 0 | S34: 0 | T34: 0 | U34: 0 | V34: N.CL. | W34: 0 | X34: =IF(AQ34<95,IF(AQ34<=90,VLOOKUP(AQ34,$AQ$464:$AR$519,2))) -> V8 F70+ | Y34: =IF(AND(H34<1936),VLOOKUP(I34,Feuil1!$F$10:$O$24,9),IF(AND(H34>=1942,H34<1947),VLOOKUP(I34,Feuil1!$F$10:$O$24,9),IF(AND(H34>=1947,H34<1952),VLOOKUP(I34,Feuil1!$F$10:$O$24,8),IF(AND(H34>=1952,H34<1957),VLOOKUP(I34,Feuil1!$F$10:$O$24,7),IF(AND(H34>=1957,H34<1962),VLOOKUP(I34,Feuil1!$F$10:$O$24,6),IF(AND(H34>=1962,H34<1967),VLOOKUP(I34,Feuil1!$F$10:$O$24,5),IF(AND(H34>=1967,H34<1972),VLOOKUP(I34,Feuil1!$F$10:$O$24,4),IF(AND(H34>=1972,H34<1977),VLOOKUP(I34,Feuil1!$F$10:$O$24,3),IF(AND(H34>=1977,H34<1982),VLOOKUP(I34,Feuil1!$F$10:$O$24,2),VLOOKUP(I34,Feuil1!$F$10:$O$24,2)))))))))) -> VF35-53 | AA34: =T34-HLOOKUP(Y34,Feuil1!$C$1:$BF$9,2,FALSE) -> 0 | AB34: =T34-HLOOKUP(Y34,Feuil1!$C$1:$BF$9,3,FALSE) -> -60 | AC34: =T34-HLOOKUP(Y34,Feuil1!$C$1:$BF$9,4,FALSE) -> -62 | AD34: =T34-HLOOKUP(Y34,Feuil1!$C$1:$BF$9,5,FALSE) -> -72 | AE34: =T34-HLOOKUP(Y34,Feuil1!$C$1:$BF$9,6,FALSE) -> -90 | AF34: =T34-HLOOKUP(Y34,Feuil1!$C$1:$BF$9,7,FALSE) -> -1000 | AG34: =T34-HLOOKUP(Y34,Feuil1!$C$1:$BF$9,8,FALSE) -> -1000 | AH34: =T34-HLOOKUP(Y34,Feuil1!$C$1:$BF$9,9,FALSE) -> -1000 | AP34: N.CL. | AQ34: 76 | AS34: =IF(AQ34,VLOOKUP(AQ34,HOM!$AR$551:$AS$606,2)) -> 2.184
A35: F | H35: 1933 | I35: 58 | O35: 0 | S35: 0 | T35: 0 | U35: 0 | V35: N.CL. | W35: 0 | X35: =IF(AQ35<95,IF(AQ35<=90,VLOOKUP(AQ35,$AQ$464:$AR$519,2))) -> V8 F70+ | Y35: =IF(AND(H35<1936),VLOOKUP(I35,Feuil1!$F$10:$O$24,9),IF(AND(H35>=1942,H35<1947),VLOOKUP(I35,Feuil1!$F$10:$O$24,9),IF(AND(H35>=1947,H35<1952),VLOOKUP(I35,Feuil1!$F$10:$O$24,8),IF(AND(H35>=1952,H35<1957),VLOOKUP(I35,Feuil1!$F$10:$O$24,7),IF(AND(H35>=1957,H35<1962),VLOOKUP(I35,Feuil1!$F$10:$O$24,6),IF(AND(H35>=1962,H35<1967),VLOOKUP(I35,Feuil1!$F$10:$O$24,5),IF(AND(H35>=1967,H35<1972),VLOOKUP(I35,Feuil1!$F$10:$O$24,4),IF(AND(H35>=1972,H35<1977),VLOOKUP(I35,Feuil1!$F$10:$O$24,3),IF(AND(H35>=1977,H35<1982),VLOOKUP(I35,Feuil1!$F$10:$O$24,2),VLOOKUP(I35,Feuil1!$F$10:$O$24,2)))))))))) -> VF70+-58 | AA35: =T35-HLOOKUP(Y35,Feuil1!$C$1:$BF$9,2,FALSE) -> 0 | AB35: =T35-HLOOKUP(Y35,Feuil1!$C$1:$BF$9,3,FALSE) -> -40 | AC35: =T35-HLOOKUP(Y35,Feuil1!$C$1:$BF$9,4,FALSE) -> -42 | AD35: =T35-HLOOKUP(Y35,Feuil1!$C$1:$BF$9,5,FALSE) -> -49 | AE35: =T35-HLOOKUP(Y35,Feuil1!$C$1:$BF$9,6,FALSE) -> -50 | AF35: =T35-HLOOKUP(Y35,Feuil1!$C$1:$BF$9,7,FALSE) -> -1000 | AG35: =T35-HLOOKUP(Y35,Feuil1!$C$1:$BF$9,8,FALSE) -> -1000 | AH35: =T35-HLOOKUP(Y35,Feuil1!$C$1:$BF$9,9,FALSE) -> -1000 | AP35: N.CL. | AQ35: 83 | AS35: =IF(AQ35,VLOOKUP(AQ35,HOM!$AR$551:$AS$606,2)) -> 3.166
A36: F | H36: 1934 | I36: 63 | O36: 0 | S36: 0 | T36: 0 | U36: 0 | V36: N.CL. | W36: 0 | X36: =IF(AQ36<95,IF(AQ36<=90,VLOOKUP(AQ36,$AQ$464:$AR$519,2))) -> V8 F70+ | Y36: =IF(AND(H36<1936),VLOOKUP(I36,Feuil1!$F$10:$O$24,9),IF(AND(H36>=1942,H36<1947),VLOOKUP(I36,Feuil1!$F$10:$O$24,9),IF(AND(H36>=1947,H36<1952),VLOOKUP(I36,Feuil1!$F$10:$O$24,8),IF(AND(H36>=1952,H36<1957),VLOOKUP(I36,Feuil1!$F$10:$O$24,7),IF(AND(H36>=1957,H36<1962),VLOOKUP(I36,Feuil1!$F$10:$O$24,6),IF(AND(H36>=1962,H36<1967),VLOOKUP(I36,Feuil1!$F$10:$O$24,5),IF(AND(H36>=1967,H36<1972),VLOOKUP(I36,Feuil1!$F$10:$O$24,4),IF(AND(H36>=1972,H36<1977),VLOOKUP(I36,Feuil1!$F$10:$O$24,3),IF(AND(H36>=1977,H36<1982),VLOOKUP(I36,Feuil1!$F$10:$O$24,2),VLOOKUP(I36,Feuil1!$F$10:$O$24,2)))))))))) -> VF70+-63 | AA36: =T36-HLOOKUP(Y36,Feuil1!$C$1:$BF$9,2,FALSE) -> 0 | AB36: =T36-HLOOKUP(Y36,Feuil1!$C$1:$BF$9,3,FALSE) -> -43 | AC36: =T36-HLOOKUP(Y36,Feuil1!$C$1:$BF$9,4,FALSE) -> -45 | AD36: =T36-HLOOKUP(Y36,Feuil1!$C$1:$BF$9,5,FALSE) -> -52 | AE36: =T36-HLOOKUP(Y36,Feuil1!$C$1:$BF$9,6,FALSE) -> -53 | AF36: =T36-HLOOKUP(Y36,Feuil1!$C$1:$BF$9,7,FALSE) -> -1000 | AG36: =T36-HLOOKUP(Y36,Feuil1!$C$1:$BF$9,8,FALSE) -> -1000 | AH36: =T36-HLOOKUP(Y36,Feuil1!$C$1:$BF$9,9,FALSE) -> -1000 | AP36: N.CL. | AQ36: 82 | AS36: =IF(AQ36,VLOOKUP(AQ36,HOM!$AR$551:$AS$606,2)) -> 3.018
A37: F | H37: 1932 | I37: 69 | O37: 0 | S37: 0 | T37: 0 | U37: 0 | V37: N.CL. | W37: 0 | X37: =IF(AQ37<95,IF(AQ37<=90,VLOOKUP(AQ37,$AQ$464:$AR$519,2))) -> V8 F70+ | Y37: =IF(AND(H37<1936),VLOOKUP(I37,Feuil1!$F$10:$O$24,9),IF(AND(H37>=1942,H37<1947),VLOOKUP(I37,Feuil1!$F$10:$O$24,9),IF(AND(H37>=1947,H37<1952),VLOOKUP(I37,Feuil1!$F$10:$O$24,8),IF(AND(H37>=1952,H37<1957),VLOOKUP(I37,Feuil1!$F$10:$O$24,7),IF(AND(H37>=1957,H37<1962),VLOOKUP(I37,Feuil1!$F$10:$O$24,6),IF(AND(H37>=1962,H37<1967),VLOOKUP(I37,Feuil1!$F$10:$O$24,5),IF(AND(H37>=1967,H37<1972),VLOOKUP(I37,Feuil1!$F$10:$O$24,4),IF(AND(H37>=1972,H37<1977),VLOOKUP(I37,Feuil1!$F$10:$O$24,3),IF(AND(H37>=1977,H37<1982),VLOOKUP(I37,Feuil1!$F$10:$O$24,2),VLOOKUP(I37,Feuil1!$F$10:$O$24,2)))))))))) -> VF70+-69 | AA37: =T37-HLOOKUP(Y37,Feuil1!$C$1:$BF$9,2,FALSE) -> 0 | AB37: =T37-HLOOKUP(Y37,Feuil1!$C$1:$BF$9,3,FALSE) -> -45 | AC37: =T37-HLOOKUP(Y37,Feuil1!$C$1:$BF$9,4,FALSE) -> -48 | AD37: =T37-HLOOKUP(Y37,Feuil1!$C$1:$BF$9,5,FALSE) -> -55 | AE37: =T37-HLOOKUP(Y37,Feuil1!$C$1:$BF$9,6,FALSE) -> -56 | AF37: =T37-HLOOKUP(Y37,Feuil1!$C$1:$BF$9,7,FALSE) -> -1000 | AG37: =T37-HLOOKUP(Y37,Feuil1!$C$1:$BF$9,8,FALSE) -> -1000 | AH37: =T37-HLOOKUP(Y37,Feuil1!$C$1:$BF$9,9,FALSE) -> -1000 | AP37: N.CL. | AQ37: 84 | AS37: =IF(AQ37,VLOOKUP(AQ37,HOM!$AR$551:$AS$606,2)) -> 3.288
A38: F | H38: 1935 | I38: 75 | O38: 0 | S38: 0 | T38: 0 | U38: 0 | V38: N.CL. | W38: 0 | X38: =IF(AQ38<95,IF(AQ38<=90,VLOOKUP(AQ38,$AQ$464:$AR$519,2))) -> V8 F70+ | Y38: =IF(AND(H38<1936),VLOOKUP(I38,Feuil1!$F$10:$O$24,9),IF(AND(H38>=1942,H38<1947),VLOOKUP(I38,Feuil1!$F$10:$O$24,9),IF(AND(H38>=1947,H38<1952),VLOOKUP(I38,Feuil1!$F$10:$O$24,8),IF(AND(H38>=1952,H38<1957),VLOOKUP(I38,Feuil1!$F$10:$O$24,7),IF(AND(H38>=1957,H38<1962),VLOOKUP(I38,Feuil1!$F$10:$O$24,6),IF(AND(H38>=1962,H38<1967),VLOOKUP(I38,Feuil1!$F$10:$O$24,5),IF(AND(H38>=1967,H38<1972),VLOOKUP(I38,Feuil1!$F$10:$O$24,4),IF(AND(H38>=1972,H38<1977),VLOOKUP(I38,Feuil1!$F$10:$O$24,3),IF(AND(H38>=1977,H38<1982),VLOOKUP(I38,Feuil1!$F$10:$O$24,2),VLOOKUP(I38,Feuil1!$F$10:$O$24,2)))))))))) -> VF70+-75 | AA38: =T38-HLOOKUP(Y38,Feuil1!$C$1:$BF$9,2,FALSE) -> 0 | AB38: =T38-HLOOKUP(Y38,Feuil1!$C$1:$BF$9,3,FALSE) -> -48 | AC38: =T38-HLOOKUP(Y38,Feuil1!$C$1:$BF$9,4,FALSE) -> -50 | AD38: =T38-HLOOKUP(Y38,Feuil1!$C$1:$BF$9,5,FALSE) -> -57 | AE38: =T38-HLOOKUP(Y38,Feuil1!$C$1:$BF$9,6,FALSE) -> -58 | AF38: =T38-HLOOKUP(Y38,Feuil1!$C$1:$BF$9,7,FALSE) -> -1000 | AG38: =T38-HLOOKUP(Y38,Feuil1!$C$1:$BF$9,8,FALSE) -> -1000 | AH38: =T38-HLOOKUP(Y38,Feuil1!$C$1:$BF$9,9,FALSE) -> -1000 | AP38: N.CL. | AQ38: 81 | AS38: =IF(AQ38,VLOOKUP(AQ38,HOM!$AR$551:$AS$606,2)) -> 2.849
A39: F | O39: =IF(I39="","",IF(MAXA(L39:N39)<=0,0,MAXA(L39:N39))) ->  | S39: =IF(I39="","",IF(MAXA(P39:R39)<=0,0,MAXA(P39:R39))) ->  | T39: =IF(I39="","",IF(OR(O39=0,S39=0),0,O39+S39)) ->  | U39: =IF(I39="","",IF(A39="H",10^(0.794358141*LOG(I39/174.393)^2)*T39*AS39,IF(A39="F",10^(0.89726074 * LOG(I39/148.026)^2)*T39*AS39,""))) ->  | V39: =IF(I39="","",AP39) ->  | W39: =IF(I39="","",IF(AH39>=0,AH39,IF(AG39>=0,AG39,IF(AF39>=0,AF39,IF(AE39>=0,AE39,IF(AD39>=0,AD39,IF(AC39>=0,AC39,IF(AB39>=0,AB39,AA39)))))))) ->  | X39: =IF(AQ39<95,IF(AQ39<=90,VLOOKUP(AQ39,$AQ$464:$AR$519,2))) -> FALSE | Y39: =IF(AND(H39<1936),VLOOKUP(I39,Feuil1!$F$10:$O$24,9),IF(AND(H39>=1942,H39<1947),VLOOKUP(I39,Feuil1!$F$10:$O$24,9),IF(AND(H39>=1947,H39<1952),VLOOKUP(I39,Feuil1!$F$10:$O$24,8),IF(AND(H39>=1952,H39<1957),VLOOKUP(I39,Feuil1!$F$10:$O$24,7),IF(AND(H39>=1957,H39<1962),VLOOKUP(I39,Feuil1!$F$10:$O$24,6),IF(AND(H39>=1962,H39<1967),VLOOKUP(I39,Feuil1!$F$10:$O$24,5),IF(AND(H39>=1967,H39<1972),VLOOKUP(I39,Feuil1!$F$10:$O$24,4),IF(AND(H39>=1972,H39<1977),VLOOKUP(I39,Feuil1!$F$10:$O$24,3),IF(AND(H39>=1977,H39<1982),VLOOKUP(I39,Feuil1!$F$10:$O$24,2),VLOOKUP(I39,Feuil1!$F$10:$O$24,2)))))))))) ->  | AA39: =T39-HLOOKUP(Y39,Feuil1!$C$1:$BF$9,2,FALSE) ->  | AB39: =T39-HLOOKUP(Y39,Feuil1!$C$1:$BF$9,3,FALSE) ->  | AC39: =T39-HLOOKUP(Y39,Feuil1!$C$1:$BF$9,4,FALSE) ->  | AD39: =T39-HLOOKUP(Y39,Feuil1!$C$1:$BF$9,5,FALSE) ->  | AE39: =T39-HLOOKUP(Y39,Feuil1!$C$1:$BF$9,6,FALSE) ->  | AF39: =T39-HLOOKUP(Y39,Feuil1!$C$1:$BF$9,7,FALSE) ->  | AG39: =T39-HLOOKUP(Y39,Feuil1!$C$1:$BF$9,8,FALSE) ->  | AH39: =T39-HLOOKUP(Y39,Feuil1!$C$1:$BF$9,9,FALSE) ->  | AP39: =IF(AH39>=0,$AH$4,IF(AG39>=0,$AG$4,IF(AF39>=0,$AF$4,IF(AE39>=0,$AE$4,IF(AD39>=0,$AD$4,IF(AC39>=0,$AC$4,IF(AB39>=0,$AB$4,IF(AA39>=0,$AA$4,$AI$4)))))))) ->  | AQ39: 2016 | AS39: =IF(AQ39,VLOOKUP(AQ39,HOM!$AR$551:$AS$606,2)) -> 3.571
A40: F | X40: FALSE | Y40: =IF(AND(H40<1936),VLOOKUP(I40,Feuil1!$F$10:$O$24,9),IF(AND(H40>=1942,H40<1947),VLOOKUP(I40,Feuil1!$F$10:$O$24,9),IF(AND(H40>=1947,H40<1952),VLOOKUP(I40,Feuil1!$F$10:$O$24,8),IF(AND(H40>=1952,H40<1957),VLOOKUP(I40,Feuil1!$F$10:$O$24,7),IF(AND(H40>=1957,H40<1962),VLOOKUP(I40,Feuil1!$F$10:$O$24,6),IF(AND(H40>=1962,H40<1967),VLOOKUP(I40,Feuil1!$F$10:$O$24,5),IF(AND(H40>=1967,H40<1972),VLOOKUP(I40,Feuil1!$F$10:$O$24,4),IF(AND(H40>=1972,H40<1977),VLOOKUP(I40,Feuil1!$F$10:$O$24,3),IF(AND(H40>=1977,H40<1982),VLOOKUP(I40,Feuil1!$F$10:$O$24,2),VLOOKUP(I40,Feuil1!$F$10:$O$24,2)))))))))) ->  | AA40: =T40-HLOOKUP(Y40,Feuil1!$C$1:$BF$9,2,FALSE) ->  | AB40: =T40-HLOOKUP(Y40,Feuil1!$C$1:$BF$9,3,FALSE) ->  | AC40: =T40-HLOOKUP(Y40,Feuil1!$C$1:$BF$9,4,FALSE) ->  | AD40: =T40-HLOOKUP(Y40,Feuil1!$C$1:$BF$9,5,FALSE) ->  | AE40: =T40-HLOOKUP(Y40,Feuil1!$C$1:$BF$9,6,FALSE) ->  | AF40: =T40-HLOOKUP(Y40,Feuil1!$C$1:$BF$9,7,FALSE) ->  | AG40: =T40-HLOOKUP(Y40,Feuil1!$C$1:$BF$9,8,FALSE) ->  | AH40: =T40-HLOOKUP(Y40,Feuil1!$C$1:$BF$9,9,FALSE) ->  | AQ40: 2016 | AS40: =IF(AQ40,VLOOKUP(AQ40,HOM!$AR$551:$AS$606,2)) -> 3.571
A41: F | X41: FALSE | Y41: =IF(AND(H41<1936),VLOOKUP(I41,Feuil1!$F$10:$O$24,9),IF(AND(H41>=1942,H41<1947),VLOOKUP(I41,Feuil1!$F$10:$O$24,9),IF(AND(H41>=1947,H41<1952),VLOOKUP(I41,Feuil1!$F$10:$O$24,8),IF(AND(H41>=1952,H41<1957),VLOOKUP(I41,Feuil1!$F$10:$O$24,7),IF(AND(H41>=1957,H41<1962),VLOOKUP(I41,Feuil1!$F$10:$O$24,6),IF(AND(H41>=1962,H41<1967),VLOOKUP(I41,Feuil1!$F$10:$O$24,5),IF(AND(H41>=1967,H41<1972),VLOOKUP(I41,Feuil1!$F$10:$O$24,4),IF(AND(H41>=1972,H41<1977),VLOOKUP(I41,Feuil1!$F$10:$O$24,3),IF(AND(H41>=1977,H41<1982),VLOOKUP(I41,Feuil1!$F$10:$O$24,2),VLOOKUP(I41,Feuil1!$F$10:$O$24,2)))))))))) ->  | AA41: =T41-HLOOKUP(Y41,Feuil1!$C$1:$BF$9,2,FALSE) ->  | AB41: =T41-HLOOKUP(Y41,Feuil1!$C$1:$BF$9,3,FALSE) ->  | AC41: =T41-HLOOKUP(Y41,Feuil1!$C$1:$BF$9,4,FALSE) ->  | AD41: =T41-HLOOKUP(Y41,Feuil1!$C$1:$BF$9,5,FALSE) ->  | AE41: =T41-HLOOKUP(Y41,Feuil1!$C$1:$BF$9,6,FALSE) ->  | AF41: =T41-HLOOKUP(Y41,Feuil1!$C$1:$BF$9,7,FALSE) ->  | AG41: =T41-HLOOKUP(Y41,Feuil1!$C$1:$BF$9,8,FALSE) ->  | AH41: =T41-HLOOKUP(Y41,Feuil1!$C$1:$BF$9,9,FALSE) ->  | AQ41: 2016 | AS41: =IF(AQ41,VLOOKUP(AQ41,HOM!$AR$551:$AS$606,2)) -> 3.571
A42: F | X42: FALSE | Y42: =IF(AND(H42<1936),VLOOKUP(I42,Feuil1!$F$10:$O$24,9),IF(AND(H42>=1942,H42<1947),VLOOKUP(I42,Feuil1!$F$10:$O$24,9),IF(AND(H42>=1947,H42<1952),VLOOKUP(I42,Feuil1!$F$10:$O$24,8),IF(AND(H42>=1952,H42<1957),VLOOKUP(I42,Feuil1!$F$10:$O$24,7),IF(AND(H42>=1957,H42<1962),VLOOKUP(I42,Feuil1!$F$10:$O$24,6),IF(AND(H42>=1962,H42<1967),VLOOKUP(I42,Feuil1!$F$10:$O$24,5),IF(AND(H42>=1967,H42<1972),VLOOKUP(I42,Feuil1!$F$10:$O$24,4),IF(AND(H42>=1972,H42<1977),VLOOKUP(I42,Feuil1!$F$10:$O$24,3),IF(AND(H42>=1977,H42<1982),VLOOKUP(I42,Feuil1!$F$10:$O$24,2),VLOOKUP(I42,Feuil1!$F$10:$O$24,2)))))))))) ->  | AA42: =T42-HLOOKUP(Y42,Feuil1!$C$1:$BF$9,2,FALSE) ->  | AB42: =T42-HLOOKUP(Y42,Feuil1!$C$1:$BF$9,3,FALSE) ->  | AC42: =T42-HLOOKUP(Y42,Feuil1!$C$1:$BF$9,4,FALSE) ->  | AD42: =T42-HLOOKUP(Y42,Feuil1!$C$1:$BF$9,5,FALSE) ->  | AE42: =T42-HLOOKUP(Y42,Feuil1!$C$1:$BF$9,6,FALSE) ->  | AF42: =T42-HLOOKUP(Y42,Feuil1!$C$1:$BF$9,7,FALSE) ->  | AG42: =T42-HLOOKUP(Y42,Feuil1!$C$1:$BF$9,8,FALSE) ->  | AH42: =T42-HLOOKUP(Y42,Feuil1!$C$1:$BF$9,9,FALSE) ->  | AQ42: 2016 | AS42: =IF(AQ42,VLOOKUP(AQ42,HOM!$AR$551:$AS$606,2)) -> 3.571
A43: F | X43: FALSE | Y43: =IF(AND(H43<1936),VLOOKUP(I43,Feuil1!$F$10:$O$24,9),IF(AND(H43>=1942,H43<1947),VLOOKUP(I43,Feuil1!$F$10:$O$24,9),IF(AND(H43>=1947,H43<1952),VLOOKUP(I43,Feuil1!$F$10:$O$24,8),IF(AND(H43>=1952,H43<1957),VLOOKUP(I43,Feuil1!$F$10:$O$24,7),IF(AND(H43>=1957,H43<1962),VLOOKUP(I43,Feuil1!$F$10:$O$24,6),IF(AND(H43>=1962,H43<1967),VLOOKUP(I43,Feuil1!$F$10:$O$24,5),IF(AND(H43>=1967,H43<1972),VLOOKUP(I43,Feuil1!$F$10:$O$24,4),IF(AND(H43>=1972,H43<1977),VLOOKUP(I43,Feuil1!$F$10:$O$24,3),IF(AND(H43>=1977,H43<1982),VLOOKUP(I43,Feuil1!$F$10:$O$24,2),VLOOKUP(I43,Feuil1!$F$10:$O$24,2)))))))))) ->  | AA43: =T43-HLOOKUP(Y43,Feuil1!$C$1:$BF$9,2,FALSE) ->  | AB43: =T43-HLOOKUP(Y43,Feuil1!$C$1:$BF$9,3,FALSE) ->  | AC43: =T43-HLOOKUP(Y43,Feuil1!$C$1:$BF$9,4,FALSE) ->  | AD43: =T43-HLOOKUP(Y43,Feuil1!$C$1:$BF$9,5,FALSE) ->  | AE43: =T43-HLOOKUP(Y43,Feuil1!$C$1:$BF$9,6,FALSE) ->  | AF43: =T43-HLOOKUP(Y43,Feuil1!$C$1:$BF$9,7,FALSE) ->  | AG43: =T43-HLOOKUP(Y43,Feuil1!$C$1:$BF$9,8,FALSE) ->  | AH43: =T43-HLOOKUP(Y43,Feuil1!$C$1:$BF$9,9,FALSE) ->  | AQ43: 2016 | AS43: =IF(AQ43,VLOOKUP(AQ43,HOM!$AR$551:$AS$606,2)) -> 3.571
A44: F | X44: FALSE | Y44: =IF(AND(H44<1936),VLOOKUP(I44,Feuil1!$F$10:$O$24,9),IF(AND(H44>=1942,H44<1947),VLOOKUP(I44,Feuil1!$F$10:$O$24,9),IF(AND(H44>=1947,H44<1952),VLOOKUP(I44,Feuil1!$F$10:$O$24,8),IF(AND(H44>=1952,H44<1957),VLOOKUP(I44,Feuil1!$F$10:$O$24,7),IF(AND(H44>=1957,H44<1962),VLOOKUP(I44,Feuil1!$F$10:$O$24,6),IF(AND(H44>=1962,H44<1967),VLOOKUP(I44,Feuil1!$F$10:$O$24,5),IF(AND(H44>=1967,H44<1972),VLOOKUP(I44,Feuil1!$F$10:$O$24,4),IF(AND(H44>=1972,H44<1977),VLOOKUP(I44,Feuil1!$F$10:$O$24,3),IF(AND(H44>=1977,H44<1982),VLOOKUP(I44,Feuil1!$F$10:$O$24,2),VLOOKUP(I44,Feuil1!$F$10:$O$24,2)))))))))) ->  | AA44: =T44-HLOOKUP(Y44,Feuil1!$C$1:$BF$9,2,FALSE) ->  | AB44: =T44-HLOOKUP(Y44,Feuil1!$C$1:$BF$9,3,FALSE) ->  | AC44: =T44-HLOOKUP(Y44,Feuil1!$C$1:$BF$9,4,FALSE) ->  | AD44: =T44-HLOOKUP(Y44,Feuil1!$C$1:$BF$9,5,FALSE) ->  | AE44: =T44-HLOOKUP(Y44,Feuil1!$C$1:$BF$9,6,FALSE) ->  | AF44: =T44-HLOOKUP(Y44,Feuil1!$C$1:$BF$9,7,FALSE) ->  | AG44: =T44-HLOOKUP(Y44,Feuil1!$C$1:$BF$9,8,FALSE) ->  | AH44: =T44-HLOOKUP(Y44,Feuil1!$C$1:$BF$9,9,FALSE) ->  | AQ44: 2016 | AS44: =IF(AQ44,VLOOKUP(AQ44,HOM!$AR$551:$AS$606,2)) -> 3.571
A45: F | X45: FALSE | Y45: =IF(AND(H45<1936),VLOOKUP(I45,Feuil1!$F$10:$O$24,9),IF(AND(H45>=1942,H45<1947),VLOOKUP(I45,Feuil1!$F$10:$O$24,9),IF(AND(H45>=1947,H45<1952),VLOOKUP(I45,Feuil1!$F$10:$O$24,8),IF(AND(H45>=1952,H45<1957),VLOOKUP(I45,Feuil1!$F$10:$O$24,7),IF(AND(H45>=1957,H45<1962),VLOOKUP(I45,Feuil1!$F$10:$O$24,6),IF(AND(H45>=1962,H45<1967),VLOOKUP(I45,Feuil1!$F$10:$O$24,5),IF(AND(H45>=1967,H45<1972),VLOOKUP(I45,Feuil1!$F$10:$O$24,4),IF(AND(H45>=1972,H45<1977),VLOOKUP(I45,Feuil1!$F$10:$O$24,3),IF(AND(H45>=1977,H45<1982),VLOOKUP(I45,Feuil1!$F$10:$O$24,2),VLOOKUP(I45,Feuil1!$F$10:$O$24,2)))))))))) ->  | AA45: =T45-HLOOKUP(Y45,Feuil1!$C$1:$BF$9,2,FALSE) ->  | AB45: =T45-HLOOKUP(Y45,Feuil1!$C$1:$BF$9,3,FALSE) ->  | AC45: =T45-HLOOKUP(Y45,Feuil1!$C$1:$BF$9,4,FALSE) ->  | AD45: =T45-HLOOKUP(Y45,Feuil1!$C$1:$BF$9,5,FALSE) ->  | AE45: =T45-HLOOKUP(Y45,Feuil1!$C$1:$BF$9,6,FALSE) ->  | AF45: =T45-HLOOKUP(Y45,Feuil1!$C$1:$BF$9,7,FALSE) ->  | AG45: =T45-HLOOKUP(Y45,Feuil1!$C$1:$BF$9,8,FALSE) ->  | AH45: =T45-HLOOKUP(Y45,Feuil1!$C$1:$BF$9,9,FALSE) ->  | AQ45: 2016 | AS45: =IF(AQ45,VLOOKUP(AQ45,HOM!$AR$551:$AS$606,2)) -> 3.571
A46: F | X46: FALSE | Y46: =IF(AND(H46<1936),VLOOKUP(I46,Feuil1!$F$10:$O$24,9),IF(AND(H46>=1942,H46<1947),VLOOKUP(I46,Feuil1!$F$10:$O$24,9),IF(AND(H46>=1947,H46<1952),VLOOKUP(I46,Feuil1!$F$10:$O$24,8),IF(AND(H46>=1952,H46<1957),VLOOKUP(I46,Feuil1!$F$10:$O$24,7),IF(AND(H46>=1957,H46<1962),VLOOKUP(I46,Feuil1!$F$10:$O$24,6),IF(AND(H46>=1962,H46<1967),VLOOKUP(I46,Feuil1!$F$10:$O$24,5),IF(AND(H46>=1967,H46<1972),VLOOKUP(I46,Feuil1!$F$10:$O$24,4),IF(AND(H46>=1972,H46<1977),VLOOKUP(I46,Feuil1!$F$10:$O$24,3),IF(AND(H46>=1977,H46<1982),VLOOKUP(I46,Feuil1!$F$10:$O$24,2),VLOOKUP(I46,Feuil1!$F$10:$O$24,2)))))))))) ->  | AA46: =T46-HLOOKUP(Y46,Feuil1!$C$1:$BF$9,2,FALSE) ->  | AB46: =T46-HLOOKUP(Y46,Feuil1!$C$1:$BF$9,3,FALSE) ->  | AC46: =T46-HLOOKUP(Y46,Feuil1!$C$1:$BF$9,4,FALSE) ->  | AD46: =T46-HLOOKUP(Y46,Feuil1!$C$1:$BF$9,5,FALSE) ->  | AE46: =T46-HLOOKUP(Y46,Feuil1!$C$1:$BF$9,6,FALSE) ->  | AF46: =T46-HLOOKUP(Y46,Feuil1!$C$1:$BF$9,7,FALSE) ->  | AG46: =T46-HLOOKUP(Y46,Feuil1!$C$1:$BF$9,8,FALSE) ->  | AH46: =T46-HLOOKUP(Y46,Feuil1!$C$1:$BF$9,9,FALSE) ->  | AQ46: 2016 | AS46: =IF(AQ46,VLOOKUP(AQ46,HOM!$AR$551:$AS$606,2)) -> 3.571
A47: F | X47: FALSE | Y47: =IF(AND(H47<1936),VLOOKUP(I47,Feuil1!$F$10:$O$24,9),IF(AND(H47>=1942,H47<1947),VLOOKUP(I47,Feuil1!$F$10:$O$24,9),IF(AND(H47>=1947,H47<1952),VLOOKUP(I47,Feuil1!$F$10:$O$24,8),IF(AND(H47>=1952,H47<1957),VLOOKUP(I47,Feuil1!$F$10:$O$24,7),IF(AND(H47>=1957,H47<1962),VLOOKUP(I47,Feuil1!$F$10:$O$24,6),IF(AND(H47>=1962,H47<1967),VLOOKUP(I47,Feuil1!$F$10:$O$24,5),IF(AND(H47>=1967,H47<1972),VLOOKUP(I47,Feuil1!$F$10:$O$24,4),IF(AND(H47>=1972,H47<1977),VLOOKUP(I47,Feuil1!$F$10:$O$24,3),IF(AND(H47>=1977,H47<1982),VLOOKUP(I47,Feuil1!$F$10:$O$24,2),VLOOKUP(I47,Feuil1!$F$10:$O$24,2)))))))))) ->  | AA47: =T47-HLOOKUP(Y47,Feuil1!$C$1:$BF$9,2,FALSE) ->  | AB47: =T47-HLOOKUP(Y47,Feuil1!$C$1:$BF$9,3,FALSE) ->  | AC47: =T47-HLOOKUP(Y47,Feuil1!$C$1:$BF$9,4,FALSE) ->  | AD47: =T47-HLOOKUP(Y47,Feuil1!$C$1:$BF$9,5,FALSE) ->  | AE47: =T47-HLOOKUP(Y47,Feuil1!$C$1:$BF$9,6,FALSE) ->  | AF47: =T47-HLOOKUP(Y47,Feuil1!$C$1:$BF$9,7,FALSE) ->  | AG47: =T47-HLOOKUP(Y47,Feuil1!$C$1:$BF$9,8,FALSE) ->  | AH47: =T47-HLOOKUP(Y47,Feuil1!$C$1:$BF$9,9,FALSE) ->  | AQ47: 2016 | AS47: =IF(AQ47,VLOOKUP(AQ47,HOM!$AR$551:$AS$606,2)) -> 3.571
A48: F | X48: FALSE | Y48: =IF(AND(H48<1936),VLOOKUP(I48,Feuil1!$F$10:$O$24,9),IF(AND(H48>=1942,H48<1947),VLOOKUP(I48,Feuil1!$F$10:$O$24,9),IF(AND(H48>=1947,H48<1952),VLOOKUP(I48,Feuil1!$F$10:$O$24,8),IF(AND(H48>=1952,H48<1957),VLOOKUP(I48,Feuil1!$F$10:$O$24,7),IF(AND(H48>=1957,H48<1962),VLOOKUP(I48,Feuil1!$F$10:$O$24,6),IF(AND(H48>=1962,H48<1967),VLOOKUP(I48,Feuil1!$F$10:$O$24,5),IF(AND(H48>=1967,H48<1972),VLOOKUP(I48,Feuil1!$F$10:$O$24,4),IF(AND(H48>=1972,H48<1977),VLOOKUP(I48,Feuil1!$F$10:$O$24,3),IF(AND(H48>=1977,H48<1982),VLOOKUP(I48,Feuil1!$F$10:$O$24,2),VLOOKUP(I48,Feuil1!$F$10:$O$24,2)))))))))) ->  | AA48: =T48-HLOOKUP(Y48,Feuil1!$C$1:$BF$9,2,FALSE) ->  | AB48: =T48-HLOOKUP(Y48,Feuil1!$C$1:$BF$9,3,FALSE) ->  | AC48: =T48-HLOOKUP(Y48,Feuil1!$C$1:$BF$9,4,FALSE) ->  | AD48: =T48-HLOOKUP(Y48,Feuil1!$C$1:$BF$9,5,FALSE) ->  | AE48: =T48-HLOOKUP(Y48,Feuil1!$C$1:$BF$9,6,FALSE) ->  | AF48: =T48-HLOOKUP(Y48,Feuil1!$C$1:$BF$9,7,FALSE) ->  | AG48: =T48-HLOOKUP(Y48,Feuil1!$C$1:$BF$9,8,FALSE) ->  | AH48: =T48-HLOOKUP(Y48,Feuil1!$C$1:$BF$9,9,FALSE) ->  | AQ48: 2016 | AS48: =IF(AQ48,VLOOKUP(AQ48,HOM!$AR$551:$AS$606,2)) -> 3.571
A49: F | X49: FALSE | Y49: =IF(AND(H49<1936),VLOOKUP(I49,Feuil1!$F$10:$O$24,9),IF(AND(H49>=1942,H49<1947),VLOOKUP(I49,Feuil1!$F$10:$O$24,9),IF(AND(H49>=1947,H49<1952),VLOOKUP(I49,Feuil1!$F$10:$O$24,8),IF(AND(H49>=1952,H49<1957),VLOOKUP(I49,Feuil1!$F$10:$O$24,7),IF(AND(H49>=1957,H49<1962),VLOOKUP(I49,Feuil1!$F$10:$O$24,6),IF(AND(H49>=1962,H49<1967),VLOOKUP(I49,Feuil1!$F$10:$O$24,5),IF(AND(H49>=1967,H49<1972),VLOOKUP(I49,Feuil1!$F$10:$O$24,4),IF(AND(H49>=1972,H49<1977),VLOOKUP(I49,Feuil1!$F$10:$O$24,3),IF(AND(H49>=1977,H49<1982),VLOOKUP(I49,Feuil1!$F$10:$O$24,2),VLOOKUP(I49,Feuil1!$F$10:$O$24,2)))))))))) ->  | AA49: =T49-HLOOKUP(Y49,Feuil1!$C$1:$BF$9,2,FALSE) ->  | AB49: =T49-HLOOKUP(Y49,Feuil1!$C$1:$BF$9,3,FALSE) ->  | AC49: =T49-HLOOKUP(Y49,Feuil1!$C$1:$BF$9,4,FALSE) ->  | AD49: =T49-HLOOKUP(Y49,Feuil1!$C$1:$BF$9,5,FALSE) ->  | AE49: =T49-HLOOKUP(Y49,Feuil1!$C$1:$BF$9,6,FALSE) ->  | AF49: =T49-HLOOKUP(Y49,Feuil1!$C$1:$BF$9,7,FALSE) ->  | AG49: =T49-HLOOKUP(Y49,Feuil1!$C$1:$BF$9,8,FALSE) ->  | AH49: =T49-HLOOKUP(Y49,Feuil1!$C$1:$BF$9,9,FALSE) ->  | AQ49: 2016 | AS49: =IF(AQ49,VLOOKUP(AQ49,HOM!$AR$551:$AS$606,2)) -> 3.571
A50: F | X50: FALSE | Y50: =IF(AND(H50<1936),VLOOKUP(I50,Feuil1!$F$10:$O$24,9),IF(AND(H50>=1942,H50<1947),VLOOKUP(I50,Feuil1!$F$10:$O$24,9),IF(AND(H50>=1947,H50<1952),VLOOKUP(I50,Feuil1!$F$10:$O$24,8),IF(AND(H50>=1952,H50<1957),VLOOKUP(I50,Feuil1!$F$10:$O$24,7),IF(AND(H50>=1957,H50<1962),VLOOKUP(I50,Feuil1!$F$10:$O$24,6),IF(AND(H50>=1962,H50<1967),VLOOKUP(I50,Feuil1!$F$10:$O$24,5),IF(AND(H50>=1967,H50<1972),VLOOKUP(I50,Feuil1!$F$10:$O$24,4),IF(AND(H50>=1972,H50<1977),VLOOKUP(I50,Feuil1!$F$10:$O$24,3),IF(AND(H50>=1977,H50<1982),VLOOKUP(I50,Feuil1!$F$10:$O$24,2),VLOOKUP(I50,Feuil1!$F$10:$O$24,2)))))))))) ->  | AA50: =T50-HLOOKUP(Y50,Feuil1!$C$1:$BF$9,2,FALSE) ->  | AB50: =T50-HLOOKUP(Y50,Feuil1!$C$1:$BF$9,3,FALSE) ->  | AC50: =T50-HLOOKUP(Y50,Feuil1!$C$1:$BF$9,4,FALSE) ->  | AD50: =T50-HLOOKUP(Y50,Feuil1!$C$1:$BF$9,5,FALSE) ->  | AE50: =T50-HLOOKUP(Y50,Feuil1!$C$1:$BF$9,6,FALSE) ->  | AF50: =T50-HLOOKUP(Y50,Feuil1!$C$1:$BF$9,7,FALSE) ->  | AG50: =T50-HLOOKUP(Y50,Feuil1!$C$1:$BF$9,8,FALSE) ->  | AH50: =T50-HLOOKUP(Y50,Feuil1!$C$1:$BF$9,9,FALSE) ->  | AQ50: 2016 | AS50: =IF(AQ50,VLOOKUP(AQ50,HOM!$AR$551:$AS$606,2)) -> 3.571
A51: F | X51: FALSE | Y51: =IF(AND(H51<1936),VLOOKUP(I51,Feuil1!$F$10:$O$24,9),IF(AND(H51>=1942,H51<1947),VLOOKUP(I51,Feuil1!$F$10:$O$24,9),IF(AND(H51>=1947,H51<1952),VLOOKUP(I51,Feuil1!$F$10:$O$24,8),IF(AND(H51>=1952,H51<1957),VLOOKUP(I51,Feuil1!$F$10:$O$24,7),IF(AND(H51>=1957,H51<1962),VLOOKUP(I51,Feuil1!$F$10:$O$24,6),IF(AND(H51>=1962,H51<1967),VLOOKUP(I51,Feuil1!$F$10:$O$24,5),IF(AND(H51>=1967,H51<1972),VLOOKUP(I51,Feuil1!$F$10:$O$24,4),IF(AND(H51>=1972,H51<1977),VLOOKUP(I51,Feuil1!$F$10:$O$24,3),IF(AND(H51>=1977,H51<1982),VLOOKUP(I51,Feuil1!$F$10:$O$24,2),VLOOKUP(I51,Feuil1!$F$10:$O$24,2)))))))))) ->  | AA51: =T51-HLOOKUP(Y51,Feuil1!$C$1:$BF$9,2,FALSE) ->  | AB51: =T51-HLOOKUP(Y51,Feuil1!$C$1:$BF$9,3,FALSE) ->  | AC51: =T51-HLOOKUP(Y51,Feuil1!$C$1:$BF$9,4,FALSE) ->  | AD51: =T51-HLOOKUP(Y51,Feuil1!$C$1:$BF$9,5,FALSE) ->  | AE51: =T51-HLOOKUP(Y51,Feuil1!$C$1:$BF$9,6,FALSE) ->  | AF51: =T51-HLOOKUP(Y51,Feuil1!$C$1:$BF$9,7,FALSE) ->  | AG51: =T51-HLOOKUP(Y51,Feuil1!$C$1:$BF$9,8,FALSE) ->  | AH51: =T51-HLOOKUP(Y51,Feuil1!$C$1:$BF$9,9,FALSE) ->  | AQ51: 2016 | AS51: =IF(AQ51,VLOOKUP(AQ51,HOM!$AR$551:$AS$606,2)) -> 3.571
A52: F | X52: FALSE | Y52: =IF(AND(H52<1936),VLOOKUP(I52,Feuil1!$F$10:$O$24,9),IF(AND(H52>=1942,H52<1947),VLOOKUP(I52,Feuil1!$F$10:$O$24,9),IF(AND(H52>=1947,H52<1952),VLOOKUP(I52,Feuil1!$F$10:$O$24,8),IF(AND(H52>=1952,H52<1957),VLOOKUP(I52,Feuil1!$F$10:$O$24,7),IF(AND(H52>=1957,H52<1962),VLOOKUP(I52,Feuil1!$F$10:$O$24,6),IF(AND(H52>=1962,H52<1967),VLOOKUP(I52,Feuil1!$F$10:$O$24,5),IF(AND(H52>=1967,H52<1972),VLOOKUP(I52,Feuil1!$F$10:$O$24,4),IF(AND(H52>=1972,H52<1977),VLOOKUP(I52,Feuil1!$F$10:$O$24,3),IF(AND(H52>=1977,H52<1982),VLOOKUP(I52,Feuil1!$F$10:$O$24,2),VLOOKUP(I52,Feuil1!$F$10:$O$24,2)))))))))) ->  | AA52: =T52-HLOOKUP(Y52,Feuil1!$C$1:$BF$9,2,FALSE) ->  | AB52: =T52-HLOOKUP(Y52,Feuil1!$C$1:$BF$9,3,FALSE) ->  | AC52: =T52-HLOOKUP(Y52,Feuil1!$C$1:$BF$9,4,FALSE) ->  | AD52: =T52-HLOOKUP(Y52,Feuil1!$C$1:$BF$9,5,FALSE) ->  | AE52: =T52-HLOOKUP(Y52,Feuil1!$C$1:$BF$9,6,FALSE) ->  | AF52: =T52-HLOOKUP(Y52,Feuil1!$C$1:$BF$9,7,FALSE) ->  | AG52: =T52-HLOOKUP(Y52,Feuil1!$C$1:$BF$9,8,FALSE) ->  | AH52: =T52-HLOOKUP(Y52,Feuil1!$C$1:$BF$9,9,FALSE) ->  | AQ52: 2016 | AS52: =IF(AQ52,VLOOKUP(AQ52,HOM!$AR$551:$AS$606,2)) -> 3.571
A53: F | H53: 1945 | I53: 48 | L53: 17 | O53: 17 | P53: 19 | S53: 19 | T53: 36 | U53: 118.1422893 | V53: REG + | W53: 0 | X53: V8 F70+ | Y53: =IF(AND(H53<1936),VLOOKUP(I53,Feuil1!$F$10:$O$24,9),IF(AND(H53>=1942,H53<1947),VLOOKUP(I53,Feuil1!$F$10:$O$24,9),IF(AND(H53>=1947,H53<1952),VLOOKUP(I53,Feuil1!$F$10:$O$24,8),IF(AND(H53>=1952,H53<1957),VLOOKUP(I53,Feuil1!$F$10:$O$24,7),IF(AND(H53>=1957,H53<1962),VLOOKUP(I53,Feuil1!$F$10:$O$24,6),IF(AND(H53>=1962,H53<1967),VLOOKUP(I53,Feuil1!$F$10:$O$24,5),IF(AND(H53>=1967,H53<1972),VLOOKUP(I53,Feuil1!$F$10:$O$24,4),IF(AND(H53>=1972,H53<1977),VLOOKUP(I53,Feuil1!$F$10:$O$24,3),IF(AND(H53>=1977,H53<1982),VLOOKUP(I53,Feuil1!$F$10:$O$24,2),VLOOKUP(I53,Feuil1!$F$10:$O$24,2)))))))))) -> VF70+-48 | AA53: =T53-HLOOKUP(Y53,Feuil1!$C$1:$BF$9,2,FALSE) ->  | AB53: =T53-HLOOKUP(Y53,Feuil1!$C$1:$BF$9,3,FALSE) -> 0 | AC53: =T53-HLOOKUP(Y53,Feuil1!$C$1:$BF$9,4,FALSE) -> -2 | AD53: =T53-HLOOKUP(Y53,Feuil1!$C$1:$BF$9,5,FALSE) -> -9 | AE53: =T53-HLOOKUP(Y53,Feuil1!$C$1:$BF$9,6,FALSE) -> -10 | AF53: =T53-HLOOKUP(Y53,Feuil1!$C$1:$BF$9,7,FALSE) -> -964 | AG53: =T53-HLOOKUP(Y53,Feuil1!$C$1:$BF$9,8,FALSE) -> -964 | AH53: =T53-HLOOKUP(Y53,Feuil1!$C$1:$BF$9,9,FALSE) -> -964 | AP53: REG + | AQ53: 71 | AS53: =IF(AQ53,VLOOKUP(AQ53,HOM!$AR$551:$AS$606,2)) -> 2.002
A54: F | X54: FALSE | Y54: =IF(AND(H54<1936),VLOOKUP(I54,Feuil1!$F$10:$O$24,9),IF(AND(H54>=1942,H54<1947),VLOOKUP(I54,Feuil1!$F$10:$O$24,9),IF(AND(H54>=1947,H54<1952),VLOOKUP(I54,Feuil1!$F$10:$O$24,8),IF(AND(H54>=1952,H54<1957),VLOOKUP(I54,Feuil1!$F$10:$O$24,7),IF(AND(H54>=1957,H54<1962),VLOOKUP(I54,Feuil1!$F$10:$O$24,6),IF(AND(H54>=1962,H54<1967),VLOOKUP(I54,Feuil1!$F$10:$O$24,5),IF(AND(H54>=1967,H54<1972),VLOOKUP(I54,Feuil1!$F$10:$O$24,4),IF(AND(H54>=1972,H54<1977),VLOOKUP(I54,Feuil1!$F$10:$O$24,3),IF(AND(H54>=1977,H54<1982),VLOOKUP(I54,Feuil1!$F$10:$O$24,2),VLOOKUP(I54,Feuil1!$F$10:$O$24,2)))))))))) ->  | AA54: =T54-HLOOKUP(Y54,Feuil1!$C$1:$BF$9,2,FALSE) ->  | AB54: =T54-HLOOKUP(Y54,Feuil1!$C$1:$BF$9,3,FALSE) ->  | AC54: =T54-HLOOKUP(Y54,Feuil1!$C$1:$BF$9,4,FALSE) ->  | AD54: =T54-HLOOKUP(Y54,Feuil1!$C$1:$BF$9,5,FALSE) ->  | AE54: =T54-HLOOKUP(Y54,Feuil1!$C$1:$BF$9,6,FALSE) ->  | AF54: =T54-HLOOKUP(Y54,Feuil1!$C$1:$BF$9,7,FALSE) ->  | AG54: =T54-HLOOKUP(Y54,Feuil1!$C$1:$BF$9,8,FALSE) ->  | AH54: =T54-HLOOKUP(Y54,Feuil1!$C$1:$BF$9,9,FALSE) ->  | AQ54: 2016 | AS54: =IF(AQ54,VLOOKUP(AQ54,HOM!$AR$551:$AS$606,2)) -> 3.571
A55: F | X55: FALSE | Y55: =IF(AND(H55<1936),VLOOKUP(I55,Feuil1!$F$10:$O$24,9),IF(AND(H55>=1942,H55<1947),VLOOKUP(I55,Feuil1!$F$10:$O$24,9),IF(AND(H55>=1947,H55<1952),VLOOKUP(I55,Feuil1!$F$10:$O$24,8),IF(AND(H55>=1952,H55<1957),VLOOKUP(I55,Feuil1!$F$10:$O$24,7),IF(AND(H55>=1957,H55<1962),VLOOKUP(I55,Feuil1!$F$10:$O$24,6),IF(AND(H55>=1962,H55<1967),VLOOKUP(I55,Feuil1!$F$10:$O$24,5),IF(AND(H55>=1967,H55<1972),VLOOKUP(I55,Feuil1!$F$10:$O$24,4),IF(AND(H55>=1972,H55<1977),VLOOKUP(I55,Feuil1!$F$10:$O$24,3),IF(AND(H55>=1977,H55<1982),VLOOKUP(I55,Feuil1!$F$10:$O$24,2),VLOOKUP(I55,Feuil1!$F$10:$O$24,2)))))))))) ->  | AA55: =T55-HLOOKUP(Y55,Feuil1!$C$1:$BF$9,2,FALSE) ->  | AB55: =T55-HLOOKUP(Y55,Feuil1!$C$1:$BF$9,3,FALSE) ->  | AC55: =T55-HLOOKUP(Y55,Feuil1!$C$1:$BF$9,4,FALSE) ->  | AD55: =T55-HLOOKUP(Y55,Feuil1!$C$1:$BF$9,5,FALSE) ->  | AE55: =T55-HLOOKUP(Y55,Feuil1!$C$1:$BF$9,6,FALSE) ->  | AF55: =T55-HLOOKUP(Y55,Feuil1!$C$1:$BF$9,7,FALSE) ->  | AG55: =T55-HLOOKUP(Y55,Feuil1!$C$1:$BF$9,8,FALSE) ->  | AH55: =T55-HLOOKUP(Y55,Feuil1!$C$1:$BF$9,9,FALSE) ->  | AQ55: 2016 | AS55: =IF(AQ55,VLOOKUP(AQ55,HOM!$AR$551:$AS$606,2)) -> 3.571
A56: F | X56: FALSE | Y56: =IF(AND(H56<1936),VLOOKUP(I56,Feuil1!$F$10:$O$24,9),IF(AND(H56>=1942,H56<1947),VLOOKUP(I56,Feuil1!$F$10:$O$24,9),IF(AND(H56>=1947,H56<1952),VLOOKUP(I56,Feuil1!$F$10:$O$24,8),IF(AND(H56>=1952,H56<1957),VLOOKUP(I56,Feuil1!$F$10:$O$24,7),IF(AND(H56>=1957,H56<1962),VLOOKUP(I56,Feuil1!$F$10:$O$24,6),IF(AND(H56>=1962,H56<1967),VLOOKUP(I56,Feuil1!$F$10:$O$24,5),IF(AND(H56>=1967,H56<1972),VLOOKUP(I56,Feuil1!$F$10:$O$24,4),IF(AND(H56>=1972,H56<1977),VLOOKUP(I56,Feuil1!$F$10:$O$24,3),IF(AND(H56>=1977,H56<1982),VLOOKUP(I56,Feuil1!$F$10:$O$24,2),VLOOKUP(I56,Feuil1!$F$10:$O$24,2)))))))))) ->  | AA56: =T56-HLOOKUP(Y56,Feuil1!$C$1:$BF$9,2,FALSE) ->  | AB56: =T56-HLOOKUP(Y56,Feuil1!$C$1:$BF$9,3,FALSE) ->  | AC56: =T56-HLOOKUP(Y56,Feuil1!$C$1:$BF$9,4,FALSE) ->  | AD56: =T56-HLOOKUP(Y56,Feuil1!$C$1:$BF$9,5,FALSE) ->  | AE56: =T56-HLOOKUP(Y56,Feuil1!$C$1:$BF$9,6,FALSE) ->  | AF56: =T56-HLOOKUP(Y56,Feuil1!$C$1:$BF$9,7,FALSE) ->  | AG56: =T56-HLOOKUP(Y56,Feuil1!$C$1:$BF$9,8,FALSE) ->  | AH56: =T56-HLOOKUP(Y56,Feuil1!$C$1:$BF$9,9,FALSE) ->  | AQ56: 2016 | AS56: =IF(AQ56,VLOOKUP(AQ56,HOM!$AR$551:$AS$606,2)) -> 3.571
A57: F | X57: FALSE | Y57: =IF(AND(H57<1936),VLOOKUP(I57,Feuil1!$F$10:$O$24,9),IF(AND(H57>=1942,H57<1947),VLOOKUP(I57,Feuil1!$F$10:$O$24,9),IF(AND(H57>=1947,H57<1952),VLOOKUP(I57,Feuil1!$F$10:$O$24,8),IF(AND(H57>=1952,H57<1957),VLOOKUP(I57,Feuil1!$F$10:$O$24,7),IF(AND(H57>=1957,H57<1962),VLOOKUP(I57,Feuil1!$F$10:$O$24,6),IF(AND(H57>=1962,H57<1967),VLOOKUP(I57,Feuil1!$F$10:$O$24,5),IF(AND(H57>=1967,H57<1972),VLOOKUP(I57,Feuil1!$F$10:$O$24,4),IF(AND(H57>=1972,H57<1977),VLOOKUP(I57,Feuil1!$F$10:$O$24,3),IF(AND(H57>=1977,H57<1982),VLOOKUP(I57,Feuil1!$F$10:$O$24,2),VLOOKUP(I57,Feuil1!$F$10:$O$24,2)))))))))) ->  | AA57: =T57-HLOOKUP(Y57,Feuil1!$C$1:$BF$9,2,FALSE) ->  | AB57: =T57-HLOOKUP(Y57,Feuil1!$C$1:$BF$9,3,FALSE) ->  | AC57: =T57-HLOOKUP(Y57,Feuil1!$C$1:$BF$9,4,FALSE) ->  | AD57: =T57-HLOOKUP(Y57,Feuil1!$C$1:$BF$9,5,FALSE) ->  | AE57: =T57-HLOOKUP(Y57,Feuil1!$C$1:$BF$9,6,FALSE) ->  | AF57: =T57-HLOOKUP(Y57,Feuil1!$C$1:$BF$9,7,FALSE) ->  | AG57: =T57-HLOOKUP(Y57,Feuil1!$C$1:$BF$9,8,FALSE) ->  | AH57: =T57-HLOOKUP(Y57,Feuil1!$C$1:$BF$9,9,FALSE) ->  | AQ57: 2016 | AS57: =IF(AQ57,VLOOKUP(AQ57,HOM!$AR$551:$AS$606,2)) -> 3.571
A58: F | X58: FALSE | Y58: =IF(AND(H58<1936),VLOOKUP(I58,Feuil1!$F$10:$O$24,9),IF(AND(H58>=1942,H58<1947),VLOOKUP(I58,Feuil1!$F$10:$O$24,9),IF(AND(H58>=1947,H58<1952),VLOOKUP(I58,Feuil1!$F$10:$O$24,8),IF(AND(H58>=1952,H58<1957),VLOOKUP(I58,Feuil1!$F$10:$O$24,7),IF(AND(H58>=1957,H58<1962),VLOOKUP(I58,Feuil1!$F$10:$O$24,6),IF(AND(H58>=1962,H58<1967),VLOOKUP(I58,Feuil1!$F$10:$O$24,5),IF(AND(H58>=1967,H58<1972),VLOOKUP(I58,Feuil1!$F$10:$O$24,4),IF(AND(H58>=1972,H58<1977),VLOOKUP(I58,Feuil1!$F$10:$O$24,3),IF(AND(H58>=1977,H58<1982),VLOOKUP(I58,Feuil1!$F$10:$O$24,2),VLOOKUP(I58,Feuil1!$F$10:$O$24,2)))))))))) ->  | AA58: =T58-HLOOKUP(Y58,Feuil1!$C$1:$BF$9,2,FALSE) ->  | AB58: =T58-HLOOKUP(Y58,Feuil1!$C$1:$BF$9,3,FALSE) ->  | AC58: =T58-HLOOKUP(Y58,Feuil1!$C$1:$BF$9,4,FALSE) ->  | AD58: =T58-HLOOKUP(Y58,Feuil1!$C$1:$BF$9,5,FALSE) ->  | AE58: =T58-HLOOKUP(Y58,Feuil1!$C$1:$BF$9,6,FALSE) ->  | AF58: =T58-HLOOKUP(Y58,Feuil1!$C$1:$BF$9,7,FALSE) ->  | AG58: =T58-HLOOKUP(Y58,Feuil1!$C$1:$BF$9,8,FALSE) ->  | AH58: =T58-HLOOKUP(Y58,Feuil1!$C$1:$BF$9,9,FALSE) ->  | AQ58: 2016 | AS58: =IF(AQ58,VLOOKUP(AQ58,HOM!$AR$551:$AS$606,2)) -> 3.571
A59: F | X59: FALSE | Y59: =IF(AND(H59<1936),VLOOKUP(I59,Feuil1!$F$10:$O$24,9),IF(AND(H59>=1942,H59<1947),VLOOKUP(I59,Feuil1!$F$10:$O$24,9),IF(AND(H59>=1947,H59<1952),VLOOKUP(I59,Feuil1!$F$10:$O$24,8),IF(AND(H59>=1952,H59<1957),VLOOKUP(I59,Feuil1!$F$10:$O$24,7),IF(AND(H59>=1957,H59<1962),VLOOKUP(I59,Feuil1!$F$10:$O$24,6),IF(AND(H59>=1962,H59<1967),VLOOKUP(I59,Feuil1!$F$10:$O$24,5),IF(AND(H59>=1967,H59<1972),VLOOKUP(I59,Feuil1!$F$10:$O$24,4),IF(AND(H59>=1972,H59<1977),VLOOKUP(I59,Feuil1!$F$10:$O$24,3),IF(AND(H59>=1977,H59<1982),VLOOKUP(I59,Feuil1!$F$10:$O$24,2),VLOOKUP(I59,Feuil1!$F$10:$O$24,2)))))))))) ->  | AA59: =T59-HLOOKUP(Y59,Feuil1!$C$1:$BF$9,2,FALSE) ->  | AB59: =T59-HLOOKUP(Y59,Feuil1!$C$1:$BF$9,3,FALSE) ->  | AC59: =T59-HLOOKUP(Y59,Feuil1!$C$1:$BF$9,4,FALSE) ->  | AD59: =T59-HLOOKUP(Y59,Feuil1!$C$1:$BF$9,5,FALSE) ->  | AE59: =T59-HLOOKUP(Y59,Feuil1!$C$1:$BF$9,6,FALSE) ->  | AF59: =T59-HLOOKUP(Y59,Feuil1!$C$1:$BF$9,7,FALSE) ->  | AG59: =T59-HLOOKUP(Y59,Feuil1!$C$1:$BF$9,8,FALSE) ->  | AH59: =T59-HLOOKUP(Y59,Feuil1!$C$1:$BF$9,9,FALSE) ->  | AQ59: 2016 | AS59: =IF(AQ59,VLOOKUP(AQ59,HOM!$AR$551:$AS$606,2)) -> 3.571
A60: F | X60: FALSE | Y60: =IF(AND(H60<1936),VLOOKUP(I60,Feuil1!$F$10:$O$24,9),IF(AND(H60>=1942,H60<1947),VLOOKUP(I60,Feuil1!$F$10:$O$24,9),IF(AND(H60>=1947,H60<1952),VLOOKUP(I60,Feuil1!$F$10:$O$24,8),IF(AND(H60>=1952,H60<1957),VLOOKUP(I60,Feuil1!$F$10:$O$24,7),IF(AND(H60>=1957,H60<1962),VLOOKUP(I60,Feuil1!$F$10:$O$24,6),IF(AND(H60>=1962,H60<1967),VLOOKUP(I60,Feuil1!$F$10:$O$24,5),IF(AND(H60>=1967,H60<1972),VLOOKUP(I60,Feuil1!$F$10:$O$24,4),IF(AND(H60>=1972,H60<1977),VLOOKUP(I60,Feuil1!$F$10:$O$24,3),IF(AND(H60>=1977,H60<1982),VLOOKUP(I60,Feuil1!$F$10:$O$24,2),VLOOKUP(I60,Feuil1!$F$10:$O$24,2)))))))))) ->  | AA60: =T60-HLOOKUP(Y60,Feuil1!$C$1:$BF$9,2,FALSE) ->  | AB60: =T60-HLOOKUP(Y60,Feuil1!$C$1:$BF$9,3,FALSE) ->  | AC60: =T60-HLOOKUP(Y60,Feuil1!$C$1:$BF$9,4,FALSE) ->  | AD60: =T60-HLOOKUP(Y60,Feuil1!$C$1:$BF$9,5,FALSE) ->  | AE60: =T60-HLOOKUP(Y60,Feuil1!$C$1:$BF$9,6,FALSE) ->  | AF60: =T60-HLOOKUP(Y60,Feuil1!$C$1:$BF$9,7,FALSE) ->  | AG60: =T60-HLOOKUP(Y60,Feuil1!$C$1:$BF$9,8,FALSE) ->  | AH60: =T60-HLOOKUP(Y60,Feuil1!$C$1:$BF$9,9,FALSE) ->  | AQ60: 2016 | AS60: =IF(AQ60,VLOOKUP(AQ60,HOM!$AR$551:$AS$606,2)) -> 3.571
A61: F | X61: FALSE | Y61: =IF(AND(H61<1936),VLOOKUP(I61,Feuil1!$F$10:$O$24,9),IF(AND(H61>=1942,H61<1947),VLOOKUP(I61,Feuil1!$F$10:$O$24,9),IF(AND(H61>=1947,H61<1952),VLOOKUP(I61,Feuil1!$F$10:$O$24,8),IF(AND(H61>=1952,H61<1957),VLOOKUP(I61,Feuil1!$F$10:$O$24,7),IF(AND(H61>=1957,H61<1962),VLOOKUP(I61,Feuil1!$F$10:$O$24,6),IF(AND(H61>=1962,H61<1967),VLOOKUP(I61,Feuil1!$F$10:$O$24,5),IF(AND(H61>=1967,H61<1972),VLOOKUP(I61,Feuil1!$F$10:$O$24,4),IF(AND(H61>=1972,H61<1977),VLOOKUP(I61,Feuil1!$F$10:$O$24,3),IF(AND(H61>=1977,H61<1982),VLOOKUP(I61,Feuil1!$F$10:$O$24,2),VLOOKUP(I61,Feuil1!$F$10:$O$24,2)))))))))) ->  | AA61: =T61-HLOOKUP(Y61,Feuil1!$C$1:$BF$9,2,FALSE) ->  | AB61: =T61-HLOOKUP(Y61,Feuil1!$C$1:$BF$9,3,FALSE) ->  | AC61: =T61-HLOOKUP(Y61,Feuil1!$C$1:$BF$9,4,FALSE) ->  | AD61: =T61-HLOOKUP(Y61,Feuil1!$C$1:$BF$9,5,FALSE) ->  | AE61: =T61-HLOOKUP(Y61,Feuil1!$C$1:$BF$9,6,FALSE) ->  | AF61: =T61-HLOOKUP(Y61,Feuil1!$C$1:$BF$9,7,FALSE) ->  | AG61: =T61-HLOOKUP(Y61,Feuil1!$C$1:$BF$9,8,FALSE) ->  | AH61: =T61-HLOOKUP(Y61,Feuil1!$C$1:$BF$9,9,FALSE) ->  | AQ61: 2016 | AS61: =IF(AQ61,VLOOKUP(AQ61,HOM!$AR$551:$AS$606,2)) -> 3.571
A62: F | X62: FALSE | Y62: =IF(AND(H62<1936),VLOOKUP(I62,Feuil1!$F$10:$O$24,9),IF(AND(H62>=1942,H62<1947),VLOOKUP(I62,Feuil1!$F$10:$O$24,9),IF(AND(H62>=1947,H62<1952),VLOOKUP(I62,Feuil1!$F$10:$O$24,8),IF(AND(H62>=1952,H62<1957),VLOOKUP(I62,Feuil1!$F$10:$O$24,7),IF(AND(H62>=1957,H62<1962),VLOOKUP(I62,Feuil1!$F$10:$O$24,6),IF(AND(H62>=1962,H62<1967),VLOOKUP(I62,Feuil1!$F$10:$O$24,5),IF(AND(H62>=1967,H62<1972),VLOOKUP(I62,Feuil1!$F$10:$O$24,4),IF(AND(H62>=1972,H62<1977),VLOOKUP(I62,Feuil1!$F$10:$O$24,3),IF(AND(H62>=1977,H62<1982),VLOOKUP(I62,Feuil1!$F$10:$O$24,2),VLOOKUP(I62,Feuil1!$F$10:$O$24,2)))))))))) ->  | AA62: =T62-HLOOKUP(Y62,Feuil1!$C$1:$BF$9,2,FALSE) ->  | AB62: =T62-HLOOKUP(Y62,Feuil1!$C$1:$BF$9,3,FALSE) ->  | AC62: =T62-HLOOKUP(Y62,Feuil1!$C$1:$BF$9,4,FALSE) ->  | AD62: =T62-HLOOKUP(Y62,Feuil1!$C$1:$BF$9,5,FALSE) ->  | AE62: =T62-HLOOKUP(Y62,Feuil1!$C$1:$BF$9,6,FALSE) ->  | AF62: =T62-HLOOKUP(Y62,Feuil1!$C$1:$BF$9,7,FALSE) ->  | AG62: =T62-HLOOKUP(Y62,Feuil1!$C$1:$BF$9,8,FALSE) ->  | AH62: =T62-HLOOKUP(Y62,Feuil1!$C$1:$BF$9,9,FALSE) ->  | AQ62: 2016 | AS62: =IF(AQ62,VLOOKUP(AQ62,HOM!$AR$551:$AS$606,2)) -> 3.571
A63: F | X63: FALSE | Y63: =IF(AND(H63<1936),VLOOKUP(I63,Feuil1!$F$10:$O$24,9),IF(AND(H63>=1942,H63<1947),VLOOKUP(I63,Feuil1!$F$10:$O$24,9),IF(AND(H63>=1947,H63<1952),VLOOKUP(I63,Feuil1!$F$10:$O$24,8),IF(AND(H63>=1952,H63<1957),VLOOKUP(I63,Feuil1!$F$10:$O$24,7),IF(AND(H63>=1957,H63<1962),VLOOKUP(I63,Feuil1!$F$10:$O$24,6),IF(AND(H63>=1962,H63<1967),VLOOKUP(I63,Feuil1!$F$10:$O$24,5),IF(AND(H63>=1967,H63<1972),VLOOKUP(I63,Feuil1!$F$10:$O$24,4),IF(AND(H63>=1972,H63<1977),VLOOKUP(I63,Feuil1!$F$10:$O$24,3),IF(AND(H63>=1977,H63<1982),VLOOKUP(I63,Feuil1!$F$10:$O$24,2),VLOOKUP(I63,Feuil1!$F$10:$O$24,2)))))))))) ->  | AA63: =T63-HLOOKUP(Y63,Feuil1!$C$1:$BF$9,2,FALSE) ->  | AB63: =T63-HLOOKUP(Y63,Feuil1!$C$1:$BF$9,3,FALSE) ->  | AC63: =T63-HLOOKUP(Y63,Feuil1!$C$1:$BF$9,4,FALSE) ->  | AD63: =T63-HLOOKUP(Y63,Feuil1!$C$1:$BF$9,5,FALSE) ->  | AE63: =T63-HLOOKUP(Y63,Feuil1!$C$1:$BF$9,6,FALSE) ->  | AF63: =T63-HLOOKUP(Y63,Feuil1!$C$1:$BF$9,7,FALSE) ->  | AG63: =T63-HLOOKUP(Y63,Feuil1!$C$1:$BF$9,8,FALSE) ->  | AH63: =T63-HLOOKUP(Y63,Feuil1!$C$1:$BF$9,9,FALSE) ->  | AQ63: 2016 | AS63: =IF(AQ63,VLOOKUP(AQ63,HOM!$AR$551:$AS$606,2)) -> 3.571
A64: F | X64: FALSE | Y64: =IF(AND(H64<1936),VLOOKUP(I64,Feuil1!$F$10:$O$24,9),IF(AND(H64>=1942,H64<1947),VLOOKUP(I64,Feuil1!$F$10:$O$24,9),IF(AND(H64>=1947,H64<1952),VLOOKUP(I64,Feuil1!$F$10:$O$24,8),IF(AND(H64>=1952,H64<1957),VLOOKUP(I64,Feuil1!$F$10:$O$24,7),IF(AND(H64>=1957,H64<1962),VLOOKUP(I64,Feuil1!$F$10:$O$24,6),IF(AND(H64>=1962,H64<1967),VLOOKUP(I64,Feuil1!$F$10:$O$24,5),IF(AND(H64>=1967,H64<1972),VLOOKUP(I64,Feuil1!$F$10:$O$24,4),IF(AND(H64>=1972,H64<1977),VLOOKUP(I64,Feuil1!$F$10:$O$24,3),IF(AND(H64>=1977,H64<1982),VLOOKUP(I64,Feuil1!$F$10:$O$24,2),VLOOKUP(I64,Feuil1!$F$10:$O$24,2)))))))))) ->  | AA64: =T64-HLOOKUP(Y64,Feuil1!$C$1:$BF$9,2,FALSE) ->  | AB64: =T64-HLOOKUP(Y64,Feuil1!$C$1:$BF$9,3,FALSE) ->  | AC64: =T64-HLOOKUP(Y64,Feuil1!$C$1:$BF$9,4,FALSE) ->  | AD64: =T64-HLOOKUP(Y64,Feuil1!$C$1:$BF$9,5,FALSE) ->  | AE64: =T64-HLOOKUP(Y64,Feuil1!$C$1:$BF$9,6,FALSE) ->  | AF64: =T64-HLOOKUP(Y64,Feuil1!$C$1:$BF$9,7,FALSE) ->  | AG64: =T64-HLOOKUP(Y64,Feuil1!$C$1:$BF$9,8,FALSE) ->  | AH64: =T64-HLOOKUP(Y64,Feuil1!$C$1:$BF$9,9,FALSE) ->  | AQ64: 2016 | AS64: =IF(AQ64,VLOOKUP(AQ64,HOM!$AR$551:$AS$606,2)) -> 3.571
A65: F | X65: FALSE | Y65: =IF(AND(H65<1936),VLOOKUP(I65,Feuil1!$F$10:$O$24,9),IF(AND(H65>=1942,H65<1947),VLOOKUP(I65,Feuil1!$F$10:$O$24,9),IF(AND(H65>=1947,H65<1952),VLOOKUP(I65,Feuil1!$F$10:$O$24,8),IF(AND(H65>=1952,H65<1957),VLOOKUP(I65,Feuil1!$F$10:$O$24,7),IF(AND(H65>=1957,H65<1962),VLOOKUP(I65,Feuil1!$F$10:$O$24,6),IF(AND(H65>=1962,H65<1967),VLOOKUP(I65,Feuil1!$F$10:$O$24,5),IF(AND(H65>=1967,H65<1972),VLOOKUP(I65,Feuil1!$F$10:$O$24,4),IF(AND(H65>=1972,H65<1977),VLOOKUP(I65,Feuil1!$F$10:$O$24,3),IF(AND(H65>=1977,H65<1982),VLOOKUP(I65,Feuil1!$F$10:$O$24,2),VLOOKUP(I65,Feuil1!$F$10:$O$24,2)))))))))) ->  | AA65: =T65-HLOOKUP(Y65,Feuil1!$C$1:$BF$9,2,FALSE) ->  | AB65: =T65-HLOOKUP(Y65,Feuil1!$C$1:$BF$9,3,FALSE) ->  | AC65: =T65-HLOOKUP(Y65,Feuil1!$C$1:$BF$9,4,FALSE) ->  | AD65: =T65-HLOOKUP(Y65,Feuil1!$C$1:$BF$9,5,FALSE) ->  | AE65: =T65-HLOOKUP(Y65,Feuil1!$C$1:$BF$9,6,FALSE) ->  | AF65: =T65-HLOOKUP(Y65,Feuil1!$C$1:$BF$9,7,FALSE) ->  | AG65: =T65-HLOOKUP(Y65,Feuil1!$C$1:$BF$9,8,FALSE) ->  | AH65: =T65-HLOOKUP(Y65,Feuil1!$C$1:$BF$9,9,FALSE) ->  | AQ65: 2016 | AS65: =IF(AQ65,VLOOKUP(AQ65,HOM!$AR$551:$AS$606,2)) -> 3.571
A66: F | X66: FALSE | Y66: =IF(AND(H66<1936),VLOOKUP(I66,Feuil1!$F$10:$O$24,9),IF(AND(H66>=1942,H66<1947),VLOOKUP(I66,Feuil1!$F$10:$O$24,9),IF(AND(H66>=1947,H66<1952),VLOOKUP(I66,Feuil1!$F$10:$O$24,8),IF(AND(H66>=1952,H66<1957),VLOOKUP(I66,Feuil1!$F$10:$O$24,7),IF(AND(H66>=1957,H66<1962),VLOOKUP(I66,Feuil1!$F$10:$O$24,6),IF(AND(H66>=1962,H66<1967),VLOOKUP(I66,Feuil1!$F$10:$O$24,5),IF(AND(H66>=1967,H66<1972),VLOOKUP(I66,Feuil1!$F$10:$O$24,4),IF(AND(H66>=1972,H66<1977),VLOOKUP(I66,Feuil1!$F$10:$O$24,3),IF(AND(H66>=1977,H66<1982),VLOOKUP(I66,Feuil1!$F$10:$O$24,2),VLOOKUP(I66,Feuil1!$F$10:$O$24,2)))))))))) ->  | AA66: =T66-HLOOKUP(Y66,Feuil1!$C$1:$BF$9,2,FALSE) ->  | AB66: =T66-HLOOKUP(Y66,Feuil1!$C$1:$BF$9,3,FALSE) ->  | AC66: =T66-HLOOKUP(Y66,Feuil1!$C$1:$BF$9,4,FALSE) ->  | AD66: =T66-HLOOKUP(Y66,Feuil1!$C$1:$BF$9,5,FALSE) ->  | AE66: =T66-HLOOKUP(Y66,Feuil1!$C$1:$BF$9,6,FALSE) ->  | AF66: =T66-HLOOKUP(Y66,Feuil1!$C$1:$BF$9,7,FALSE) ->  | AG66: =T66-HLOOKUP(Y66,Feuil1!$C$1:$BF$9,8,FALSE) ->  | AH66: =T66-HLOOKUP(Y66,Feuil1!$C$1:$BF$9,9,FALSE) ->  | AQ66: 2016 | AS66: =IF(AQ66,VLOOKUP(AQ66,HOM!$AR$551:$AS$606,2)) -> 3.571
A67: F | X67: FALSE | Y67: =IF(AND(H67<1936),VLOOKUP(I67,Feuil1!$F$10:$O$24,9),IF(AND(H67>=1942,H67<1947),VLOOKUP(I67,Feuil1!$F$10:$O$24,9),IF(AND(H67>=1947,H67<1952),VLOOKUP(I67,Feuil1!$F$10:$O$24,8),IF(AND(H67>=1952,H67<1957),VLOOKUP(I67,Feuil1!$F$10:$O$24,7),IF(AND(H67>=1957,H67<1962),VLOOKUP(I67,Feuil1!$F$10:$O$24,6),IF(AND(H67>=1962,H67<1967),VLOOKUP(I67,Feuil1!$F$10:$O$24,5),IF(AND(H67>=1967,H67<1972),VLOOKUP(I67,Feuil1!$F$10:$O$24,4),IF(AND(H67>=1972,H67<1977),VLOOKUP(I67,Feuil1!$F$10:$O$24,3),IF(AND(H67>=1977,H67<1982),VLOOKUP(I67,Feuil1!$F$10:$O$24,2),VLOOKUP(I67,Feuil1!$F$10:$O$24,2)))))))))) ->  | AA67: =T67-HLOOKUP(Y67,Feuil1!$C$1:$BF$9,2,FALSE) ->  | AB67: =T67-HLOOKUP(Y67,Feuil1!$C$1:$BF$9,3,FALSE) ->  | AC67: =T67-HLOOKUP(Y67,Feuil1!$C$1:$BF$9,4,FALSE) ->  | AD67: =T67-HLOOKUP(Y67,Feuil1!$C$1:$BF$9,5,FALSE) ->  | AE67: =T67-HLOOKUP(Y67,Feuil1!$C$1:$BF$9,6,FALSE) ->  | AF67: =T67-HLOOKUP(Y67,Feuil1!$C$1:$BF$9,7,FALSE) ->  | AG67: =T67-HLOOKUP(Y67,Feuil1!$C$1:$BF$9,8,FALSE) ->  | AH67: =T67-HLOOKUP(Y67,Feuil1!$C$1:$BF$9,9,FALSE) ->  | AQ67: 2016 | AS67: =IF(AQ67,VLOOKUP(AQ67,HOM!$AR$551:$AS$606,2)) -> 3.571
A68: F | X68: FALSE | Y68: =IF(AND(H68<1936),VLOOKUP(I68,Feuil1!$F$10:$O$24,9),IF(AND(H68>=1942,H68<1947),VLOOKUP(I68,Feuil1!$F$10:$O$24,9),IF(AND(H68>=1947,H68<1952),VLOOKUP(I68,Feuil1!$F$10:$O$24,8),IF(AND(H68>=1952,H68<1957),VLOOKUP(I68,Feuil1!$F$10:$O$24,7),IF(AND(H68>=1957,H68<1962),VLOOKUP(I68,Feuil1!$F$10:$O$24,6),IF(AND(H68>=1962,H68<1967),VLOOKUP(I68,Feuil1!$F$10:$O$24,5),IF(AND(H68>=1967,H68<1972),VLOOKUP(I68,Feuil1!$F$10:$O$24,4),IF(AND(H68>=1972,H68<1977),VLOOKUP(I68,Feuil1!$F$10:$O$24,3),IF(AND(H68>=1977,H68<1982),VLOOKUP(I68,Feuil1!$F$10:$O$24,2),VLOOKUP(I68,Feuil1!$F$10:$O$24,2)))))))))) ->  | AA68: =T68-HLOOKUP(Y68,Feuil1!$C$1:$BF$9,2,FALSE) ->  | AB68: =T68-HLOOKUP(Y68,Feuil1!$C$1:$BF$9,3,FALSE) ->  | AC68: =T68-HLOOKUP(Y68,Feuil1!$C$1:$BF$9,4,FALSE) ->  | AD68: =T68-HLOOKUP(Y68,Feuil1!$C$1:$BF$9,5,FALSE) ->  | AE68: =T68-HLOOKUP(Y68,Feuil1!$C$1:$BF$9,6,FALSE) ->  | AF68: =T68-HLOOKUP(Y68,Feuil1!$C$1:$BF$9,7,FALSE) ->  | AG68: =T68-HLOOKUP(Y68,Feuil1!$C$1:$BF$9,8,FALSE) ->  | AH68: =T68-HLOOKUP(Y68,Feuil1!$C$1:$BF$9,9,FALSE) ->  | AQ68: 2016 | AS68: =IF(AQ68,VLOOKUP(AQ68,HOM!$AR$551:$AS$606,2)) -> 3.571
A69: F | X69: FALSE | Y69: =IF(AND(H69<1936),VLOOKUP(I69,Feuil1!$F$10:$O$24,9),IF(AND(H69>=1942,H69<1947),VLOOKUP(I69,Feuil1!$F$10:$O$24,9),IF(AND(H69>=1947,H69<1952),VLOOKUP(I69,Feuil1!$F$10:$O$24,8),IF(AND(H69>=1952,H69<1957),VLOOKUP(I69,Feuil1!$F$10:$O$24,7),IF(AND(H69>=1957,H69<1962),VLOOKUP(I69,Feuil1!$F$10:$O$24,6),IF(AND(H69>=1962,H69<1967),VLOOKUP(I69,Feuil1!$F$10:$O$24,5),IF(AND(H69>=1967,H69<1972),VLOOKUP(I69,Feuil1!$F$10:$O$24,4),IF(AND(H69>=1972,H69<1977),VLOOKUP(I69,Feuil1!$F$10:$O$24,3),IF(AND(H69>=1977,H69<1982),VLOOKUP(I69,Feuil1!$F$10:$O$24,2),VLOOKUP(I69,Feuil1!$F$10:$O$24,2)))))))))) ->  | AA69: =T69-HLOOKUP(Y69,Feuil1!$C$1:$BF$9,2,FALSE) ->  | AB69: =T69-HLOOKUP(Y69,Feuil1!$C$1:$BF$9,3,FALSE) ->  | AC69: =T69-HLOOKUP(Y69,Feuil1!$C$1:$BF$9,4,FALSE) ->  | AD69: =T69-HLOOKUP(Y69,Feuil1!$C$1:$BF$9,5,FALSE) ->  | AE69: =T69-HLOOKUP(Y69,Feuil1!$C$1:$BF$9,6,FALSE) ->  | AF69: =T69-HLOOKUP(Y69,Feuil1!$C$1:$BF$9,7,FALSE) ->  | AG69: =T69-HLOOKUP(Y69,Feuil1!$C$1:$BF$9,8,FALSE) ->  | AH69: =T69-HLOOKUP(Y69,Feuil1!$C$1:$BF$9,9,FALSE) ->  | AQ69: =2016-H69 -> 2016 | AS69: =IF(AQ69,VLOOKUP(AQ69,HOM!$AR$551:$AS$606,2)) -> 3.571
A70: F | X70: FALSE | Y70: =IF(AND(H70<1936),VLOOKUP(I70,Feuil1!$F$10:$O$24,9),IF(AND(H70>=1942,H70<1947),VLOOKUP(I70,Feuil1!$F$10:$O$24,9),IF(AND(H70>=1947,H70<1952),VLOOKUP(I70,Feuil1!$F$10:$O$24,8),IF(AND(H70>=1952,H70<1957),VLOOKUP(I70,Feuil1!$F$10:$O$24,7),IF(AND(H70>=1957,H70<1962),VLOOKUP(I70,Feuil1!$F$10:$O$24,6),IF(AND(H70>=1962,H70<1967),VLOOKUP(I70,Feuil1!$F$10:$O$24,5),IF(AND(H70>=1967,H70<1972),VLOOKUP(I70,Feuil1!$F$10:$O$24,4),IF(AND(H70>=1972,H70<1977),VLOOKUP(I70,Feuil1!$F$10:$O$24,3),IF(AND(H70>=1977,H70<1982),VLOOKUP(I70,Feuil1!$F$10:$O$24,2),VLOOKUP(I70,Feuil1!$F$10:$O$24,2)))))))))) ->  | AA70: =T70-HLOOKUP(Y70,Feuil1!$C$1:$BF$9,2,FALSE) ->  | AB70: =T70-HLOOKUP(Y70,Feuil1!$C$1:$BF$9,3,FALSE) ->  | AC70: =T70-HLOOKUP(Y70,Feuil1!$C$1:$BF$9,4,FALSE) ->  | AD70: =T70-HLOOKUP(Y70,Feuil1!$C$1:$BF$9,5,FALSE) ->  | AE70: =T70-HLOOKUP(Y70,Feuil1!$C$1:$BF$9,6,FALSE) ->  | AF70: =T70-HLOOKUP(Y70,Feuil1!$C$1:$BF$9,7,FALSE) ->  | AG70: =T70-HLOOKUP(Y70,Feuil1!$C$1:$BF$9,8,FALSE) ->  | AH70: =T70-HLOOKUP(Y70,Feuil1!$C$1:$BF$9,9,FALSE) ->  | AQ70: 2016 | AS70: =IF(AQ70,VLOOKUP(AQ70,HOM!$AR$551:$AS$606,2)) -> 3.571
A71: F | X71: FALSE | Y71: =IF(AND(H71<1936),VLOOKUP(I71,Feuil1!$F$10:$O$24,9),IF(AND(H71>=1942,H71<1947),VLOOKUP(I71,Feuil1!$F$10:$O$24,9),IF(AND(H71>=1947,H71<1952),VLOOKUP(I71,Feuil1!$F$10:$O$24,8),IF(AND(H71>=1952,H71<1957),VLOOKUP(I71,Feuil1!$F$10:$O$24,7),IF(AND(H71>=1957,H71<1962),VLOOKUP(I71,Feuil1!$F$10:$O$24,6),IF(AND(H71>=1962,H71<1967),VLOOKUP(I71,Feuil1!$F$10:$O$24,5),IF(AND(H71>=1967,H71<1972),VLOOKUP(I71,Feuil1!$F$10:$O$24,4),IF(AND(H71>=1972,H71<1977),VLOOKUP(I71,Feuil1!$F$10:$O$24,3),IF(AND(H71>=1977,H71<1982),VLOOKUP(I71,Feuil1!$F$10:$O$24,2),VLOOKUP(I71,Feuil1!$F$10:$O$24,2)))))))))) ->  | AA71: =T71-HLOOKUP(Y71,Feuil1!$C$1:$BF$9,2,FALSE) ->  | AB71: =T71-HLOOKUP(Y71,Feuil1!$C$1:$BF$9,3,FALSE) ->  | AC71: =T71-HLOOKUP(Y71,Feuil1!$C$1:$BF$9,4,FALSE) ->  | AD71: =T71-HLOOKUP(Y71,Feuil1!$C$1:$BF$9,5,FALSE) ->  | AE71: =T71-HLOOKUP(Y71,Feuil1!$C$1:$BF$9,6,FALSE) ->  | AF71: =T71-HLOOKUP(Y71,Feuil1!$C$1:$BF$9,7,FALSE) ->  | AG71: =T71-HLOOKUP(Y71,Feuil1!$C$1:$BF$9,8,FALSE) ->  | AH71: =T71-HLOOKUP(Y71,Feuil1!$C$1:$BF$9,9,FALSE) ->  | AQ71: 2016 | AS71: =IF(AQ71,VLOOKUP(AQ71,HOM!$AR$551:$AS$606,2)) -> 3.571
A72: F | X72: FALSE | Y72: =IF(AND(H72<1936),VLOOKUP(I72,Feuil1!$F$10:$O$24,9),IF(AND(H72>=1942,H72<1947),VLOOKUP(I72,Feuil1!$F$10:$O$24,9),IF(AND(H72>=1947,H72<1952),VLOOKUP(I72,Feuil1!$F$10:$O$24,8),IF(AND(H72>=1952,H72<1957),VLOOKUP(I72,Feuil1!$F$10:$O$24,7),IF(AND(H72>=1957,H72<1962),VLOOKUP(I72,Feuil1!$F$10:$O$24,6),IF(AND(H72>=1962,H72<1967),VLOOKUP(I72,Feuil1!$F$10:$O$24,5),IF(AND(H72>=1967,H72<1972),VLOOKUP(I72,Feuil1!$F$10:$O$24,4),IF(AND(H72>=1972,H72<1977),VLOOKUP(I72,Feuil1!$F$10:$O$24,3),IF(AND(H72>=1977,H72<1982),VLOOKUP(I72,Feuil1!$F$10:$O$24,2),VLOOKUP(I72,Feuil1!$F$10:$O$24,2)))))))))) ->  | AA72: =T72-HLOOKUP(Y72,Feuil1!$C$1:$BF$9,2,FALSE) ->  | AB72: =T72-HLOOKUP(Y72,Feuil1!$C$1:$BF$9,3,FALSE) ->  | AC72: =T72-HLOOKUP(Y72,Feuil1!$C$1:$BF$9,4,FALSE) ->  | AD72: =T72-HLOOKUP(Y72,Feuil1!$C$1:$BF$9,5,FALSE) ->  | AE72: =T72-HLOOKUP(Y72,Feuil1!$C$1:$BF$9,6,FALSE) ->  | AF72: =T72-HLOOKUP(Y72,Feuil1!$C$1:$BF$9,7,FALSE) ->  | AG72: =T72-HLOOKUP(Y72,Feuil1!$C$1:$BF$9,8,FALSE) ->  | AH72: =T72-HLOOKUP(Y72,Feuil1!$C$1:$BF$9,9,FALSE) ->  | AQ72: 2016 | AS72: =IF(AQ72,VLOOKUP(AQ72,HOM!$AR$551:$AS$606,2)) -> 3.571
A73: F | X73: FALSE | Y73: =IF(AND(H73<1936),VLOOKUP(I73,Feuil1!$F$10:$O$24,9),IF(AND(H73>=1942,H73<1947),VLOOKUP(I73,Feuil1!$F$10:$O$24,9),IF(AND(H73>=1947,H73<1952),VLOOKUP(I73,Feuil1!$F$10:$O$24,8),IF(AND(H73>=1952,H73<1957),VLOOKUP(I73,Feuil1!$F$10:$O$24,7),IF(AND(H73>=1957,H73<1962),VLOOKUP(I73,Feuil1!$F$10:$O$24,6),IF(AND(H73>=1962,H73<1967),VLOOKUP(I73,Feuil1!$F$10:$O$24,5),IF(AND(H73>=1967,H73<1972),VLOOKUP(I73,Feuil1!$F$10:$O$24,4),IF(AND(H73>=1972,H73<1977),VLOOKUP(I73,Feuil1!$F$10:$O$24,3),IF(AND(H73>=1977,H73<1982),VLOOKUP(I73,Feuil1!$F$10:$O$24,2),VLOOKUP(I73,Feuil1!$F$10:$O$24,2)))))))))) ->  | AA73: =T73-HLOOKUP(Y73,Feuil1!$C$1:$BF$9,2,FALSE) ->  | AB73: =T73-HLOOKUP(Y73,Feuil1!$C$1:$BF$9,3,FALSE) ->  | AC73: =T73-HLOOKUP(Y73,Feuil1!$C$1:$BF$9,4,FALSE) ->  | AD73: =T73-HLOOKUP(Y73,Feuil1!$C$1:$BF$9,5,FALSE) ->  | AE73: =T73-HLOOKUP(Y73,Feuil1!$C$1:$BF$9,6,FALSE) ->  | AF73: =T73-HLOOKUP(Y73,Feuil1!$C$1:$BF$9,7,FALSE) ->  | AG73: =T73-HLOOKUP(Y73,Feuil1!$C$1:$BF$9,8,FALSE) ->  | AH73: =T73-HLOOKUP(Y73,Feuil1!$C$1:$BF$9,9,FALSE) ->  | AQ73: 2016 | AS73: =IF(AQ73,VLOOKUP(AQ73,HOM!$AR$551:$AS$606,2)) -> 3.571
A74: F | X74: FALSE | Y74: =IF(AND(H74<1936),VLOOKUP(I74,Feuil1!$F$10:$O$24,9),IF(AND(H74>=1942,H74<1947),VLOOKUP(I74,Feuil1!$F$10:$O$24,9),IF(AND(H74>=1947,H74<1952),VLOOKUP(I74,Feuil1!$F$10:$O$24,8),IF(AND(H74>=1952,H74<1957),VLOOKUP(I74,Feuil1!$F$10:$O$24,7),IF(AND(H74>=1957,H74<1962),VLOOKUP(I74,Feuil1!$F$10:$O$24,6),IF(AND(H74>=1962,H74<1967),VLOOKUP(I74,Feuil1!$F$10:$O$24,5),IF(AND(H74>=1967,H74<1972),VLOOKUP(I74,Feuil1!$F$10:$O$24,4),IF(AND(H74>=1972,H74<1977),VLOOKUP(I74,Feuil1!$F$10:$O$24,3),IF(AND(H74>=1977,H74<1982),VLOOKUP(I74,Feuil1!$F$10:$O$24,2),VLOOKUP(I74,Feuil1!$F$10:$O$24,2)))))))))) ->  | AA74: =T74-HLOOKUP(Y74,Feuil1!$C$1:$BF$9,2,FALSE) ->  | AB74: =T74-HLOOKUP(Y74,Feuil1!$C$1:$BF$9,3,FALSE) ->  | AC74: =T74-HLOOKUP(Y74,Feuil1!$C$1:$BF$9,4,FALSE) ->  | AD74: =T74-HLOOKUP(Y74,Feuil1!$C$1:$BF$9,5,FALSE) ->  | AE74: =T74-HLOOKUP(Y74,Feuil1!$C$1:$BF$9,6,FALSE) ->  | AF74: =T74-HLOOKUP(Y74,Feuil1!$C$1:$BF$9,7,FALSE) ->  | AG74: =T74-HLOOKUP(Y74,Feuil1!$C$1:$BF$9,8,FALSE) ->  | AH74: =T74-HLOOKUP(Y74,Feuil1!$C$1:$BF$9,9,FALSE) ->  | AQ74: 2016 | AS74: =IF(AQ74,VLOOKUP(AQ74,HOM!$AR$551:$AS$606,2)) -> 3.571
A75: F | X75: FALSE | Y75: =IF(AND(H75<1936),VLOOKUP(I75,Feuil1!$F$10:$O$24,9),IF(AND(H75>=1942,H75<1947),VLOOKUP(I75,Feuil1!$F$10:$O$24,9),IF(AND(H75>=1947,H75<1952),VLOOKUP(I75,Feuil1!$F$10:$O$24,8),IF(AND(H75>=1952,H75<1957),VLOOKUP(I75,Feuil1!$F$10:$O$24,7),IF(AND(H75>=1957,H75<1962),VLOOKUP(I75,Feuil1!$F$10:$O$24,6),IF(AND(H75>=1962,H75<1967),VLOOKUP(I75,Feuil1!$F$10:$O$24,5),IF(AND(H75>=1967,H75<1972),VLOOKUP(I75,Feuil1!$F$10:$O$24,4),IF(AND(H75>=1972,H75<1977),VLOOKUP(I75,Feuil1!$F$10:$O$24,3),IF(AND(H75>=1977,H75<1982),VLOOKUP(I75,Feuil1!$F$10:$O$24,2),VLOOKUP(I75,Feuil1!$F$10:$O$24,2)))))))))) ->  | AA75: =T75-HLOOKUP(Y75,Feuil1!$C$1:$BF$9,2,FALSE) ->  | AB75: =T75-HLOOKUP(Y75,Feuil1!$C$1:$BF$9,3,FALSE) ->  | AC75: =T75-HLOOKUP(Y75,Feuil1!$C$1:$BF$9,4,FALSE) ->  | AD75: =T75-HLOOKUP(Y75,Feuil1!$C$1:$BF$9,5,FALSE) ->  | AE75: =T75-HLOOKUP(Y75,Feuil1!$C$1:$BF$9,6,FALSE) ->  | AF75: =T75-HLOOKUP(Y75,Feuil1!$C$1:$BF$9,7,FALSE) ->  | AG75: =T75-HLOOKUP(Y75,Feuil1!$C$1:$BF$9,8,FALSE) ->  | AH75: =T75-HLOOKUP(Y75,Feuil1!$C$1:$BF$9,9,FALSE) ->  | AQ75: 2016 | AS75: =IF(AQ75,VLOOKUP(AQ75,HOM!$AR$551:$AS$606,2)) -> 3.571
A76: F | X76: FALSE | Y76: =IF(AND(H76<1936),VLOOKUP(I76,Feuil1!$F$10:$O$24,9),IF(AND(H76>=1942,H76<1947),VLOOKUP(I76,Feuil1!$F$10:$O$24,9),IF(AND(H76>=1947,H76<1952),VLOOKUP(I76,Feuil1!$F$10:$O$24,8),IF(AND(H76>=1952,H76<1957),VLOOKUP(I76,Feuil1!$F$10:$O$24,7),IF(AND(H76>=1957,H76<1962),VLOOKUP(I76,Feuil1!$F$10:$O$24,6),IF(AND(H76>=1962,H76<1967),VLOOKUP(I76,Feuil1!$F$10:$O$24,5),IF(AND(H76>=1967,H76<1972),VLOOKUP(I76,Feuil1!$F$10:$O$24,4),IF(AND(H76>=1972,H76<1977),VLOOKUP(I76,Feuil1!$F$10:$O$24,3),IF(AND(H76>=1977,H76<1982),VLOOKUP(I76,Feuil1!$F$10:$O$24,2),VLOOKUP(I76,Feuil1!$F$10:$O$24,2)))))))))) ->  | AA76: =T76-HLOOKUP(Y76,Feuil1!$C$1:$BF$9,2,FALSE) ->  | AB76: =T76-HLOOKUP(Y76,Feuil1!$C$1:$BF$9,3,FALSE) ->  | AC76: =T76-HLOOKUP(Y76,Feuil1!$C$1:$BF$9,4,FALSE) ->  | AD76: =T76-HLOOKUP(Y76,Feuil1!$C$1:$BF$9,5,FALSE) ->  | AE76: =T76-HLOOKUP(Y76,Feuil1!$C$1:$BF$9,6,FALSE) ->  | AF76: =T76-HLOOKUP(Y76,Feuil1!$C$1:$BF$9,7,FALSE) ->  | AG76: =T76-HLOOKUP(Y76,Feuil1!$C$1:$BF$9,8,FALSE) ->  | AH76: =T76-HLOOKUP(Y76,Feuil1!$C$1:$BF$9,9,FALSE) ->  | AQ76: 2016 | AS76: =IF(AQ76,VLOOKUP(AQ76,HOM!$AR$551:$AS$606,2)) -> 3.571
A77: F | X77: FALSE | Y77: =IF(AND(H77<1936),VLOOKUP(I77,Feuil1!$F$10:$O$24,9),IF(AND(H77>=1942,H77<1947),VLOOKUP(I77,Feuil1!$F$10:$O$24,9),IF(AND(H77>=1947,H77<1952),VLOOKUP(I77,Feuil1!$F$10:$O$24,8),IF(AND(H77>=1952,H77<1957),VLOOKUP(I77,Feuil1!$F$10:$O$24,7),IF(AND(H77>=1957,H77<1962),VLOOKUP(I77,Feuil1!$F$10:$O$24,6),IF(AND(H77>=1962,H77<1967),VLOOKUP(I77,Feuil1!$F$10:$O$24,5),IF(AND(H77>=1967,H77<1972),VLOOKUP(I77,Feuil1!$F$10:$O$24,4),IF(AND(H77>=1972,H77<1977),VLOOKUP(I77,Feuil1!$F$10:$O$24,3),IF(AND(H77>=1977,H77<1982),VLOOKUP(I77,Feuil1!$F$10:$O$24,2),VLOOKUP(I77,Feuil1!$F$10:$O$24,2)))))))))) ->  | AA77: =T77-HLOOKUP(Y77,Feuil1!$C$1:$BF$9,2,FALSE) ->  | AB77: =T77-HLOOKUP(Y77,Feuil1!$C$1:$BF$9,3,FALSE) ->  | AC77: =T77-HLOOKUP(Y77,Feuil1!$C$1:$BF$9,4,FALSE) ->  | AD77: =T77-HLOOKUP(Y77,Feuil1!$C$1:$BF$9,5,FALSE) ->  | AE77: =T77-HLOOKUP(Y77,Feuil1!$C$1:$BF$9,6,FALSE) ->  | AF77: =T77-HLOOKUP(Y77,Feuil1!$C$1:$BF$9,7,FALSE) ->  | AG77: =T77-HLOOKUP(Y77,Feuil1!$C$1:$BF$9,8,FALSE) ->  | AH77: =T77-HLOOKUP(Y77,Feuil1!$C$1:$BF$9,9,FALSE) ->  | AQ77: 2016 | AS77: =IF(AQ77,VLOOKUP(AQ77,HOM!$AR$551:$AS$606,2)) -> 3.571
A78: F | X78: FALSE | Y78: =IF(AND(H78<1936),VLOOKUP(I78,Feuil1!$F$10:$O$24,9),IF(AND(H78>=1942,H78<1947),VLOOKUP(I78,Feuil1!$F$10:$O$24,9),IF(AND(H78>=1947,H78<1952),VLOOKUP(I78,Feuil1!$F$10:$O$24,8),IF(AND(H78>=1952,H78<1957),VLOOKUP(I78,Feuil1!$F$10:$O$24,7),IF(AND(H78>=1957,H78<1962),VLOOKUP(I78,Feuil1!$F$10:$O$24,6),IF(AND(H78>=1962,H78<1967),VLOOKUP(I78,Feuil1!$F$10:$O$24,5),IF(AND(H78>=1967,H78<1972),VLOOKUP(I78,Feuil1!$F$10:$O$24,4),IF(AND(H78>=1972,H78<1977),VLOOKUP(I78,Feuil1!$F$10:$O$24,3),IF(AND(H78>=1977,H78<1982),VLOOKUP(I78,Feuil1!$F$10:$O$24,2),VLOOKUP(I78,Feuil1!$F$10:$O$24,2)))))))))) ->  | AA78: =T78-HLOOKUP(Y78,Feuil1!$C$1:$BF$9,2,FALSE) ->  | AB78: =T78-HLOOKUP(Y78,Feuil1!$C$1:$BF$9,3,FALSE) ->  | AC78: =T78-HLOOKUP(Y78,Feuil1!$C$1:$BF$9,4,FALSE) ->  | AD78: =T78-HLOOKUP(Y78,Feuil1!$C$1:$BF$9,5,FALSE) ->  | AE78: =T78-HLOOKUP(Y78,Feuil1!$C$1:$BF$9,6,FALSE) ->  | AF78: =T78-HLOOKUP(Y78,Feuil1!$C$1:$BF$9,7,FALSE) ->  | AG78: =T78-HLOOKUP(Y78,Feuil1!$C$1:$BF$9,8,FALSE) ->  | AH78: =T78-HLOOKUP(Y78,Feuil1!$C$1:$BF$9,9,FALSE) ->  | AQ78: 2016 | AS78: =IF(AQ78,VLOOKUP(AQ78,HOM!$AR$551:$AS$606,2)) -> 3.571
A79: F | X79: FALSE | Y79: =IF(AND(H79<1936),VLOOKUP(I79,Feuil1!$F$10:$O$24,9),IF(AND(H79>=1942,H79<1947),VLOOKUP(I79,Feuil1!$F$10:$O$24,9),IF(AND(H79>=1947,H79<1952),VLOOKUP(I79,Feuil1!$F$10:$O$24,8),IF(AND(H79>=1952,H79<1957),VLOOKUP(I79,Feuil1!$F$10:$O$24,7),IF(AND(H79>=1957,H79<1962),VLOOKUP(I79,Feuil1!$F$10:$O$24,6),IF(AND(H79>=1962,H79<1967),VLOOKUP(I79,Feuil1!$F$10:$O$24,5),IF(AND(H79>=1967,H79<1972),VLOOKUP(I79,Feuil1!$F$10:$O$24,4),IF(AND(H79>=1972,H79<1977),VLOOKUP(I79,Feuil1!$F$10:$O$24,3),IF(AND(H79>=1977,H79<1982),VLOOKUP(I79,Feuil1!$F$10:$O$24,2),VLOOKUP(I79,Feuil1!$F$10:$O$24,2)))))))))) ->  | AA79: =T79-HLOOKUP(Y79,Feuil1!$C$1:$BF$9,2,FALSE) ->  | AB79: =T79-HLOOKUP(Y79,Feuil1!$C$1:$BF$9,3,FALSE) ->  | AC79: =T79-HLOOKUP(Y79,Feuil1!$C$1:$BF$9,4,FALSE) ->  | AD79: =T79-HLOOKUP(Y79,Feuil1!$C$1:$BF$9,5,FALSE) ->  | AE79: =T79-HLOOKUP(Y79,Feuil1!$C$1:$BF$9,6,FALSE) ->  | AF79: =T79-HLOOKUP(Y79,Feuil1!$C$1:$BF$9,7,FALSE) ->  | AG79: =T79-HLOOKUP(Y79,Feuil1!$C$1:$BF$9,8,FALSE) ->  | AH79: =T79-HLOOKUP(Y79,Feuil1!$C$1:$BF$9,9,FALSE) ->  | AQ79: 2016 | AS79: =IF(AQ79,VLOOKUP(AQ79,HOM!$AR$551:$AS$606,2)) -> 3.571
A80: F | X80: FALSE | Y80: =IF(AND(H80<1936),VLOOKUP(I80,Feuil1!$F$10:$O$24,9),IF(AND(H80>=1942,H80<1947),VLOOKUP(I80,Feuil1!$F$10:$O$24,9),IF(AND(H80>=1947,H80<1952),VLOOKUP(I80,Feuil1!$F$10:$O$24,8),IF(AND(H80>=1952,H80<1957),VLOOKUP(I80,Feuil1!$F$10:$O$24,7),IF(AND(H80>=1957,H80<1962),VLOOKUP(I80,Feuil1!$F$10:$O$24,6),IF(AND(H80>=1962,H80<1967),VLOOKUP(I80,Feuil1!$F$10:$O$24,5),IF(AND(H80>=1967,H80<1972),VLOOKUP(I80,Feuil1!$F$10:$O$24,4),IF(AND(H80>=1972,H80<1977),VLOOKUP(I80,Feuil1!$F$10:$O$24,3),IF(AND(H80>=1977,H80<1982),VLOOKUP(I80,Feuil1!$F$10:$O$24,2),VLOOKUP(I80,Feuil1!$F$10:$O$24,2)))))))))) ->  | AA80: =T80-HLOOKUP(Y80,Feuil1!$C$1:$BF$9,2,FALSE) ->  | AB80: =T80-HLOOKUP(Y80,Feuil1!$C$1:$BF$9,3,FALSE) ->  | AC80: =T80-HLOOKUP(Y80,Feuil1!$C$1:$BF$9,4,FALSE) ->  | AD80: =T80-HLOOKUP(Y80,Feuil1!$C$1:$BF$9,5,FALSE) ->  | AE80: =T80-HLOOKUP(Y80,Feuil1!$C$1:$BF$9,6,FALSE) ->  | AF80: =T80-HLOOKUP(Y80,Feuil1!$C$1:$BF$9,7,FALSE) ->  | AG80: =T80-HLOOKUP(Y80,Feuil1!$C$1:$BF$9,8,FALSE) ->  | AH80: =T80-HLOOKUP(Y80,Feuil1!$C$1:$BF$9,9,FALSE) ->  | AQ80: 2016 | AS80: =IF(AQ80,VLOOKUP(AQ80,HOM!$AR$551:$AS$606,2)) -> 3.571
A81: F | X81: FALSE | Y81: =IF(AND(H81<1936),VLOOKUP(I81,Feuil1!$F$10:$O$24,9),IF(AND(H81>=1942,H81<1947),VLOOKUP(I81,Feuil1!$F$10:$O$24,9),IF(AND(H81>=1947,H81<1952),VLOOKUP(I81,Feuil1!$F$10:$O$24,8),IF(AND(H81>=1952,H81<1957),VLOOKUP(I81,Feuil1!$F$10:$O$24,7),IF(AND(H81>=1957,H81<1962),VLOOKUP(I81,Feuil1!$F$10:$O$24,6),IF(AND(H81>=1962,H81<1967),VLOOKUP(I81,Feuil1!$F$10:$O$24,5),IF(AND(H81>=1967,H81<1972),VLOOKUP(I81,Feuil1!$F$10:$O$24,4),IF(AND(H81>=1972,H81<1977),VLOOKUP(I81,Feuil1!$F$10:$O$24,3),IF(AND(H81>=1977,H81<1982),VLOOKUP(I81,Feuil1!$F$10:$O$24,2),VLOOKUP(I81,Feuil1!$F$10:$O$24,2)))))))))) ->  | AA81: =T81-HLOOKUP(Y81,Feuil1!$C$1:$BF$9,2,FALSE) ->  | AB81: =T81-HLOOKUP(Y81,Feuil1!$C$1:$BF$9,3,FALSE) ->  | AC81: =T81-HLOOKUP(Y81,Feuil1!$C$1:$BF$9,4,FALSE) ->  | AD81: =T81-HLOOKUP(Y81,Feuil1!$C$1:$BF$9,5,FALSE) ->  | AE81: =T81-HLOOKUP(Y81,Feuil1!$C$1:$BF$9,6,FALSE) ->  | AF81: =T81-HLOOKUP(Y81,Feuil1!$C$1:$BF$9,7,FALSE) ->  | AG81: =T81-HLOOKUP(Y81,Feuil1!$C$1:$BF$9,8,FALSE) ->  | AH81: =T81-HLOOKUP(Y81,Feuil1!$C$1:$BF$9,9,FALSE) ->  | AQ81: 2016 | AS81: =IF(AQ81,VLOOKUP(AQ81,HOM!$AR$551:$AS$606,2)) -> 3.571
A82: F | X82: FALSE | Y82: =IF(AND(H82<1936),VLOOKUP(I82,Feuil1!$F$10:$O$24,9),IF(AND(H82>=1942,H82<1947),VLOOKUP(I82,Feuil1!$F$10:$O$24,9),IF(AND(H82>=1947,H82<1952),VLOOKUP(I82,Feuil1!$F$10:$O$24,8),IF(AND(H82>=1952,H82<1957),VLOOKUP(I82,Feuil1!$F$10:$O$24,7),IF(AND(H82>=1957,H82<1962),VLOOKUP(I82,Feuil1!$F$10:$O$24,6),IF(AND(H82>=1962,H82<1967),VLOOKUP(I82,Feuil1!$F$10:$O$24,5),IF(AND(H82>=1967,H82<1972),VLOOKUP(I82,Feuil1!$F$10:$O$24,4),IF(AND(H82>=1972,H82<1977),VLOOKUP(I82,Feuil1!$F$10:$O$24,3),IF(AND(H82>=1977,H82<1982),VLOOKUP(I82,Feuil1!$F$10:$O$24,2),VLOOKUP(I82,Feuil1!$F$10:$O$24,2)))))))))) ->  | AA82: =T82-HLOOKUP(Y82,Feuil1!$C$1:$BF$9,2,FALSE) ->  | AB82: =T82-HLOOKUP(Y82,Feuil1!$C$1:$BF$9,3,FALSE) ->  | AC82: =T82-HLOOKUP(Y82,Feuil1!$C$1:$BF$9,4,FALSE) ->  | AD82: =T82-HLOOKUP(Y82,Feuil1!$C$1:$BF$9,5,FALSE) ->  | AE82: =T82-HLOOKUP(Y82,Feuil1!$C$1:$BF$9,6,FALSE) ->  | AF82: =T82-HLOOKUP(Y82,Feuil1!$C$1:$BF$9,7,FALSE) ->  | AG82: =T82-HLOOKUP(Y82,Feuil1!$C$1:$BF$9,8,FALSE) ->  | AH82: =T82-HLOOKUP(Y82,Feuil1!$C$1:$BF$9,9,FALSE) ->  | AQ82: 2016 | AS82: =IF(AQ82,VLOOKUP(AQ82,HOM!$AR$551:$AS$606,2)) -> 3.571
A83: F | X83: FALSE | Y83: =IF(AND(H83<1936),VLOOKUP(I83,Feuil1!$F$10:$O$24,9),IF(AND(H83>=1942,H83<1947),VLOOKUP(I83,Feuil1!$F$10:$O$24,9),IF(AND(H83>=1947,H83<1952),VLOOKUP(I83,Feuil1!$F$10:$O$24,8),IF(AND(H83>=1952,H83<1957),VLOOKUP(I83,Feuil1!$F$10:$O$24,7),IF(AND(H83>=1957,H83<1962),VLOOKUP(I83,Feuil1!$F$10:$O$24,6),IF(AND(H83>=1962,H83<1967),VLOOKUP(I83,Feuil1!$F$10:$O$24,5),IF(AND(H83>=1967,H83<1972),VLOOKUP(I83,Feuil1!$F$10:$O$24,4),IF(AND(H83>=1972,H83<1977),VLOOKUP(I83,Feuil1!$F$10:$O$24,3),IF(AND(H83>=1977,H83<1982),VLOOKUP(I83,Feuil1!$F$10:$O$24,2),VLOOKUP(I83,Feuil1!$F$10:$O$24,2)))))))))) ->  | AA83: =T83-HLOOKUP(Y83,Feuil1!$C$1:$BF$9,2,FALSE) ->  | AB83: =T83-HLOOKUP(Y83,Feuil1!$C$1:$BF$9,3,FALSE) ->  | AC83: =T83-HLOOKUP(Y83,Feuil1!$C$1:$BF$9,4,FALSE) ->  | AD83: =T83-HLOOKUP(Y83,Feuil1!$C$1:$BF$9,5,FALSE) ->  | AE83: =T83-HLOOKUP(Y83,Feuil1!$C$1:$BF$9,6,FALSE) ->  | AF83: =T83-HLOOKUP(Y83,Feuil1!$C$1:$BF$9,7,FALSE) ->  | AG83: =T83-HLOOKUP(Y83,Feuil1!$C$1:$BF$9,8,FALSE) ->  | AH83: =T83-HLOOKUP(Y83,Feuil1!$C$1:$BF$9,9,FALSE) ->  | AQ83: 2016 | AS83: =IF(AQ83,VLOOKUP(AQ83,HOM!$AR$551:$AS$606,2)) -> 3.571
A84: F | X84: FALSE | Y84: =IF(AND(H84<1936),VLOOKUP(I84,Feuil1!$F$10:$O$24,9),IF(AND(H84>=1942,H84<1947),VLOOKUP(I84,Feuil1!$F$10:$O$24,9),IF(AND(H84>=1947,H84<1952),VLOOKUP(I84,Feuil1!$F$10:$O$24,8),IF(AND(H84>=1952,H84<1957),VLOOKUP(I84,Feuil1!$F$10:$O$24,7),IF(AND(H84>=1957,H84<1962),VLOOKUP(I84,Feuil1!$F$10:$O$24,6),IF(AND(H84>=1962,H84<1967),VLOOKUP(I84,Feuil1!$F$10:$O$24,5),IF(AND(H84>=1967,H84<1972),VLOOKUP(I84,Feuil1!$F$10:$O$24,4),IF(AND(H84>=1972,H84<1977),VLOOKUP(I84,Feuil1!$F$10:$O$24,3),IF(AND(H84>=1977,H84<1982),VLOOKUP(I84,Feuil1!$F$10:$O$24,2),VLOOKUP(I84,Feuil1!$F$10:$O$24,2)))))))))) ->  | AA84: =T84-HLOOKUP(Y84,Feuil1!$C$1:$BF$9,2,FALSE) ->  | AB84: =T84-HLOOKUP(Y84,Feuil1!$C$1:$BF$9,3,FALSE) ->  | AC84: =T84-HLOOKUP(Y84,Feuil1!$C$1:$BF$9,4,FALSE) ->  | AD84: =T84-HLOOKUP(Y84,Feuil1!$C$1:$BF$9,5,FALSE) ->  | AE84: =T84-HLOOKUP(Y84,Feuil1!$C$1:$BF$9,6,FALSE) ->  | AF84: =T84-HLOOKUP(Y84,Feuil1!$C$1:$BF$9,7,FALSE) ->  | AG84: =T84-HLOOKUP(Y84,Feuil1!$C$1:$BF$9,8,FALSE) ->  | AH84: =T84-HLOOKUP(Y84,Feuil1!$C$1:$BF$9,9,FALSE) ->  | AQ84: 2016 | AS84: =IF(AQ84,VLOOKUP(AQ84,HOM!$AR$551:$AS$606,2)) -> 3.571
A85: F | X85: FALSE | Y85: =IF(AND(H85<1936),VLOOKUP(I85,Feuil1!$F$10:$O$24,9),IF(AND(H85>=1942,H85<1947),VLOOKUP(I85,Feuil1!$F$10:$O$24,9),IF(AND(H85>=1947,H85<1952),VLOOKUP(I85,Feuil1!$F$10:$O$24,8),IF(AND(H85>=1952,H85<1957),VLOOKUP(I85,Feuil1!$F$10:$O$24,7),IF(AND(H85>=1957,H85<1962),VLOOKUP(I85,Feuil1!$F$10:$O$24,6),IF(AND(H85>=1962,H85<1967),VLOOKUP(I85,Feuil1!$F$10:$O$24,5),IF(AND(H85>=1967,H85<1972),VLOOKUP(I85,Feuil1!$F$10:$O$24,4),IF(AND(H85>=1972,H85<1977),VLOOKUP(I85,Feuil1!$F$10:$O$24,3),IF(AND(H85>=1977,H85<1982),VLOOKUP(I85,Feuil1!$F$10:$O$24,2),VLOOKUP(I85,Feuil1!$F$10:$O$24,2)))))))))) ->  | AA85: =T85-HLOOKUP(Y85,Feuil1!$C$1:$BF$9,2,FALSE) ->  | AB85: =T85-HLOOKUP(Y85,Feuil1!$C$1:$BF$9,3,FALSE) ->  | AC85: =T85-HLOOKUP(Y85,Feuil1!$C$1:$BF$9,4,FALSE) ->  | AD85: =T85-HLOOKUP(Y85,Feuil1!$C$1:$BF$9,5,FALSE) ->  | AE85: =T85-HLOOKUP(Y85,Feuil1!$C$1:$BF$9,6,FALSE) ->  | AF85: =T85-HLOOKUP(Y85,Feuil1!$C$1:$BF$9,7,FALSE) ->  | AG85: =T85-HLOOKUP(Y85,Feuil1!$C$1:$BF$9,8,FALSE) ->  | AH85: =T85-HLOOKUP(Y85,Feuil1!$C$1:$BF$9,9,FALSE) ->  | AQ85: 2016 | AS85: =IF(AQ85,VLOOKUP(AQ85,HOM!$AR$551:$AS$606,2)) -> 3.571
A86: F | X86: FALSE | Y86: =IF(AND(H86<1936),VLOOKUP(I86,Feuil1!$F$10:$O$24,9),IF(AND(H86>=1942,H86<1947),VLOOKUP(I86,Feuil1!$F$10:$O$24,9),IF(AND(H86>=1947,H86<1952),VLOOKUP(I86,Feuil1!$F$10:$O$24,8),IF(AND(H86>=1952,H86<1957),VLOOKUP(I86,Feuil1!$F$10:$O$24,7),IF(AND(H86>=1957,H86<1962),VLOOKUP(I86,Feuil1!$F$10:$O$24,6),IF(AND(H86>=1962,H86<1967),VLOOKUP(I86,Feuil1!$F$10:$O$24,5),IF(AND(H86>=1967,H86<1972),VLOOKUP(I86,Feuil1!$F$10:$O$24,4),IF(AND(H86>=1972,H86<1977),VLOOKUP(I86,Feuil1!$F$10:$O$24,3),IF(AND(H86>=1977,H86<1982),VLOOKUP(I86,Feuil1!$F$10:$O$24,2),VLOOKUP(I86,Feuil1!$F$10:$O$24,2)))))))))) ->  | AA86: =T86-HLOOKUP(Y86,Feuil1!$C$1:$BF$9,2,FALSE) ->  | AB86: =T86-HLOOKUP(Y86,Feuil1!$C$1:$BF$9,3,FALSE) ->  | AC86: =T86-HLOOKUP(Y86,Feuil1!$C$1:$BF$9,4,FALSE) ->  | AD86: =T86-HLOOKUP(Y86,Feuil1!$C$1:$BF$9,5,FALSE) ->  | AE86: =T86-HLOOKUP(Y86,Feuil1!$C$1:$BF$9,6,FALSE) ->  | AF86: =T86-HLOOKUP(Y86,Feuil1!$C$1:$BF$9,7,FALSE) ->  | AG86: =T86-HLOOKUP(Y86,Feuil1!$C$1:$BF$9,8,FALSE) ->  | AH86: =T86-HLOOKUP(Y86,Feuil1!$C$1:$BF$9,9,FALSE) ->  | AQ86: 2016 | AS86: =IF(AQ86,VLOOKUP(AQ86,HOM!$AR$551:$AS$606,2)) -> 3.571
A87: F | X87: FALSE | Y87: =IF(AND(H87<1936),VLOOKUP(I87,Feuil1!$F$10:$O$24,9),IF(AND(H87>=1942,H87<1947),VLOOKUP(I87,Feuil1!$F$10:$O$24,9),IF(AND(H87>=1947,H87<1952),VLOOKUP(I87,Feuil1!$F$10:$O$24,8),IF(AND(H87>=1952,H87<1957),VLOOKUP(I87,Feuil1!$F$10:$O$24,7),IF(AND(H87>=1957,H87<1962),VLOOKUP(I87,Feuil1!$F$10:$O$24,6),IF(AND(H87>=1962,H87<1967),VLOOKUP(I87,Feuil1!$F$10:$O$24,5),IF(AND(H87>=1967,H87<1972),VLOOKUP(I87,Feuil1!$F$10:$O$24,4),IF(AND(H87>=1972,H87<1977),VLOOKUP(I87,Feuil1!$F$10:$O$24,3),IF(AND(H87>=1977,H87<1982),VLOOKUP(I87,Feuil1!$F$10:$O$24,2),VLOOKUP(I87,Feuil1!$F$10:$O$24,2)))))))))) ->  | AA87: =T87-HLOOKUP(Y87,Feuil1!$C$1:$BF$9,2,FALSE) ->  | AB87: =T87-HLOOKUP(Y87,Feuil1!$C$1:$BF$9,3,FALSE) ->  | AC87: =T87-HLOOKUP(Y87,Feuil1!$C$1:$BF$9,4,FALSE) ->  | AD87: =T87-HLOOKUP(Y87,Feuil1!$C$1:$BF$9,5,FALSE) ->  | AE87: =T87-HLOOKUP(Y87,Feuil1!$C$1:$BF$9,6,FALSE) ->  | AF87: =T87-HLOOKUP(Y87,Feuil1!$C$1:$BF$9,7,FALSE) ->  | AG87: =T87-HLOOKUP(Y87,Feuil1!$C$1:$BF$9,8,FALSE) ->  | AH87: =T87-HLOOKUP(Y87,Feuil1!$C$1:$BF$9,9,FALSE) ->  | AQ87: 2016 | AS87: =IF(AQ87,VLOOKUP(AQ87,HOM!$AR$551:$AS$606,2)) -> 3.571
A88: F | X88: FALSE | Y88: =IF(AND(H88<1936),VLOOKUP(I88,Feuil1!$F$10:$O$24,9),IF(AND(H88>=1942,H88<1947),VLOOKUP(I88,Feuil1!$F$10:$O$24,9),IF(AND(H88>=1947,H88<1952),VLOOKUP(I88,Feuil1!$F$10:$O$24,8),IF(AND(H88>=1952,H88<1957),VLOOKUP(I88,Feuil1!$F$10:$O$24,7),IF(AND(H88>=1957,H88<1962),VLOOKUP(I88,Feuil1!$F$10:$O$24,6),IF(AND(H88>=1962,H88<1967),VLOOKUP(I88,Feuil1!$F$10:$O$24,5),IF(AND(H88>=1967,H88<1972),VLOOKUP(I88,Feuil1!$F$10:$O$24,4),IF(AND(H88>=1972,H88<1977),VLOOKUP(I88,Feuil1!$F$10:$O$24,3),IF(AND(H88>=1977,H88<1982),VLOOKUP(I88,Feuil1!$F$10:$O$24,2),VLOOKUP(I88,Feuil1!$F$10:$O$24,2)))))))))) ->  | AA88: =T88-HLOOKUP(Y88,Feuil1!$C$1:$BF$9,2,FALSE) ->  | AB88: =T88-HLOOKUP(Y88,Feuil1!$C$1:$BF$9,3,FALSE) ->  | AC88: =T88-HLOOKUP(Y88,Feuil1!$C$1:$BF$9,4,FALSE) ->  | AD88: =T88-HLOOKUP(Y88,Feuil1!$C$1:$BF$9,5,FALSE) ->  | AE88: =T88-HLOOKUP(Y88,Feuil1!$C$1:$BF$9,6,FALSE) ->  | AF88: =T88-HLOOKUP(Y88,Feuil1!$C$1:$BF$9,7,FALSE) ->  | AG88: =T88-HLOOKUP(Y88,Feuil1!$C$1:$BF$9,8,FALSE) ->  | AH88: =T88-HLOOKUP(Y88,Feuil1!$C$1:$BF$9,9,FALSE) ->  | AQ88: 2016 | AS88: =IF(AQ88,VLOOKUP(AQ88,HOM!$AR$551:$AS$606,2)) -> 3.571
A89: F | X89: FALSE | Y89: =IF(AND(H89<1936),VLOOKUP(I89,Feuil1!$F$10:$O$24,9),IF(AND(H89>=1942,H89<1947),VLOOKUP(I89,Feuil1!$F$10:$O$24,9),IF(AND(H89>=1947,H89<1952),VLOOKUP(I89,Feuil1!$F$10:$O$24,8),IF(AND(H89>=1952,H89<1957),VLOOKUP(I89,Feuil1!$F$10:$O$24,7),IF(AND(H89>=1957,H89<1962),VLOOKUP(I89,Feuil1!$F$10:$O$24,6),IF(AND(H89>=1962,H89<1967),VLOOKUP(I89,Feuil1!$F$10:$O$24,5),IF(AND(H89>=1967,H89<1972),VLOOKUP(I89,Feuil1!$F$10:$O$24,4),IF(AND(H89>=1972,H89<1977),VLOOKUP(I89,Feuil1!$F$10:$O$24,3),IF(AND(H89>=1977,H89<1982),VLOOKUP(I89,Feuil1!$F$10:$O$24,2),VLOOKUP(I89,Feuil1!$F$10:$O$24,2)))))))))) ->  | AA89: =T89-HLOOKUP(Y89,Feuil1!$C$1:$BF$9,2,FALSE) ->  | AB89: =T89-HLOOKUP(Y89,Feuil1!$C$1:$BF$9,3,FALSE) ->  | AC89: =T89-HLOOKUP(Y89,Feuil1!$C$1:$BF$9,4,FALSE) ->  | AD89: =T89-HLOOKUP(Y89,Feuil1!$C$1:$BF$9,5,FALSE) ->  | AE89: =T89-HLOOKUP(Y89,Feuil1!$C$1:$BF$9,6,FALSE) ->  | AF89: =T89-HLOOKUP(Y89,Feuil1!$C$1:$BF$9,7,FALSE) ->  | AG89: =T89-HLOOKUP(Y89,Feuil1!$C$1:$BF$9,8,FALSE) ->  | AH89: =T89-HLOOKUP(Y89,Feuil1!$C$1:$BF$9,9,FALSE) ->  | AQ89: 2016 | AS89: =IF(AQ89,VLOOKUP(AQ89,HOM!$AR$551:$AS$606,2)) -> 3.571
A90: F | X90: FALSE | Y90: =IF(AND(H90<1936),VLOOKUP(I90,Feuil1!$F$10:$O$24,9),IF(AND(H90>=1942,H90<1947),VLOOKUP(I90,Feuil1!$F$10:$O$24,9),IF(AND(H90>=1947,H90<1952),VLOOKUP(I90,Feuil1!$F$10:$O$24,8),IF(AND(H90>=1952,H90<1957),VLOOKUP(I90,Feuil1!$F$10:$O$24,7),IF(AND(H90>=1957,H90<1962),VLOOKUP(I90,Feuil1!$F$10:$O$24,6),IF(AND(H90>=1962,H90<1967),VLOOKUP(I90,Feuil1!$F$10:$O$24,5),IF(AND(H90>=1967,H90<1972),VLOOKUP(I90,Feuil1!$F$10:$O$24,4),IF(AND(H90>=1972,H90<1977),VLOOKUP(I90,Feuil1!$F$10:$O$24,3),IF(AND(H90>=1977,H90<1982),VLOOKUP(I90,Feuil1!$F$10:$O$24,2),VLOOKUP(I90,Feuil1!$F$10:$O$24,2)))))))))) ->  | AA90: =T90-HLOOKUP(Y90,Feuil1!$C$1:$BF$9,2,FALSE) ->  | AB90: =T90-HLOOKUP(Y90,Feuil1!$C$1:$BF$9,3,FALSE) ->  | AC90: =T90-HLOOKUP(Y90,Feuil1!$C$1:$BF$9,4,FALSE) ->  | AD90: =T90-HLOOKUP(Y90,Feuil1!$C$1:$BF$9,5,FALSE) ->  | AE90: =T90-HLOOKUP(Y90,Feuil1!$C$1:$BF$9,6,FALSE) ->  | AF90: =T90-HLOOKUP(Y90,Feuil1!$C$1:$BF$9,7,FALSE) ->  | AG90: =T90-HLOOKUP(Y90,Feuil1!$C$1:$BF$9,8,FALSE) ->  | AH90: =T90-HLOOKUP(Y90,Feuil1!$C$1:$BF$9,9,FALSE) ->  | AQ90: 2016 | AS90: =IF(AQ90,VLOOKUP(AQ90,HOM!$AR$551:$AS$606,2)) -> 3.571
A91: F | X91: FALSE | Y91: =IF(AND(H91<1936),VLOOKUP(I91,Feuil1!$F$10:$O$24,9),IF(AND(H91>=1942,H91<1947),VLOOKUP(I91,Feuil1!$F$10:$O$24,9),IF(AND(H91>=1947,H91<1952),VLOOKUP(I91,Feuil1!$F$10:$O$24,8),IF(AND(H91>=1952,H91<1957),VLOOKUP(I91,Feuil1!$F$10:$O$24,7),IF(AND(H91>=1957,H91<1962),VLOOKUP(I91,Feuil1!$F$10:$O$24,6),IF(AND(H91>=1962,H91<1967),VLOOKUP(I91,Feuil1!$F$10:$O$24,5),IF(AND(H91>=1967,H91<1972),VLOOKUP(I91,Feuil1!$F$10:$O$24,4),IF(AND(H91>=1972,H91<1977),VLOOKUP(I91,Feuil1!$F$10:$O$24,3),IF(AND(H91>=1977,H91<1982),VLOOKUP(I91,Feuil1!$F$10:$O$24,2),VLOOKUP(I91,Feuil1!$F$10:$O$24,2)))))))))) ->  | AA91: =T91-HLOOKUP(Y91,Feuil1!$C$1:$BF$9,2,FALSE) ->  | AB91: =T91-HLOOKUP(Y91,Feuil1!$C$1:$BF$9,3,FALSE) ->  | AC91: =T91-HLOOKUP(Y91,Feuil1!$C$1:$BF$9,4,FALSE) ->  | AD91: =T91-HLOOKUP(Y91,Feuil1!$C$1:$BF$9,5,FALSE) ->  | AE91: =T91-HLOOKUP(Y91,Feuil1!$C$1:$BF$9,6,FALSE) ->  | AF91: =T91-HLOOKUP(Y91,Feuil1!$C$1:$BF$9,7,FALSE) ->  | AG91: =T91-HLOOKUP(Y91,Feuil1!$C$1:$BF$9,8,FALSE) ->  | AH91: =T91-HLOOKUP(Y91,Feuil1!$C$1:$BF$9,9,FALSE) ->  | AQ91: 2016 | AS91: =IF(AQ91,VLOOKUP(AQ91,HOM!$AR$551:$AS$606,2)) -> 3.571
A92: F | X92: FALSE | Y92: =IF(AND(H92<1936),VLOOKUP(I92,Feuil1!$F$10:$O$24,9),IF(AND(H92>=1942,H92<1947),VLOOKUP(I92,Feuil1!$F$10:$O$24,9),IF(AND(H92>=1947,H92<1952),VLOOKUP(I92,Feuil1!$F$10:$O$24,8),IF(AND(H92>=1952,H92<1957),VLOOKUP(I92,Feuil1!$F$10:$O$24,7),IF(AND(H92>=1957,H92<1962),VLOOKUP(I92,Feuil1!$F$10:$O$24,6),IF(AND(H92>=1962,H92<1967),VLOOKUP(I92,Feuil1!$F$10:$O$24,5),IF(AND(H92>=1967,H92<1972),VLOOKUP(I92,Feuil1!$F$10:$O$24,4),IF(AND(H92>=1972,H92<1977),VLOOKUP(I92,Feuil1!$F$10:$O$24,3),IF(AND(H92>=1977,H92<1982),VLOOKUP(I92,Feuil1!$F$10:$O$24,2),VLOOKUP(I92,Feuil1!$F$10:$O$24,2)))))))))) ->  | AA92: =T92-HLOOKUP(Y92,Feuil1!$C$1:$BF$9,2,FALSE) ->  | AB92: =T92-HLOOKUP(Y92,Feuil1!$C$1:$BF$9,3,FALSE) ->  | AC92: =T92-HLOOKUP(Y92,Feuil1!$C$1:$BF$9,4,FALSE) ->  | AD92: =T92-HLOOKUP(Y92,Feuil1!$C$1:$BF$9,5,FALSE) ->  | AE92: =T92-HLOOKUP(Y92,Feuil1!$C$1:$BF$9,6,FALSE) ->  | AF92: =T92-HLOOKUP(Y92,Feuil1!$C$1:$BF$9,7,FALSE) ->  | AG92: =T92-HLOOKUP(Y92,Feuil1!$C$1:$BF$9,8,FALSE) ->  | AH92: =T92-HLOOKUP(Y92,Feuil1!$C$1:$BF$9,9,FALSE) ->  | AQ92: 2016 | AS92: =IF(AQ92,VLOOKUP(AQ92,HOM!$AR$551:$AS$606,2)) -> 3.571
A93: F | X93: FALSE | Y93: =IF(AND(H93<1936),VLOOKUP(I93,Feuil1!$F$10:$O$24,9),IF(AND(H93>=1942,H93<1947),VLOOKUP(I93,Feuil1!$F$10:$O$24,9),IF(AND(H93>=1947,H93<1952),VLOOKUP(I93,Feuil1!$F$10:$O$24,8),IF(AND(H93>=1952,H93<1957),VLOOKUP(I93,Feuil1!$F$10:$O$24,7),IF(AND(H93>=1957,H93<1962),VLOOKUP(I93,Feuil1!$F$10:$O$24,6),IF(AND(H93>=1962,H93<1967),VLOOKUP(I93,Feuil1!$F$10:$O$24,5),IF(AND(H93>=1967,H93<1972),VLOOKUP(I93,Feuil1!$F$10:$O$24,4),IF(AND(H93>=1972,H93<1977),VLOOKUP(I93,Feuil1!$F$10:$O$24,3),IF(AND(H93>=1977,H93<1982),VLOOKUP(I93,Feuil1!$F$10:$O$24,2),VLOOKUP(I93,Feuil1!$F$10:$O$24,2)))))))))) ->  | AA93: =T93-HLOOKUP(Y93,Feuil1!$C$1:$BF$9,2,FALSE) ->  | AB93: =T93-HLOOKUP(Y93,Feuil1!$C$1:$BF$9,3,FALSE) ->  | AC93: =T93-HLOOKUP(Y93,Feuil1!$C$1:$BF$9,4,FALSE) ->  | AD93: =T93-HLOOKUP(Y93,Feuil1!$C$1:$BF$9,5,FALSE) ->  | AE93: =T93-HLOOKUP(Y93,Feuil1!$C$1:$BF$9,6,FALSE) ->  | AF93: =T93-HLOOKUP(Y93,Feuil1!$C$1:$BF$9,7,FALSE) ->  | AG93: =T93-HLOOKUP(Y93,Feuil1!$C$1:$BF$9,8,FALSE) ->  | AH93: =T93-HLOOKUP(Y93,Feuil1!$C$1:$BF$9,9,FALSE) ->  | AQ93: 2016 | AS93: =IF(AQ93,VLOOKUP(AQ93,HOM!$AR$551:$AS$606,2)) -> 3.571
A94: F | X94: FALSE | Y94: =IF(AND(H94<1936),VLOOKUP(I94,Feuil1!$F$10:$O$24,9),IF(AND(H94>=1942,H94<1947),VLOOKUP(I94,Feuil1!$F$10:$O$24,9),IF(AND(H94>=1947,H94<1952),VLOOKUP(I94,Feuil1!$F$10:$O$24,8),IF(AND(H94>=1952,H94<1957),VLOOKUP(I94,Feuil1!$F$10:$O$24,7),IF(AND(H94>=1957,H94<1962),VLOOKUP(I94,Feuil1!$F$10:$O$24,6),IF(AND(H94>=1962,H94<1967),VLOOKUP(I94,Feuil1!$F$10:$O$24,5),IF(AND(H94>=1967,H94<1972),VLOOKUP(I94,Feuil1!$F$10:$O$24,4),IF(AND(H94>=1972,H94<1977),VLOOKUP(I94,Feuil1!$F$10:$O$24,3),IF(AND(H94>=1977,H94<1982),VLOOKUP(I94,Feuil1!$F$10:$O$24,2),VLOOKUP(I94,Feuil1!$F$10:$O$24,2)))))))))) ->  | AA94: =T94-HLOOKUP(Y94,Feuil1!$C$1:$BF$9,2,FALSE) ->  | AB94: =T94-HLOOKUP(Y94,Feuil1!$C$1:$BF$9,3,FALSE) ->  | AC94: =T94-HLOOKUP(Y94,Feuil1!$C$1:$BF$9,4,FALSE) ->  | AD94: =T94-HLOOKUP(Y94,Feuil1!$C$1:$BF$9,5,FALSE) ->  | AE94: =T94-HLOOKUP(Y94,Feuil1!$C$1:$BF$9,6,FALSE) ->  | AF94: =T94-HLOOKUP(Y94,Feuil1!$C$1:$BF$9,7,FALSE) ->  | AG94: =T94-HLOOKUP(Y94,Feuil1!$C$1:$BF$9,8,FALSE) ->  | AH94: =T94-HLOOKUP(Y94,Feuil1!$C$1:$BF$9,9,FALSE) ->  | AQ94: 2016 | AS94: =IF(AQ94,VLOOKUP(AQ94,HOM!$AR$551:$AS$606,2)) -> 3.571
A95: F | X95: FALSE | Y95: =IF(AND(H95<1936),VLOOKUP(I95,Feuil1!$F$10:$O$24,9),IF(AND(H95>=1942,H95<1947),VLOOKUP(I95,Feuil1!$F$10:$O$24,9),IF(AND(H95>=1947,H95<1952),VLOOKUP(I95,Feuil1!$F$10:$O$24,8),IF(AND(H95>=1952,H95<1957),VLOOKUP(I95,Feuil1!$F$10:$O$24,7),IF(AND(H95>=1957,H95<1962),VLOOKUP(I95,Feuil1!$F$10:$O$24,6),IF(AND(H95>=1962,H95<1967),VLOOKUP(I95,Feuil1!$F$10:$O$24,5),IF(AND(H95>=1967,H95<1972),VLOOKUP(I95,Feuil1!$F$10:$O$24,4),IF(AND(H95>=1972,H95<1977),VLOOKUP(I95,Feuil1!$F$10:$O$24,3),IF(AND(H95>=1977,H95<1982),VLOOKUP(I95,Feuil1!$F$10:$O$24,2),VLOOKUP(I95,Feuil1!$F$10:$O$24,2)))))))))) ->  | AA95: =T95-HLOOKUP(Y95,Feuil1!$C$1:$BF$9,2,FALSE) ->  | AB95: =T95-HLOOKUP(Y95,Feuil1!$C$1:$BF$9,3,FALSE) ->  | AC95: =T95-HLOOKUP(Y95,Feuil1!$C$1:$BF$9,4,FALSE) ->  | AD95: =T95-HLOOKUP(Y95,Feuil1!$C$1:$BF$9,5,FALSE) ->  | AE95: =T95-HLOOKUP(Y95,Feuil1!$C$1:$BF$9,6,FALSE) ->  | AF95: =T95-HLOOKUP(Y95,Feuil1!$C$1:$BF$9,7,FALSE) ->  | AG95: =T95-HLOOKUP(Y95,Feuil1!$C$1:$BF$9,8,FALSE) ->  | AH95: =T95-HLOOKUP(Y95,Feuil1!$C$1:$BF$9,9,FALSE) ->  | AQ95: 2016 | AS95: =IF(AQ95,VLOOKUP(AQ95,HOM!$AR$551:$AS$606,2)) -> 3.571
A96: F | X96: FALSE | Y96: =IF(AND(H96<1936),VLOOKUP(I96,Feuil1!$F$10:$O$24,9),IF(AND(H96>=1942,H96<1947),VLOOKUP(I96,Feuil1!$F$10:$O$24,9),IF(AND(H96>=1947,H96<1952),VLOOKUP(I96,Feuil1!$F$10:$O$24,8),IF(AND(H96>=1952,H96<1957),VLOOKUP(I96,Feuil1!$F$10:$O$24,7),IF(AND(H96>=1957,H96<1962),VLOOKUP(I96,Feuil1!$F$10:$O$24,6),IF(AND(H96>=1962,H96<1967),VLOOKUP(I96,Feuil1!$F$10:$O$24,5),IF(AND(H96>=1967,H96<1972),VLOOKUP(I96,Feuil1!$F$10:$O$24,4),IF(AND(H96>=1972,H96<1977),VLOOKUP(I96,Feuil1!$F$10:$O$24,3),IF(AND(H96>=1977,H96<1982),VLOOKUP(I96,Feuil1!$F$10:$O$24,2),VLOOKUP(I96,Feuil1!$F$10:$O$24,2)))))))))) ->  | AA96: =T96-HLOOKUP(Y96,Feuil1!$C$1:$BF$9,2,FALSE) ->  | AB96: =T96-HLOOKUP(Y96,Feuil1!$C$1:$BF$9,3,FALSE) ->  | AC96: =T96-HLOOKUP(Y96,Feuil1!$C$1:$BF$9,4,FALSE) ->  | AD96: =T96-HLOOKUP(Y96,Feuil1!$C$1:$BF$9,5,FALSE) ->  | AE96: =T96-HLOOKUP(Y96,Feuil1!$C$1:$BF$9,6,FALSE) ->  | AF96: =T96-HLOOKUP(Y96,Feuil1!$C$1:$BF$9,7,FALSE) ->  | AG96: =T96-HLOOKUP(Y96,Feuil1!$C$1:$BF$9,8,FALSE) ->  | AH96: =T96-HLOOKUP(Y96,Feuil1!$C$1:$BF$9,9,FALSE) ->  | AQ96: 2016 | AS96: =IF(AQ96,VLOOKUP(AQ96,HOM!$AR$551:$AS$606,2)) -> 3.571
A97: F | X97: FALSE | Y97: =IF(AND(H97<1936),VLOOKUP(I97,Feuil1!$F$10:$O$24,9),IF(AND(H97>=1942,H97<1947),VLOOKUP(I97,Feuil1!$F$10:$O$24,9),IF(AND(H97>=1947,H97<1952),VLOOKUP(I97,Feuil1!$F$10:$O$24,8),IF(AND(H97>=1952,H97<1957),VLOOKUP(I97,Feuil1!$F$10:$O$24,7),IF(AND(H97>=1957,H97<1962),VLOOKUP(I97,Feuil1!$F$10:$O$24,6),IF(AND(H97>=1962,H97<1967),VLOOKUP(I97,Feuil1!$F$10:$O$24,5),IF(AND(H97>=1967,H97<1972),VLOOKUP(I97,Feuil1!$F$10:$O$24,4),IF(AND(H97>=1972,H97<1977),VLOOKUP(I97,Feuil1!$F$10:$O$24,3),IF(AND(H97>=1977,H97<1982),VLOOKUP(I97,Feuil1!$F$10:$O$24,2),VLOOKUP(I97,Feuil1!$F$10:$O$24,2)))))))))) ->  | AA97: =T97-HLOOKUP(Y97,Feuil1!$C$1:$BF$9,2,FALSE) ->  | AB97: =T97-HLOOKUP(Y97,Feuil1!$C$1:$BF$9,3,FALSE) ->  | AC97: =T97-HLOOKUP(Y97,Feuil1!$C$1:$BF$9,4,FALSE) ->  | AD97: =T97-HLOOKUP(Y97,Feuil1!$C$1:$BF$9,5,FALSE) ->  | AE97: =T97-HLOOKUP(Y97,Feuil1!$C$1:$BF$9,6,FALSE) ->  | AF97: =T97-HLOOKUP(Y97,Feuil1!$C$1:$BF$9,7,FALSE) ->  | AG97: =T97-HLOOKUP(Y97,Feuil1!$C$1:$BF$9,8,FALSE) ->  | AH97: =T97-HLOOKUP(Y97,Feuil1!$C$1:$BF$9,9,FALSE) ->  | AQ97: 2016 | AS97: =IF(AQ97,VLOOKUP(AQ97,HOM!$AR$551:$AS$606,2)) -> 3.571
A98: F | X98: FALSE | Y98: =IF(AND(H98<1936),VLOOKUP(I98,Feuil1!$F$10:$O$24,9),IF(AND(H98>=1942,H98<1947),VLOOKUP(I98,Feuil1!$F$10:$O$24,9),IF(AND(H98>=1947,H98<1952),VLOOKUP(I98,Feuil1!$F$10:$O$24,8),IF(AND(H98>=1952,H98<1957),VLOOKUP(I98,Feuil1!$F$10:$O$24,7),IF(AND(H98>=1957,H98<1962),VLOOKUP(I98,Feuil1!$F$10:$O$24,6),IF(AND(H98>=1962,H98<1967),VLOOKUP(I98,Feuil1!$F$10:$O$24,5),IF(AND(H98>=1967,H98<1972),VLOOKUP(I98,Feuil1!$F$10:$O$24,4),IF(AND(H98>=1972,H98<1977),VLOOKUP(I98,Feuil1!$F$10:$O$24,3),IF(AND(H98>=1977,H98<1982),VLOOKUP(I98,Feuil1!$F$10:$O$24,2),VLOOKUP(I98,Feuil1!$F$10:$O$24,2)))))))))) ->  | AA98: =T98-HLOOKUP(Y98,Feuil1!$C$1:$BF$9,2,FALSE) ->  | AB98: =T98-HLOOKUP(Y98,Feuil1!$C$1:$BF$9,3,FALSE) ->  | AC98: =T98-HLOOKUP(Y98,Feuil1!$C$1:$BF$9,4,FALSE) ->  | AD98: =T98-HLOOKUP(Y98,Feuil1!$C$1:$BF$9,5,FALSE) ->  | AE98: =T98-HLOOKUP(Y98,Feuil1!$C$1:$BF$9,6,FALSE) ->  | AF98: =T98-HLOOKUP(Y98,Feuil1!$C$1:$BF$9,7,FALSE) ->  | AG98: =T98-HLOOKUP(Y98,Feuil1!$C$1:$BF$9,8,FALSE) ->  | AH98: =T98-HLOOKUP(Y98,Feuil1!$C$1:$BF$9,9,FALSE) ->  | AQ98: 2016 | AS98: =IF(AQ98,VLOOKUP(AQ98,HOM!$AR$551:$AS$606,2)) -> 3.571
A99: F | X99: FALSE | Y99: =IF(AND(H99<1936),VLOOKUP(I99,Feuil1!$F$10:$O$24,9),IF(AND(H99>=1942,H99<1947),VLOOKUP(I99,Feuil1!$F$10:$O$24,9),IF(AND(H99>=1947,H99<1952),VLOOKUP(I99,Feuil1!$F$10:$O$24,8),IF(AND(H99>=1952,H99<1957),VLOOKUP(I99,Feuil1!$F$10:$O$24,7),IF(AND(H99>=1957,H99<1962),VLOOKUP(I99,Feuil1!$F$10:$O$24,6),IF(AND(H99>=1962,H99<1967),VLOOKUP(I99,Feuil1!$F$10:$O$24,5),IF(AND(H99>=1967,H99<1972),VLOOKUP(I99,Feuil1!$F$10:$O$24,4),IF(AND(H99>=1972,H99<1977),VLOOKUP(I99,Feuil1!$F$10:$O$24,3),IF(AND(H99>=1977,H99<1982),VLOOKUP(I99,Feuil1!$F$10:$O$24,2),VLOOKUP(I99,Feuil1!$F$10:$O$24,2)))))))))) ->  | AA99: =T99-HLOOKUP(Y99,Feuil1!$C$1:$BF$9,2,FALSE) ->  | AB99: =T99-HLOOKUP(Y99,Feuil1!$C$1:$BF$9,3,FALSE) ->  | AC99: =T99-HLOOKUP(Y99,Feuil1!$C$1:$BF$9,4,FALSE) ->  | AD99: =T99-HLOOKUP(Y99,Feuil1!$C$1:$BF$9,5,FALSE) ->  | AE99: =T99-HLOOKUP(Y99,Feuil1!$C$1:$BF$9,6,FALSE) ->  | AF99: =T99-HLOOKUP(Y99,Feuil1!$C$1:$BF$9,7,FALSE) ->  | AG99: =T99-HLOOKUP(Y99,Feuil1!$C$1:$BF$9,8,FALSE) ->  | AH99: =T99-HLOOKUP(Y99,Feuil1!$C$1:$BF$9,9,FALSE) ->  | AQ99: 2016 | AS99: =IF(AQ99,VLOOKUP(AQ99,HOM!$AR$551:$AS$606,2)) -> 3.571
A100: F | X100: FALSE | Y100: =IF(AND(H100<1936),VLOOKUP(I100,Feuil1!$F$10:$O$24,9),IF(AND(H100>=1942,H100<1947),VLOOKUP(I100,Feuil1!$F$10:$O$24,9),IF(AND(H100>=1947,H100<1952),VLOOKUP(I100,Feuil1!$F$10:$O$24,8),IF(AND(H100>=1952,H100<1957),VLOOKUP(I100,Feuil1!$F$10:$O$24,7),IF(AND(H100>=1957,H100<1962),VLOOKUP(I100,Feuil1!$F$10:$O$24,6),IF(AND(H100>=1962,H100<1967),VLOOKUP(I100,Feuil1!$F$10:$O$24,5),IF(AND(H100>=1967,H100<1972),VLOOKUP(I100,Feuil1!$F$10:$O$24,4),IF(AND(H100>=1972,H100<1977),VLOOKUP(I100,Feuil1!$F$10:$O$24,3),IF(AND(H100>=1977,H100<1982),VLOOKUP(I100,Feuil1!$F$10:$O$24,2),VLOOKUP(I100,Feuil1!$F$10:$O$24,2)))))))))) ->  | AA100: =T100-HLOOKUP(Y100,Feuil1!$C$1:$BF$9,2,FALSE) ->  | AB100: =T100-HLOOKUP(Y100,Feuil1!$C$1:$BF$9,3,FALSE) ->  | AC100: =T100-HLOOKUP(Y100,Feuil1!$C$1:$BF$9,4,FALSE) ->  | AD100: =T100-HLOOKUP(Y100,Feuil1!$C$1:$BF$9,5,FALSE) ->  | AE100: =T100-HLOOKUP(Y100,Feuil1!$C$1:$BF$9,6,FALSE) ->  | AF100: =T100-HLOOKUP(Y100,Feuil1!$C$1:$BF$9,7,FALSE) ->  | AG100: =T100-HLOOKUP(Y100,Feuil1!$C$1:$BF$9,8,FALSE) ->  | AH100: =T100-HLOOKUP(Y100,Feuil1!$C$1:$BF$9,9,FALSE) ->  | AQ100: 2016 | AS100: =IF(AQ100,VLOOKUP(AQ100,HOM!$AR$551:$AS$606,2)) -> 3.571
A101: F | X101: FALSE | Y101: =IF(AND(H101<1936),VLOOKUP(I101,Feuil1!$F$10:$O$24,9),IF(AND(H101>=1942,H101<1947),VLOOKUP(I101,Feuil1!$F$10:$O$24,9),IF(AND(H101>=1947,H101<1952),VLOOKUP(I101,Feuil1!$F$10:$O$24,8),IF(AND(H101>=1952,H101<1957),VLOOKUP(I101,Feuil1!$F$10:$O$24,7),IF(AND(H101>=1957,H101<1962),VLOOKUP(I101,Feuil1!$F$10:$O$24,6),IF(AND(H101>=1962,H101<1967),VLOOKUP(I101,Feuil1!$F$10:$O$24,5),IF(AND(H101>=1967,H101<1972),VLOOKUP(I101,Feuil1!$F$10:$O$24,4),IF(AND(H101>=1972,H101<1977),VLOOKUP(I101,Feuil1!$F$10:$O$24,3),IF(AND(H101>=1977,H101<1982),VLOOKUP(I101,Feuil1!$F$10:$O$24,2),VLOOKUP(I101,Feuil1!$F$10:$O$24,2)))))))))) ->  | AA101: =T101-HLOOKUP(Y101,Feuil1!$C$1:$BF$9,2,FALSE) ->  | AB101: =T101-HLOOKUP(Y101,Feuil1!$C$1:$BF$9,3,FALSE) ->  | AC101: =T101-HLOOKUP(Y101,Feuil1!$C$1:$BF$9,4,FALSE) ->  | AD101: =T101-HLOOKUP(Y101,Feuil1!$C$1:$BF$9,5,FALSE) ->  | AE101: =T101-HLOOKUP(Y101,Feuil1!$C$1:$BF$9,6,FALSE) ->  | AF101: =T101-HLOOKUP(Y101,Feuil1!$C$1:$BF$9,7,FALSE) ->  | AG101: =T101-HLOOKUP(Y101,Feuil1!$C$1:$BF$9,8,FALSE) ->  | AH101: =T101-HLOOKUP(Y101,Feuil1!$C$1:$BF$9,9,FALSE) ->  | AQ101: 2016 | AS101: =IF(AQ101,VLOOKUP(AQ101,HOM!$AR$551:$AS$606,2)) -> 3.571
A102: F | X102: FALSE | Y102: =IF(AND(H102<1936),VLOOKUP(I102,Feuil1!$F$10:$O$24,9),IF(AND(H102>=1942,H102<1947),VLOOKUP(I102,Feuil1!$F$10:$O$24,9),IF(AND(H102>=1947,H102<1952),VLOOKUP(I102,Feuil1!$F$10:$O$24,8),IF(AND(H102>=1952,H102<1957),VLOOKUP(I102,Feuil1!$F$10:$O$24,7),IF(AND(H102>=1957,H102<1962),VLOOKUP(I102,Feuil1!$F$10:$O$24,6),IF(AND(H102>=1962,H102<1967),VLOOKUP(I102,Feuil1!$F$10:$O$24,5),IF(AND(H102>=1967,H102<1972),VLOOKUP(I102,Feuil1!$F$10:$O$24,4),IF(AND(H102>=1972,H102<1977),VLOOKUP(I102,Feuil1!$F$10:$O$24,3),IF(AND(H102>=1977,H102<1982),VLOOKUP(I102,Feuil1!$F$10:$O$24,2),VLOOKUP(I102,Feuil1!$F$10:$O$24,2)))))))))) ->  | AA102: =T102-HLOOKUP(Y102,Feuil1!$C$1:$BF$9,2,FALSE) ->  | AB102: =T102-HLOOKUP(Y102,Feuil1!$C$1:$BF$9,3,FALSE) ->  | AC102: =T102-HLOOKUP(Y102,Feuil1!$C$1:$BF$9,4,FALSE) ->  | AD102: =T102-HLOOKUP(Y102,Feuil1!$C$1:$BF$9,5,FALSE) ->  | AE102: =T102-HLOOKUP(Y102,Feuil1!$C$1:$BF$9,6,FALSE) ->  | AF102: =T102-HLOOKUP(Y102,Feuil1!$C$1:$BF$9,7,FALSE) ->  | AG102: =T102-HLOOKUP(Y102,Feuil1!$C$1:$BF$9,8,FALSE) ->  | AH102: =T102-HLOOKUP(Y102,Feuil1!$C$1:$BF$9,9,FALSE) ->  | AQ102: 2016 | AS102: =IF(AQ102,VLOOKUP(AQ102,HOM!$AR$551:$AS$606,2)) -> 3.571
A103: F | O103: =IF(I103="","",IF(MAXA(L103:N103)<=0,0,MAXA(L103:N103))) ->  | S103: =IF(I103="","",IF(MAXA(P103:R103)<=0,0,MAXA(P103:R103))) ->  | T103: =IF(I103="","",IF(OR(O103=0,S103=0),0,O103+S103)) ->  | U103: =IF(I103="","",IF(A103="H",10^(0.794358141*LOG(I103/174.393)^2)*T103*AS103,IF(A103="F",10^(0.89726074 * LOG(I103/148.026)^2)*T103*AS103,""))) ->  | V103: =IF(I103="","",AP103) ->  | W103: =IF(I103="","",IF(AH103>=0,AH103,IF(AG103>=0,AG103,IF(AF103>=0,AF103,IF(AE103>=0,AE103,IF(AD103>=0,AD103,IF(AC103>=0,AC103,IF(AB103>=0,AB103,AA103)))))))) ->  | X103: =IF(AQ103<95,IF(AQ103<=90,VLOOKUP(AQ103,$AQ$464:$AR$519,2))) -> FALSE | Y103: =IF(AND(H103<1936),VLOOKUP(I103,Feuil1!$F$10:$O$24,9),IF(AND(H103>=1942,H103<1947),VLOOKUP(I103,Feuil1!$F$10:$O$24,9),IF(AND(H103>=1947,H103<1952),VLOOKUP(I103,Feuil1!$F$10:$O$24,8),IF(AND(H103>=1952,H103<1957),VLOOKUP(I103,Feuil1!$F$10:$O$24,7),IF(AND(H103>=1957,H103<1962),VLOOKUP(I103,Feuil1!$F$10:$O$24,6),IF(AND(H103>=1962,H103<1967),VLOOKUP(I103,Feuil1!$F$10:$O$24,5),IF(AND(H103>=1967,H103<1972),VLOOKUP(I103,Feuil1!$F$10:$O$24,4),IF(AND(H103>=1972,H103<1977),VLOOKUP(I103,Feuil1!$F$10:$O$24,3),IF(AND(H103>=1977,H103<1982),VLOOKUP(I103,Feuil1!$F$10:$O$24,2),VLOOKUP(I103,Feuil1!$F$10:$O$24,2)))))))))) ->  | AA103: =T103-HLOOKUP(Y103,Feuil1!$C$1:$BF$9,2,FALSE) ->  | AB103: =T103-HLOOKUP(Y103,Feuil1!$C$1:$BF$9,3,FALSE) ->  | AC103: =T103-HLOOKUP(Y103,Feuil1!$C$1:$BF$9,4,FALSE) ->  | AD103: =T103-HLOOKUP(Y103,Feuil1!$C$1:$BF$9,5,FALSE) ->  | AE103: =T103-HLOOKUP(Y103,Feuil1!$C$1:$BF$9,6,FALSE) ->  | AF103: =T103-HLOOKUP(Y103,Feuil1!$C$1:$BF$9,7,FALSE) ->  | AG103: =T103-HLOOKUP(Y103,Feuil1!$C$1:$BF$9,8,FALSE) ->  | AH103: =T103-HLOOKUP(Y103,Feuil1!$C$1:$BF$9,9,FALSE) ->  | AP103: =IF(AH103>=0,$AH$4,IF(AG103>=0,$AG$4,IF(AF103>=0,$AF$4,IF(AE103>=0,$AE$4,IF(AD103>=0,$AD$4,IF(AC103>=0,$AC$4,IF(AB103>=0,$AB$4,IF(AA103>=0,$AA$4,$AI$4)))))))) ->  | AQ103: 2016 | AS103: =IF(AQ103,VLOOKUP(AQ103,HOM!$AR$551:$AS$606,2)) -> 3.571
A104: F | X104: FALSE | Y104: =IF(AND(H104<1936),VLOOKUP(I104,Feuil1!$F$10:$O$24,9),IF(AND(H104>=1942,H104<1947),VLOOKUP(I104,Feuil1!$F$10:$O$24,9),IF(AND(H104>=1947,H104<1952),VLOOKUP(I104,Feuil1!$F$10:$O$24,8),IF(AND(H104>=1952,H104<1957),VLOOKUP(I104,Feuil1!$F$10:$O$24,7),IF(AND(H104>=1957,H104<1962),VLOOKUP(I104,Feuil1!$F$10:$O$24,6),IF(AND(H104>=1962,H104<1967),VLOOKUP(I104,Feuil1!$F$10:$O$24,5),IF(AND(H104>=1967,H104<1972),VLOOKUP(I104,Feuil1!$F$10:$O$24,4),IF(AND(H104>=1972,H104<1977),VLOOKUP(I104,Feuil1!$F$10:$O$24,3),IF(AND(H104>=1977,H104<1982),VLOOKUP(I104,Feuil1!$F$10:$O$24,2),VLOOKUP(I104,Feuil1!$F$10:$O$24,2)))))))))) ->  | AA104: =T104-HLOOKUP(Y104,Feuil1!$C$1:$BF$9,2,FALSE) ->  | AB104: =T104-HLOOKUP(Y104,Feuil1!$C$1:$BF$9,3,FALSE) ->  | AC104: =T104-HLOOKUP(Y104,Feuil1!$C$1:$BF$9,4,FALSE) ->  | AD104: =T104-HLOOKUP(Y104,Feuil1!$C$1:$BF$9,5,FALSE) ->  | AE104: =T104-HLOOKUP(Y104,Feuil1!$C$1:$BF$9,6,FALSE) ->  | AF104: =T104-HLOOKUP(Y104,Feuil1!$C$1:$BF$9,7,FALSE) ->  | AG104: =T104-HLOOKUP(Y104,Feuil1!$C$1:$BF$9,8,FALSE) ->  | AH104: =T104-HLOOKUP(Y104,Feuil1!$C$1:$BF$9,9,FALSE) ->  | AQ104: 2016 | AS104: =IF(AQ104,VLOOKUP(AQ104,HOM!$AR$551:$AS$606,2)) -> 3.571
A105: F | X105: FALSE | Y105: =IF(AND(H105<1936),VLOOKUP(I105,Feuil1!$F$10:$O$24,9),IF(AND(H105>=1942,H105<1947),VLOOKUP(I105,Feuil1!$F$10:$O$24,9),IF(AND(H105>=1947,H105<1952),VLOOKUP(I105,Feuil1!$F$10:$O$24,8),IF(AND(H105>=1952,H105<1957),VLOOKUP(I105,Feuil1!$F$10:$O$24,7),IF(AND(H105>=1957,H105<1962),VLOOKUP(I105,Feuil1!$F$10:$O$24,6),IF(AND(H105>=1962,H105<1967),VLOOKUP(I105,Feuil1!$F$10:$O$24,5),IF(AND(H105>=1967,H105<1972),VLOOKUP(I105,Feuil1!$F$10:$O$24,4),IF(AND(H105>=1972,H105<1977),VLOOKUP(I105,Feuil1!$F$10:$O$24,3),IF(AND(H105>=1977,H105<1982),VLOOKUP(I105,Feuil1!$F$10:$O$24,2),VLOOKUP(I105,Feuil1!$F$10:$O$24,2)))))))))) ->  | AA105: =T105-HLOOKUP(Y105,Feuil1!$C$1:$BF$9,2,FALSE) ->  | AB105: =T105-HLOOKUP(Y105,Feuil1!$C$1:$BF$9,3,FALSE) ->  | AC105: =T105-HLOOKUP(Y105,Feuil1!$C$1:$BF$9,4,FALSE) ->  | AD105: =T105-HLOOKUP(Y105,Feuil1!$C$1:$BF$9,5,FALSE) ->  | AE105: =T105-HLOOKUP(Y105,Feuil1!$C$1:$BF$9,6,FALSE) ->  | AF105: =T105-HLOOKUP(Y105,Feuil1!$C$1:$BF$9,7,FALSE) ->  | AG105: =T105-HLOOKUP(Y105,Feuil1!$C$1:$BF$9,8,FALSE) ->  | AH105: =T105-HLOOKUP(Y105,Feuil1!$C$1:$BF$9,9,FALSE) ->  | AQ105: 2016 | AS105: =IF(AQ105,VLOOKUP(AQ105,HOM!$AR$551:$AS$606,2)) -> 3.571
A106: F | X106: FALSE | Y106: =IF(AND(H106<1936),VLOOKUP(I106,Feuil1!$F$10:$O$24,9),IF(AND(H106>=1942,H106<1947),VLOOKUP(I106,Feuil1!$F$10:$O$24,9),IF(AND(H106>=1947,H106<1952),VLOOKUP(I106,Feuil1!$F$10:$O$24,8),IF(AND(H106>=1952,H106<1957),VLOOKUP(I106,Feuil1!$F$10:$O$24,7),IF(AND(H106>=1957,H106<1962),VLOOKUP(I106,Feuil1!$F$10:$O$24,6),IF(AND(H106>=1962,H106<1967),VLOOKUP(I106,Feuil1!$F$10:$O$24,5),IF(AND(H106>=1967,H106<1972),VLOOKUP(I106,Feuil1!$F$10:$O$24,4),IF(AND(H106>=1972,H106<1977),VLOOKUP(I106,Feuil1!$F$10:$O$24,3),IF(AND(H106>=1977,H106<1982),VLOOKUP(I106,Feuil1!$F$10:$O$24,2),VLOOKUP(I106,Feuil1!$F$10:$O$24,2)))))))))) ->  | AA106: =T106-HLOOKUP(Y106,Feuil1!$C$1:$BF$9,2,FALSE) ->  | AB106: =T106-HLOOKUP(Y106,Feuil1!$C$1:$BF$9,3,FALSE) ->  | AC106: =T106-HLOOKUP(Y106,Feuil1!$C$1:$BF$9,4,FALSE) ->  | AD106: =T106-HLOOKUP(Y106,Feuil1!$C$1:$BF$9,5,FALSE) ->  | AE106: =T106-HLOOKUP(Y106,Feuil1!$C$1:$BF$9,6,FALSE) ->  | AF106: =T106-HLOOKUP(Y106,Feuil1!$C$1:$BF$9,7,FALSE) ->  | AG106: =T106-HLOOKUP(Y106,Feuil1!$C$1:$BF$9,8,FALSE) ->  | AH106: =T106-HLOOKUP(Y106,Feuil1!$C$1:$BF$9,9,FALSE) ->  | AQ106: 2016 | AS106: =IF(AQ106,VLOOKUP(AQ106,HOM!$AR$551:$AS$606,2)) -> 3.571
A107: F | X107: FALSE | Y107: =IF(AND(H107<1936),VLOOKUP(I107,Feuil1!$F$10:$O$24,9),IF(AND(H107>=1942,H107<1947),VLOOKUP(I107,Feuil1!$F$10:$O$24,9),IF(AND(H107>=1947,H107<1952),VLOOKUP(I107,Feuil1!$F$10:$O$24,8),IF(AND(H107>=1952,H107<1957),VLOOKUP(I107,Feuil1!$F$10:$O$24,7),IF(AND(H107>=1957,H107<1962),VLOOKUP(I107,Feuil1!$F$10:$O$24,6),IF(AND(H107>=1962,H107<1967),VLOOKUP(I107,Feuil1!$F$10:$O$24,5),IF(AND(H107>=1967,H107<1972),VLOOKUP(I107,Feuil1!$F$10:$O$24,4),IF(AND(H107>=1972,H107<1977),VLOOKUP(I107,Feuil1!$F$10:$O$24,3),IF(AND(H107>=1977,H107<1982),VLOOKUP(I107,Feuil1!$F$10:$O$24,2),VLOOKUP(I107,Feuil1!$F$10:$O$24,2)))))))))) ->  | AA107: =T107-HLOOKUP(Y107,Feuil1!$C$1:$BF$9,2,FALSE) ->  | AB107: =T107-HLOOKUP(Y107,Feuil1!$C$1:$BF$9,3,FALSE) ->  | AC107: =T107-HLOOKUP(Y107,Feuil1!$C$1:$BF$9,4,FALSE) ->  | AD107: =T107-HLOOKUP(Y107,Feuil1!$C$1:$BF$9,5,FALSE) ->  | AE107: =T107-HLOOKUP(Y107,Feuil1!$C$1:$BF$9,6,FALSE) ->  | AF107: =T107-HLOOKUP(Y107,Feuil1!$C$1:$BF$9,7,FALSE) ->  | AG107: =T107-HLOOKUP(Y107,Feuil1!$C$1:$BF$9,8,FALSE) ->  | AH107: =T107-HLOOKUP(Y107,Feuil1!$C$1:$BF$9,9,FALSE) ->  | AQ107: 2016 | AS107: =IF(AQ107,VLOOKUP(AQ107,HOM!$AR$551:$AS$606,2)) -> 3.571
A108: F | X108: FALSE | Y108: =IF(AND(H108<1936),VLOOKUP(I108,Feuil1!$F$10:$O$24,9),IF(AND(H108>=1942,H108<1947),VLOOKUP(I108,Feuil1!$F$10:$O$24,9),IF(AND(H108>=1947,H108<1952),VLOOKUP(I108,Feuil1!$F$10:$O$24,8),IF(AND(H108>=1952,H108<1957),VLOOKUP(I108,Feuil1!$F$10:$O$24,7),IF(AND(H108>=1957,H108<1962),VLOOKUP(I108,Feuil1!$F$10:$O$24,6),IF(AND(H108>=1962,H108<1967),VLOOKUP(I108,Feuil1!$F$10:$O$24,5),IF(AND(H108>=1967,H108<1972),VLOOKUP(I108,Feuil1!$F$10:$O$24,4),IF(AND(H108>=1972,H108<1977),VLOOKUP(I108,Feuil1!$F$10:$O$24,3),IF(AND(H108>=1977,H108<1982),VLOOKUP(I108,Feuil1!$F$10:$O$24,2),VLOOKUP(I108,Feuil1!$F$10:$O$24,2)))))))))) ->  | AA108: =T108-HLOOKUP(Y108,Feuil1!$C$1:$BF$9,2,FALSE) ->  | AB108: =T108-HLOOKUP(Y108,Feuil1!$C$1:$BF$9,3,FALSE) ->  | AC108: =T108-HLOOKUP(Y108,Feuil1!$C$1:$BF$9,4,FALSE) ->  | AD108: =T108-HLOOKUP(Y108,Feuil1!$C$1:$BF$9,5,FALSE) ->  | AE108: =T108-HLOOKUP(Y108,Feuil1!$C$1:$BF$9,6,FALSE) ->  | AF108: =T108-HLOOKUP(Y108,Feuil1!$C$1:$BF$9,7,FALSE) ->  | AG108: =T108-HLOOKUP(Y108,Feuil1!$C$1:$BF$9,8,FALSE) ->  | AH108: =T108-HLOOKUP(Y108,Feuil1!$C$1:$BF$9,9,FALSE) ->  | AQ108: 2016 | AS108: =IF(AQ108,VLOOKUP(AQ108,HOM!$AR$551:$AS$606,2)) -> 3.571
A109: F | X109: FALSE | Y109: =IF(AND(H109<1936),VLOOKUP(I109,Feuil1!$F$10:$O$24,9),IF(AND(H109>=1942,H109<1947),VLOOKUP(I109,Feuil1!$F$10:$O$24,9),IF(AND(H109>=1947,H109<1952),VLOOKUP(I109,Feuil1!$F$10:$O$24,8),IF(AND(H109>=1952,H109<1957),VLOOKUP(I109,Feuil1!$F$10:$O$24,7),IF(AND(H109>=1957,H109<1962),VLOOKUP(I109,Feuil1!$F$10:$O$24,6),IF(AND(H109>=1962,H109<1967),VLOOKUP(I109,Feuil1!$F$10:$O$24,5),IF(AND(H109>=1967,H109<1972),VLOOKUP(I109,Feuil1!$F$10:$O$24,4),IF(AND(H109>=1972,H109<1977),VLOOKUP(I109,Feuil1!$F$10:$O$24,3),IF(AND(H109>=1977,H109<1982),VLOOKUP(I109,Feuil1!$F$10:$O$24,2),VLOOKUP(I109,Feuil1!$F$10:$O$24,2)))))))))) ->  | AA109: =T109-HLOOKUP(Y109,Feuil1!$C$1:$BF$9,2,FALSE) ->  | AB109: =T109-HLOOKUP(Y109,Feuil1!$C$1:$BF$9,3,FALSE) ->  | AC109: =T109-HLOOKUP(Y109,Feuil1!$C$1:$BF$9,4,FALSE) ->  | AD109: =T109-HLOOKUP(Y109,Feuil1!$C$1:$BF$9,5,FALSE) ->  | AE109: =T109-HLOOKUP(Y109,Feuil1!$C$1:$BF$9,6,FALSE) ->  | AF109: =T109-HLOOKUP(Y109,Feuil1!$C$1:$BF$9,7,FALSE) ->  | AG109: =T109-HLOOKUP(Y109,Feuil1!$C$1:$BF$9,8,FALSE) ->  | AH109: =T109-HLOOKUP(Y109,Feuil1!$C$1:$BF$9,9,FALSE) ->  | AQ109: 2016 | AS109: =IF(AQ109,VLOOKUP(AQ109,HOM!$AR$551:$AS$606,2)) -> 3.571
A110: F | X110: FALSE | Y110: =IF(AND(H110<1936),VLOOKUP(I110,Feuil1!$F$10:$O$24,9),IF(AND(H110>=1942,H110<1947),VLOOKUP(I110,Feuil1!$F$10:$O$24,9),IF(AND(H110>=1947,H110<1952),VLOOKUP(I110,Feuil1!$F$10:$O$24,8),IF(AND(H110>=1952,H110<1957),VLOOKUP(I110,Feuil1!$F$10:$O$24,7),IF(AND(H110>=1957,H110<1962),VLOOKUP(I110,Feuil1!$F$10:$O$24,6),IF(AND(H110>=1962,H110<1967),VLOOKUP(I110,Feuil1!$F$10:$O$24,5),IF(AND(H110>=1967,H110<1972),VLOOKUP(I110,Feuil1!$F$10:$O$24,4),IF(AND(H110>=1972,H110<1977),VLOOKUP(I110,Feuil1!$F$10:$O$24,3),IF(AND(H110>=1977,H110<1982),VLOOKUP(I110,Feuil1!$F$10:$O$24,2),VLOOKUP(I110,Feuil1!$F$10:$O$24,2)))))))))) ->  | AA110: =T110-HLOOKUP(Y110,Feuil1!$C$1:$BF$9,2,FALSE) ->  | AB110: =T110-HLOOKUP(Y110,Feuil1!$C$1:$BF$9,3,FALSE) ->  | AC110: =T110-HLOOKUP(Y110,Feuil1!$C$1:$BF$9,4,FALSE) ->  | AD110: =T110-HLOOKUP(Y110,Feuil1!$C$1:$BF$9,5,FALSE) ->  | AE110: =T110-HLOOKUP(Y110,Feuil1!$C$1:$BF$9,6,FALSE) ->  | AF110: =T110-HLOOKUP(Y110,Feuil1!$C$1:$BF$9,7,FALSE) ->  | AG110: =T110-HLOOKUP(Y110,Feuil1!$C$1:$BF$9,8,FALSE) ->  | AH110: =T110-HLOOKUP(Y110,Feuil1!$C$1:$BF$9,9,FALSE) ->  | AQ110: 2016 | AS110: =IF(AQ110,VLOOKUP(AQ110,HOM!$AR$551:$AS$606,2)) -> 3.571
A111: F | X111: FALSE | Y111: =IF(AND(H111<1936),VLOOKUP(I111,Feuil1!$F$10:$O$24,9),IF(AND(H111>=1942,H111<1947),VLOOKUP(I111,Feuil1!$F$10:$O$24,9),IF(AND(H111>=1947,H111<1952),VLOOKUP(I111,Feuil1!$F$10:$O$24,8),IF(AND(H111>=1952,H111<1957),VLOOKUP(I111,Feuil1!$F$10:$O$24,7),IF(AND(H111>=1957,H111<1962),VLOOKUP(I111,Feuil1!$F$10:$O$24,6),IF(AND(H111>=1962,H111<1967),VLOOKUP(I111,Feuil1!$F$10:$O$24,5),IF(AND(H111>=1967,H111<1972),VLOOKUP(I111,Feuil1!$F$10:$O$24,4),IF(AND(H111>=1972,H111<1977),VLOOKUP(I111,Feuil1!$F$10:$O$24,3),IF(AND(H111>=1977,H111<1982),VLOOKUP(I111,Feuil1!$F$10:$O$24,2),VLOOKUP(I111,Feuil1!$F$10:$O$24,2)))))))))) ->  | AA111: =T111-HLOOKUP(Y111,Feuil1!$C$1:$BF$9,2,FALSE) ->  | AB111: =T111-HLOOKUP(Y111,Feuil1!$C$1:$BF$9,3,FALSE) ->  | AC111: =T111-HLOOKUP(Y111,Feuil1!$C$1:$BF$9,4,FALSE) ->  | AD111: =T111-HLOOKUP(Y111,Feuil1!$C$1:$BF$9,5,FALSE) ->  | AE111: =T111-HLOOKUP(Y111,Feuil1!$C$1:$BF$9,6,FALSE) ->  | AF111: =T111-HLOOKUP(Y111,Feuil1!$C$1:$BF$9,7,FALSE) ->  | AG111: =T111-HLOOKUP(Y111,Feuil1!$C$1:$BF$9,8,FALSE) ->  | AH111: =T111-HLOOKUP(Y111,Feuil1!$C$1:$BF$9,9,FALSE) ->  | AQ111: 2016 | AS111: =IF(AQ111,VLOOKUP(AQ111,HOM!$AR$551:$AS$606,2)) -> 3.571
A112: F | X112: FALSE | Y112: =IF(AND(H112<1936),VLOOKUP(I112,Feuil1!$F$10:$O$24,9),IF(AND(H112>=1942,H112<1947),VLOOKUP(I112,Feuil1!$F$10:$O$24,9),IF(AND(H112>=1947,H112<1952),VLOOKUP(I112,Feuil1!$F$10:$O$24,8),IF(AND(H112>=1952,H112<1957),VLOOKUP(I112,Feuil1!$F$10:$O$24,7),IF(AND(H112>=1957,H112<1962),VLOOKUP(I112,Feuil1!$F$10:$O$24,6),IF(AND(H112>=1962,H112<1967),VLOOKUP(I112,Feuil1!$F$10:$O$24,5),IF(AND(H112>=1967,H112<1972),VLOOKUP(I112,Feuil1!$F$10:$O$24,4),IF(AND(H112>=1972,H112<1977),VLOOKUP(I112,Feuil1!$F$10:$O$24,3),IF(AND(H112>=1977,H112<1982),VLOOKUP(I112,Feuil1!$F$10:$O$24,2),VLOOKUP(I112,Feuil1!$F$10:$O$24,2)))))))))) ->  | AA112: =T112-HLOOKUP(Y112,Feuil1!$C$1:$BF$9,2,FALSE) ->  | AB112: =T112-HLOOKUP(Y112,Feuil1!$C$1:$BF$9,3,FALSE) ->  | AC112: =T112-HLOOKUP(Y112,Feuil1!$C$1:$BF$9,4,FALSE) ->  | AD112: =T112-HLOOKUP(Y112,Feuil1!$C$1:$BF$9,5,FALSE) ->  | AE112: =T112-HLOOKUP(Y112,Feuil1!$C$1:$BF$9,6,FALSE) ->  | AF112: =T112-HLOOKUP(Y112,Feuil1!$C$1:$BF$9,7,FALSE) ->  | AG112: =T112-HLOOKUP(Y112,Feuil1!$C$1:$BF$9,8,FALSE) ->  | AH112: =T112-HLOOKUP(Y112,Feuil1!$C$1:$BF$9,9,FALSE) ->  | AQ112: 2016 | AS112: =IF(AQ112,VLOOKUP(AQ112,HOM!$AR$551:$AS$606,2)) -> 3.571
A113: F | X113: FALSE | Y113: =IF(AND(H113<1936),VLOOKUP(I113,Feuil1!$F$10:$O$24,9),IF(AND(H113>=1942,H113<1947),VLOOKUP(I113,Feuil1!$F$10:$O$24,9),IF(AND(H113>=1947,H113<1952),VLOOKUP(I113,Feuil1!$F$10:$O$24,8),IF(AND(H113>=1952,H113<1957),VLOOKUP(I113,Feuil1!$F$10:$O$24,7),IF(AND(H113>=1957,H113<1962),VLOOKUP(I113,Feuil1!$F$10:$O$24,6),IF(AND(H113>=1962,H113<1967),VLOOKUP(I113,Feuil1!$F$10:$O$24,5),IF(AND(H113>=1967,H113<1972),VLOOKUP(I113,Feuil1!$F$10:$O$24,4),IF(AND(H113>=1972,H113<1977),VLOOKUP(I113,Feuil1!$F$10:$O$24,3),IF(AND(H113>=1977,H113<1982),VLOOKUP(I113,Feuil1!$F$10:$O$24,2),VLOOKUP(I113,Feuil1!$F$10:$O$24,2)))))))))) ->  | AA113: =T113-HLOOKUP(Y113,Feuil1!$C$1:$BF$9,2,FALSE) ->  | AB113: =T113-HLOOKUP(Y113,Feuil1!$C$1:$BF$9,3,FALSE) ->  | AC113: =T113-HLOOKUP(Y113,Feuil1!$C$1:$BF$9,4,FALSE) ->  | AD113: =T113-HLOOKUP(Y113,Feuil1!$C$1:$BF$9,5,FALSE) ->  | AE113: =T113-HLOOKUP(Y113,Feuil1!$C$1:$BF$9,6,FALSE) ->  | AF113: =T113-HLOOKUP(Y113,Feuil1!$C$1:$BF$9,7,FALSE) ->  | AG113: =T113-HLOOKUP(Y113,Feuil1!$C$1:$BF$9,8,FALSE) ->  | AH113: =T113-HLOOKUP(Y113,Feuil1!$C$1:$BF$9,9,FALSE) ->  | AQ113: 2016 | AS113: =IF(AQ113,VLOOKUP(AQ113,HOM!$AR$551:$AS$606,2)) -> 3.571
A114: F | X114: FALSE | Y114: =IF(AND(H114<1936),VLOOKUP(I114,Feuil1!$F$10:$O$24,9),IF(AND(H114>=1942,H114<1947),VLOOKUP(I114,Feuil1!$F$10:$O$24,9),IF(AND(H114>=1947,H114<1952),VLOOKUP(I114,Feuil1!$F$10:$O$24,8),IF(AND(H114>=1952,H114<1957),VLOOKUP(I114,Feuil1!$F$10:$O$24,7),IF(AND(H114>=1957,H114<1962),VLOOKUP(I114,Feuil1!$F$10:$O$24,6),IF(AND(H114>=1962,H114<1967),VLOOKUP(I114,Feuil1!$F$10:$O$24,5),IF(AND(H114>=1967,H114<1972),VLOOKUP(I114,Feuil1!$F$10:$O$24,4),IF(AND(H114>=1972,H114<1977),VLOOKUP(I114,Feuil1!$F$10:$O$24,3),IF(AND(H114>=1977,H114<1982),VLOOKUP(I114,Feuil1!$F$10:$O$24,2),VLOOKUP(I114,Feuil1!$F$10:$O$24,2)))))))))) ->  | AA114: =T114-HLOOKUP(Y114,Feuil1!$C$1:$BF$9,2,FALSE) ->  | AB114: =T114-HLOOKUP(Y114,Feuil1!$C$1:$BF$9,3,FALSE) ->  | AC114: =T114-HLOOKUP(Y114,Feuil1!$C$1:$BF$9,4,FALSE) ->  | AD114: =T114-HLOOKUP(Y114,Feuil1!$C$1:$BF$9,5,FALSE) ->  | AE114: =T114-HLOOKUP(Y114,Feuil1!$C$1:$BF$9,6,FALSE) ->  | AF114: =T114-HLOOKUP(Y114,Feuil1!$C$1:$BF$9,7,FALSE) ->  | AG114: =T114-HLOOKUP(Y114,Feuil1!$C$1:$BF$9,8,FALSE) ->  | AH114: =T114-HLOOKUP(Y114,Feuil1!$C$1:$BF$9,9,FALSE) ->  | AQ114: 2016 | AS114: =IF(AQ114,VLOOKUP(AQ114,HOM!$AR$551:$AS$606,2)) -> 3.571
A115: F | X115: FALSE | Y115: =IF(AND(H115<1936),VLOOKUP(I115,Feuil1!$F$10:$O$24,9),IF(AND(H115>=1942,H115<1947),VLOOKUP(I115,Feuil1!$F$10:$O$24,9),IF(AND(H115>=1947,H115<1952),VLOOKUP(I115,Feuil1!$F$10:$O$24,8),IF(AND(H115>=1952,H115<1957),VLOOKUP(I115,Feuil1!$F$10:$O$24,7),IF(AND(H115>=1957,H115<1962),VLOOKUP(I115,Feuil1!$F$10:$O$24,6),IF(AND(H115>=1962,H115<1967),VLOOKUP(I115,Feuil1!$F$10:$O$24,5),IF(AND(H115>=1967,H115<1972),VLOOKUP(I115,Feuil1!$F$10:$O$24,4),IF(AND(H115>=1972,H115<1977),VLOOKUP(I115,Feuil1!$F$10:$O$24,3),IF(AND(H115>=1977,H115<1982),VLOOKUP(I115,Feuil1!$F$10:$O$24,2),VLOOKUP(I115,Feuil1!$F$10:$O$24,2)))))))))) ->  | AA115: =T115-HLOOKUP(Y115,Feuil1!$C$1:$BF$9,2,FALSE) ->  | AB115: =T115-HLOOKUP(Y115,Feuil1!$C$1:$BF$9,3,FALSE) ->  | AC115: =T115-HLOOKUP(Y115,Feuil1!$C$1:$BF$9,4,FALSE) ->  | AD115: =T115-HLOOKUP(Y115,Feuil1!$C$1:$BF$9,5,FALSE) ->  | AE115: =T115-HLOOKUP(Y115,Feuil1!$C$1:$BF$9,6,FALSE) ->  | AF115: =T115-HLOOKUP(Y115,Feuil1!$C$1:$BF$9,7,FALSE) ->  | AG115: =T115-HLOOKUP(Y115,Feuil1!$C$1:$BF$9,8,FALSE) ->  | AH115: =T115-HLOOKUP(Y115,Feuil1!$C$1:$BF$9,9,FALSE) ->  | AQ115: 2016 | AS115: =IF(AQ115,VLOOKUP(AQ115,HOM!$AR$551:$AS$606,2)) -> 3.571
A116: F | X116: FALSE | Y116: =IF(AND(H116<1936),VLOOKUP(I116,Feuil1!$F$10:$O$24,9),IF(AND(H116>=1942,H116<1947),VLOOKUP(I116,Feuil1!$F$10:$O$24,9),IF(AND(H116>=1947,H116<1952),VLOOKUP(I116,Feuil1!$F$10:$O$24,8),IF(AND(H116>=1952,H116<1957),VLOOKUP(I116,Feuil1!$F$10:$O$24,7),IF(AND(H116>=1957,H116<1962),VLOOKUP(I116,Feuil1!$F$10:$O$24,6),IF(AND(H116>=1962,H116<1967),VLOOKUP(I116,Feuil1!$F$10:$O$24,5),IF(AND(H116>=1967,H116<1972),VLOOKUP(I116,Feuil1!$F$10:$O$24,4),IF(AND(H116>=1972,H116<1977),VLOOKUP(I116,Feuil1!$F$10:$O$24,3),IF(AND(H116>=1977,H116<1982),VLOOKUP(I116,Feuil1!$F$10:$O$24,2),VLOOKUP(I116,Feuil1!$F$10:$O$24,2)))))))))) ->  | AA116: =T116-HLOOKUP(Y116,Feuil1!$C$1:$BF$9,2,FALSE) ->  | AB116: =T116-HLOOKUP(Y116,Feuil1!$C$1:$BF$9,3,FALSE) ->  | AC116: =T116-HLOOKUP(Y116,Feuil1!$C$1:$BF$9,4,FALSE) ->  | AD116: =T116-HLOOKUP(Y116,Feuil1!$C$1:$BF$9,5,FALSE) ->  | AE116: =T116-HLOOKUP(Y116,Feuil1!$C$1:$BF$9,6,FALSE) ->  | AF116: =T116-HLOOKUP(Y116,Feuil1!$C$1:$BF$9,7,FALSE) ->  | AG116: =T116-HLOOKUP(Y116,Feuil1!$C$1:$BF$9,8,FALSE) ->  | AH116: =T116-HLOOKUP(Y116,Feuil1!$C$1:$BF$9,9,FALSE) ->  | AQ116: 2016 | AS116: =IF(AQ116,VLOOKUP(AQ116,HOM!$AR$551:$AS$606,2)) -> 3.571
A117: F | X117: FALSE | Y117: =IF(AND(H117<1936),VLOOKUP(I117,Feuil1!$F$10:$O$24,9),IF(AND(H117>=1942,H117<1947),VLOOKUP(I117,Feuil1!$F$10:$O$24,9),IF(AND(H117>=1947,H117<1952),VLOOKUP(I117,Feuil1!$F$10:$O$24,8),IF(AND(H117>=1952,H117<1957),VLOOKUP(I117,Feuil1!$F$10:$O$24,7),IF(AND(H117>=1957,H117<1962),VLOOKUP(I117,Feuil1!$F$10:$O$24,6),IF(AND(H117>=1962,H117<1967),VLOOKUP(I117,Feuil1!$F$10:$O$24,5),IF(AND(H117>=1967,H117<1972),VLOOKUP(I117,Feuil1!$F$10:$O$24,4),IF(AND(H117>=1972,H117<1977),VLOOKUP(I117,Feuil1!$F$10:$O$24,3),IF(AND(H117>=1977,H117<1982),VLOOKUP(I117,Feuil1!$F$10:$O$24,2),VLOOKUP(I117,Feuil1!$F$10:$O$24,2)))))))))) ->  | AA117: =T117-HLOOKUP(Y117,Feuil1!$C$1:$BF$9,2,FALSE) ->  | AB117: =T117-HLOOKUP(Y117,Feuil1!$C$1:$BF$9,3,FALSE) ->  | AC117: =T117-HLOOKUP(Y117,Feuil1!$C$1:$BF$9,4,FALSE) ->  | AD117: =T117-HLOOKUP(Y117,Feuil1!$C$1:$BF$9,5,FALSE) ->  | AE117: =T117-HLOOKUP(Y117,Feuil1!$C$1:$BF$9,6,FALSE) ->  | AF117: =T117-HLOOKUP(Y117,Feuil1!$C$1:$BF$9,7,FALSE) ->  | AG117: =T117-HLOOKUP(Y117,Feuil1!$C$1:$BF$9,8,FALSE) ->  | AH117: =T117-HLOOKUP(Y117,Feuil1!$C$1:$BF$9,9,FALSE) ->  | AQ117: 2016 | AS117: =IF(AQ117,VLOOKUP(AQ117,HOM!$AR$551:$AS$606,2)) -> 3.571
A118: F | X118: FALSE | Y118: =IF(AND(H118<1936),VLOOKUP(I118,Feuil1!$F$10:$O$24,9),IF(AND(H118>=1942,H118<1947),VLOOKUP(I118,Feuil1!$F$10:$O$24,9),IF(AND(H118>=1947,H118<1952),VLOOKUP(I118,Feuil1!$F$10:$O$24,8),IF(AND(H118>=1952,H118<1957),VLOOKUP(I118,Feuil1!$F$10:$O$24,7),IF(AND(H118>=1957,H118<1962),VLOOKUP(I118,Feuil1!$F$10:$O$24,6),IF(AND(H118>=1962,H118<1967),VLOOKUP(I118,Feuil1!$F$10:$O$24,5),IF(AND(H118>=1967,H118<1972),VLOOKUP(I118,Feuil1!$F$10:$O$24,4),IF(AND(H118>=1972,H118<1977),VLOOKUP(I118,Feuil1!$F$10:$O$24,3),IF(AND(H118>=1977,H118<1982),VLOOKUP(I118,Feuil1!$F$10:$O$24,2),VLOOKUP(I118,Feuil1!$F$10:$O$24,2)))))))))) ->  | AA118: =T118-HLOOKUP(Y118,Feuil1!$C$1:$BF$9,2,FALSE) ->  | AB118: =T118-HLOOKUP(Y118,Feuil1!$C$1:$BF$9,3,FALSE) ->  | AC118: =T118-HLOOKUP(Y118,Feuil1!$C$1:$BF$9,4,FALSE) ->  | AD118: =T118-HLOOKUP(Y118,Feuil1!$C$1:$BF$9,5,FALSE) ->  | AE118: =T118-HLOOKUP(Y118,Feuil1!$C$1:$BF$9,6,FALSE) ->  | AF118: =T118-HLOOKUP(Y118,Feuil1!$C$1:$BF$9,7,FALSE) ->  | AG118: =T118-HLOOKUP(Y118,Feuil1!$C$1:$BF$9,8,FALSE) ->  | AH118: =T118-HLOOKUP(Y118,Feuil1!$C$1:$BF$9,9,FALSE) ->  | AQ118: 2016 | AS118: =IF(AQ118,VLOOKUP(AQ118,HOM!$AR$551:$AS$606,2)) -> 3.571
A119: F | X119: FALSE | Y119: =IF(AND(H119<1936),VLOOKUP(I119,Feuil1!$F$10:$O$24,9),IF(AND(H119>=1942,H119<1947),VLOOKUP(I119,Feuil1!$F$10:$O$24,9),IF(AND(H119>=1947,H119<1952),VLOOKUP(I119,Feuil1!$F$10:$O$24,8),IF(AND(H119>=1952,H119<1957),VLOOKUP(I119,Feuil1!$F$10:$O$24,7),IF(AND(H119>=1957,H119<1962),VLOOKUP(I119,Feuil1!$F$10:$O$24,6),IF(AND(H119>=1962,H119<1967),VLOOKUP(I119,Feuil1!$F$10:$O$24,5),IF(AND(H119>=1967,H119<1972),VLOOKUP(I119,Feuil1!$F$10:$O$24,4),IF(AND(H119>=1972,H119<1977),VLOOKUP(I119,Feuil1!$F$10:$O$24,3),IF(AND(H119>=1977,H119<1982),VLOOKUP(I119,Feuil1!$F$10:$O$24,2),VLOOKUP(I119,Feuil1!$F$10:$O$24,2)))))))))) ->  | AA119: =T119-HLOOKUP(Y119,Feuil1!$C$1:$BF$9,2,FALSE) ->  | AB119: =T119-HLOOKUP(Y119,Feuil1!$C$1:$BF$9,3,FALSE) ->  | AC119: =T119-HLOOKUP(Y119,Feuil1!$C$1:$BF$9,4,FALSE) ->  | AD119: =T119-HLOOKUP(Y119,Feuil1!$C$1:$BF$9,5,FALSE) ->  | AE119: =T119-HLOOKUP(Y119,Feuil1!$C$1:$BF$9,6,FALSE) ->  | AF119: =T119-HLOOKUP(Y119,Feuil1!$C$1:$BF$9,7,FALSE) ->  | AG119: =T119-HLOOKUP(Y119,Feuil1!$C$1:$BF$9,8,FALSE) ->  | AH119: =T119-HLOOKUP(Y119,Feuil1!$C$1:$BF$9,9,FALSE) ->  | AQ119: 2016 | AS119: =IF(AQ119,VLOOKUP(AQ119,HOM!$AR$551:$AS$606,2)) -> 3.571
A120: F | X120: FALSE | Y120: =IF(AND(H120<1936),VLOOKUP(I120,Feuil1!$F$10:$O$24,9),IF(AND(H120>=1942,H120<1947),VLOOKUP(I120,Feuil1!$F$10:$O$24,9),IF(AND(H120>=1947,H120<1952),VLOOKUP(I120,Feuil1!$F$10:$O$24,8),IF(AND(H120>=1952,H120<1957),VLOOKUP(I120,Feuil1!$F$10:$O$24,7),IF(AND(H120>=1957,H120<1962),VLOOKUP(I120,Feuil1!$F$10:$O$24,6),IF(AND(H120>=1962,H120<1967),VLOOKUP(I120,Feuil1!$F$10:$O$24,5),IF(AND(H120>=1967,H120<1972),VLOOKUP(I120,Feuil1!$F$10:$O$24,4),IF(AND(H120>=1972,H120<1977),VLOOKUP(I120,Feuil1!$F$10:$O$24,3),IF(AND(H120>=1977,H120<1982),VLOOKUP(I120,Feuil1!$F$10:$O$24,2),VLOOKUP(I120,Feuil1!$F$10:$O$24,2)))))))))) ->  | AA120: =T120-HLOOKUP(Y120,Feuil1!$C$1:$BF$9,2,FALSE) ->  | AB120: =T120-HLOOKUP(Y120,Feuil1!$C$1:$BF$9,3,FALSE) ->  | AC120: =T120-HLOOKUP(Y120,Feuil1!$C$1:$BF$9,4,FALSE) ->  | AD120: =T120-HLOOKUP(Y120,Feuil1!$C$1:$BF$9,5,FALSE) ->  | AE120: =T120-HLOOKUP(Y120,Feuil1!$C$1:$BF$9,6,FALSE) ->  | AF120: =T120-HLOOKUP(Y120,Feuil1!$C$1:$BF$9,7,FALSE) ->  | AG120: =T120-HLOOKUP(Y120,Feuil1!$C$1:$BF$9,8,FALSE) ->  | AH120: =T120-HLOOKUP(Y120,Feuil1!$C$1:$BF$9,9,FALSE) ->  | AQ120: 2016 | AS120: =IF(AQ120,VLOOKUP(AQ120,HOM!$AR$551:$AS$606,2)) -> 3.571
A121: F | X121: FALSE | Y121: =IF(AND(H121<1936),VLOOKUP(I121,Feuil1!$F$10:$O$24,9),IF(AND(H121>=1942,H121<1947),VLOOKUP(I121,Feuil1!$F$10:$O$24,9),IF(AND(H121>=1947,H121<1952),VLOOKUP(I121,Feuil1!$F$10:$O$24,8),IF(AND(H121>=1952,H121<1957),VLOOKUP(I121,Feuil1!$F$10:$O$24,7),IF(AND(H121>=1957,H121<1962),VLOOKUP(I121,Feuil1!$F$10:$O$24,6),IF(AND(H121>=1962,H121<1967),VLOOKUP(I121,Feuil1!$F$10:$O$24,5),IF(AND(H121>=1967,H121<1972),VLOOKUP(I121,Feuil1!$F$10:$O$24,4),IF(AND(H121>=1972,H121<1977),VLOOKUP(I121,Feuil1!$F$10:$O$24,3),IF(AND(H121>=1977,H121<1982),VLOOKUP(I121,Feuil1!$F$10:$O$24,2),VLOOKUP(I121,Feuil1!$F$10:$O$24,2)))))))))) ->  | AA121: =T121-HLOOKUP(Y121,Feuil1!$C$1:$BF$9,2,FALSE) ->  | AB121: =T121-HLOOKUP(Y121,Feuil1!$C$1:$BF$9,3,FALSE) ->  | AC121: =T121-HLOOKUP(Y121,Feuil1!$C$1:$BF$9,4,FALSE) ->  | AD121: =T121-HLOOKUP(Y121,Feuil1!$C$1:$BF$9,5,FALSE) ->  | AE121: =T121-HLOOKUP(Y121,Feuil1!$C$1:$BF$9,6,FALSE) ->  | AF121: =T121-HLOOKUP(Y121,Feuil1!$C$1:$BF$9,7,FALSE) ->  | AG121: =T121-HLOOKUP(Y121,Feuil1!$C$1:$BF$9,8,FALSE) ->  | AH121: =T121-HLOOKUP(Y121,Feuil1!$C$1:$BF$9,9,FALSE) ->  | AQ121: 2016 | AS121: =IF(AQ121,VLOOKUP(AQ121,HOM!$AR$551:$AS$606,2)) -> 3.571
A122: F | X122: FALSE | Y122: =IF(AND(H122<1936),VLOOKUP(I122,Feuil1!$F$10:$O$24,9),IF(AND(H122>=1942,H122<1947),VLOOKUP(I122,Feuil1!$F$10:$O$24,9),IF(AND(H122>=1947,H122<1952),VLOOKUP(I122,Feuil1!$F$10:$O$24,8),IF(AND(H122>=1952,H122<1957),VLOOKUP(I122,Feuil1!$F$10:$O$24,7),IF(AND(H122>=1957,H122<1962),VLOOKUP(I122,Feuil1!$F$10:$O$24,6),IF(AND(H122>=1962,H122<1967),VLOOKUP(I122,Feuil1!$F$10:$O$24,5),IF(AND(H122>=1967,H122<1972),VLOOKUP(I122,Feuil1!$F$10:$O$24,4),IF(AND(H122>=1972,H122<1977),VLOOKUP(I122,Feuil1!$F$10:$O$24,3),IF(AND(H122>=1977,H122<1982),VLOOKUP(I122,Feuil1!$F$10:$O$24,2),VLOOKUP(I122,Feuil1!$F$10:$O$24,2)))))))))) ->  | AA122: =T122-HLOOKUP(Y122,Feuil1!$C$1:$BF$9,2,FALSE) ->  | AB122: =T122-HLOOKUP(Y122,Feuil1!$C$1:$BF$9,3,FALSE) ->  | AC122: =T122-HLOOKUP(Y122,Feuil1!$C$1:$BF$9,4,FALSE) ->  | AD122: =T122-HLOOKUP(Y122,Feuil1!$C$1:$BF$9,5,FALSE) ->  | AE122: =T122-HLOOKUP(Y122,Feuil1!$C$1:$BF$9,6,FALSE) ->  | AF122: =T122-HLOOKUP(Y122,Feuil1!$C$1:$BF$9,7,FALSE) ->  | AG122: =T122-HLOOKUP(Y122,Feuil1!$C$1:$BF$9,8,FALSE) ->  | AH122: =T122-HLOOKUP(Y122,Feuil1!$C$1:$BF$9,9,FALSE) ->  | AQ122: 2016 | AS122: =IF(AQ122,VLOOKUP(AQ122,HOM!$AR$551:$AS$606,2)) -> 3.571
A123: F | X123: FALSE | Y123: =IF(AND(H123<1936),VLOOKUP(I123,Feuil1!$F$10:$O$24,9),IF(AND(H123>=1942,H123<1947),VLOOKUP(I123,Feuil1!$F$10:$O$24,9),IF(AND(H123>=1947,H123<1952),VLOOKUP(I123,Feuil1!$F$10:$O$24,8),IF(AND(H123>=1952,H123<1957),VLOOKUP(I123,Feuil1!$F$10:$O$24,7),IF(AND(H123>=1957,H123<1962),VLOOKUP(I123,Feuil1!$F$10:$O$24,6),IF(AND(H123>=1962,H123<1967),VLOOKUP(I123,Feuil1!$F$10:$O$24,5),IF(AND(H123>=1967,H123<1972),VLOOKUP(I123,Feuil1!$F$10:$O$24,4),IF(AND(H123>=1972,H123<1977),VLOOKUP(I123,Feuil1!$F$10:$O$24,3),IF(AND(H123>=1977,H123<1982),VLOOKUP(I123,Feuil1!$F$10:$O$24,2),VLOOKUP(I123,Feuil1!$F$10:$O$24,2)))))))))) ->  | AA123: =T123-HLOOKUP(Y123,Feuil1!$C$1:$BF$9,2,FALSE) ->  | AB123: =T123-HLOOKUP(Y123,Feuil1!$C$1:$BF$9,3,FALSE) ->  | AC123: =T123-HLOOKUP(Y123,Feuil1!$C$1:$BF$9,4,FALSE) ->  | AD123: =T123-HLOOKUP(Y123,Feuil1!$C$1:$BF$9,5,FALSE) ->  | AE123: =T123-HLOOKUP(Y123,Feuil1!$C$1:$BF$9,6,FALSE) ->  | AF123: =T123-HLOOKUP(Y123,Feuil1!$C$1:$BF$9,7,FALSE) ->  | AG123: =T123-HLOOKUP(Y123,Feuil1!$C$1:$BF$9,8,FALSE) ->  | AH123: =T123-HLOOKUP(Y123,Feuil1!$C$1:$BF$9,9,FALSE) ->  | AQ123: 2016 | AS123: =IF(AQ123,VLOOKUP(AQ123,HOM!$AR$551:$AS$606,2)) -> 3.571
A124: F | X124: FALSE | Y124: =IF(AND(H124<1936),VLOOKUP(I124,Feuil1!$F$10:$O$24,9),IF(AND(H124>=1942,H124<1947),VLOOKUP(I124,Feuil1!$F$10:$O$24,9),IF(AND(H124>=1947,H124<1952),VLOOKUP(I124,Feuil1!$F$10:$O$24,8),IF(AND(H124>=1952,H124<1957),VLOOKUP(I124,Feuil1!$F$10:$O$24,7),IF(AND(H124>=1957,H124<1962),VLOOKUP(I124,Feuil1!$F$10:$O$24,6),IF(AND(H124>=1962,H124<1967),VLOOKUP(I124,Feuil1!$F$10:$O$24,5),IF(AND(H124>=1967,H124<1972),VLOOKUP(I124,Feuil1!$F$10:$O$24,4),IF(AND(H124>=1972,H124<1977),VLOOKUP(I124,Feuil1!$F$10:$O$24,3),IF(AND(H124>=1977,H124<1982),VLOOKUP(I124,Feuil1!$F$10:$O$24,2),VLOOKUP(I124,Feuil1!$F$10:$O$24,2)))))))))) ->  | AA124: =T124-HLOOKUP(Y124,Feuil1!$C$1:$BF$9,2,FALSE) ->  | AB124: =T124-HLOOKUP(Y124,Feuil1!$C$1:$BF$9,3,FALSE) ->  | AC124: =T124-HLOOKUP(Y124,Feuil1!$C$1:$BF$9,4,FALSE) ->  | AD124: =T124-HLOOKUP(Y124,Feuil1!$C$1:$BF$9,5,FALSE) ->  | AE124: =T124-HLOOKUP(Y124,Feuil1!$C$1:$BF$9,6,FALSE) ->  | AF124: =T124-HLOOKUP(Y124,Feuil1!$C$1:$BF$9,7,FALSE) ->  | AG124: =T124-HLOOKUP(Y124,Feuil1!$C$1:$BF$9,8,FALSE) ->  | AH124: =T124-HLOOKUP(Y124,Feuil1!$C$1:$BF$9,9,FALSE) ->  | AQ124: 2016 | AS124: =IF(AQ124,VLOOKUP(AQ124,HOM!$AR$551:$AS$606,2)) -> 3.571
A125: F | X125: FALSE | Y125: =IF(AND(H125<1936),VLOOKUP(I125,Feuil1!$F$10:$O$24,9),IF(AND(H125>=1942,H125<1947),VLOOKUP(I125,Feuil1!$F$10:$O$24,9),IF(AND(H125>=1947,H125<1952),VLOOKUP(I125,Feuil1!$F$10:$O$24,8),IF(AND(H125>=1952,H125<1957),VLOOKUP(I125,Feuil1!$F$10:$O$24,7),IF(AND(H125>=1957,H125<1962),VLOOKUP(I125,Feuil1!$F$10:$O$24,6),IF(AND(H125>=1962,H125<1967),VLOOKUP(I125,Feuil1!$F$10:$O$24,5),IF(AND(H125>=1967,H125<1972),VLOOKUP(I125,Feuil1!$F$10:$O$24,4),IF(AND(H125>=1972,H125<1977),VLOOKUP(I125,Feuil1!$F$10:$O$24,3),IF(AND(H125>=1977,H125<1982),VLOOKUP(I125,Feuil1!$F$10:$O$24,2),VLOOKUP(I125,Feuil1!$F$10:$O$24,2)))))))))) ->  | AA125: =T125-HLOOKUP(Y125,Feuil1!$C$1:$BF$9,2,FALSE) ->  | AB125: =T125-HLOOKUP(Y125,Feuil1!$C$1:$BF$9,3,FALSE) ->  | AC125: =T125-HLOOKUP(Y125,Feuil1!$C$1:$BF$9,4,FALSE) ->  | AD125: =T125-HLOOKUP(Y125,Feuil1!$C$1:$BF$9,5,FALSE) ->  | AE125: =T125-HLOOKUP(Y125,Feuil1!$C$1:$BF$9,6,FALSE) ->  | AF125: =T125-HLOOKUP(Y125,Feuil1!$C$1:$BF$9,7,FALSE) ->  | AG125: =T125-HLOOKUP(Y125,Feuil1!$C$1:$BF$9,8,FALSE) ->  | AH125: =T125-HLOOKUP(Y125,Feuil1!$C$1:$BF$9,9,FALSE) ->  | AQ125: 2016 | AS125: =IF(AQ125,VLOOKUP(AQ125,HOM!$AR$551:$AS$606,2)) -> 3.571
A126: F | X126: FALSE | Y126: =IF(AND(H126<1936),VLOOKUP(I126,Feuil1!$F$10:$O$24,9),IF(AND(H126>=1942,H126<1947),VLOOKUP(I126,Feuil1!$F$10:$O$24,9),IF(AND(H126>=1947,H126<1952),VLOOKUP(I126,Feuil1!$F$10:$O$24,8),IF(AND(H126>=1952,H126<1957),VLOOKUP(I126,Feuil1!$F$10:$O$24,7),IF(AND(H126>=1957,H126<1962),VLOOKUP(I126,Feuil1!$F$10:$O$24,6),IF(AND(H126>=1962,H126<1967),VLOOKUP(I126,Feuil1!$F$10:$O$24,5),IF(AND(H126>=1967,H126<1972),VLOOKUP(I126,Feuil1!$F$10:$O$24,4),IF(AND(H126>=1972,H126<1977),VLOOKUP(I126,Feuil1!$F$10:$O$24,3),IF(AND(H126>=1977,H126<1982),VLOOKUP(I126,Feuil1!$F$10:$O$24,2),VLOOKUP(I126,Feuil1!$F$10:$O$24,2)))))))))) ->  | AA126: =T126-HLOOKUP(Y126,Feuil1!$C$1:$BF$9,2,FALSE) ->  | AB126: =T126-HLOOKUP(Y126,Feuil1!$C$1:$BF$9,3,FALSE) ->  | AC126: =T126-HLOOKUP(Y126,Feuil1!$C$1:$BF$9,4,FALSE) ->  | AD126: =T126-HLOOKUP(Y126,Feuil1!$C$1:$BF$9,5,FALSE) ->  | AE126: =T126-HLOOKUP(Y126,Feuil1!$C$1:$BF$9,6,FALSE) ->  | AF126: =T126-HLOOKUP(Y126,Feuil1!$C$1:$BF$9,7,FALSE) ->  | AG126: =T126-HLOOKUP(Y126,Feuil1!$C$1:$BF$9,8,FALSE) ->  | AH126: =T126-HLOOKUP(Y126,Feuil1!$C$1:$BF$9,9,FALSE) ->  | AQ126: 2016 | AS126: =IF(AQ126,VLOOKUP(AQ126,HOM!$AR$551:$AS$606,2)) -> 3.571
A127: F | X127: FALSE | Y127: =IF(AND(H127<1936),VLOOKUP(I127,Feuil1!$F$10:$O$24,9),IF(AND(H127>=1942,H127<1947),VLOOKUP(I127,Feuil1!$F$10:$O$24,9),IF(AND(H127>=1947,H127<1952),VLOOKUP(I127,Feuil1!$F$10:$O$24,8),IF(AND(H127>=1952,H127<1957),VLOOKUP(I127,Feuil1!$F$10:$O$24,7),IF(AND(H127>=1957,H127<1962),VLOOKUP(I127,Feuil1!$F$10:$O$24,6),IF(AND(H127>=1962,H127<1967),VLOOKUP(I127,Feuil1!$F$10:$O$24,5),IF(AND(H127>=1967,H127<1972),VLOOKUP(I127,Feuil1!$F$10:$O$24,4),IF(AND(H127>=1972,H127<1977),VLOOKUP(I127,Feuil1!$F$10:$O$24,3),IF(AND(H127>=1977,H127<1982),VLOOKUP(I127,Feuil1!$F$10:$O$24,2),VLOOKUP(I127,Feuil1!$F$10:$O$24,2)))))))))) ->  | AA127: =T127-HLOOKUP(Y127,Feuil1!$C$1:$BF$9,2,FALSE) ->  | AB127: =T127-HLOOKUP(Y127,Feuil1!$C$1:$BF$9,3,FALSE) ->  | AC127: =T127-HLOOKUP(Y127,Feuil1!$C$1:$BF$9,4,FALSE) ->  | AD127: =T127-HLOOKUP(Y127,Feuil1!$C$1:$BF$9,5,FALSE) ->  | AE127: =T127-HLOOKUP(Y127,Feuil1!$C$1:$BF$9,6,FALSE) ->  | AF127: =T127-HLOOKUP(Y127,Feuil1!$C$1:$BF$9,7,FALSE) ->  | AG127: =T127-HLOOKUP(Y127,Feuil1!$C$1:$BF$9,8,FALSE) ->  | AH127: =T127-HLOOKUP(Y127,Feuil1!$C$1:$BF$9,9,FALSE) ->  | AQ127: 2016 | AS127: =IF(AQ127,VLOOKUP(AQ127,HOM!$AR$551:$AS$606,2)) -> 3.571
A128: F | X128: FALSE | Y128: =IF(AND(H128<1936),VLOOKUP(I128,Feuil1!$F$10:$O$24,9),IF(AND(H128>=1942,H128<1947),VLOOKUP(I128,Feuil1!$F$10:$O$24,9),IF(AND(H128>=1947,H128<1952),VLOOKUP(I128,Feuil1!$F$10:$O$24,8),IF(AND(H128>=1952,H128<1957),VLOOKUP(I128,Feuil1!$F$10:$O$24,7),IF(AND(H128>=1957,H128<1962),VLOOKUP(I128,Feuil1!$F$10:$O$24,6),IF(AND(H128>=1962,H128<1967),VLOOKUP(I128,Feuil1!$F$10:$O$24,5),IF(AND(H128>=1967,H128<1972),VLOOKUP(I128,Feuil1!$F$10:$O$24,4),IF(AND(H128>=1972,H128<1977),VLOOKUP(I128,Feuil1!$F$10:$O$24,3),IF(AND(H128>=1977,H128<1982),VLOOKUP(I128,Feuil1!$F$10:$O$24,2),VLOOKUP(I128,Feuil1!$F$10:$O$24,2)))))))))) ->  | AA128: =T128-HLOOKUP(Y128,Feuil1!$C$1:$BF$9,2,FALSE) ->  | AB128: =T128-HLOOKUP(Y128,Feuil1!$C$1:$BF$9,3,FALSE) ->  | AC128: =T128-HLOOKUP(Y128,Feuil1!$C$1:$BF$9,4,FALSE) ->  | AD128: =T128-HLOOKUP(Y128,Feuil1!$C$1:$BF$9,5,FALSE) ->  | AE128: =T128-HLOOKUP(Y128,Feuil1!$C$1:$BF$9,6,FALSE) ->  | AF128: =T128-HLOOKUP(Y128,Feuil1!$C$1:$BF$9,7,FALSE) ->  | AG128: =T128-HLOOKUP(Y128,Feuil1!$C$1:$BF$9,8,FALSE) ->  | AH128: =T128-HLOOKUP(Y128,Feuil1!$C$1:$BF$9,9,FALSE) ->  | AQ128: 2016 | AS128: =IF(AQ128,VLOOKUP(AQ128,HOM!$AR$551:$AS$606,2)) -> 3.571
A129: F | X129: FALSE | Y129: =IF(AND(H129<1936),VLOOKUP(I129,Feuil1!$F$10:$O$24,9),IF(AND(H129>=1942,H129<1947),VLOOKUP(I129,Feuil1!$F$10:$O$24,9),IF(AND(H129>=1947,H129<1952),VLOOKUP(I129,Feuil1!$F$10:$O$24,8),IF(AND(H129>=1952,H129<1957),VLOOKUP(I129,Feuil1!$F$10:$O$24,7),IF(AND(H129>=1957,H129<1962),VLOOKUP(I129,Feuil1!$F$10:$O$24,6),IF(AND(H129>=1962,H129<1967),VLOOKUP(I129,Feuil1!$F$10:$O$24,5),IF(AND(H129>=1967,H129<1972),VLOOKUP(I129,Feuil1!$F$10:$O$24,4),IF(AND(H129>=1972,H129<1977),VLOOKUP(I129,Feuil1!$F$10:$O$24,3),IF(AND(H129>=1977,H129<1982),VLOOKUP(I129,Feuil1!$F$10:$O$24,2),VLOOKUP(I129,Feuil1!$F$10:$O$24,2)))))))))) ->  | AA129: =T129-HLOOKUP(Y129,Feuil1!$C$1:$BF$9,2,FALSE) ->  | AB129: =T129-HLOOKUP(Y129,Feuil1!$C$1:$BF$9,3,FALSE) ->  | AC129: =T129-HLOOKUP(Y129,Feuil1!$C$1:$BF$9,4,FALSE) ->  | AD129: =T129-HLOOKUP(Y129,Feuil1!$C$1:$BF$9,5,FALSE) ->  | AE129: =T129-HLOOKUP(Y129,Feuil1!$C$1:$BF$9,6,FALSE) ->  | AF129: =T129-HLOOKUP(Y129,Feuil1!$C$1:$BF$9,7,FALSE) ->  | AG129: =T129-HLOOKUP(Y129,Feuil1!$C$1:$BF$9,8,FALSE) ->  | AH129: =T129-HLOOKUP(Y129,Feuil1!$C$1:$BF$9,9,FALSE) ->  | AQ129: 2016 | AS129: =IF(AQ129,VLOOKUP(AQ129,HOM!$AR$551:$AS$606,2)) -> 3.571
A130: F | X130: FALSE | Y130: =IF(AND(H130<1936),VLOOKUP(I130,Feuil1!$F$10:$O$24,9),IF(AND(H130>=1942,H130<1947),VLOOKUP(I130,Feuil1!$F$10:$O$24,9),IF(AND(H130>=1947,H130<1952),VLOOKUP(I130,Feuil1!$F$10:$O$24,8),IF(AND(H130>=1952,H130<1957),VLOOKUP(I130,Feuil1!$F$10:$O$24,7),IF(AND(H130>=1957,H130<1962),VLOOKUP(I130,Feuil1!$F$10:$O$24,6),IF(AND(H130>=1962,H130<1967),VLOOKUP(I130,Feuil1!$F$10:$O$24,5),IF(AND(H130>=1967,H130<1972),VLOOKUP(I130,Feuil1!$F$10:$O$24,4),IF(AND(H130>=1972,H130<1977),VLOOKUP(I130,Feuil1!$F$10:$O$24,3),IF(AND(H130>=1977,H130<1982),VLOOKUP(I130,Feuil1!$F$10:$O$24,2),VLOOKUP(I130,Feuil1!$F$10:$O$24,2)))))))))) ->  | AA130: =T130-HLOOKUP(Y130,Feuil1!$C$1:$BF$9,2,FALSE) ->  | AB130: =T130-HLOOKUP(Y130,Feuil1!$C$1:$BF$9,3,FALSE) ->  | AC130: =T130-HLOOKUP(Y130,Feuil1!$C$1:$BF$9,4,FALSE) ->  | AD130: =T130-HLOOKUP(Y130,Feuil1!$C$1:$BF$9,5,FALSE) ->  | AE130: =T130-HLOOKUP(Y130,Feuil1!$C$1:$BF$9,6,FALSE) ->  | AF130: =T130-HLOOKUP(Y130,Feuil1!$C$1:$BF$9,7,FALSE) ->  | AG130: =T130-HLOOKUP(Y130,Feuil1!$C$1:$BF$9,8,FALSE) ->  | AH130: =T130-HLOOKUP(Y130,Feuil1!$C$1:$BF$9,9,FALSE) ->  | AQ130: 2016 | AS130: =IF(AQ130,VLOOKUP(AQ130,HOM!$AR$551:$AS$606,2)) -> 3.571
A131: F | X131: FALSE | Y131: =IF(AND(H131<1936),VLOOKUP(I131,Feuil1!$F$10:$O$24,9),IF(AND(H131>=1942,H131<1947),VLOOKUP(I131,Feuil1!$F$10:$O$24,9),IF(AND(H131>=1947,H131<1952),VLOOKUP(I131,Feuil1!$F$10:$O$24,8),IF(AND(H131>=1952,H131<1957),VLOOKUP(I131,Feuil1!$F$10:$O$24,7),IF(AND(H131>=1957,H131<1962),VLOOKUP(I131,Feuil1!$F$10:$O$24,6),IF(AND(H131>=1962,H131<1967),VLOOKUP(I131,Feuil1!$F$10:$O$24,5),IF(AND(H131>=1967,H131<1972),VLOOKUP(I131,Feuil1!$F$10:$O$24,4),IF(AND(H131>=1972,H131<1977),VLOOKUP(I131,Feuil1!$F$10:$O$24,3),IF(AND(H131>=1977,H131<1982),VLOOKUP(I131,Feuil1!$F$10:$O$24,2),VLOOKUP(I131,Feuil1!$F$10:$O$24,2)))))))))) ->  | AA131: =T131-HLOOKUP(Y131,Feuil1!$C$1:$BF$9,2,FALSE) ->  | AB131: =T131-HLOOKUP(Y131,Feuil1!$C$1:$BF$9,3,FALSE) ->  | AC131: =T131-HLOOKUP(Y131,Feuil1!$C$1:$BF$9,4,FALSE) ->  | AD131: =T131-HLOOKUP(Y131,Feuil1!$C$1:$BF$9,5,FALSE) ->  | AE131: =T131-HLOOKUP(Y131,Feuil1!$C$1:$BF$9,6,FALSE) ->  | AF131: =T131-HLOOKUP(Y131,Feuil1!$C$1:$BF$9,7,FALSE) ->  | AG131: =T131-HLOOKUP(Y131,Feuil1!$C$1:$BF$9,8,FALSE) ->  | AH131: =T131-HLOOKUP(Y131,Feuil1!$C$1:$BF$9,9,FALSE) ->  | AQ131: 2016 | AS131: =IF(AQ131,VLOOKUP(AQ131,HOM!$AR$551:$AS$606,2)) -> 3.571
A132: F | X132: FALSE | Y132: =IF(AND(H132<1936),VLOOKUP(I132,Feuil1!$F$10:$O$24,9),IF(AND(H132>=1942,H132<1947),VLOOKUP(I132,Feuil1!$F$10:$O$24,9),IF(AND(H132>=1947,H132<1952),VLOOKUP(I132,Feuil1!$F$10:$O$24,8),IF(AND(H132>=1952,H132<1957),VLOOKUP(I132,Feuil1!$F$10:$O$24,7),IF(AND(H132>=1957,H132<1962),VLOOKUP(I132,Feuil1!$F$10:$O$24,6),IF(AND(H132>=1962,H132<1967),VLOOKUP(I132,Feuil1!$F$10:$O$24,5),IF(AND(H132>=1967,H132<1972),VLOOKUP(I132,Feuil1!$F$10:$O$24,4),IF(AND(H132>=1972,H132<1977),VLOOKUP(I132,Feuil1!$F$10:$O$24,3),IF(AND(H132>=1977,H132<1982),VLOOKUP(I132,Feuil1!$F$10:$O$24,2),VLOOKUP(I132,Feuil1!$F$10:$O$24,2)))))))))) ->  | AA132: =T132-HLOOKUP(Y132,Feuil1!$C$1:$BF$9,2,FALSE) ->  | AB132: =T132-HLOOKUP(Y132,Feuil1!$C$1:$BF$9,3,FALSE) ->  | AC132: =T132-HLOOKUP(Y132,Feuil1!$C$1:$BF$9,4,FALSE) ->  | AD132: =T132-HLOOKUP(Y132,Feuil1!$C$1:$BF$9,5,FALSE) ->  | AE132: =T132-HLOOKUP(Y132,Feuil1!$C$1:$BF$9,6,FALSE) ->  | AF132: =T132-HLOOKUP(Y132,Feuil1!$C$1:$BF$9,7,FALSE) ->  | AG132: =T132-HLOOKUP(Y132,Feuil1!$C$1:$BF$9,8,FALSE) ->  | AH132: =T132-HLOOKUP(Y132,Feuil1!$C$1:$BF$9,9,FALSE) ->  | AQ132: 2016 | AS132: =IF(AQ132,VLOOKUP(AQ132,HOM!$AR$551:$AS$606,2)) -> 3.571
A133: F | X133: FALSE | Y133: =IF(AND(H133<1936),VLOOKUP(I133,Feuil1!$F$10:$O$24,9),IF(AND(H133>=1942,H133<1947),VLOOKUP(I133,Feuil1!$F$10:$O$24,9),IF(AND(H133>=1947,H133<1952),VLOOKUP(I133,Feuil1!$F$10:$O$24,8),IF(AND(H133>=1952,H133<1957),VLOOKUP(I133,Feuil1!$F$10:$O$24,7),IF(AND(H133>=1957,H133<1962),VLOOKUP(I133,Feuil1!$F$10:$O$24,6),IF(AND(H133>=1962,H133<1967),VLOOKUP(I133,Feuil1!$F$10:$O$24,5),IF(AND(H133>=1967,H133<1972),VLOOKUP(I133,Feuil1!$F$10:$O$24,4),IF(AND(H133>=1972,H133<1977),VLOOKUP(I133,Feuil1!$F$10:$O$24,3),IF(AND(H133>=1977,H133<1982),VLOOKUP(I133,Feuil1!$F$10:$O$24,2),VLOOKUP(I133,Feuil1!$F$10:$O$24,2)))))))))) ->  | AA133: =T133-HLOOKUP(Y133,Feuil1!$C$1:$BF$9,2,FALSE) ->  | AB133: =T133-HLOOKUP(Y133,Feuil1!$C$1:$BF$9,3,FALSE) ->  | AC133: =T133-HLOOKUP(Y133,Feuil1!$C$1:$BF$9,4,FALSE) ->  | AD133: =T133-HLOOKUP(Y133,Feuil1!$C$1:$BF$9,5,FALSE) ->  | AE133: =T133-HLOOKUP(Y133,Feuil1!$C$1:$BF$9,6,FALSE) ->  | AF133: =T133-HLOOKUP(Y133,Feuil1!$C$1:$BF$9,7,FALSE) ->  | AG133: =T133-HLOOKUP(Y133,Feuil1!$C$1:$BF$9,8,FALSE) ->  | AH133: =T133-HLOOKUP(Y133,Feuil1!$C$1:$BF$9,9,FALSE) ->  | AQ133: =2016-H133 -> 2016 | AS133: =IF(AQ133,VLOOKUP(AQ133,HOM!$AR$551:$AS$606,2)) -> 3.571
A134: F | X134: FALSE | Y134: =IF(AND(H134<1936),VLOOKUP(I134,Feuil1!$F$10:$O$24,9),IF(AND(H134>=1942,H134<1947),VLOOKUP(I134,Feuil1!$F$10:$O$24,9),IF(AND(H134>=1947,H134<1952),VLOOKUP(I134,Feuil1!$F$10:$O$24,8),IF(AND(H134>=1952,H134<1957),VLOOKUP(I134,Feuil1!$F$10:$O$24,7),IF(AND(H134>=1957,H134<1962),VLOOKUP(I134,Feuil1!$F$10:$O$24,6),IF(AND(H134>=1962,H134<1967),VLOOKUP(I134,Feuil1!$F$10:$O$24,5),IF(AND(H134>=1967,H134<1972),VLOOKUP(I134,Feuil1!$F$10:$O$24,4),IF(AND(H134>=1972,H134<1977),VLOOKUP(I134,Feuil1!$F$10:$O$24,3),IF(AND(H134>=1977,H134<1982),VLOOKUP(I134,Feuil1!$F$10:$O$24,2),VLOOKUP(I134,Feuil1!$F$10:$O$24,2)))))))))) ->  | AA134: =T134-HLOOKUP(Y134,Feuil1!$C$1:$BF$9,2,FALSE) ->  | AB134: =T134-HLOOKUP(Y134,Feuil1!$C$1:$BF$9,3,FALSE) ->  | AC134: =T134-HLOOKUP(Y134,Feuil1!$C$1:$BF$9,4,FALSE) ->  | AD134: =T134-HLOOKUP(Y134,Feuil1!$C$1:$BF$9,5,FALSE) ->  | AE134: =T134-HLOOKUP(Y134,Feuil1!$C$1:$BF$9,6,FALSE) ->  | AF134: =T134-HLOOKUP(Y134,Feuil1!$C$1:$BF$9,7,FALSE) ->  | AG134: =T134-HLOOKUP(Y134,Feuil1!$C$1:$BF$9,8,FALSE) ->  | AH134: =T134-HLOOKUP(Y134,Feuil1!$C$1:$BF$9,9,FALSE) ->  | AQ134: 2016 | AS134: =IF(AQ134,VLOOKUP(AQ134,HOM!$AR$551:$AS$606,2)) -> 3.571
Y135: =IF(AND(H135<1936),VLOOKUP(I135,Feuil1!$F$10:$O$24,9),IF(AND(H135>=1942,H135<1947),VLOOKUP(I135,Feuil1!$F$10:$O$24,9),IF(AND(H135>=1947,H135<1952),VLOOKUP(I135,Feuil1!$F$10:$O$24,8),IF(AND(H135>=1952,H135<1957),VLOOKUP(I135,Feuil1!$F$10:$O$24,7),IF(AND(H135>=1957,H135<1962),VLOOKUP(I135,Feuil1!$F$10:$O$24,6),IF(AND(H135>=1962,H135<1967),VLOOKUP(I135,Feuil1!$F$10:$O$24,5),IF(AND(H135>=1967,H135<1972),VLOOKUP(I135,Feuil1!$F$10:$O$24,4),IF(AND(H135>=1972,H135<1977),VLOOKUP(I135,Feuil1!$F$10:$O$24,3),IF(AND(H135>=1977,H135<1982),VLOOKUP(I135,Feuil1!$F$10:$O$24,2),VLOOKUP(I135,Feuil1!$F$10:$O$24,2)))))))))) ->  | AP135: =IF(AH135>=0,$AH$4,IF(AG135>=0,$AG$4,IF(AF135>=0,$AF$4,IF(AE135>=0,$AE$4,IF(AD135>=0,$AD$4,IF(AC135>=0,$AC$4,IF(AB135>=0,$AB$4,IF(AA135>=0,$AA$4,$AI$4)))))))) -> OLY + | AQ135: 2016 | AS135: =IF(AQ135,VLOOKUP(AQ135,HOM!$AR$551:$AS$606,2)) -> 3.571
Y136: =IF(AND(H136<1936),VLOOKUP(I136,Feuil1!$F$10:$O$24,9),IF(AND(H136>=1942,H136<1947),VLOOKUP(I136,Feuil1!$F$10:$O$24,9),IF(AND(H136>=1947,H136<1952),VLOOKUP(I136,Feuil1!$F$10:$O$24,8),IF(AND(H136>=1952,H136<1957),VLOOKUP(I136,Feuil1!$F$10:$O$24,7),IF(AND(H136>=1957,H136<1962),VLOOKUP(I136,Feuil1!$F$10:$O$24,6),IF(AND(H136>=1962,H136<1967),VLOOKUP(I136,Feuil1!$F$10:$O$24,5),IF(AND(H136>=1967,H136<1972),VLOOKUP(I136,Feuil1!$F$10:$O$24,4),IF(AND(H136>=1972,H136<1977),VLOOKUP(I136,Feuil1!$F$10:$O$24,3),IF(AND(H136>=1977,H136<1982),VLOOKUP(I136,Feuil1!$F$10:$O$24,2),VLOOKUP(I136,Feuil1!$F$10:$O$24,2)))))))))) ->  | AP136: OLY + | AQ136: 2016 | AS136: =IF(AQ136,VLOOKUP(AQ136,HOM!$AR$551:$AS$606,2)) -> 3.571
Y137: =IF(AND(H137<1936),VLOOKUP(I137,Feuil1!$F$10:$O$24,9),IF(AND(H137>=1942,H137<1947),VLOOKUP(I137,Feuil1!$F$10:$O$24,9),IF(AND(H137>=1947,H137<1952),VLOOKUP(I137,Feuil1!$F$10:$O$24,8),IF(AND(H137>=1952,H137<1957),VLOOKUP(I137,Feuil1!$F$10:$O$24,7),IF(AND(H137>=1957,H137<1962),VLOOKUP(I137,Feuil1!$F$10:$O$24,6),IF(AND(H137>=1962,H137<1967),VLOOKUP(I137,Feuil1!$F$10:$O$24,5),IF(AND(H137>=1967,H137<1972),VLOOKUP(I137,Feuil1!$F$10:$O$24,4),IF(AND(H137>=1972,H137<1977),VLOOKUP(I137,Feuil1!$F$10:$O$24,3),IF(AND(H137>=1977,H137<1982),VLOOKUP(I137,Feuil1!$F$10:$O$24,2),VLOOKUP(I137,Feuil1!$F$10:$O$24,2)))))))))) ->  | AP137: OLY + | AQ137: 2016 | AS137: =IF(AQ137,VLOOKUP(AQ137,HOM!$AR$551:$AS$606,2)) -> 3.571
Y138: =IF(AND(H138<1936),VLOOKUP(I138,Feuil1!$F$10:$O$24,9),IF(AND(H138>=1942,H138<1947),VLOOKUP(I138,Feuil1!$F$10:$O$24,9),IF(AND(H138>=1947,H138<1952),VLOOKUP(I138,Feuil1!$F$10:$O$24,8),IF(AND(H138>=1952,H138<1957),VLOOKUP(I138,Feuil1!$F$10:$O$24,7),IF(AND(H138>=1957,H138<1962),VLOOKUP(I138,Feuil1!$F$10:$O$24,6),IF(AND(H138>=1962,H138<1967),VLOOKUP(I138,Feuil1!$F$10:$O$24,5),IF(AND(H138>=1967,H138<1972),VLOOKUP(I138,Feuil1!$F$10:$O$24,4),IF(AND(H138>=1972,H138<1977),VLOOKUP(I138,Feuil1!$F$10:$O$24,3),IF(AND(H138>=1977,H138<1982),VLOOKUP(I138,Feuil1!$F$10:$O$24,2),VLOOKUP(I138,Feuil1!$F$10:$O$24,2)))))))))) ->  | AP138: OLY + | AQ138: 2016 | AS138: =IF(AQ138,VLOOKUP(AQ138,HOM!$AR$551:$AS$606,2)) -> 3.571
Y139: =IF(AND(H139<1936),VLOOKUP(I139,Feuil1!$F$10:$O$24,9),IF(AND(H139>=1942,H139<1947),VLOOKUP(I139,Feuil1!$F$10:$O$24,9),IF(AND(H139>=1947,H139<1952),VLOOKUP(I139,Feuil1!$F$10:$O$24,8),IF(AND(H139>=1952,H139<1957),VLOOKUP(I139,Feuil1!$F$10:$O$24,7),IF(AND(H139>=1957,H139<1962),VLOOKUP(I139,Feuil1!$F$10:$O$24,6),IF(AND(H139>=1962,H139<1967),VLOOKUP(I139,Feuil1!$F$10:$O$24,5),IF(AND(H139>=1967,H139<1972),VLOOKUP(I139,Feuil1!$F$10:$O$24,4),IF(AND(H139>=1972,H139<1977),VLOOKUP(I139,Feuil1!$F$10:$O$24,3),IF(AND(H139>=1977,H139<1982),VLOOKUP(I139,Feuil1!$F$10:$O$24,2),VLOOKUP(I139,Feuil1!$F$10:$O$24,2)))))))))) ->  | AP139: OLY + | AQ139: 2016 | AS139: =IF(AQ139,VLOOKUP(AQ139,HOM!$AR$551:$AS$606,2)) -> 3.571
Y140: =IF(AND(H140<1936),VLOOKUP(I140,Feuil1!$F$10:$O$24,9),IF(AND(H140>=1942,H140<1947),VLOOKUP(I140,Feuil1!$F$10:$O$24,9),IF(AND(H140>=1947,H140<1952),VLOOKUP(I140,Feuil1!$F$10:$O$24,8),IF(AND(H140>=1952,H140<1957),VLOOKUP(I140,Feuil1!$F$10:$O$24,7),IF(AND(H140>=1957,H140<1962),VLOOKUP(I140,Feuil1!$F$10:$O$24,6),IF(AND(H140>=1962,H140<1967),VLOOKUP(I140,Feuil1!$F$10:$O$24,5),IF(AND(H140>=1967,H140<1972),VLOOKUP(I140,Feuil1!$F$10:$O$24,4),IF(AND(H140>=1972,H140<1977),VLOOKUP(I140,Feuil1!$F$10:$O$24,3),IF(AND(H140>=1977,H140<1982),VLOOKUP(I140,Feuil1!$F$10:$O$24,2),VLOOKUP(I140,Feuil1!$F$10:$O$24,2)))))))))) ->  | AP140: OLY + | AQ140: 2016 | AS140: =IF(AQ140,VLOOKUP(AQ140,HOM!$AR$551:$AS$606,2)) -> 3.571
Y141: =IF(AND(H141<1936),VLOOKUP(I141,Feuil1!$F$10:$O$24,9),IF(AND(H141>=1942,H141<1947),VLOOKUP(I141,Feuil1!$F$10:$O$24,9),IF(AND(H141>=1947,H141<1952),VLOOKUP(I141,Feuil1!$F$10:$O$24,8),IF(AND(H141>=1952,H141<1957),VLOOKUP(I141,Feuil1!$F$10:$O$24,7),IF(AND(H141>=1957,H141<1962),VLOOKUP(I141,Feuil1!$F$10:$O$24,6),IF(AND(H141>=1962,H141<1967),VLOOKUP(I141,Feuil1!$F$10:$O$24,5),IF(AND(H141>=1967,H141<1972),VLOOKUP(I141,Feuil1!$F$10:$O$24,4),IF(AND(H141>=1972,H141<1977),VLOOKUP(I141,Feuil1!$F$10:$O$24,3),IF(AND(H141>=1977,H141<1982),VLOOKUP(I141,Feuil1!$F$10:$O$24,2),VLOOKUP(I141,Feuil1!$F$10:$O$24,2)))))))))) ->  | AP141: OLY + | AQ141: 2016 | AS141: =IF(AQ141,VLOOKUP(AQ141,HOM!$AR$551:$AS$606,2)) -> 3.571
Y142: =IF(AND(H142<1936),VLOOKUP(I142,Feuil1!$F$10:$O$24,9),IF(AND(H142>=1942,H142<1947),VLOOKUP(I142,Feuil1!$F$10:$O$24,9),IF(AND(H142>=1947,H142<1952),VLOOKUP(I142,Feuil1!$F$10:$O$24,8),IF(AND(H142>=1952,H142<1957),VLOOKUP(I142,Feuil1!$F$10:$O$24,7),IF(AND(H142>=1957,H142<1962),VLOOKUP(I142,Feuil1!$F$10:$O$24,6),IF(AND(H142>=1962,H142<1967),VLOOKUP(I142,Feuil1!$F$10:$O$24,5),IF(AND(H142>=1967,H142<1972),VLOOKUP(I142,Feuil1!$F$10:$O$24,4),IF(AND(H142>=1972,H142<1977),VLOOKUP(I142,Feuil1!$F$10:$O$24,3),IF(AND(H142>=1977,H142<1982),VLOOKUP(I142,Feuil1!$F$10:$O$24,2),VLOOKUP(I142,Feuil1!$F$10:$O$24,2)))))))))) ->  | AP142: OLY + | AQ142: 2016 | AS142: =IF(AQ142,VLOOKUP(AQ142,HOM!$AR$551:$AS$606,2)) -> 3.571
Y143: =IF(AND(H143<1936),VLOOKUP(I143,Feuil1!$F$10:$O$24,9),IF(AND(H143>=1942,H143<1947),VLOOKUP(I143,Feuil1!$F$10:$O$24,9),IF(AND(H143>=1947,H143<1952),VLOOKUP(I143,Feuil1!$F$10:$O$24,8),IF(AND(H143>=1952,H143<1957),VLOOKUP(I143,Feuil1!$F$10:$O$24,7),IF(AND(H143>=1957,H143<1962),VLOOKUP(I143,Feuil1!$F$10:$O$24,6),IF(AND(H143>=1962,H143<1967),VLOOKUP(I143,Feuil1!$F$10:$O$24,5),IF(AND(H143>=1967,H143<1972),VLOOKUP(I143,Feuil1!$F$10:$O$24,4),IF(AND(H143>=1972,H143<1977),VLOOKUP(I143,Feuil1!$F$10:$O$24,3),IF(AND(H143>=1977,H143<1982),VLOOKUP(I143,Feuil1!$F$10:$O$24,2),VLOOKUP(I143,Feuil1!$F$10:$O$24,2)))))))))) ->  | AP143: OLY + | AQ143: 2016 | AS143: =IF(AQ143,VLOOKUP(AQ143,HOM!$AR$551:$AS$606,2)) -> 3.571
Y144: =IF(AND(H144<1936),VLOOKUP(I144,Feuil1!$F$10:$O$24,9),IF(AND(H144>=1942,H144<1947),VLOOKUP(I144,Feuil1!$F$10:$O$24,9),IF(AND(H144>=1947,H144<1952),VLOOKUP(I144,Feuil1!$F$10:$O$24,8),IF(AND(H144>=1952,H144<1957),VLOOKUP(I144,Feuil1!$F$10:$O$24,7),IF(AND(H144>=1957,H144<1962),VLOOKUP(I144,Feuil1!$F$10:$O$24,6),IF(AND(H144>=1962,H144<1967),VLOOKUP(I144,Feuil1!$F$10:$O$24,5),IF(AND(H144>=1967,H144<1972),VLOOKUP(I144,Feuil1!$F$10:$O$24,4),IF(AND(H144>=1972,H144<1977),VLOOKUP(I144,Feuil1!$F$10:$O$24,3),IF(AND(H144>=1977,H144<1982),VLOOKUP(I144,Feuil1!$F$10:$O$24,2),VLOOKUP(I144,Feuil1!$F$10:$O$24,2)))))))))) ->  | AP144: OLY + | AQ144: 2016 | AS144: =IF(AQ144,VLOOKUP(AQ144,HOM!$AR$551:$AS$606,2)) -> 3.571
Y145: =IF(AND(H145<1936),VLOOKUP(I145,Feuil1!$F$10:$O$24,9),IF(AND(H145>=1942,H145<1947),VLOOKUP(I145,Feuil1!$F$10:$O$24,9),IF(AND(H145>=1947,H145<1952),VLOOKUP(I145,Feuil1!$F$10:$O$24,8),IF(AND(H145>=1952,H145<1957),VLOOKUP(I145,Feuil1!$F$10:$O$24,7),IF(AND(H145>=1957,H145<1962),VLOOKUP(I145,Feuil1!$F$10:$O$24,6),IF(AND(H145>=1962,H145<1967),VLOOKUP(I145,Feuil1!$F$10:$O$24,5),IF(AND(H145>=1967,H145<1972),VLOOKUP(I145,Feuil1!$F$10:$O$24,4),IF(AND(H145>=1972,H145<1977),VLOOKUP(I145,Feuil1!$F$10:$O$24,3),IF(AND(H145>=1977,H145<1982),VLOOKUP(I145,Feuil1!$F$10:$O$24,2),VLOOKUP(I145,Feuil1!$F$10:$O$24,2)))))))))) ->  | AP145: OLY + | AQ145: 2016 | AS145: =IF(AQ145,VLOOKUP(AQ145,HOM!$AR$551:$AS$606,2)) -> 3.571
Y146: =IF(AND(H146<1936),VLOOKUP(I146,Feuil1!$F$10:$O$24,9),IF(AND(H146>=1942,H146<1947),VLOOKUP(I146,Feuil1!$F$10:$O$24,9),IF(AND(H146>=1947,H146<1952),VLOOKUP(I146,Feuil1!$F$10:$O$24,8),IF(AND(H146>=1952,H146<1957),VLOOKUP(I146,Feuil1!$F$10:$O$24,7),IF(AND(H146>=1957,H146<1962),VLOOKUP(I146,Feuil1!$F$10:$O$24,6),IF(AND(H146>=1962,H146<1967),VLOOKUP(I146,Feuil1!$F$10:$O$24,5),IF(AND(H146>=1967,H146<1972),VLOOKUP(I146,Feuil1!$F$10:$O$24,4),IF(AND(H146>=1972,H146<1977),VLOOKUP(I146,Feuil1!$F$10:$O$24,3),IF(AND(H146>=1977,H146<1982),VLOOKUP(I146,Feuil1!$F$10:$O$24,2),VLOOKUP(I146,Feuil1!$F$10:$O$24,2)))))))))) ->  | AP146: OLY + | AQ146: 2016 | AS146: =IF(AQ146,VLOOKUP(AQ146,HOM!$AR$551:$AS$606,2)) -> 3.571
Y147: =IF(AND(H147<1936),VLOOKUP(I147,Feuil1!$F$10:$O$24,9),IF(AND(H147>=1942,H147<1947),VLOOKUP(I147,Feuil1!$F$10:$O$24,9),IF(AND(H147>=1947,H147<1952),VLOOKUP(I147,Feuil1!$F$10:$O$24,8),IF(AND(H147>=1952,H147<1957),VLOOKUP(I147,Feuil1!$F$10:$O$24,7),IF(AND(H147>=1957,H147<1962),VLOOKUP(I147,Feuil1!$F$10:$O$24,6),IF(AND(H147>=1962,H147<1967),VLOOKUP(I147,Feuil1!$F$10:$O$24,5),IF(AND(H147>=1967,H147<1972),VLOOKUP(I147,Feuil1!$F$10:$O$24,4),IF(AND(H147>=1972,H147<1977),VLOOKUP(I147,Feuil1!$F$10:$O$24,3),IF(AND(H147>=1977,H147<1982),VLOOKUP(I147,Feuil1!$F$10:$O$24,2),VLOOKUP(I147,Feuil1!$F$10:$O$24,2)))))))))) ->  | AP147: OLY + | AQ147: 2016 | AS147: =IF(AQ147,VLOOKUP(AQ147,HOM!$AR$551:$AS$606,2)) -> 3.571
Y148: =IF(AND(H148<1936),VLOOKUP(I148,Feuil1!$F$10:$O$24,9),IF(AND(H148>=1942,H148<1947),VLOOKUP(I148,Feuil1!$F$10:$O$24,9),IF(AND(H148>=1947,H148<1952),VLOOKUP(I148,Feuil1!$F$10:$O$24,8),IF(AND(H148>=1952,H148<1957),VLOOKUP(I148,Feuil1!$F$10:$O$24,7),IF(AND(H148>=1957,H148<1962),VLOOKUP(I148,Feuil1!$F$10:$O$24,6),IF(AND(H148>=1962,H148<1967),VLOOKUP(I148,Feuil1!$F$10:$O$24,5),IF(AND(H148>=1967,H148<1972),VLOOKUP(I148,Feuil1!$F$10:$O$24,4),IF(AND(H148>=1972,H148<1977),VLOOKUP(I148,Feuil1!$F$10:$O$24,3),IF(AND(H148>=1977,H148<1982),VLOOKUP(I148,Feuil1!$F$10:$O$24,2),VLOOKUP(I148,Feuil1!$F$10:$O$24,2)))))))))) ->  | AP148: OLY + | AQ148: 2016 | AS148: =IF(AQ148,VLOOKUP(AQ148,HOM!$AR$551:$AS$606,2)) -> 3.571
Y149: =IF(AND(H149<1936),VLOOKUP(I149,Feuil1!$F$10:$O$24,9),IF(AND(H149>=1942,H149<1947),VLOOKUP(I149,Feuil1!$F$10:$O$24,9),IF(AND(H149>=1947,H149<1952),VLOOKUP(I149,Feuil1!$F$10:$O$24,8),IF(AND(H149>=1952,H149<1957),VLOOKUP(I149,Feuil1!$F$10:$O$24,7),IF(AND(H149>=1957,H149<1962),VLOOKUP(I149,Feuil1!$F$10:$O$24,6),IF(AND(H149>=1962,H149<1967),VLOOKUP(I149,Feuil1!$F$10:$O$24,5),IF(AND(H149>=1967,H149<1972),VLOOKUP(I149,Feuil1!$F$10:$O$24,4),IF(AND(H149>=1972,H149<1977),VLOOKUP(I149,Feuil1!$F$10:$O$24,3),IF(AND(H149>=1977,H149<1982),VLOOKUP(I149,Feuil1!$F$10:$O$24,2),VLOOKUP(I149,Feuil1!$F$10:$O$24,2)))))))))) ->  | AP149: OLY + | AQ149: 2016 | AS149: =IF(AQ149,VLOOKUP(AQ149,HOM!$AR$551:$AS$606,2)) -> 3.571
Y150: =IF(AND(H150<1936),VLOOKUP(I150,Feuil1!$F$10:$O$24,9),IF(AND(H150>=1942,H150<1947),VLOOKUP(I150,Feuil1!$F$10:$O$24,9),IF(AND(H150>=1947,H150<1952),VLOOKUP(I150,Feuil1!$F$10:$O$24,8),IF(AND(H150>=1952,H150<1957),VLOOKUP(I150,Feuil1!$F$10:$O$24,7),IF(AND(H150>=1957,H150<1962),VLOOKUP(I150,Feuil1!$F$10:$O$24,6),IF(AND(H150>=1962,H150<1967),VLOOKUP(I150,Feuil1!$F$10:$O$24,5),IF(AND(H150>=1967,H150<1972),VLOOKUP(I150,Feuil1!$F$10:$O$24,4),IF(AND(H150>=1972,H150<1977),VLOOKUP(I150,Feuil1!$F$10:$O$24,3),IF(AND(H150>=1977,H150<1982),VLOOKUP(I150,Feuil1!$F$10:$O$24,2),VLOOKUP(I150,Feuil1!$F$10:$O$24,2)))))))))) ->  | AP150: OLY + | AQ150: 2016 | AS150: =IF(AQ150,VLOOKUP(AQ150,HOM!$AR$551:$AS$606,2)) -> 3.571
Y151: =IF(AND(H151<1936),VLOOKUP(I151,Feuil1!$F$10:$O$24,9),IF(AND(H151>=1942,H151<1947),VLOOKUP(I151,Feuil1!$F$10:$O$24,9),IF(AND(H151>=1947,H151<1952),VLOOKUP(I151,Feuil1!$F$10:$O$24,8),IF(AND(H151>=1952,H151<1957),VLOOKUP(I151,Feuil1!$F$10:$O$24,7),IF(AND(H151>=1957,H151<1962),VLOOKUP(I151,Feuil1!$F$10:$O$24,6),IF(AND(H151>=1962,H151<1967),VLOOKUP(I151,Feuil1!$F$10:$O$24,5),IF(AND(H151>=1967,H151<1972),VLOOKUP(I151,Feuil1!$F$10:$O$24,4),IF(AND(H151>=1972,H151<1977),VLOOKUP(I151,Feuil1!$F$10:$O$24,3),IF(AND(H151>=1977,H151<1982),VLOOKUP(I151,Feuil1!$F$10:$O$24,2),VLOOKUP(I151,Feuil1!$F$10:$O$24,2)))))))))) ->  | AP151: OLY + | AQ151: 2016 | AS151: =IF(AQ151,VLOOKUP(AQ151,HOM!$AR$551:$AS$606,2)) -> 3.571
Y152: =IF(AND(H152<1936),VLOOKUP(I152,Feuil1!$F$10:$O$24,9),IF(AND(H152>=1942,H152<1947),VLOOKUP(I152,Feuil1!$F$10:$O$24,9),IF(AND(H152>=1947,H152<1952),VLOOKUP(I152,Feuil1!$F$10:$O$24,8),IF(AND(H152>=1952,H152<1957),VLOOKUP(I152,Feuil1!$F$10:$O$24,7),IF(AND(H152>=1957,H152<1962),VLOOKUP(I152,Feuil1!$F$10:$O$24,6),IF(AND(H152>=1962,H152<1967),VLOOKUP(I152,Feuil1!$F$10:$O$24,5),IF(AND(H152>=1967,H152<1972),VLOOKUP(I152,Feuil1!$F$10:$O$24,4),IF(AND(H152>=1972,H152<1977),VLOOKUP(I152,Feuil1!$F$10:$O$24,3),IF(AND(H152>=1977,H152<1982),VLOOKUP(I152,Feuil1!$F$10:$O$24,2),VLOOKUP(I152,Feuil1!$F$10:$O$24,2)))))))))) ->  | AP152: OLY + | AQ152: 2016 | AS152: =IF(AQ152,VLOOKUP(AQ152,HOM!$AR$551:$AS$606,2)) -> 3.571
Y153: =IF(AND(H153<1936),VLOOKUP(I153,Feuil1!$F$10:$O$24,9),IF(AND(H153>=1942,H153<1947),VLOOKUP(I153,Feuil1!$F$10:$O$24,9),IF(AND(H153>=1947,H153<1952),VLOOKUP(I153,Feuil1!$F$10:$O$24,8),IF(AND(H153>=1952,H153<1957),VLOOKUP(I153,Feuil1!$F$10:$O$24,7),IF(AND(H153>=1957,H153<1962),VLOOKUP(I153,Feuil1!$F$10:$O$24,6),IF(AND(H153>=1962,H153<1967),VLOOKUP(I153,Feuil1!$F$10:$O$24,5),IF(AND(H153>=1967,H153<1972),VLOOKUP(I153,Feuil1!$F$10:$O$24,4),IF(AND(H153>=1972,H153<1977),VLOOKUP(I153,Feuil1!$F$10:$O$24,3),IF(AND(H153>=1977,H153<1982),VLOOKUP(I153,Feuil1!$F$10:$O$24,2),VLOOKUP(I153,Feuil1!$F$10:$O$24,2)))))))))) ->  | AP153: OLY + | AQ153: 2016 | AS153: =IF(AQ153,VLOOKUP(AQ153,HOM!$AR$551:$AS$606,2)) -> 3.571
Y154: =IF(AND(H154<1936),VLOOKUP(I154,Feuil1!$F$10:$O$24,9),IF(AND(H154>=1942,H154<1947),VLOOKUP(I154,Feuil1!$F$10:$O$24,9),IF(AND(H154>=1947,H154<1952),VLOOKUP(I154,Feuil1!$F$10:$O$24,8),IF(AND(H154>=1952,H154<1957),VLOOKUP(I154,Feuil1!$F$10:$O$24,7),IF(AND(H154>=1957,H154<1962),VLOOKUP(I154,Feuil1!$F$10:$O$24,6),IF(AND(H154>=1962,H154<1967),VLOOKUP(I154,Feuil1!$F$10:$O$24,5),IF(AND(H154>=1967,H154<1972),VLOOKUP(I154,Feuil1!$F$10:$O$24,4),IF(AND(H154>=1972,H154<1977),VLOOKUP(I154,Feuil1!$F$10:$O$24,3),IF(AND(H154>=1977,H154<1982),VLOOKUP(I154,Feuil1!$F$10:$O$24,2),VLOOKUP(I154,Feuil1!$F$10:$O$24,2)))))))))) ->  | AP154: OLY + | AQ154: 2016 | AS154: =IF(AQ154,VLOOKUP(AQ154,HOM!$AR$551:$AS$606,2)) -> 3.571
Y155: =IF(AND(H155<1936),VLOOKUP(I155,Feuil1!$F$10:$O$24,9),IF(AND(H155>=1942,H155<1947),VLOOKUP(I155,Feuil1!$F$10:$O$24,9),IF(AND(H155>=1947,H155<1952),VLOOKUP(I155,Feuil1!$F$10:$O$24,8),IF(AND(H155>=1952,H155<1957),VLOOKUP(I155,Feuil1!$F$10:$O$24,7),IF(AND(H155>=1957,H155<1962),VLOOKUP(I155,Feuil1!$F$10:$O$24,6),IF(AND(H155>=1962,H155<1967),VLOOKUP(I155,Feuil1!$F$10:$O$24,5),IF(AND(H155>=1967,H155<1972),VLOOKUP(I155,Feuil1!$F$10:$O$24,4),IF(AND(H155>=1972,H155<1977),VLOOKUP(I155,Feuil1!$F$10:$O$24,3),IF(AND(H155>=1977,H155<1982),VLOOKUP(I155,Feuil1!$F$10:$O$24,2),VLOOKUP(I155,Feuil1!$F$10:$O$24,2)))))))))) ->  | AP155: OLY + | AQ155: 2016 | AS155: =IF(AQ155,VLOOKUP(AQ155,HOM!$AR$551:$AS$606,2)) -> 3.571
Y156: =IF(AND(H156<1936),VLOOKUP(I156,Feuil1!$F$10:$O$24,9),IF(AND(H156>=1942,H156<1947),VLOOKUP(I156,Feuil1!$F$10:$O$24,9),IF(AND(H156>=1947,H156<1952),VLOOKUP(I156,Feuil1!$F$10:$O$24,8),IF(AND(H156>=1952,H156<1957),VLOOKUP(I156,Feuil1!$F$10:$O$24,7),IF(AND(H156>=1957,H156<1962),VLOOKUP(I156,Feuil1!$F$10:$O$24,6),IF(AND(H156>=1962,H156<1967),VLOOKUP(I156,Feuil1!$F$10:$O$24,5),IF(AND(H156>=1967,H156<1972),VLOOKUP(I156,Feuil1!$F$10:$O$24,4),IF(AND(H156>=1972,H156<1977),VLOOKUP(I156,Feuil1!$F$10:$O$24,3),IF(AND(H156>=1977,H156<1982),VLOOKUP(I156,Feuil1!$F$10:$O$24,2),VLOOKUP(I156,Feuil1!$F$10:$O$24,2)))))))))) ->  | AP156: OLY + | AQ156: 2016 | AS156: =IF(AQ156,VLOOKUP(AQ156,HOM!$AR$551:$AS$606,2)) -> 3.571
Y157: =IF(AND(H157<1936),VLOOKUP(I157,Feuil1!$F$10:$O$24,9),IF(AND(H157>=1942,H157<1947),VLOOKUP(I157,Feuil1!$F$10:$O$24,9),IF(AND(H157>=1947,H157<1952),VLOOKUP(I157,Feuil1!$F$10:$O$24,8),IF(AND(H157>=1952,H157<1957),VLOOKUP(I157,Feuil1!$F$10:$O$24,7),IF(AND(H157>=1957,H157<1962),VLOOKUP(I157,Feuil1!$F$10:$O$24,6),IF(AND(H157>=1962,H157<1967),VLOOKUP(I157,Feuil1!$F$10:$O$24,5),IF(AND(H157>=1967,H157<1972),VLOOKUP(I157,Feuil1!$F$10:$O$24,4),IF(AND(H157>=1972,H157<1977),VLOOKUP(I157,Feuil1!$F$10:$O$24,3),IF(AND(H157>=1977,H157<1982),VLOOKUP(I157,Feuil1!$F$10:$O$24,2),VLOOKUP(I157,Feuil1!$F$10:$O$24,2)))))))))) ->  | AP157: OLY + | AQ157: 2016 | AS157: =IF(AQ157,VLOOKUP(AQ157,HOM!$AR$551:$AS$606,2)) -> 3.571
Y158: =IF(AND(H158<1936),VLOOKUP(I158,Feuil1!$F$10:$O$24,9),IF(AND(H158>=1942,H158<1947),VLOOKUP(I158,Feuil1!$F$10:$O$24,9),IF(AND(H158>=1947,H158<1952),VLOOKUP(I158,Feuil1!$F$10:$O$24,8),IF(AND(H158>=1952,H158<1957),VLOOKUP(I158,Feuil1!$F$10:$O$24,7),IF(AND(H158>=1957,H158<1962),VLOOKUP(I158,Feuil1!$F$10:$O$24,6),IF(AND(H158>=1962,H158<1967),VLOOKUP(I158,Feuil1!$F$10:$O$24,5),IF(AND(H158>=1967,H158<1972),VLOOKUP(I158,Feuil1!$F$10:$O$24,4),IF(AND(H158>=1972,H158<1977),VLOOKUP(I158,Feuil1!$F$10:$O$24,3),IF(AND(H158>=1977,H158<1982),VLOOKUP(I158,Feuil1!$F$10:$O$24,2),VLOOKUP(I158,Feuil1!$F$10:$O$24,2)))))))))) ->  | AP158: OLY + | AQ158: 2016 | AS158: =IF(AQ158,VLOOKUP(AQ158,HOM!$AR$551:$AS$606,2)) -> 3.571
Y159: =IF(AND(H159<1936),VLOOKUP(I159,Feuil1!$F$10:$O$24,9),IF(AND(H159>=1942,H159<1947),VLOOKUP(I159,Feuil1!$F$10:$O$24,9),IF(AND(H159>=1947,H159<1952),VLOOKUP(I159,Feuil1!$F$10:$O$24,8),IF(AND(H159>=1952,H159<1957),VLOOKUP(I159,Feuil1!$F$10:$O$24,7),IF(AND(H159>=1957,H159<1962),VLOOKUP(I159,Feuil1!$F$10:$O$24,6),IF(AND(H159>=1962,H159<1967),VLOOKUP(I159,Feuil1!$F$10:$O$24,5),IF(AND(H159>=1967,H159<1972),VLOOKUP(I159,Feuil1!$F$10:$O$24,4),IF(AND(H159>=1972,H159<1977),VLOOKUP(I159,Feuil1!$F$10:$O$24,3),IF(AND(H159>=1977,H159<1982),VLOOKUP(I159,Feuil1!$F$10:$O$24,2),VLOOKUP(I159,Feuil1!$F$10:$O$24,2)))))))))) ->  | AP159: OLY + | AQ159: 2016 | AS159: =IF(AQ159,VLOOKUP(AQ159,HOM!$AR$551:$AS$606,2)) -> 3.571
Y160: =IF(AND(H160<1936),VLOOKUP(I160,Feuil1!$F$10:$O$24,9),IF(AND(H160>=1942,H160<1947),VLOOKUP(I160,Feuil1!$F$10:$O$24,9),IF(AND(H160>=1947,H160<1952),VLOOKUP(I160,Feuil1!$F$10:$O$24,8),IF(AND(H160>=1952,H160<1957),VLOOKUP(I160,Feuil1!$F$10:$O$24,7),IF(AND(H160>=1957,H160<1962),VLOOKUP(I160,Feuil1!$F$10:$O$24,6),IF(AND(H160>=1962,H160<1967),VLOOKUP(I160,Feuil1!$F$10:$O$24,5),IF(AND(H160>=1967,H160<1972),VLOOKUP(I160,Feuil1!$F$10:$O$24,4),IF(AND(H160>=1972,H160<1977),VLOOKUP(I160,Feuil1!$F$10:$O$24,3),IF(AND(H160>=1977,H160<1982),VLOOKUP(I160,Feuil1!$F$10:$O$24,2),VLOOKUP(I160,Feuil1!$F$10:$O$24,2)))))))))) ->  | AP160: OLY + | AQ160: 2016 | AS160: =IF(AQ160,VLOOKUP(AQ160,HOM!$AR$551:$AS$606,2)) -> 3.571
Y161: =IF(AND(H161<1936),VLOOKUP(I161,Feuil1!$F$10:$O$24,9),IF(AND(H161>=1942,H161<1947),VLOOKUP(I161,Feuil1!$F$10:$O$24,9),IF(AND(H161>=1947,H161<1952),VLOOKUP(I161,Feuil1!$F$10:$O$24,8),IF(AND(H161>=1952,H161<1957),VLOOKUP(I161,Feuil1!$F$10:$O$24,7),IF(AND(H161>=1957,H161<1962),VLOOKUP(I161,Feuil1!$F$10:$O$24,6),IF(AND(H161>=1962,H161<1967),VLOOKUP(I161,Feuil1!$F$10:$O$24,5),IF(AND(H161>=1967,H161<1972),VLOOKUP(I161,Feuil1!$F$10:$O$24,4),IF(AND(H161>=1972,H161<1977),VLOOKUP(I161,Feuil1!$F$10:$O$24,3),IF(AND(H161>=1977,H161<1982),VLOOKUP(I161,Feuil1!$F$10:$O$24,2),VLOOKUP(I161,Feuil1!$F$10:$O$24,2)))))))))) ->  | AP161: OLY + | AQ161: 2016 | AS161: =IF(AQ161,VLOOKUP(AQ161,HOM!$AR$551:$AS$606,2)) -> 3.571
Y162: =IF(AND(H162<1936),VLOOKUP(I162,Feuil1!$F$10:$O$24,9),IF(AND(H162>=1942,H162<1947),VLOOKUP(I162,Feuil1!$F$10:$O$24,9),IF(AND(H162>=1947,H162<1952),VLOOKUP(I162,Feuil1!$F$10:$O$24,8),IF(AND(H162>=1952,H162<1957),VLOOKUP(I162,Feuil1!$F$10:$O$24,7),IF(AND(H162>=1957,H162<1962),VLOOKUP(I162,Feuil1!$F$10:$O$24,6),IF(AND(H162>=1962,H162<1967),VLOOKUP(I162,Feuil1!$F$10:$O$24,5),IF(AND(H162>=1967,H162<1972),VLOOKUP(I162,Feuil1!$F$10:$O$24,4),IF(AND(H162>=1972,H162<1977),VLOOKUP(I162,Feuil1!$F$10:$O$24,3),IF(AND(H162>=1977,H162<1982),VLOOKUP(I162,Feuil1!$F$10:$O$24,2),VLOOKUP(I162,Feuil1!$F$10:$O$24,2)))))))))) ->  | AP162: OLY + | AQ162: 2016 | AS162: =IF(AQ162,VLOOKUP(AQ162,HOM!$AR$551:$AS$606,2)) -> 3.571
Y163: =IF(AND(H163<1936),VLOOKUP(I163,Feuil1!$F$10:$O$24,9),IF(AND(H163>=1942,H163<1947),VLOOKUP(I163,Feuil1!$F$10:$O$24,9),IF(AND(H163>=1947,H163<1952),VLOOKUP(I163,Feuil1!$F$10:$O$24,8),IF(AND(H163>=1952,H163<1957),VLOOKUP(I163,Feuil1!$F$10:$O$24,7),IF(AND(H163>=1957,H163<1962),VLOOKUP(I163,Feuil1!$F$10:$O$24,6),IF(AND(H163>=1962,H163<1967),VLOOKUP(I163,Feuil1!$F$10:$O$24,5),IF(AND(H163>=1967,H163<1972),VLOOKUP(I163,Feuil1!$F$10:$O$24,4),IF(AND(H163>=1972,H163<1977),VLOOKUP(I163,Feuil1!$F$10:$O$24,3),IF(AND(H163>=1977,H163<1982),VLOOKUP(I163,Feuil1!$F$10:$O$24,2),VLOOKUP(I163,Feuil1!$F$10:$O$24,2)))))))))) ->  | AP163: OLY + | AQ163: 2016 | AS163: =IF(AQ163,VLOOKUP(AQ163,HOM!$AR$551:$AS$606,2)) -> 3.571
Y164: =IF(AND(H164<1936),VLOOKUP(I164,Feuil1!$F$10:$O$24,9),IF(AND(H164>=1942,H164<1947),VLOOKUP(I164,Feuil1!$F$10:$O$24,9),IF(AND(H164>=1947,H164<1952),VLOOKUP(I164,Feuil1!$F$10:$O$24,8),IF(AND(H164>=1952,H164<1957),VLOOKUP(I164,Feuil1!$F$10:$O$24,7),IF(AND(H164>=1957,H164<1962),VLOOKUP(I164,Feuil1!$F$10:$O$24,6),IF(AND(H164>=1962,H164<1967),VLOOKUP(I164,Feuil1!$F$10:$O$24,5),IF(AND(H164>=1967,H164<1972),VLOOKUP(I164,Feuil1!$F$10:$O$24,4),IF(AND(H164>=1972,H164<1977),VLOOKUP(I164,Feuil1!$F$10:$O$24,3),IF(AND(H164>=1977,H164<1982),VLOOKUP(I164,Feuil1!$F$10:$O$24,2),VLOOKUP(I164,Feuil1!$F$10:$O$24,2)))))))))) ->  | AP164: OLY + | AQ164: 2016 | AS164: =IF(AQ164,VLOOKUP(AQ164,HOM!$AR$551:$AS$606,2)) -> 3.571
Y165: =IF(AND(H165<1936),VLOOKUP(I165,Feuil1!$F$10:$O$24,9),IF(AND(H165>=1942,H165<1947),VLOOKUP(I165,Feuil1!$F$10:$O$24,9),IF(AND(H165>=1947,H165<1952),VLOOKUP(I165,Feuil1!$F$10:$O$24,8),IF(AND(H165>=1952,H165<1957),VLOOKUP(I165,Feuil1!$F$10:$O$24,7),IF(AND(H165>=1957,H165<1962),VLOOKUP(I165,Feuil1!$F$10:$O$24,6),IF(AND(H165>=1962,H165<1967),VLOOKUP(I165,Feuil1!$F$10:$O$24,5),IF(AND(H165>=1967,H165<1972),VLOOKUP(I165,Feuil1!$F$10:$O$24,4),IF(AND(H165>=1972,H165<1977),VLOOKUP(I165,Feuil1!$F$10:$O$24,3),IF(AND(H165>=1977,H165<1982),VLOOKUP(I165,Feuil1!$F$10:$O$24,2),VLOOKUP(I165,Feuil1!$F$10:$O$24,2)))))))))) ->  | AP165: OLY + | AQ165: 2016 | AS165: =IF(AQ165,VLOOKUP(AQ165,HOM!$AR$551:$AS$606,2)) -> 3.571
Y166: =IF(AND(H166<1936),VLOOKUP(I166,Feuil1!$F$10:$O$24,9),IF(AND(H166>=1942,H166<1947),VLOOKUP(I166,Feuil1!$F$10:$O$24,9),IF(AND(H166>=1947,H166<1952),VLOOKUP(I166,Feuil1!$F$10:$O$24,8),IF(AND(H166>=1952,H166<1957),VLOOKUP(I166,Feuil1!$F$10:$O$24,7),IF(AND(H166>=1957,H166<1962),VLOOKUP(I166,Feuil1!$F$10:$O$24,6),IF(AND(H166>=1962,H166<1967),VLOOKUP(I166,Feuil1!$F$10:$O$24,5),IF(AND(H166>=1967,H166<1972),VLOOKUP(I166,Feuil1!$F$10:$O$24,4),IF(AND(H166>=1972,H166<1977),VLOOKUP(I166,Feuil1!$F$10:$O$24,3),IF(AND(H166>=1977,H166<1982),VLOOKUP(I166,Feuil1!$F$10:$O$24,2),VLOOKUP(I166,Feuil1!$F$10:$O$24,2)))))))))) ->  | AP166: OLY + | AQ166: 2016 | AS166: =IF(AQ166,VLOOKUP(AQ166,HOM!$AR$551:$AS$606,2)) -> 3.571
Y167: =IF(AND(H167<1936),VLOOKUP(I167,Feuil1!$F$10:$O$24,9),IF(AND(H167>=1942,H167<1947),VLOOKUP(I167,Feuil1!$F$10:$O$24,9),IF(AND(H167>=1947,H167<1952),VLOOKUP(I167,Feuil1!$F$10:$O$24,8),IF(AND(H167>=1952,H167<1957),VLOOKUP(I167,Feuil1!$F$10:$O$24,7),IF(AND(H167>=1957,H167<1962),VLOOKUP(I167,Feuil1!$F$10:$O$24,6),IF(AND(H167>=1962,H167<1967),VLOOKUP(I167,Feuil1!$F$10:$O$24,5),IF(AND(H167>=1967,H167<1972),VLOOKUP(I167,Feuil1!$F$10:$O$24,4),IF(AND(H167>=1972,H167<1977),VLOOKUP(I167,Feuil1!$F$10:$O$24,3),IF(AND(H167>=1977,H167<1982),VLOOKUP(I167,Feuil1!$F$10:$O$24,2),VLOOKUP(I167,Feuil1!$F$10:$O$24,2)))))))))) ->  | AP167: =IF(AH167>=0,$AH$4,IF(AG167>=0,$AG$4,IF(AF167>=0,$AF$4,IF(AE167>=0,$AE$4,IF(AD167>=0,$AD$4,IF(AC167>=0,$AC$4,IF(AB167>=0,$AB$4,IF(AA167>=0,$AA$4,$AI$4)))))))) -> OLY + | AQ167: 2016 | AS167: =IF(AQ167,VLOOKUP(AQ167,HOM!$AR$551:$AS$606,2)) -> 3.571
Y168: =IF(AND(H168<1936),VLOOKUP(I168,Feuil1!$F$10:$O$24,9),IF(AND(H168>=1942,H168<1947),VLOOKUP(I168,Feuil1!$F$10:$O$24,9),IF(AND(H168>=1947,H168<1952),VLOOKUP(I168,Feuil1!$F$10:$O$24,8),IF(AND(H168>=1952,H168<1957),VLOOKUP(I168,Feuil1!$F$10:$O$24,7),IF(AND(H168>=1957,H168<1962),VLOOKUP(I168,Feuil1!$F$10:$O$24,6),IF(AND(H168>=1962,H168<1967),VLOOKUP(I168,Feuil1!$F$10:$O$24,5),IF(AND(H168>=1967,H168<1972),VLOOKUP(I168,Feuil1!$F$10:$O$24,4),IF(AND(H168>=1972,H168<1977),VLOOKUP(I168,Feuil1!$F$10:$O$24,3),IF(AND(H168>=1977,H168<1982),VLOOKUP(I168,Feuil1!$F$10:$O$24,2),VLOOKUP(I168,Feuil1!$F$10:$O$24,2)))))))))) ->  | AP168: OLY + | AQ168: 2016 | AS168: =IF(AQ168,VLOOKUP(AQ168,HOM!$AR$551:$AS$606,2)) -> 3.571
Y169: =IF(AND(H169<1936),VLOOKUP(I169,Feuil1!$F$10:$O$24,9),IF(AND(H169>=1942,H169<1947),VLOOKUP(I169,Feuil1!$F$10:$O$24,9),IF(AND(H169>=1947,H169<1952),VLOOKUP(I169,Feuil1!$F$10:$O$24,8),IF(AND(H169>=1952,H169<1957),VLOOKUP(I169,Feuil1!$F$10:$O$24,7),IF(AND(H169>=1957,H169<1962),VLOOKUP(I169,Feuil1!$F$10:$O$24,6),IF(AND(H169>=1962,H169<1967),VLOOKUP(I169,Feuil1!$F$10:$O$24,5),IF(AND(H169>=1967,H169<1972),VLOOKUP(I169,Feuil1!$F$10:$O$24,4),IF(AND(H169>=1972,H169<1977),VLOOKUP(I169,Feuil1!$F$10:$O$24,3),IF(AND(H169>=1977,H169<1982),VLOOKUP(I169,Feuil1!$F$10:$O$24,2),VLOOKUP(I169,Feuil1!$F$10:$O$24,2)))))))))) ->  | AP169: OLY + | AQ169: 2016 | AS169: =IF(AQ169,VLOOKUP(AQ169,HOM!$AR$551:$AS$606,2)) -> 3.571
Y170: =IF(AND(H170<1936),VLOOKUP(I170,Feuil1!$F$10:$O$24,9),IF(AND(H170>=1942,H170<1947),VLOOKUP(I170,Feuil1!$F$10:$O$24,9),IF(AND(H170>=1947,H170<1952),VLOOKUP(I170,Feuil1!$F$10:$O$24,8),IF(AND(H170>=1952,H170<1957),VLOOKUP(I170,Feuil1!$F$10:$O$24,7),IF(AND(H170>=1957,H170<1962),VLOOKUP(I170,Feuil1!$F$10:$O$24,6),IF(AND(H170>=1962,H170<1967),VLOOKUP(I170,Feuil1!$F$10:$O$24,5),IF(AND(H170>=1967,H170<1972),VLOOKUP(I170,Feuil1!$F$10:$O$24,4),IF(AND(H170>=1972,H170<1977),VLOOKUP(I170,Feuil1!$F$10:$O$24,3),IF(AND(H170>=1977,H170<1982),VLOOKUP(I170,Feuil1!$F$10:$O$24,2),VLOOKUP(I170,Feuil1!$F$10:$O$24,2)))))))))) ->  | AP170: OLY + | AQ170: 2016 | AS170: =IF(AQ170,VLOOKUP(AQ170,HOM!$AR$551:$AS$606,2)) -> 3.571
Y171: =IF(AND(H171<1936),VLOOKUP(I171,Feuil1!$F$10:$O$24,9),IF(AND(H171>=1942,H171<1947),VLOOKUP(I171,Feuil1!$F$10:$O$24,9),IF(AND(H171>=1947,H171<1952),VLOOKUP(I171,Feuil1!$F$10:$O$24,8),IF(AND(H171>=1952,H171<1957),VLOOKUP(I171,Feuil1!$F$10:$O$24,7),IF(AND(H171>=1957,H171<1962),VLOOKUP(I171,Feuil1!$F$10:$O$24,6),IF(AND(H171>=1962,H171<1967),VLOOKUP(I171,Feuil1!$F$10:$O$24,5),IF(AND(H171>=1967,H171<1972),VLOOKUP(I171,Feuil1!$F$10:$O$24,4),IF(AND(H171>=1972,H171<1977),VLOOKUP(I171,Feuil1!$F$10:$O$24,3),IF(AND(H171>=1977,H171<1982),VLOOKUP(I171,Feuil1!$F$10:$O$24,2),VLOOKUP(I171,Feuil1!$F$10:$O$24,2)))))))))) ->  | AP171: OLY + | AQ171: 2016 | AS171: =IF(AQ171,VLOOKUP(AQ171,HOM!$AR$551:$AS$606,2)) -> 3.571
Y172: =IF(AND(H172<1936),VLOOKUP(I172,Feuil1!$F$10:$O$24,9),IF(AND(H172>=1942,H172<1947),VLOOKUP(I172,Feuil1!$F$10:$O$24,9),IF(AND(H172>=1947,H172<1952),VLOOKUP(I172,Feuil1!$F$10:$O$24,8),IF(AND(H172>=1952,H172<1957),VLOOKUP(I172,Feuil1!$F$10:$O$24,7),IF(AND(H172>=1957,H172<1962),VLOOKUP(I172,Feuil1!$F$10:$O$24,6),IF(AND(H172>=1962,H172<1967),VLOOKUP(I172,Feuil1!$F$10:$O$24,5),IF(AND(H172>=1967,H172<1972),VLOOKUP(I172,Feuil1!$F$10:$O$24,4),IF(AND(H172>=1972,H172<1977),VLOOKUP(I172,Feuil1!$F$10:$O$24,3),IF(AND(H172>=1977,H172<1982),VLOOKUP(I172,Feuil1!$F$10:$O$24,2),VLOOKUP(I172,Feuil1!$F$10:$O$24,2)))))))))) ->  | AP172: OLY + | AQ172: 2016 | AS172: =IF(AQ172,VLOOKUP(AQ172,HOM!$AR$551:$AS$606,2)) -> 3.571
Y173: =IF(AND(H173<1936),VLOOKUP(I173,Feuil1!$F$10:$O$24,9),IF(AND(H173>=1942,H173<1947),VLOOKUP(I173,Feuil1!$F$10:$O$24,9),IF(AND(H173>=1947,H173<1952),VLOOKUP(I173,Feuil1!$F$10:$O$24,8),IF(AND(H173>=1952,H173<1957),VLOOKUP(I173,Feuil1!$F$10:$O$24,7),IF(AND(H173>=1957,H173<1962),VLOOKUP(I173,Feuil1!$F$10:$O$24,6),IF(AND(H173>=1962,H173<1967),VLOOKUP(I173,Feuil1!$F$10:$O$24,5),IF(AND(H173>=1967,H173<1972),VLOOKUP(I173,Feuil1!$F$10:$O$24,4),IF(AND(H173>=1972,H173<1977),VLOOKUP(I173,Feuil1!$F$10:$O$24,3),IF(AND(H173>=1977,H173<1982),VLOOKUP(I173,Feuil1!$F$10:$O$24,2),VLOOKUP(I173,Feuil1!$F$10:$O$24,2)))))))))) ->  | AP173: OLY + | AQ173: 2016 | AS173: =IF(AQ173,VLOOKUP(AQ173,HOM!$AR$551:$AS$606,2)) -> 3.571
Y174: =IF(AND(H174<1936),VLOOKUP(I174,Feuil1!$F$10:$O$24,9),IF(AND(H174>=1942,H174<1947),VLOOKUP(I174,Feuil1!$F$10:$O$24,9),IF(AND(H174>=1947,H174<1952),VLOOKUP(I174,Feuil1!$F$10:$O$24,8),IF(AND(H174>=1952,H174<1957),VLOOKUP(I174,Feuil1!$F$10:$O$24,7),IF(AND(H174>=1957,H174<1962),VLOOKUP(I174,Feuil1!$F$10:$O$24,6),IF(AND(H174>=1962,H174<1967),VLOOKUP(I174,Feuil1!$F$10:$O$24,5),IF(AND(H174>=1967,H174<1972),VLOOKUP(I174,Feuil1!$F$10:$O$24,4),IF(AND(H174>=1972,H174<1977),VLOOKUP(I174,Feuil1!$F$10:$O$24,3),IF(AND(H174>=1977,H174<1982),VLOOKUP(I174,Feuil1!$F$10:$O$24,2),VLOOKUP(I174,Feuil1!$F$10:$O$24,2)))))))))) ->  | AP174: OLY + | AQ174: 2016 | AS174: =IF(AQ174,VLOOKUP(AQ174,HOM!$AR$551:$AS$606,2)) -> 3.571
Y175: =IF(AND(H175<1936),VLOOKUP(I175,Feuil1!$F$10:$O$24,9),IF(AND(H175>=1942,H175<1947),VLOOKUP(I175,Feuil1!$F$10:$O$24,9),IF(AND(H175>=1947,H175<1952),VLOOKUP(I175,Feuil1!$F$10:$O$24,8),IF(AND(H175>=1952,H175<1957),VLOOKUP(I175,Feuil1!$F$10:$O$24,7),IF(AND(H175>=1957,H175<1962),VLOOKUP(I175,Feuil1!$F$10:$O$24,6),IF(AND(H175>=1962,H175<1967),VLOOKUP(I175,Feuil1!$F$10:$O$24,5),IF(AND(H175>=1967,H175<1972),VLOOKUP(I175,Feuil1!$F$10:$O$24,4),IF(AND(H175>=1972,H175<1977),VLOOKUP(I175,Feuil1!$F$10:$O$24,3),IF(AND(H175>=1977,H175<1982),VLOOKUP(I175,Feuil1!$F$10:$O$24,2),VLOOKUP(I175,Feuil1!$F$10:$O$24,2)))))))))) ->  | AP175: OLY + | AQ175: 2016 | AS175: =IF(AQ175,VLOOKUP(AQ175,HOM!$AR$551:$AS$606,2)) -> 3.571
Y176: =IF(AND(H176<1936),VLOOKUP(I176,Feuil1!$F$10:$O$24,9),IF(AND(H176>=1942,H176<1947),VLOOKUP(I176,Feuil1!$F$10:$O$24,9),IF(AND(H176>=1947,H176<1952),VLOOKUP(I176,Feuil1!$F$10:$O$24,8),IF(AND(H176>=1952,H176<1957),VLOOKUP(I176,Feuil1!$F$10:$O$24,7),IF(AND(H176>=1957,H176<1962),VLOOKUP(I176,Feuil1!$F$10:$O$24,6),IF(AND(H176>=1962,H176<1967),VLOOKUP(I176,Feuil1!$F$10:$O$24,5),IF(AND(H176>=1967,H176<1972),VLOOKUP(I176,Feuil1!$F$10:$O$24,4),IF(AND(H176>=1972,H176<1977),VLOOKUP(I176,Feuil1!$F$10:$O$24,3),IF(AND(H176>=1977,H176<1982),VLOOKUP(I176,Feuil1!$F$10:$O$24,2),VLOOKUP(I176,Feuil1!$F$10:$O$24,2)))))))))) ->  | AP176: OLY + | AQ176: 2016 | AS176: =IF(AQ176,VLOOKUP(AQ176,HOM!$AR$551:$AS$606,2)) -> 3.571
Y177: =IF(AND(H177<1936),VLOOKUP(I177,Feuil1!$F$10:$O$24,9),IF(AND(H177>=1942,H177<1947),VLOOKUP(I177,Feuil1!$F$10:$O$24,9),IF(AND(H177>=1947,H177<1952),VLOOKUP(I177,Feuil1!$F$10:$O$24,8),IF(AND(H177>=1952,H177<1957),VLOOKUP(I177,Feuil1!$F$10:$O$24,7),IF(AND(H177>=1957,H177<1962),VLOOKUP(I177,Feuil1!$F$10:$O$24,6),IF(AND(H177>=1962,H177<1967),VLOOKUP(I177,Feuil1!$F$10:$O$24,5),IF(AND(H177>=1967,H177<1972),VLOOKUP(I177,Feuil1!$F$10:$O$24,4),IF(AND(H177>=1972,H177<1977),VLOOKUP(I177,Feuil1!$F$10:$O$24,3),IF(AND(H177>=1977,H177<1982),VLOOKUP(I177,Feuil1!$F$10:$O$24,2),VLOOKUP(I177,Feuil1!$F$10:$O$24,2)))))))))) ->  | AP177: OLY + | AQ177: 2016 | AS177: =IF(AQ177,VLOOKUP(AQ177,HOM!$AR$551:$AS$606,2)) -> 3.571
Y178: =IF(AND(H178<1936),VLOOKUP(I178,Feuil1!$F$10:$O$24,9),IF(AND(H178>=1942,H178<1947),VLOOKUP(I178,Feuil1!$F$10:$O$24,9),IF(AND(H178>=1947,H178<1952),VLOOKUP(I178,Feuil1!$F$10:$O$24,8),IF(AND(H178>=1952,H178<1957),VLOOKUP(I178,Feuil1!$F$10:$O$24,7),IF(AND(H178>=1957,H178<1962),VLOOKUP(I178,Feuil1!$F$10:$O$24,6),IF(AND(H178>=1962,H178<1967),VLOOKUP(I178,Feuil1!$F$10:$O$24,5),IF(AND(H178>=1967,H178<1972),VLOOKUP(I178,Feuil1!$F$10:$O$24,4),IF(AND(H178>=1972,H178<1977),VLOOKUP(I178,Feuil1!$F$10:$O$24,3),IF(AND(H178>=1977,H178<1982),VLOOKUP(I178,Feuil1!$F$10:$O$24,2),VLOOKUP(I178,Feuil1!$F$10:$O$24,2)))))))))) ->  | AP178: OLY + | AQ178: 2016 | AS178: =IF(AQ178,VLOOKUP(AQ178,HOM!$AR$551:$AS$606,2)) -> 3.571
Y179: =IF(AND(H179<1936),VLOOKUP(I179,Feuil1!$F$10:$O$24,9),IF(AND(H179>=1942,H179<1947),VLOOKUP(I179,Feuil1!$F$10:$O$24,9),IF(AND(H179>=1947,H179<1952),VLOOKUP(I179,Feuil1!$F$10:$O$24,8),IF(AND(H179>=1952,H179<1957),VLOOKUP(I179,Feuil1!$F$10:$O$24,7),IF(AND(H179>=1957,H179<1962),VLOOKUP(I179,Feuil1!$F$10:$O$24,6),IF(AND(H179>=1962,H179<1967),VLOOKUP(I179,Feuil1!$F$10:$O$24,5),IF(AND(H179>=1967,H179<1972),VLOOKUP(I179,Feuil1!$F$10:$O$24,4),IF(AND(H179>=1972,H179<1977),VLOOKUP(I179,Feuil1!$F$10:$O$24,3),IF(AND(H179>=1977,H179<1982),VLOOKUP(I179,Feuil1!$F$10:$O$24,2),VLOOKUP(I179,Feuil1!$F$10:$O$24,2)))))))))) ->  | AP179: OLY + | AQ179: 2016 | AS179: =IF(AQ179,VLOOKUP(AQ179,HOM!$AR$551:$AS$606,2)) -> 3.571
Y180: =IF(AND(H180<1936),VLOOKUP(I180,Feuil1!$F$10:$O$24,9),IF(AND(H180>=1942,H180<1947),VLOOKUP(I180,Feuil1!$F$10:$O$24,9),IF(AND(H180>=1947,H180<1952),VLOOKUP(I180,Feuil1!$F$10:$O$24,8),IF(AND(H180>=1952,H180<1957),VLOOKUP(I180,Feuil1!$F$10:$O$24,7),IF(AND(H180>=1957,H180<1962),VLOOKUP(I180,Feuil1!$F$10:$O$24,6),IF(AND(H180>=1962,H180<1967),VLOOKUP(I180,Feuil1!$F$10:$O$24,5),IF(AND(H180>=1967,H180<1972),VLOOKUP(I180,Feuil1!$F$10:$O$24,4),IF(AND(H180>=1972,H180<1977),VLOOKUP(I180,Feuil1!$F$10:$O$24,3),IF(AND(H180>=1977,H180<1982),VLOOKUP(I180,Feuil1!$F$10:$O$24,2),VLOOKUP(I180,Feuil1!$F$10:$O$24,2)))))))))) ->  | AP180: OLY + | AQ180: 2016 | AS180: =IF(AQ180,VLOOKUP(AQ180,HOM!$AR$551:$AS$606,2)) -> 3.571
Y181: =IF(AND(H181<1936),VLOOKUP(I181,Feuil1!$F$10:$O$24,9),IF(AND(H181>=1942,H181<1947),VLOOKUP(I181,Feuil1!$F$10:$O$24,9),IF(AND(H181>=1947,H181<1952),VLOOKUP(I181,Feuil1!$F$10:$O$24,8),IF(AND(H181>=1952,H181<1957),VLOOKUP(I181,Feuil1!$F$10:$O$24,7),IF(AND(H181>=1957,H181<1962),VLOOKUP(I181,Feuil1!$F$10:$O$24,6),IF(AND(H181>=1962,H181<1967),VLOOKUP(I181,Feuil1!$F$10:$O$24,5),IF(AND(H181>=1967,H181<1972),VLOOKUP(I181,Feuil1!$F$10:$O$24,4),IF(AND(H181>=1972,H181<1977),VLOOKUP(I181,Feuil1!$F$10:$O$24,3),IF(AND(H181>=1977,H181<1982),VLOOKUP(I181,Feuil1!$F$10:$O$24,2),VLOOKUP(I181,Feuil1!$F$10:$O$24,2)))))))))) ->  | AP181: OLY + | AQ181: 2016 | AS181: =IF(AQ181,VLOOKUP(AQ181,HOM!$AR$551:$AS$606,2)) -> 3.571
Y182: =IF(AND(H182<1936),VLOOKUP(I182,Feuil1!$F$10:$O$24,9),IF(AND(H182>=1942,H182<1947),VLOOKUP(I182,Feuil1!$F$10:$O$24,9),IF(AND(H182>=1947,H182<1952),VLOOKUP(I182,Feuil1!$F$10:$O$24,8),IF(AND(H182>=1952,H182<1957),VLOOKUP(I182,Feuil1!$F$10:$O$24,7),IF(AND(H182>=1957,H182<1962),VLOOKUP(I182,Feuil1!$F$10:$O$24,6),IF(AND(H182>=1962,H182<1967),VLOOKUP(I182,Feuil1!$F$10:$O$24,5),IF(AND(H182>=1967,H182<1972),VLOOKUP(I182,Feuil1!$F$10:$O$24,4),IF(AND(H182>=1972,H182<1977),VLOOKUP(I182,Feuil1!$F$10:$O$24,3),IF(AND(H182>=1977,H182<1982),VLOOKUP(I182,Feuil1!$F$10:$O$24,2),VLOOKUP(I182,Feuil1!$F$10:$O$24,2)))))))))) ->  | AP182: OLY + | AQ182: 2016 | AS182: =IF(AQ182,VLOOKUP(AQ182,HOM!$AR$551:$AS$606,2)) -> 3.571
Y183: =IF(AND(H183<1936),VLOOKUP(I183,Feuil1!$F$10:$O$24,9),IF(AND(H183>=1942,H183<1947),VLOOKUP(I183,Feuil1!$F$10:$O$24,9),IF(AND(H183>=1947,H183<1952),VLOOKUP(I183,Feuil1!$F$10:$O$24,8),IF(AND(H183>=1952,H183<1957),VLOOKUP(I183,Feuil1!$F$10:$O$24,7),IF(AND(H183>=1957,H183<1962),VLOOKUP(I183,Feuil1!$F$10:$O$24,6),IF(AND(H183>=1962,H183<1967),VLOOKUP(I183,Feuil1!$F$10:$O$24,5),IF(AND(H183>=1967,H183<1972),VLOOKUP(I183,Feuil1!$F$10:$O$24,4),IF(AND(H183>=1972,H183<1977),VLOOKUP(I183,Feuil1!$F$10:$O$24,3),IF(AND(H183>=1977,H183<1982),VLOOKUP(I183,Feuil1!$F$10:$O$24,2),VLOOKUP(I183,Feuil1!$F$10:$O$24,2)))))))))) ->  | AP183: OLY + | AQ183: 2016 | AS183: =IF(AQ183,VLOOKUP(AQ183,HOM!$AR$551:$AS$606,2)) -> 3.571
Y184: =IF(AND(H184<1936),VLOOKUP(I184,Feuil1!$F$10:$O$24,9),IF(AND(H184>=1942,H184<1947),VLOOKUP(I184,Feuil1!$F$10:$O$24,9),IF(AND(H184>=1947,H184<1952),VLOOKUP(I184,Feuil1!$F$10:$O$24,8),IF(AND(H184>=1952,H184<1957),VLOOKUP(I184,Feuil1!$F$10:$O$24,7),IF(AND(H184>=1957,H184<1962),VLOOKUP(I184,Feuil1!$F$10:$O$24,6),IF(AND(H184>=1962,H184<1967),VLOOKUP(I184,Feuil1!$F$10:$O$24,5),IF(AND(H184>=1967,H184<1972),VLOOKUP(I184,Feuil1!$F$10:$O$24,4),IF(AND(H184>=1972,H184<1977),VLOOKUP(I184,Feuil1!$F$10:$O$24,3),IF(AND(H184>=1977,H184<1982),VLOOKUP(I184,Feuil1!$F$10:$O$24,2),VLOOKUP(I184,Feuil1!$F$10:$O$24,2)))))))))) ->  | AP184: OLY + | AQ184: 2016 | AS184: =IF(AQ184,VLOOKUP(AQ184,HOM!$AR$551:$AS$606,2)) -> 3.571
Y185: =IF(AND(H185<1936),VLOOKUP(I185,Feuil1!$F$10:$O$24,9),IF(AND(H185>=1942,H185<1947),VLOOKUP(I185,Feuil1!$F$10:$O$24,9),IF(AND(H185>=1947,H185<1952),VLOOKUP(I185,Feuil1!$F$10:$O$24,8),IF(AND(H185>=1952,H185<1957),VLOOKUP(I185,Feuil1!$F$10:$O$24,7),IF(AND(H185>=1957,H185<1962),VLOOKUP(I185,Feuil1!$F$10:$O$24,6),IF(AND(H185>=1962,H185<1967),VLOOKUP(I185,Feuil1!$F$10:$O$24,5),IF(AND(H185>=1967,H185<1972),VLOOKUP(I185,Feuil1!$F$10:$O$24,4),IF(AND(H185>=1972,H185<1977),VLOOKUP(I185,Feuil1!$F$10:$O$24,3),IF(AND(H185>=1977,H185<1982),VLOOKUP(I185,Feuil1!$F$10:$O$24,2),VLOOKUP(I185,Feuil1!$F$10:$O$24,2)))))))))) ->  | AP185: OLY + | AQ185: 2016 | AS185: =IF(AQ185,VLOOKUP(AQ185,HOM!$AR$551:$AS$606,2)) -> 3.571
AP186: OLY + | AQ186: 2016 | AS186: =IF(AQ186,VLOOKUP(AQ186,HOM!$AR$551:$AS$606,2)) -> 3.571
AP187: OLY + | AQ187: 2016 | AS187: =IF(AQ187,VLOOKUP(AQ187,HOM!$AR$551:$AS$606,2)) -> 3.571
AP188: OLY + | AQ188: 2016 | AS188: =IF(AQ188,VLOOKUP(AQ188,HOM!$AR$551:$AS$606,2)) -> 3.571
AP189: OLY + | AQ189: 2016 | AS189: =IF(AQ189,VLOOKUP(AQ189,HOM!$AR$551:$AS$606,2)) -> 3.571
AP190: OLY + | AQ190: 2016 | AS190: =IF(AQ190,VLOOKUP(AQ190,HOM!$AR$551:$AS$606,2)) -> 3.571
AP191: OLY + | AQ191: 2016 | AS191: =IF(AQ191,VLOOKUP(AQ191,HOM!$AR$551:$AS$606,2)) -> 3.571
AP192: OLY + | AQ192: 2016 | AS192: =IF(AQ192,VLOOKUP(AQ192,HOM!$AR$551:$AS$606,2)) -> 3.571
AP193: OLY + | AQ193: 2016 | AS193: =IF(AQ193,VLOOKUP(AQ193,HOM!$AR$551:$AS$606,2)) -> 3.571
AP194: OLY + | AQ194: 2016 | AS194: =IF(AQ194,VLOOKUP(AQ194,HOM!$AR$551:$AS$606,2)) -> 3.571
AP195: OLY + | AQ195: 2016 | AS195: =IF(AQ195,VLOOKUP(AQ195,HOM!$AR$551:$AS$606,2)) -> 3.571
AP196: OLY + | AQ196: 2016 | AS196: =IF(AQ196,VLOOKUP(AQ196,HOM!$AR$551:$AS$606,2)) -> 3.571
AP197: OLY + | AQ197: =2016-H197 -> 2016 | AS197: =IF(AQ197,VLOOKUP(AQ197,HOM!$AR$551:$AS$606,2)) -> 3.571
AP198: OLY + | AQ198: 2016 | AS198: =IF(AQ198,VLOOKUP(AQ198,HOM!$AR$551:$AS$606,2)) -> 3.571
AP199: OLY + | AQ199: 2016 | AS199: =IF(AQ199,VLOOKUP(AQ199,HOM!$AR$551:$AS$606,2)) -> 3.571
AP200: OLY + | AQ200: 2016 | AS200: =IF(AQ200,VLOOKUP(AQ200,HOM!$AR$551:$AS$606,2)) -> 3.571
AP201: OLY + | AQ201: 2016 | AS201: =IF(AQ201,VLOOKUP(AQ201,HOM!$AR$551:$AS$606,2)) -> 3.571
... 324 more rows

Sheet HOM (hidden)
G1: LISTING MASTERS HOMMES | Q1: DATE :
P2: AUTEUR : | S2: Daniel MENONI
A4: SEXE | B4: ZONE | C4: REG. | D4: LICENCE | E4: NAT | F4: Caté | G4: NOMS | H4: Prénoms | I4: CLUB | J4: AN | K4: POIDS | L4: 1 | M4: 2 | N4: 3 | O4: ARR | P4: 1 | Q4: 2 | R4: 3 | S4: EP-J | T4: Total | U4: IWF | V4: SERIE | X4: Catég | Z4: N.CL. | AA4: REG + | AB4: FRA + | AC4: EUR + | AD4: MON + | AE4: INTB + | AF4: INTA + | AG4: OLY + | AH4: NCL
A5: H | F5: =IF(AP5<95,IF(AP5<=90,VLOOKUP(AP5,$AP$550:$AQ$605,2))) -> V6 H60 | J5: 54 | K5: 98 | L5: 60 | O5: =IF(K5="","",IF(MAXA(L5:N5)<=0,0,MAXA(L5:N5))) -> 60 | P5: 80 | S5: =IF(K5="","",IF(MAXA(P5:R5)<=0,0,MAXA(P5:R5))) -> 80 | T5: =IF(K5="","",IF(OR(O5=0,S5=0),0,O5+S5)) -> 140 | U5: =IF(K5="","",IF(A5="H",10^(0.794358141*LOG(K5/174.393)^2)*T5*AR5,IF(A5="F",10^(0.89726074 * LOG(K5/148.026)^2)*T5*AR5,""))) -> 236.9109132 | V5: =IF(K5="","",AO5) -> FRA + | W5: =IF(K5="","",IF(AG5>=0,AG5,IF(AF5>=0,AF5,IF(AE5>=0,AE5,IF(AD5>=0,AD5,IF(AC5>=0,AC5,IF(AB5>=0,AB5,IF(AA5>=0,AA5,Z5)))))))) -> 8 | X5: =IF(AND(J5>=40,J5<45),VLOOKUP(K5,Feuil2!$F$10:$P$28,9),IF(AND(J5>=45,J5<50),VLOOKUP(K5,Feuil2!$F$10:$P$28,8),IF(AND(J5>=50,J5<55),VLOOKUP(K5,Feuil2!$F$10:$P$28,7),IF(AND(J5>=55,J5<60),VLOOKUP(K5,Feuil2!$F$10:$P$28,6),IF(AND(J5>=60,J5<65),VLOOKUP(K5,Feuil2!$F$10:$P$28,5),IF(AND(J5>=65,J5<70),VLOOKUP(K5,Feuil2!$F$10:$P$28,4),IF(AND(J5>=70,J5<75),VLOOKUP(K5,Feuil2!$F$10:$P$28,3),IF(AND(J5>=75,J5<80),VLOOKUP(K5,Feuil2!$F$10:$P$28,2),VLOOKUP(K5,Feuil2!$F$10:$P$28,2))))))))) -> VH60-105 | Z5: =T5-HLOOKUP(X5,Feuil2!$C$1:$CD$9,2,FALSE) -> 140 | AA5: =T5-HLOOKUP(X5,Feuil2!$C$1:$CD$9,3,FALSE) -> 18 | AB5: =T5-HLOOKUP(X5,Feuil2!$C$1:$CD$9,4,FALSE) -> 8 | AC5: =T5-HLOOKUP(X5,Feuil2!$C$1:$CD$9,5,FALSE) -> -2 | AD5: =T5-HLOOKUP(X5,Feuil2!$C$1:$CD$9,6,FALSE) -> -20 | AE5: =T5-HLOOKUP(X5,Feuil2!$C$1:$CD$9,7,FALSE) -> -860 | AF5: =T5-HLOOKUP(X5,Feuil2!$C$1:$CD$9,8,FALSE) -> -860 | AG5: =T5-HLOOKUP(X5,Feuil2!$C$1:$CD$9,9,FALSE) -> -860 | AO5: =IF(AG5>=0,$AG$4,IF(AF5>=0,$AF$4,IF(AE5>=0,$AE$4,IF(AD5>=0,$AD$4,IF(AC5>=0,$AC$4,IF(AB5>=0,$AB$4,IF(AA5>=0,$AA$4,IF(Z5>=0,$Z$4,$AH$4)))))))) -> FRA + | AP5: =114-J5 -> 60 | AR5: =IF(AP5,VLOOKUP(AP5,HOM!$AR$551:$AS$606,2)) -> 1.509
A6: H | F6: V6 H60 | J6: 54 | K6: 99 | L6: 50 | O6: 50 | P6: 70 | S6: 70 | T6: 120 | U6: 202.255522 | V6: N.CL. | W6: 120 | X6: =IF(AND(J6>=40,J6<45),VLOOKUP(K6,Feuil2!$F$10:$P$28,9),IF(AND(J6>=45,J6<50),VLOOKUP(K6,Feuil2!$F$10:$P$28,8),IF(AND(J6>=50,J6<55),VLOOKUP(K6,Feuil2!$F$10:$P$28,7),IF(AND(J6>=55,J6<60),VLOOKUP(K6,Feuil2!$F$10:$P$28,6),IF(AND(J6>=60,J6<65),VLOOKUP(K6,Feuil2!$F$10:$P$28,5),IF(AND(J6>=65,J6<70),VLOOKUP(K6,Feuil2!$F$10:$P$28,4),IF(AND(J6>=70,J6<75),VLOOKUP(K6,Feuil2!$F$10:$P$28,3),IF(AND(J6>=75,J6<80),VLOOKUP(K6,Feuil2!$F$10:$P$28,2),VLOOKUP(K6,Feuil2!$F$10:$P$28,2))))))))) -> VH60-105 | Z6: =T6-HLOOKUP(X6,Feuil2!$C$1:$CD$9,2,FALSE) -> 120 | AA6: =T6-HLOOKUP(X6,Feuil2!$C$1:$CD$9,3,FALSE) -> -2 | AB6: =T6-HLOOKUP(X6,Feuil2!$C$1:$CD$9,4,FALSE) -> -12 | AC6: =T6-HLOOKUP(X6,Feuil2!$C$1:$CD$9,5,FALSE) -> -22 | AD6: =T6-HLOOKUP(X6,Feuil2!$C$1:$CD$9,6,FALSE) -> -40 | AE6: =T6-HLOOKUP(X6,Feuil2!$C$1:$CD$9,7,FALSE) -> -880 | AF6: =T6-HLOOKUP(X6,Feuil2!$C$1:$CD$9,8,FALSE) -> -880 | AG6: =T6-HLOOKUP(X6,Feuil2!$C$1:$CD$9,9,FALSE) -> -880 | AO6: N.CL. | AP6: =114-J6 -> 60 | AR6: =IF(AP6,VLOOKUP(AP6,HOM!$AR$551:$AS$606,2)) -> 1.509
A7: H | F7: V6 H60 | J7: 54 | K7: 98 | L7: 80 | O7: 80 | P7: 90 | S7: 90 | T7: 170 | U7: 287.6775374 | V7: MON + | W7: 10 | X7: =IF(AND(J7>=40,J7<45),VLOOKUP(K7,Feuil2!$F$10:$P$28,9),IF(AND(J7>=45,J7<50),VLOOKUP(K7,Feuil2!$F$10:$P$28,8),IF(AND(J7>=50,J7<55),VLOOKUP(K7,Feuil2!$F$10:$P$28,7),IF(AND(J7>=55,J7<60),VLOOKUP(K7,Feuil2!$F$10:$P$28,6),IF(AND(J7>=60,J7<65),VLOOKUP(K7,Feuil2!$F$10:$P$28,5),IF(AND(J7>=65,J7<70),VLOOKUP(K7,Feuil2!$F$10:$P$28,4),IF(AND(J7>=70,J7<75),VLOOKUP(K7,Feuil2!$F$10:$P$28,3),IF(AND(J7>=75,J7<80),VLOOKUP(K7,Feuil2!$F$10:$P$28,2),VLOOKUP(K7,Feuil2!$F$10:$P$28,2))))))))) -> VH60-105 | Z7: =T7-HLOOKUP(X7,Feuil2!$C$1:$CD$9,2,FALSE) -> 170 | AA7: =T7-HLOOKUP(X7,Feuil2!$C$1:$CD$9,3,FALSE) -> 48 | AB7: =T7-HLOOKUP(X7,Feuil2!$C$1:$CD$9,4,FALSE) -> 38 | AC7: =T7-HLOOKUP(X7,Feuil2!$C$1:$CD$9,5,FALSE) -> 28 | AD7: =T7-HLOOKUP(X7,Feuil2!$C$1:$CD$9,6,FALSE) -> 10 | AE7: =T7-HLOOKUP(X7,Feuil2!$C$1:$CD$9,7,FALSE) -> -830 | AF7: =T7-HLOOKUP(X7,Feuil2!$C$1:$CD$9,8,FALSE) -> -830 | AG7: =T7-HLOOKUP(X7,Feuil2!$C$1:$CD$9,9,FALSE) -> -830 | AO7: MON + | AP7: =114-J7 -> 60 | AR7: =IF(AP7,VLOOKUP(AP7,HOM!$AR$551:$AS$606,2)) -> 1.509
A8: H | F8: V6 H60 | J8: 54 | K8: 98 | L8: 65 | O8: 65 | P8: 80 | S8: 80 | T8: 145 | U8: 245.3720172 | V8: EUR + | W8: 3 | X8: =IF(AND(J8>=40,J8<45),VLOOKUP(K8,Feuil2!$F$10:$P$28,9),IF(AND(J8>=45,J8<50),VLOOKUP(K8,Feuil2!$F$10:$P$28,8),IF(AND(J8>=50,J8<55),VLOOKUP(K8,Feuil2!$F$10:$P$28,7),IF(AND(J8>=55,J8<60),VLOOKUP(K8,Feuil2!$F$10:$P$28,6),IF(AND(J8>=60,J8<65),VLOOKUP(K8,Feuil2!$F$10:$P$28,5),IF(AND(J8>=65,J8<70),VLOOKUP(K8,Feuil2!$F$10:$P$28,4),IF(AND(J8>=70,J8<75),VLOOKUP(K8,Feuil2!$F$10:$P$28,3),IF(AND(J8>=75,J8<80),VLOOKUP(K8,Feuil2!$F$10:$P$28,2),VLOOKUP(K8,Feuil2!$F$10:$P$28,2))))))))) -> VH60-105 | Z8: =T8-HLOOKUP(X8,Feuil2!$C$1:$CD$9,2,FALSE) -> 145 | AA8: =T8-HLOOKUP(X8,Feuil2!$C$1:$CD$9,3,FALSE) -> 23 | AB8: =T8-HLOOKUP(X8,Feuil2!$C$1:$CD$9,4,FALSE) -> 13 | AC8: =T8-HLOOKUP(X8,Feuil2!$C$1:$CD$9,5,FALSE) -> 3 | AD8: =T8-HLOOKUP(X8,Feuil2!$C$1:$CD$9,6,FALSE) -> -15 | AE8: =T8-HLOOKUP(X8,Feuil2!$C$1:$CD$9,7,FALSE) -> -855 | AF8: =T8-HLOOKUP(X8,Feuil2!$C$1:$CD$9,8,FALSE) -> -855 | AG8: =T8-HLOOKUP(X8,Feuil2!$C$1:$CD$9,9,FALSE) -> -855 | AO8: EUR + | AP8: =114-J8 -> 60 | AR8: =IF(AP8,VLOOKUP(AP8,HOM!$AR$551:$AS$606,2)) -> 1.509
A9: H | F9: V6 H60 | J9: 54 | K9: 98 | L9: 55 | O9: 55 | P9: 75 | S9: 75 | T9: 130 | U9: 219.9887051 | V9: REG + | W9: 8 | X9: =IF(AND(J9>=40,J9<45),VLOOKUP(K9,Feuil2!$F$10:$P$28,9),IF(AND(J9>=45,J9<50),VLOOKUP(K9,Feuil2!$F$10:$P$28,8),IF(AND(J9>=50,J9<55),VLOOKUP(K9,Feuil2!$F$10:$P$28,7),IF(AND(J9>=55,J9<60),VLOOKUP(K9,Feuil2!$F$10:$P$28,6),IF(AND(J9>=60,J9<65),VLOOKUP(K9,Feuil2!$F$10:$P$28,5),IF(AND(J9>=65,J9<70),VLOOKUP(K9,Feuil2!$F$10:$P$28,4),IF(AND(J9>=70,J9<75),VLOOKUP(K9,Feuil2!$F$10:$P$28,3),IF(AND(J9>=75,J9<80),VLOOKUP(K9,Feuil2!$F$10:$P$28,2),VLOOKUP(K9,Feuil2!$F$10:$P$28,2))))))))) -> VH60-105 | Z9: =T9-HLOOKUP(X9,Feuil2!$C$1:$CD$9,2,FALSE) -> 130 | AA9: =T9-HLOOKUP(X9,Feuil2!$C$1:$CD$9,3,FALSE) -> 8 | AB9: =T9-HLOOKUP(X9,Feuil2!$C$1:$CD$9,4,FALSE) -> -2 | AC9: =T9-HLOOKUP(X9,Feuil2!$C$1:$CD$9,5,FALSE) -> -12 | AD9: =T9-HLOOKUP(X9,Feuil2!$C$1:$CD$9,6,FALSE) -> -30 | AE9: =T9-HLOOKUP(X9,Feuil2!$C$1:$CD$9,7,FALSE) -> -870 | AF9: =T9-HLOOKUP(X9,Feuil2!$C$1:$CD$9,8,FALSE) -> -870 | AG9: =T9-HLOOKUP(X9,Feuil2!$C$1:$CD$9,9,FALSE) -> -870 | AO9: REG + | AP9: 60 | AR9: =IF(AP9,VLOOKUP(AP9,HOM!$AR$551:$AS$606,2)) -> 1.509
A10: H | F10: FALSE | X10: =IF(AND(J10>=40,J10<45),VLOOKUP(K10,Feuil2!$F$10:$P$28,9),IF(AND(J10>=45,J10<50),VLOOKUP(K10,Feuil2!$F$10:$P$28,8),IF(AND(J10>=50,J10<55),VLOOKUP(K10,Feuil2!$F$10:$P$28,7),IF(AND(J10>=55,J10<60),VLOOKUP(K10,Feuil2!$F$10:$P$28,6),IF(AND(J10>=60,J10<65),VLOOKUP(K10,Feuil2!$F$10:$P$28,5),IF(AND(J10>=65,J10<70),VLOOKUP(K10,Feuil2!$F$10:$P$28,4),IF(AND(J10>=70,J10<75),VLOOKUP(K10,Feuil2!$F$10:$P$28,3),IF(AND(J10>=75,J10<80),VLOOKUP(K10,Feuil2!$F$10:$P$28,2),VLOOKUP(K10,Feuil2!$F$10:$P$28,2))))))))) ->  | Z10: =T10-HLOOKUP(X10,Feuil2!$C$1:$CD$9,2,FALSE) ->  | AA10: =T10-HLOOKUP(X10,Feuil2!$C$1:$CD$9,3,FALSE) ->  | AB10: =T10-HLOOKUP(X10,Feuil2!$C$1:$CD$9,4,FALSE) ->  | AC10: =T10-HLOOKUP(X10,Feuil2!$C$1:$CD$9,5,FALSE) ->  | AD10: =T10-HLOOKUP(X10,Feuil2!$C$1:$CD$9,6,FALSE) ->  | AE10: =T10-HLOOKUP(X10,Feuil2!$C$1:$CD$9,7,FALSE) ->  | AF10: =T10-HLOOKUP(X10,Feuil2!$C$1:$CD$9,8,FALSE) ->  | AG10: =T10-HLOOKUP(X10,Feuil2!$C$1:$CD$9,9,FALSE) ->  | AP10: 114 | AR10: =IF(AP10,VLOOKUP(AP10,HOM!$AR$551:$AS$606,2)) -> 3.571
A11: H | F11: FALSE | U11: =IF(K11="","",IF(A11="H",10^(0.794358141*LOG(K11/174.393)^2)*T11*AR11,IF(A11="F",10^(0.89726074 * LOG(K11/148.026)^2)*T11*AR11,""))) ->  | V11: =IF(K11="","",AO11) ->  | W11: =IF(K11="","",IF(AG11>=0,AG11,IF(AF11>=0,AF11,IF(AE11>=0,AE11,IF(AD11>=0,AD11,IF(AC11>=0,AC11,IF(AB11>=0,AB11,IF(AA11>=0,AA11,Z11)))))))) ->  | X11: =IF(AND(J11>=40,J11<45),VLOOKUP(K11,Feuil2!$F$10:$P$28,9),IF(AND(J11>=45,J11<50),VLOOKUP(K11,Feuil2!$F$10:$P$28,8),IF(AND(J11>=50,J11<55),VLOOKUP(K11,Feuil2!$F$10:$P$28,7),IF(AND(J11>=55,J11<60),VLOOKUP(K11,Feuil2!$F$10:$P$28,6),IF(AND(J11>=60,J11<65),VLOOKUP(K11,Feuil2!$F$10:$P$28,5),IF(AND(J11>=65,J11<70),VLOOKUP(K11,Feuil2!$F$10:$P$28,4),IF(AND(J11>=70,J11<75),VLOOKUP(K11,Feuil2!$F$10:$P$28,3),IF(AND(J11>=75,J11<80),VLOOKUP(K11,Feuil2!$F$10:$P$28,2),VLOOKUP(K11,Feuil2!$F$10:$P$28,2))))))))) ->  | Z11: =T11-HLOOKUP(X11,Feuil2!$C$1:$CD$9,2,FALSE) ->  | AA11: =T11-HLOOKUP(X11,Feuil2!$C$1:$CD$9,3,FALSE) ->  | AB11: =T11-HLOOKUP(X11,Feuil2!$C$1:$CD$9,4,FALSE) ->  | AC11: =T11-HLOOKUP(X11,Feuil2!$C$1:$CD$9,5,FALSE) ->  | AD11: =T11-HLOOKUP(X11,Feuil2!$C$1:$CD$9,6,FALSE) ->  | AE11: =T11-HLOOKUP(X11,Feuil2!$C$1:$CD$9,7,FALSE) ->  | AF11: =T11-HLOOKUP(X11,Feuil2!$C$1:$CD$9,8,FALSE) ->  | AG11: =T11-HLOOKUP(X11,Feuil2!$C$1:$CD$9,9,FALSE) ->  | AO11: =IF(AG11>=0,$AG$4,IF(AF11>=0,$AF$4,IF(AE11>=0,$AE$4,IF(AD11>=0,$AD$4,IF(AC11>=0,$AC$4,IF(AB11>=0,$AB$4,IF(AA11>=0,$AA$4,IF(Z11>=0,$Z$4,$AH$4)))))))) ->  | AP11: 114 | AR11: =IF(AP11,VLOOKUP(AP11,HOM!$AR$551:$AS$606,2)) -> 3.571
A12: H | F12: FALSE | U12: =IF(K12="","",IF(A12="H",10^(0.794358141*LOG(K12/174.393)^2)*T12*AR12,IF(A12="F",10^(0.89726074 * LOG(K12/148.026)^2)*T12*AR12,""))) ->  | V12: =IF(K12="","",AO12) ->  | W12: =IF(K12="","",IF(AG12>=0,AG12,IF(AF12>=0,AF12,IF(AE12>=0,AE12,IF(AD12>=0,AD12,IF(AC12>=0,AC12,IF(AB12>=0,AB12,IF(AA12>=0,AA12,Z12)))))))) ->  | X12: =IF(AND(J12>=40,J12<45),VLOOKUP(K12,Feuil2!$F$10:$P$28,9),IF(AND(J12>=45,J12<50),VLOOKUP(K12,Feuil2!$F$10:$P$28,8),IF(AND(J12>=50,J12<55),VLOOKUP(K12,Feuil2!$F$10:$P$28,7),IF(AND(J12>=55,J12<60),VLOOKUP(K12,Feuil2!$F$10:$P$28,6),IF(AND(J12>=60,J12<65),VLOOKUP(K12,Feuil2!$F$10:$P$28,5),IF(AND(J12>=65,J12<70),VLOOKUP(K12,Feuil2!$F$10:$P$28,4),IF(AND(J12>=70,J12<75),VLOOKUP(K12,Feuil2!$F$10:$P$28,3),IF(AND(J12>=75,J12<80),VLOOKUP(K12,Feuil2!$F$10:$P$28,2),VLOOKUP(K12,Feuil2!$F$10:$P$28,2))))))))) ->  | Z12: =T12-HLOOKUP(X12,Feuil2!$C$1:$CD$9,2,FALSE) ->  | AA12: =T12-HLOOKUP(X12,Feuil2!$C$1:$CD$9,3,FALSE) ->  | AB12: =T12-HLOOKUP(X12,Feuil2!$C$1:$CD$9,4,FALSE) ->  | AC12: =T12-HLOOKUP(X12,Feuil2!$C$1:$CD$9,5,FALSE) ->  | AD12: =T12-HLOOKUP(X12,Feuil2!$C$1:$CD$9,6,FALSE) ->  | AE12: =T12-HLOOKUP(X12,Feuil2!$C$1:$CD$9,7,FALSE) ->  | AF12: =T12-HLOOKUP(X12,Feuil2!$C$1:$CD$9,8,FALSE) ->  | AG12: =T12-HLOOKUP(X12,Feuil2!$C$1:$CD$9,9,FALSE) ->  | AO12: =IF(AG12>=0,$AG$4,IF(AF12>=0,$AF$4,IF(AE12>=0,$AE$4,IF(AD12>=0,$AD$4,IF(AC12>=0,$AC$4,IF(AB12>=0,$AB$4,IF(AA12>=0,$AA$4,IF(Z12>=0,$Z$4,$AH$4)))))))) ->  | AP12: 114 | AR12: =IF(AP12,VLOOKUP(AP12,HOM!$AR$551:$AS$606,2)) -> 3.571
A13: H | F13: FALSE | X13: =IF(AND(J13>=40,J13<45),VLOOKUP(K13,Feuil2!$F$10:$P$28,9),IF(AND(J13>=45,J13<50),VLOOKUP(K13,Feuil2!$F$10:$P$28,8),IF(AND(J13>=50,J13<55),VLOOKUP(K13,Feuil2!$F$10:$P$28,7),IF(AND(J13>=55,J13<60),VLOOKUP(K13,Feuil2!$F$10:$P$28,6),IF(AND(J13>=60,J13<65),VLOOKUP(K13,Feuil2!$F$10:$P$28,5),IF(AND(J13>=65,J13<70),VLOOKUP(K13,Feuil2!$F$10:$P$28,4),IF(AND(J13>=70,J13<75),VLOOKUP(K13,Feuil2!$F$10:$P$28,3),IF(AND(J13>=75,J13<80),VLOOKUP(K13,Feuil2!$F$10:$P$28,2),VLOOKUP(K13,Feuil2!$F$10:$P$28,2))))))))) ->  | Z13: =T13-HLOOKUP(X13,Feuil2!$C$1:$CD$9,2,FALSE) ->  | AA13: =T13-HLOOKUP(X13,Feuil2!$C$1:$CD$9,3,FALSE) ->  | AB13: =T13-HLOOKUP(X13,Feuil2!$C$1:$CD$9,4,FALSE) ->  | AC13: =T13-HLOOKUP(X13,Feuil2!$C$1:$CD$9,5,FALSE) ->  | AD13: =T13-HLOOKUP(X13,Feuil2!$C$1:$CD$9,6,FALSE) ->  | AE13: =T13-HLOOKUP(X13,Feuil2!$C$1:$CD$9,7,FALSE) ->  | AF13: =T13-HLOOKUP(X13,Feuil2!$C$1:$CD$9,8,FALSE) ->  | AG13: =T13-HLOOKUP(X13,Feuil2!$C$1:$CD$9,9,FALSE) ->  | AP13: 114 | AR13: =IF(AP13,VLOOKUP(AP13,HOM!$AR$551:$AS$606,2)) -> 3.571
A14: H | F14: FALSE | X14: =IF(AND(J14>=40,J14<45),VLOOKUP(K14,Feuil2!$F$10:$P$28,9),IF(AND(J14>=45,J14<50),VLOOKUP(K14,Feuil2!$F$10:$P$28,8),IF(AND(J14>=50,J14<55),VLOOKUP(K14,Feuil2!$F$10:$P$28,7),IF(AND(J14>=55,J14<60),VLOOKUP(K14,Feuil2!$F$10:$P$28,6),IF(AND(J14>=60,J14<65),VLOOKUP(K14,Feuil2!$F$10:$P$28,5),IF(AND(J14>=65,J14<70),VLOOKUP(K14,Feuil2!$F$10:$P$28,4),IF(AND(J14>=70,J14<75),VLOOKUP(K14,Feuil2!$F$10:$P$28,3),IF(AND(J14>=75,J14<80),VLOOKUP(K14,Feuil2!$F$10:$P$28,2),VLOOKUP(K14,Feuil2!$F$10:$P$28,2))))))))) ->  | Z14: =T14-HLOOKUP(X14,Feuil2!$C$1:$CD$9,2,FALSE) ->  | AA14: =T14-HLOOKUP(X14,Feuil2!$C$1:$CD$9,3,FALSE) ->  | AB14: =T14-HLOOKUP(X14,Feuil2!$C$1:$CD$9,4,FALSE) ->  | AC14: =T14-HLOOKUP(X14,Feuil2!$C$1:$CD$9,5,FALSE) ->  | AD14: =T14-HLOOKUP(X14,Feuil2!$C$1:$CD$9,6,FALSE) ->  | AE14: =T14-HLOOKUP(X14,Feuil2!$C$1:$CD$9,7,FALSE) ->  | AF14: =T14-HLOOKUP(X14,Feuil2!$C$1:$CD$9,8,FALSE) ->  | AG14: =T14-HLOOKUP(X14,Feuil2!$C$1:$CD$9,9,FALSE) ->  | AP14: 114 | AR14: =IF(AP14,VLOOKUP(AP14,HOM!$AR$551:$AS$606,2)) -> 3.571
A15: H | F15: FALSE | X15: =IF(AND(J15>=40,J15<45),VLOOKUP(K15,Feuil2!$F$10:$P$28,9),IF(AND(J15>=45,J15<50),VLOOKUP(K15,Feuil2!$F$10:$P$28,8),IF(AND(J15>=50,J15<55),VLOOKUP(K15,Feuil2!$F$10:$P$28,7),IF(AND(J15>=55,J15<60),VLOOKUP(K15,Feuil2!$F$10:$P$28,6),IF(AND(J15>=60,J15<65),VLOOKUP(K15,Feuil2!$F$10:$P$28,5),IF(AND(J15>=65,J15<70),VLOOKUP(K15,Feuil2!$F$10:$P$28,4),IF(AND(J15>=70,J15<75),VLOOKUP(K15,Feuil2!$F$10:$P$28,3),IF(AND(J15>=75,J15<80),VLOOKUP(K15,Feuil2!$F$10:$P$28,2),VLOOKUP(K15,Feuil2!$F$10:$P$28,2))))))))) ->  | Z15: =T15-HLOOKUP(X15,Feuil2!$C$1:$CD$9,2,FALSE) ->  | AA15: =T15-HLOOKUP(X15,Feuil2!$C$1:$CD$9,3,FALSE) ->  | AB15: =T15-HLOOKUP(X15,Feuil2!$C$1:$CD$9,4,FALSE) ->  | AC15: =T15-HLOOKUP(X15,Feuil2!$C$1:$CD$9,5,FALSE) ->  | AD15: =T15-HLOOKUP(X15,Feuil2!$C$1:$CD$9,6,FALSE) ->  | AE15: =T15-HLOOKUP(X15,Feuil2!$C$1:$CD$9,7,FALSE) ->  | AF15: =T15-HLOOKUP(X15,Feuil2!$C$1:$CD$9,8,FALSE) ->  | AG15: =T15-HLOOKUP(X15,Feuil2!$C$1:$CD$9,9,FALSE) ->  | AP15: 114 | AR15: =IF(AP15,VLOOKUP(AP15,HOM!$AR$551:$AS$606,2)) -> 3.571
A16: H | F16: FALSE | X16: =IF(AND(J16>=40,J16<45),VLOOKUP(K16,Feuil2!$F$10:$P$28,9),IF(AND(J16>=45,J16<50),VLOOKUP(K16,Feuil2!$F$10:$P$28,8),IF(AND(J16>=50,J16<55),VLOOKUP(K16,Feuil2!$F$10:$P$28,7),IF(AND(J16>=55,J16<60),VLOOKUP(K16,Feuil2!$F$10:$P$28,6),IF(AND(J16>=60,J16<65),VLOOKUP(K16,Feuil2!$F$10:$P$28,5),IF(AND(J16>=65,J16<70),VLOOKUP(K16,Feuil2!$F$10:$P$28,4),IF(AND(J16>=70,J16<75),VLOOKUP(K16,Feuil2!$F$10:$P$28,3),IF(AND(J16>=75,J16<80),VLOOKUP(K16,Feuil2!$F$10:$P$28,2),VLOOKUP(K16,Feuil2!$F$10:$P$28,2))))))))) ->  | Z16: =T16-HLOOKUP(X16,Feuil2!$C$1:$CD$9,2,FALSE) ->  | AA16: =T16-HLOOKUP(X16,Feuil2!$C$1:$CD$9,3,FALSE) ->  | AB16: =T16-HLOOKUP(X16,Feuil2!$C$1:$CD$9,4,FALSE) ->  | AC16: =T16-HLOOKUP(X16,Feuil2!$C$1:$CD$9,5,FALSE) ->  | AD16: =T16-HLOOKUP(X16,Feuil2!$C$1:$CD$9,6,FALSE) ->  | AE16: =T16-HLOOKUP(X16,Feuil2!$C$1:$CD$9,7,FALSE) ->  | AF16: =T16-HLOOKUP(X16,Feuil2!$C$1:$CD$9,8,FALSE) ->  | AG16: =T16-HLOOKUP(X16,Feuil2!$C$1:$CD$9,9,FALSE) ->  | AP16: 114 | AR16: =IF(AP16,VLOOKUP(AP16,HOM!$AR$551:$AS$606,2)) -> 3.571
A17: H | F17: FALSE | X17: =IF(AND(J17>=40,J17<45),VLOOKUP(K17,Feuil2!$F$10:$P$28,9),IF(AND(J17>=45,J17<50),VLOOKUP(K17,Feuil2!$F$10:$P$28,8),IF(AND(J17>=50,J17<55),VLOOKUP(K17,Feuil2!$F$10:$P$28,7),IF(AND(J17>=55,J17<60),VLOOKUP(K17,Feuil2!$F$10:$P$28,6),IF(AND(J17>=60,J17<65),VLOOKUP(K17,Feuil2!$F$10:$P$28,5),IF(AND(J17>=65,J17<70),VLOOKUP(K17,Feuil2!$F$10:$P$28,4),IF(AND(J17>=70,J17<75),VLOOKUP(K17,Feuil2!$F$10:$P$28,3),IF(AND(J17>=75,J17<80),VLOOKUP(K17,Feuil2!$F$10:$P$28,2),VLOOKUP(K17,Feuil2!$F$10:$P$28,2))))))))) ->  | Z17: =T17-HLOOKUP(X17,Feuil2!$C$1:$CD$9,2,FALSE) ->  | AA17: =T17-HLOOKUP(X17,Feuil2!$C$1:$CD$9,3,FALSE) ->  | AB17: =T17-HLOOKUP(X17,Feuil2!$C$1:$CD$9,4,FALSE) ->  | AC17: =T17-HLOOKUP(X17,Feuil2!$C$1:$CD$9,5,FALSE) ->  | AD17: =T17-HLOOKUP(X17,Feuil2!$C$1:$CD$9,6,FALSE) ->  | AE17: =T17-HLOOKUP(X17,Feuil2!$C$1:$CD$9,7,FALSE) ->  | AF17: =T17-HLOOKUP(X17,Feuil2!$C$1:$CD$9,8,FALSE) ->  | AG17: =T17-HLOOKUP(X17,Feuil2!$C$1:$CD$9,9,FALSE) ->  | AP17: 114 | AR17: =IF(AP17,VLOOKUP(AP17,HOM!$AR$551:$AS$606,2)) -> 3.571
A18: H | F18: FALSE | X18: =IF(AND(J18>=40,J18<45),VLOOKUP(K18,Feuil2!$F$10:$P$28,9),IF(AND(J18>=45,J18<50),VLOOKUP(K18,Feuil2!$F$10:$P$28,8),IF(AND(J18>=50,J18<55),VLOOKUP(K18,Feuil2!$F$10:$P$28,7),IF(AND(J18>=55,J18<60),VLOOKUP(K18,Feuil2!$F$10:$P$28,6),IF(AND(J18>=60,J18<65),VLOOKUP(K18,Feuil2!$F$10:$P$28,5),IF(AND(J18>=65,J18<70),VLOOKUP(K18,Feuil2!$F$10:$P$28,4),IF(AND(J18>=70,J18<75),VLOOKUP(K18,Feuil2!$F$10:$P$28,3),IF(AND(J18>=75,J18<80),VLOOKUP(K18,Feuil2!$F$10:$P$28,2),VLOOKUP(K18,Feuil2!$F$10:$P$28,2))))))))) ->  | Z18: =T18-HLOOKUP(X18,Feuil2!$C$1:$CD$9,2,FALSE) ->  | AA18: =T18-HLOOKUP(X18,Feuil2!$C$1:$CD$9,3,FALSE) ->  | AB18: =T18-HLOOKUP(X18,Feuil2!$C$1:$CD$9,4,FALSE) ->  | AC18: =T18-HLOOKUP(X18,Feuil2!$C$1:$CD$9,5,FALSE) ->  | AD18: =T18-HLOOKUP(X18,Feuil2!$C$1:$CD$9,6,FALSE) ->  | AE18: =T18-HLOOKUP(X18,Feuil2!$C$1:$CD$9,7,FALSE) ->  | AF18: =T18-HLOOKUP(X18,Feuil2!$C$1:$CD$9,8,FALSE) ->  | AG18: =T18-HLOOKUP(X18,Feuil2!$C$1:$CD$9,9,FALSE) ->  | AP18: 114 | AR18: =IF(AP18,VLOOKUP(AP18,HOM!$AR$551:$AS$606,2)) -> 3.571
A19: H | F19: FALSE | X19: =IF(AND(J19>=40,J19<45),VLOOKUP(K19,Feuil2!$F$10:$P$28,9),IF(AND(J19>=45,J19<50),VLOOKUP(K19,Feuil2!$F$10:$P$28,8),IF(AND(J19>=50,J19<55),VLOOKUP(K19,Feuil2!$F$10:$P$28,7),IF(AND(J19>=55,J19<60),VLOOKUP(K19,Feuil2!$F$10:$P$28,6),IF(AND(J19>=60,J19<65),VLOOKUP(K19,Feuil2!$F$10:$P$28,5),IF(AND(J19>=65,J19<70),VLOOKUP(K19,Feuil2!$F$10:$P$28,4),IF(AND(J19>=70,J19<75),VLOOKUP(K19,Feuil2!$F$10:$P$28,3),IF(AND(J19>=75,J19<80),VLOOKUP(K19,Feuil2!$F$10:$P$28,2),VLOOKUP(K19,Feuil2!$F$10:$P$28,2))))))))) ->  | Z19: =T19-HLOOKUP(X19,Feuil2!$C$1:$CD$9,2,FALSE) ->  | AA19: =T19-HLOOKUP(X19,Feuil2!$C$1:$CD$9,3,FALSE) ->  | AB19: =T19-HLOOKUP(X19,Feuil2!$C$1:$CD$9,4,FALSE) ->  | AC19: =T19-HLOOKUP(X19,Feuil2!$C$1:$CD$9,5,FALSE) ->  | AD19: =T19-HLOOKUP(X19,Feuil2!$C$1:$CD$9,6,FALSE) ->  | AE19: =T19-HLOOKUP(X19,Feuil2!$C$1:$CD$9,7,FALSE) ->  | AF19: =T19-HLOOKUP(X19,Feuil2!$C$1:$CD$9,8,FALSE) ->  | AG19: =T19-HLOOKUP(X19,Feuil2!$C$1:$CD$9,9,FALSE) ->  | AP19: 114 | AR19: =IF(AP19,VLOOKUP(AP19,HOM!$AR$551:$AS$606,2)) -> 3.571
A20: H | F20: FALSE | X20: =IF(AND(J20>=40,J20<45),VLOOKUP(K20,Feuil2!$F$10:$P$28,9),IF(AND(J20>=45,J20<50),VLOOKUP(K20,Feuil2!$F$10:$P$28,8),IF(AND(J20>=50,J20<55),VLOOKUP(K20,Feuil2!$F$10:$P$28,7),IF(AND(J20>=55,J20<60),VLOOKUP(K20,Feuil2!$F$10:$P$28,6),IF(AND(J20>=60,J20<65),VLOOKUP(K20,Feuil2!$F$10:$P$28,5),IF(AND(J20>=65,J20<70),VLOOKUP(K20,Feuil2!$F$10:$P$28,4),IF(AND(J20>=70,J20<75),VLOOKUP(K20,Feuil2!$F$10:$P$28,3),IF(AND(J20>=75,J20<80),VLOOKUP(K20,Feuil2!$F$10:$P$28,2),VLOOKUP(K20,Feuil2!$F$10:$P$28,2))))))))) ->  | Z20: =T20-HLOOKUP(X20,Feuil2!$C$1:$CD$9,2,FALSE) ->  | AA20: =T20-HLOOKUP(X20,Feuil2!$C$1:$CD$9,3,FALSE) ->  | AB20: =T20-HLOOKUP(X20,Feuil2!$C$1:$CD$9,4,FALSE) ->  | AC20: =T20-HLOOKUP(X20,Feuil2!$C$1:$CD$9,5,FALSE) ->  | AD20: =T20-HLOOKUP(X20,Feuil2!$C$1:$CD$9,6,FALSE) ->  | AE20: =T20-HLOOKUP(X20,Feuil2!$C$1:$CD$9,7,FALSE) ->  | AF20: =T20-HLOOKUP(X20,Feuil2!$C$1:$CD$9,8,FALSE) ->  | AG20: =T20-HLOOKUP(X20,Feuil2!$C$1:$CD$9,9,FALSE) ->  | AP20: 114 | AR20: =IF(AP20,VLOOKUP(AP20,HOM!$AR$551:$AS$606,2)) -> 3.571
A21: H | F21: FALSE | X21: =IF(AND(J21>=40,J21<45),VLOOKUP(K21,Feuil2!$F$10:$P$28,9),IF(AND(J21>=45,J21<50),VLOOKUP(K21,Feuil2!$F$10:$P$28,8),IF(AND(J21>=50,J21<55),VLOOKUP(K21,Feuil2!$F$10:$P$28,7),IF(AND(J21>=55,J21<60),VLOOKUP(K21,Feuil2!$F$10:$P$28,6),IF(AND(J21>=60,J21<65),VLOOKUP(K21,Feuil2!$F$10:$P$28,5),IF(AND(J21>=65,J21<70),VLOOKUP(K21,Feuil2!$F$10:$P$28,4),IF(AND(J21>=70,J21<75),VLOOKUP(K21,Feuil2!$F$10:$P$28,3),IF(AND(J21>=75,J21<80),VLOOKUP(K21,Feuil2!$F$10:$P$28,2),VLOOKUP(K21,Feuil2!$F$10:$P$28,2))))))))) ->  | Z21: =T21-HLOOKUP(X21,Feuil2!$C$1:$CD$9,2,FALSE) ->  | AA21: =T21-HLOOKUP(X21,Feuil2!$C$1:$CD$9,3,FALSE) ->  | AB21: =T21-HLOOKUP(X21,Feuil2!$C$1:$CD$9,4,FALSE) ->  | AC21: =T21-HLOOKUP(X21,Feuil2!$C$1:$CD$9,5,FALSE) ->  | AD21: =T21-HLOOKUP(X21,Feuil2!$C$1:$CD$9,6,FALSE) ->  | AE21: =T21-HLOOKUP(X21,Feuil2!$C$1:$CD$9,7,FALSE) ->  | AF21: =T21-HLOOKUP(X21,Feuil2!$C$1:$CD$9,8,FALSE) ->  | AG21: =T21-HLOOKUP(X21,Feuil2!$C$1:$CD$9,9,FALSE) ->  | AP21: 114 | AR21: =IF(AP21,VLOOKUP(AP21,HOM!$AR$551:$AS$606,2)) -> 3.571
A22: H | F22: FALSE | X22: =IF(AND(J22>=40,J22<45),VLOOKUP(K22,Feuil2!$F$10:$P$28,9),IF(AND(J22>=45,J22<50),VLOOKUP(K22,Feuil2!$F$10:$P$28,8),IF(AND(J22>=50,J22<55),VLOOKUP(K22,Feuil2!$F$10:$P$28,7),IF(AND(J22>=55,J22<60),VLOOKUP(K22,Feuil2!$F$10:$P$28,6),IF(AND(J22>=60,J22<65),VLOOKUP(K22,Feuil2!$F$10:$P$28,5),IF(AND(J22>=65,J22<70),VLOOKUP(K22,Feuil2!$F$10:$P$28,4),IF(AND(J22>=70,J22<75),VLOOKUP(K22,Feuil2!$F$10:$P$28,3),IF(AND(J22>=75,J22<80),VLOOKUP(K22,Feuil2!$F$10:$P$28,2),VLOOKUP(K22,Feuil2!$F$10:$P$28,2))))))))) ->  | Z22: =T22-HLOOKUP(X22,Feuil2!$C$1:$CD$9,2,FALSE) ->  | AA22: =T22-HLOOKUP(X22,Feuil2!$C$1:$CD$9,3,FALSE) ->  | AB22: =T22-HLOOKUP(X22,Feuil2!$C$1:$CD$9,4,FALSE) ->  | AC22: =T22-HLOOKUP(X22,Feuil2!$C$1:$CD$9,5,FALSE) ->  | AD22: =T22-HLOOKUP(X22,Feuil2!$C$1:$CD$9,6,FALSE) ->  | AE22: =T22-HLOOKUP(X22,Feuil2!$C$1:$CD$9,7,FALSE) ->  | AF22: =T22-HLOOKUP(X22,Feuil2!$C$1:$CD$9,8,FALSE) ->  | AG22: =T22-HLOOKUP(X22,Feuil2!$C$1:$CD$9,9,FALSE) ->  | AP22: 114 | AR22: =IF(AP22,VLOOKUP(AP22,HOM!$AR$551:$AS$606,2)) -> 3.571
A23: H | F23: FALSE | X23: =IF(AND(J23>=40,J23<45),VLOOKUP(K23,Feuil2!$F$10:$P$28,9),IF(AND(J23>=45,J23<50),VLOOKUP(K23,Feuil2!$F$10:$P$28,8),IF(AND(J23>=50,J23<55),VLOOKUP(K23,Feuil2!$F$10:$P$28,7),IF(AND(J23>=55,J23<60),VLOOKUP(K23,Feuil2!$F$10:$P$28,6),IF(AND(J23>=60,J23<65),VLOOKUP(K23,Feuil2!$F$10:$P$28,5),IF(AND(J23>=65,J23<70),VLOOKUP(K23,Feuil2!$F$10:$P$28,4),IF(AND(J23>=70,J23<75),VLOOKUP(K23,Feuil2!$F$10:$P$28,3),IF(AND(J23>=75,J23<80),VLOOKUP(K23,Feuil2!$F$10:$P$28,2),VLOOKUP(K23,Feuil2!$F$10:$P$28,2))))))))) ->  | Z23: =T23-HLOOKUP(X23,Feuil2!$C$1:$CD$9,2,FALSE) ->  | AA23: =T23-HLOOKUP(X23,Feuil2!$C$1:$CD$9,3,FALSE) ->  | AB23: =T23-HLOOKUP(X23,Feuil2!$C$1:$CD$9,4,FALSE) ->  | AC23: =T23-HLOOKUP(X23,Feuil2!$C$1:$CD$9,5,FALSE) ->  | AD23: =T23-HLOOKUP(X23,Feuil2!$C$1:$CD$9,6,FALSE) ->  | AE23: =T23-HLOOKUP(X23,Feuil2!$C$1:$CD$9,7,FALSE) ->  | AF23: =T23-HLOOKUP(X23,Feuil2!$C$1:$CD$9,8,FALSE) ->  | AG23: =T23-HLOOKUP(X23,Feuil2!$C$1:$CD$9,9,FALSE) ->  | AP23: 114 | AR23: =IF(AP23,VLOOKUP(AP23,HOM!$AR$551:$AS$606,2)) -> 3.571
A24: H | F24: FALSE | X24: =IF(AND(J24>=40,J24<45),VLOOKUP(K24,Feuil2!$F$10:$P$28,9),IF(AND(J24>=45,J24<50),VLOOKUP(K24,Feuil2!$F$10:$P$28,8),IF(AND(J24>=50,J24<55),VLOOKUP(K24,Feuil2!$F$10:$P$28,7),IF(AND(J24>=55,J24<60),VLOOKUP(K24,Feuil2!$F$10:$P$28,6),IF(AND(J24>=60,J24<65),VLOOKUP(K24,Feuil2!$F$10:$P$28,5),IF(AND(J24>=65,J24<70),VLOOKUP(K24,Feuil2!$F$10:$P$28,4),IF(AND(J24>=70,J24<75),VLOOKUP(K24,Feuil2!$F$10:$P$28,3),IF(AND(J24>=75,J24<80),VLOOKUP(K24,Feuil2!$F$10:$P$28,2),VLOOKUP(K24,Feuil2!$F$10:$P$28,2))))))))) ->  | Z24: =T24-HLOOKUP(X24,Feuil2!$C$1:$CD$9,2,FALSE) ->  | AA24: =T24-HLOOKUP(X24,Feuil2!$C$1:$CD$9,3,FALSE) ->  | AB24: =T24-HLOOKUP(X24,Feuil2!$C$1:$CD$9,4,FALSE) ->  | AC24: =T24-HLOOKUP(X24,Feuil2!$C$1:$CD$9,5,FALSE) ->  | AD24: =T24-HLOOKUP(X24,Feuil2!$C$1:$CD$9,6,FALSE) ->  | AE24: =T24-HLOOKUP(X24,Feuil2!$C$1:$CD$9,7,FALSE) ->  | AF24: =T24-HLOOKUP(X24,Feuil2!$C$1:$CD$9,8,FALSE) ->  | AG24: =T24-HLOOKUP(X24,Feuil2!$C$1:$CD$9,9,FALSE) ->  | AP24: 114 | AR24: =IF(AP24,VLOOKUP(AP24,HOM!$AR$551:$AS$606,2)) -> 3.571
A25: H | F25: FALSE | X25: =IF(AND(J25>=40,J25<45),VLOOKUP(K25,Feuil2!$F$10:$P$28,9),IF(AND(J25>=45,J25<50),VLOOKUP(K25,Feuil2!$F$10:$P$28,8),IF(AND(J25>=50,J25<55),VLOOKUP(K25,Feuil2!$F$10:$P$28,7),IF(AND(J25>=55,J25<60),VLOOKUP(K25,Feuil2!$F$10:$P$28,6),IF(AND(J25>=60,J25<65),VLOOKUP(K25,Feuil2!$F$10:$P$28,5),IF(AND(J25>=65,J25<70),VLOOKUP(K25,Feuil2!$F$10:$P$28,4),IF(AND(J25>=70,J25<75),VLOOKUP(K25,Feuil2!$F$10:$P$28,3),IF(AND(J25>=75,J25<80),VLOOKUP(K25,Feuil2!$F$10:$P$28,2),VLOOKUP(K25,Feuil2!$F$10:$P$28,2))))))))) ->  | Z25: =T25-HLOOKUP(X25,Feuil2!$C$1:$CD$9,2,FALSE) ->  | AA25: =T25-HLOOKUP(X25,Feuil2!$C$1:$CD$9,3,FALSE) ->  | AB25: =T25-HLOOKUP(X25,Feuil2!$C$1:$CD$9,4,FALSE) ->  | AC25: =T25-HLOOKUP(X25,Feuil2!$C$1:$CD$9,5,FALSE) ->  | AD25: =T25-HLOOKUP(X25,Feuil2!$C$1:$CD$9,6,FALSE) ->  | AE25: =T25-HLOOKUP(X25,Feuil2!$C$1:$CD$9,7,FALSE) ->  | AF25: =T25-HLOOKUP(X25,Feuil2!$C$1:$CD$9,8,FALSE) ->  | AG25: =T25-HLOOKUP(X25,Feuil2!$C$1:$CD$9,9,FALSE) ->  | AP25: 114 | AR25: =IF(AP25,VLOOKUP(AP25,HOM!$AR$551:$AS$606,2)) -> 3.571
A26: H | F26: FALSE | X26: =IF(AND(J26>=40,J26<45),VLOOKUP(K26,Feuil2!$F$10:$P$28,9),IF(AND(J26>=45,J26<50),VLOOKUP(K26,Feuil2!$F$10:$P$28,8),IF(AND(J26>=50,J26<55),VLOOKUP(K26,Feuil2!$F$10:$P$28,7),IF(AND(J26>=55,J26<60),VLOOKUP(K26,Feuil2!$F$10:$P$28,6),IF(AND(J26>=60,J26<65),VLOOKUP(K26,Feuil2!$F$10:$P$28,5),IF(AND(J26>=65,J26<70),VLOOKUP(K26,Feuil2!$F$10:$P$28,4),IF(AND(J26>=70,J26<75),VLOOKUP(K26,Feuil2!$F$10:$P$28,3),IF(AND(J26>=75,J26<80),VLOOKUP(K26,Feuil2!$F$10:$P$28,2),VLOOKUP(K26,Feuil2!$F$10:$P$28,2))))))))) ->  | Z26: =T26-HLOOKUP(X26,Feuil2!$C$1:$CD$9,2,FALSE) ->  | AA26: =T26-HLOOKUP(X26,Feuil2!$C$1:$CD$9,3,FALSE) ->  | AB26: =T26-HLOOKUP(X26,Feuil2!$C$1:$CD$9,4,FALSE) ->  | AC26: =T26-HLOOKUP(X26,Feuil2!$C$1:$CD$9,5,FALSE) ->  | AD26: =T26-HLOOKUP(X26,Feuil2!$C$1:$CD$9,6,FALSE) ->  | AE26: =T26-HLOOKUP(X26,Feuil2!$C$1:$CD$9,7,FALSE) ->  | AF26: =T26-HLOOKUP(X26,Feuil2!$C$1:$CD$9,8,FALSE) ->  | AG26: =T26-HLOOKUP(X26,Feuil2!$C$1:$CD$9,9,FALSE) ->  | AP26: 114 | AR26: =IF(AP26,VLOOKUP(AP26,HOM!$AR$551:$AS$606,2)) -> 3.571
A27: H | F27: FALSE | X27: =IF(AND(J27>=40,J27<45),VLOOKUP(K27,Feuil2!$F$10:$P$28,9),IF(AND(J27>=45,J27<50),VLOOKUP(K27,Feuil2!$F$10:$P$28,8),IF(AND(J27>=50,J27<55),VLOOKUP(K27,Feuil2!$F$10:$P$28,7),IF(AND(J27>=55,J27<60),VLOOKUP(K27,Feuil2!$F$10:$P$28,6),IF(AND(J27>=60,J27<65),VLOOKUP(K27,Feuil2!$F$10:$P$28,5),IF(AND(J27>=65,J27<70),VLOOKUP(K27,Feuil2!$F$10:$P$28,4),IF(AND(J27>=70,J27<75),VLOOKUP(K27,Feuil2!$F$10:$P$28,3),IF(AND(J27>=75,J27<80),VLOOKUP(K27,Feuil2!$F$10:$P$28,2),VLOOKUP(K27,Feuil2!$F$10:$P$28,2))))))))) ->  | Z27: =T27-HLOOKUP(X27,Feuil2!$C$1:$CD$9,2,FALSE) ->  | AA27: =T27-HLOOKUP(X27,Feuil2!$C$1:$CD$9,3,FALSE) ->  | AB27: =T27-HLOOKUP(X27,Feuil2!$C$1:$CD$9,4,FALSE) ->  | AC27: =T27-HLOOKUP(X27,Feuil2!$C$1:$CD$9,5,FALSE) ->  | AD27: =T27-HLOOKUP(X27,Feuil2!$C$1:$CD$9,6,FALSE) ->  | AE27: =T27-HLOOKUP(X27,Feuil2!$C$1:$CD$9,7,FALSE) ->  | AF27: =T27-HLOOKUP(X27,Feuil2!$C$1:$CD$9,8,FALSE) ->  | AG27: =T27-HLOOKUP(X27,Feuil2!$C$1:$CD$9,9,FALSE) ->  | AP27: 114 | AR27: =IF(AP27,VLOOKUP(AP27,HOM!$AR$551:$AS$606,2)) -> 3.571
A28: H | F28: FALSE | X28: =IF(AND(J28>=40,J28<45),VLOOKUP(K28,Feuil2!$F$10:$P$28,9),IF(AND(J28>=45,J28<50),VLOOKUP(K28,Feuil2!$F$10:$P$28,8),IF(AND(J28>=50,J28<55),VLOOKUP(K28,Feuil2!$F$10:$P$28,7),IF(AND(J28>=55,J28<60),VLOOKUP(K28,Feuil2!$F$10:$P$28,6),IF(AND(J28>=60,J28<65),VLOOKUP(K28,Feuil2!$F$10:$P$28,5),IF(AND(J28>=65,J28<70),VLOOKUP(K28,Feuil2!$F$10:$P$28,4),IF(AND(J28>=70,J28<75),VLOOKUP(K28,Feuil2!$F$10:$P$28,3),IF(AND(J28>=75,J28<80),VLOOKUP(K28,Feuil2!$F$10:$P$28,2),VLOOKUP(K28,Feuil2!$F$10:$P$28,2))))))))) ->  | Z28: =T28-HLOOKUP(X28,Feuil2!$C$1:$CD$9,2,FALSE) ->  | AA28: =T28-HLOOKUP(X28,Feuil2!$C$1:$CD$9,3,FALSE) ->  | AB28: =T28-HLOOKUP(X28,Feuil2!$C$1:$CD$9,4,FALSE) ->  | AC28: =T28-HLOOKUP(X28,Feuil2!$C$1:$CD$9,5,FALSE) ->  | AD28: =T28-HLOOKUP(X28,Feuil2!$C$1:$CD$9,6,FALSE) ->  | AE28: =T28-HLOOKUP(X28,Feuil2!$C$1:$CD$9,7,FALSE) ->  | AF28: =T28-HLOOKUP(X28,Feuil2!$C$1:$CD$9,8,FALSE) ->  | AG28: =T28-HLOOKUP(X28,Feuil2!$C$1:$CD$9,9,FALSE) ->  | AP28: 114 | AR28: =IF(AP28,VLOOKUP(AP28,HOM!$AR$551:$AS$606,2)) -> 3.571
A29: H | F29: FALSE | X29: =IF(AND(J29>=40,J29<45),VLOOKUP(K29,Feuil2!$F$10:$P$28,9),IF(AND(J29>=45,J29<50),VLOOKUP(K29,Feuil2!$F$10:$P$28,8),IF(AND(J29>=50,J29<55),VLOOKUP(K29,Feuil2!$F$10:$P$28,7),IF(AND(J29>=55,J29<60),VLOOKUP(K29,Feuil2!$F$10:$P$28,6),IF(AND(J29>=60,J29<65),VLOOKUP(K29,Feuil2!$F$10:$P$28,5),IF(AND(J29>=65,J29<70),VLOOKUP(K29,Feuil2!$F$10:$P$28,4),IF(AND(J29>=70,J29<75),VLOOKUP(K29,Feuil2!$F$10:$P$28,3),IF(AND(J29>=75,J29<80),VLOOKUP(K29,Feuil2!$F$10:$P$28,2),VLOOKUP(K29,Feuil2!$F$10:$P$28,2))))))))) ->  | Z29: =T29-HLOOKUP(X29,Feuil2!$C$1:$CD$9,2,FALSE) ->  | AA29: =T29-HLOOKUP(X29,Feuil2!$C$1:$CD$9,3,FALSE) ->  | AB29: =T29-HLOOKUP(X29,Feuil2!$C$1:$CD$9,4,FALSE) ->  | AC29: =T29-HLOOKUP(X29,Feuil2!$C$1:$CD$9,5,FALSE) ->  | AD29: =T29-HLOOKUP(X29,Feuil2!$C$1:$CD$9,6,FALSE) ->  | AE29: =T29-HLOOKUP(X29,Feuil2!$C$1:$CD$9,7,FALSE) ->  | AF29: =T29-HLOOKUP(X29,Feuil2!$C$1:$CD$9,8,FALSE) ->  | AG29: =T29-HLOOKUP(X29,Feuil2!$C$1:$CD$9,9,FALSE) ->  | AP29: 114 | AR29: =IF(AP29,VLOOKUP(AP29,HOM!$AR$551:$AS$606,2)) -> 3.571
A30: H | F30: FALSE | X30: =IF(AND(J30>=40,J30<45),VLOOKUP(K30,Feuil2!$F$10:$P$28,9),IF(AND(J30>=45,J30<50),VLOOKUP(K30,Feuil2!$F$10:$P$28,8),IF(AND(J30>=50,J30<55),VLOOKUP(K30,Feuil2!$F$10:$P$28,7),IF(AND(J30>=55,J30<60),VLOOKUP(K30,Feuil2!$F$10:$P$28,6),IF(AND(J30>=60,J30<65),VLOOKUP(K30,Feuil2!$F$10:$P$28,5),IF(AND(J30>=65,J30<70),VLOOKUP(K30,Feuil2!$F$10:$P$28,4),IF(AND(J30>=70,J30<75),VLOOKUP(K30,Feuil2!$F$10:$P$28,3),IF(AND(J30>=75,J30<80),VLOOKUP(K30,Feuil2!$F$10:$P$28,2),VLOOKUP(K30,Feuil2!$F$10:$P$28,2))))))))) ->  | Z30: =T30-HLOOKUP(X30,Feuil2!$C$1:$CD$9,2,FALSE) ->  | AA30: =T30-HLOOKUP(X30,Feuil2!$C$1:$CD$9,3,FALSE) ->  | AB30: =T30-HLOOKUP(X30,Feuil2!$C$1:$CD$9,4,FALSE) ->  | AC30: =T30-HLOOKUP(X30,Feuil2!$C$1:$CD$9,5,FALSE) ->  | AD30: =T30-HLOOKUP(X30,Feuil2!$C$1:$CD$9,6,FALSE) ->  | AE30: =T30-HLOOKUP(X30,Feuil2!$C$1:$CD$9,7,FALSE) ->  | AF30: =T30-HLOOKUP(X30,Feuil2!$C$1:$CD$9,8,FALSE) ->  | AG30: =T30-HLOOKUP(X30,Feuil2!$C$1:$CD$9,9,FALSE) ->  | AP30: 114 | AR30: =IF(AP30,VLOOKUP(AP30,HOM!$AR$551:$AS$606,2)) -> 3.571
A31: H | F31: FALSE | X31: =IF(AND(J31>=40,J31<45),VLOOKUP(K31,Feuil2!$F$10:$P$28,9),IF(AND(J31>=45,J31<50),VLOOKUP(K31,Feuil2!$F$10:$P$28,8),IF(AND(J31>=50,J31<55),VLOOKUP(K31,Feuil2!$F$10:$P$28,7),IF(AND(J31>=55,J31<60),VLOOKUP(K31,Feuil2!$F$10:$P$28,6),IF(AND(J31>=60,J31<65),VLOOKUP(K31,Feuil2!$F$10:$P$28,5),IF(AND(J31>=65,J31<70),VLOOKUP(K31,Feuil2!$F$10:$P$28,4),IF(AND(J31>=70,J31<75),VLOOKUP(K31,Feuil2!$F$10:$P$28,3),IF(AND(J31>=75,J31<80),VLOOKUP(K31,Feuil2!$F$10:$P$28,2),VLOOKUP(K31,Feuil2!$F$10:$P$28,2))))))))) ->  | Z31: =T31-HLOOKUP(X31,Feuil2!$C$1:$CD$9,2,FALSE) ->  | AA31: =T31-HLOOKUP(X31,Feuil2!$C$1:$CD$9,3,FALSE) ->  | AB31: =T31-HLOOKUP(X31,Feuil2!$C$1:$CD$9,4,FALSE) ->  | AC31: =T31-HLOOKUP(X31,Feuil2!$C$1:$CD$9,5,FALSE) ->  | AD31: =T31-HLOOKUP(X31,Feuil2!$C$1:$CD$9,6,FALSE) ->  | AE31: =T31-HLOOKUP(X31,Feuil2!$C$1:$CD$9,7,FALSE) ->  | AF31: =T31-HLOOKUP(X31,Feuil2!$C$1:$CD$9,8,FALSE) ->  | AG31: =T31-HLOOKUP(X31,Feuil2!$C$1:$CD$9,9,FALSE) ->  | AP31: 114 | AR31: =IF(AP31,VLOOKUP(AP31,HOM!$AR$551:$AS$606,2)) -> 3.571
A32: H | F32: FALSE | X32: =IF(AND(J32>=40,J32<45),VLOOKUP(K32,Feuil2!$F$10:$P$28,9),IF(AND(J32>=45,J32<50),VLOOKUP(K32,Feuil2!$F$10:$P$28,8),IF(AND(J32>=50,J32<55),VLOOKUP(K32,Feuil2!$F$10:$P$28,7),IF(AND(J32>=55,J32<60),VLOOKUP(K32,Feuil2!$F$10:$P$28,6),IF(AND(J32>=60,J32<65),VLOOKUP(K32,Feuil2!$F$10:$P$28,5),IF(AND(J32>=65,J32<70),VLOOKUP(K32,Feuil2!$F$10:$P$28,4),IF(AND(J32>=70,J32<75),VLOOKUP(K32,Feuil2!$F$10:$P$28,3),IF(AND(J32>=75,J32<80),VLOOKUP(K32,Feuil2!$F$10:$P$28,2),VLOOKUP(K32,Feuil2!$F$10:$P$28,2))))))))) ->  | Z32: =T32-HLOOKUP(X32,Feuil2!$C$1:$CD$9,2,FALSE) ->  | AA32: =T32-HLOOKUP(X32,Feuil2!$C$1:$CD$9,3,FALSE) ->  | AB32: =T32-HLOOKUP(X32,Feuil2!$C$1:$CD$9,4,FALSE) ->  | AC32: =T32-HLOOKUP(X32,Feuil2!$C$1:$CD$9,5,FALSE) ->  | AD32: =T32-HLOOKUP(X32,Feuil2!$C$1:$CD$9,6,FALSE) ->  | AE32: =T32-HLOOKUP(X32,Feuil2!$C$1:$CD$9,7,FALSE) ->  | AF32: =T32-HLOOKUP(X32,Feuil2!$C$1:$CD$9,8,FALSE) ->  | AG32: =T32-HLOOKUP(X32,Feuil2!$C$1:$CD$9,9,FALSE) ->  | AP32: 114 | AR32: =IF(AP32,VLOOKUP(AP32,HOM!$AR$551:$AS$606,2)) -> 3.571
A33: H | F33: FALSE | X33: =IF(AND(J33>=40,J33<45),VLOOKUP(K33,Feuil2!$F$10:$P$28,9),IF(AND(J33>=45,J33<50),VLOOKUP(K33,Feuil2!$F$10:$P$28,8),IF(AND(J33>=50,J33<55),VLOOKUP(K33,Feuil2!$F$10:$P$28,7),IF(AND(J33>=55,J33<60),VLOOKUP(K33,Feuil2!$F$10:$P$28,6),IF(AND(J33>=60,J33<65),VLOOKUP(K33,Feuil2!$F$10:$P$28,5),IF(AND(J33>=65,J33<70),VLOOKUP(K33,Feuil2!$F$10:$P$28,4),IF(AND(J33>=70,J33<75),VLOOKUP(K33,Feuil2!$F$10:$P$28,3),IF(AND(J33>=75,J33<80),VLOOKUP(K33,Feuil2!$F$10:$P$28,2),VLOOKUP(K33,Feuil2!$F$10:$P$28,2))))))))) ->  | Z33: =T33-HLOOKUP(X33,Feuil2!$C$1:$CD$9,2,FALSE) ->  | AA33: =T33-HLOOKUP(X33,Feuil2!$C$1:$CD$9,3,FALSE) ->  | AB33: =T33-HLOOKUP(X33,Feuil2!$C$1:$CD$9,4,FALSE) ->  | AC33: =T33-HLOOKUP(X33,Feuil2!$C$1:$CD$9,5,FALSE) ->  | AD33: =T33-HLOOKUP(X33,Feuil2!$C$1:$CD$9,6,FALSE) ->  | AE33: =T33-HLOOKUP(X33,Feuil2!$C$1:$CD$9,7,FALSE) ->  | AF33: =T33-HLOOKUP(X33,Feuil2!$C$1:$CD$9,8,FALSE) ->  | AG33: =T33-HLOOKUP(X33,Feuil2!$C$1:$CD$9,9,FALSE) ->  | AP33: 114 | AR33: =IF(AP33,VLOOKUP(AP33,HOM!$AR$551:$AS$606,2)) -> 3.571
A34: H | F34: FALSE | X34: =IF(AND(J34>=40,J34<45),VLOOKUP(K34,Feuil2!$F$10:$P$28,9),IF(AND(J34>=45,J34<50),VLOOKUP(K34,Feuil2!$F$10:$P$28,8),IF(AND(J34>=50,J34<55),VLOOKUP(K34,Feuil2!$F$10:$P$28,7),IF(AND(J34>=55,J34<60),VLOOKUP(K34,Feuil2!$F$10:$P$28,6),IF(AND(J34>=60,J34<65),VLOOKUP(K34,Feuil2!$F$10:$P$28,5),IF(AND(J34>=65,J34<70),VLOOKUP(K34,Feuil2!$F$10:$P$28,4),IF(AND(J34>=70,J34<75),VLOOKUP(K34,Feuil2!$F$10:$P$28,3),IF(AND(J34>=75,J34<80),VLOOKUP(K34,Feuil2!$F$10:$P$28,2),VLOOKUP(K34,Feuil2!$F$10:$P$28,2))))))))) ->  | Z34: =T34-HLOOKUP(X34,Feuil2!$C$1:$CD$9,2,FALSE) ->  | AA34: =T34-HLOOKUP(X34,Feuil2!$C$1:$CD$9,3,FALSE) ->  | AB34: =T34-HLOOKUP(X34,Feuil2!$C$1:$CD$9,4,FALSE) ->  | AC34: =T34-HLOOKUP(X34,Feuil2!$C$1:$CD$9,5,FALSE) ->  | AD34: =T34-HLOOKUP(X34,Feuil2!$C$1:$CD$9,6,FALSE) ->  | AE34: =T34-HLOOKUP(X34,Feuil2!$C$1:$CD$9,7,FALSE) ->  | AF34: =T34-HLOOKUP(X34,Feuil2!$C$1:$CD$9,8,FALSE) ->  | AG34: =T34-HLOOKUP(X34,Feuil2!$C$1:$CD$9,9,FALSE) ->  | AP34: 114 | AR34: =IF(AP34,VLOOKUP(AP34,HOM!$AR$551:$AS$606,2)) -> 3.571
A35: H | F35: FALSE | X35: =IF(AND(J35>=40,J35<45),VLOOKUP(K35,Feuil2!$F$10:$P$28,9),IF(AND(J35>=45,J35<50),VLOOKUP(K35,Feuil2!$F$10:$P$28,8),IF(AND(J35>=50,J35<55),VLOOKUP(K35,Feuil2!$F$10:$P$28,7),IF(AND(J35>=55,J35<60),VLOOKUP(K35,Feuil2!$F$10:$P$28,6),IF(AND(J35>=60,J35<65),VLOOKUP(K35,Feuil2!$F$10:$P$28,5),IF(AND(J35>=65,J35<70),VLOOKUP(K35,Feuil2!$F$10:$P$28,4),IF(AND(J35>=70,J35<75),VLOOKUP(K35,Feuil2!$F$10:$P$28,3),IF(AND(J35>=75,J35<80),VLOOKUP(K35,Feuil2!$F$10:$P$28,2),VLOOKUP(K35,Feuil2!$F$10:$P$28,2))))))))) ->  | Z35: =T35-HLOOKUP(X35,Feuil2!$C$1:$CD$9,2,FALSE) ->  | AA35: =T35-HLOOKUP(X35,Feuil2!$C$1:$CD$9,3,FALSE) ->  | AB35: =T35-HLOOKUP(X35,Feuil2!$C$1:$CD$9,4,FALSE) ->  | AC35: =T35-HLOOKUP(X35,Feuil2!$C$1:$CD$9,5,FALSE) ->  | AD35: =T35-HLOOKUP(X35,Feuil2!$C$1:$CD$9,6,FALSE) ->  | AE35: =T35-HLOOKUP(X35,Feuil2!$C$1:$CD$9,7,FALSE) ->  | AF35: =T35-HLOOKUP(X35,Feuil2!$C$1:$CD$9,8,FALSE) ->  | AG35: =T35-HLOOKUP(X35,Feuil2!$C$1:$CD$9,9,FALSE) ->  | AP35: 114 | AR35: =IF(AP35,VLOOKUP(AP35,HOM!$AR$551:$AS$606,2)) -> 3.571
A36: H | F36: FALSE | X36: =IF(AND(J36>=40,J36<45),VLOOKUP(K36,Feuil2!$F$10:$P$28,9),IF(AND(J36>=45,J36<50),VLOOKUP(K36,Feuil2!$F$10:$P$28,8),IF(AND(J36>=50,J36<55),VLOOKUP(K36,Feuil2!$F$10:$P$28,7),IF(AND(J36>=55,J36<60),VLOOKUP(K36,Feuil2!$F$10:$P$28,6),IF(AND(J36>=60,J36<65),VLOOKUP(K36,Feuil2!$F$10:$P$28,5),IF(AND(J36>=65,J36<70),VLOOKUP(K36,Feuil2!$F$10:$P$28,4),IF(AND(J36>=70,J36<75),VLOOKUP(K36,Feuil2!$F$10:$P$28,3),IF(AND(J36>=75,J36<80),VLOOKUP(K36,Feuil2!$F$10:$P$28,2),VLOOKUP(K36,Feuil2!$F$10:$P$28,2))))))))) ->  | Z36: =T36-HLOOKUP(X36,Feuil2!$C$1:$CD$9,2,FALSE) ->  | AA36: =T36-HLOOKUP(X36,Feuil2!$C$1:$CD$9,3,FALSE) ->  | AB36: =T36-HLOOKUP(X36,Feuil2!$C$1:$CD$9,4,FALSE) ->  | AC36: =T36-HLOOKUP(X36,Feuil2!$C$1:$CD$9,5,FALSE) ->  | AD36: =T36-HLOOKUP(X36,Feuil2!$C$1:$CD$9,6,FALSE) ->  | AE36: =T36-HLOOKUP(X36,Feuil2!$C$1:$CD$9,7,FALSE) ->  | AF36: =T36-HLOOKUP(X36,Feuil2!$C$1:$CD$9,8,FALSE) ->  | AG36: =T36-HLOOKUP(X36,Feuil2!$C$1:$CD$9,9,FALSE) ->  | AP36: 114 | AR36: =IF(AP36,VLOOKUP(AP36,HOM!$AR$551:$AS$606,2)) -> 3.571
A37: H | F37: =IF(AP37<95,IF(AP37<=90,VLOOKUP(AP37,$AP$550:$AQ$605,2))) -> FALSE | X37: =IF(AND(J37>=40,J37<45),VLOOKUP(K37,Feuil2!$F$10:$P$28,9),IF(AND(J37>=45,J37<50),VLOOKUP(K37,Feuil2!$F$10:$P$28,8),IF(AND(J37>=50,J37<55),VLOOKUP(K37,Feuil2!$F$10:$P$28,7),IF(AND(J37>=55,J37<60),VLOOKUP(K37,Feuil2!$F$10:$P$28,6),IF(AND(J37>=60,J37<65),VLOOKUP(K37,Feuil2!$F$10:$P$28,5),IF(AND(J37>=65,J37<70),VLOOKUP(K37,Feuil2!$F$10:$P$28,4),IF(AND(J37>=70,J37<75),VLOOKUP(K37,Feuil2!$F$10:$P$28,3),IF(AND(J37>=75,J37<80),VLOOKUP(K37,Feuil2!$F$10:$P$28,2),VLOOKUP(K37,Feuil2!$F$10:$P$28,2))))))))) ->  | Z37: =T37-HLOOKUP(X37,Feuil2!$C$1:$CD$9,2,FALSE) ->  | AA37: =T37-HLOOKUP(X37,Feuil2!$C$1:$CD$9,3,FALSE) ->  | AB37: =T37-HLOOKUP(X37,Feuil2!$C$1:$CD$9,4,FALSE) ->  | AC37: =T37-HLOOKUP(X37,Feuil2!$C$1:$CD$9,5,FALSE) ->  | AD37: =T37-HLOOKUP(X37,Feuil2!$C$1:$CD$9,6,FALSE) ->  | AE37: =T37-HLOOKUP(X37,Feuil2!$C$1:$CD$9,7,FALSE) ->  | AF37: =T37-HLOOKUP(X37,Feuil2!$C$1:$CD$9,8,FALSE) ->  | AG37: =T37-HLOOKUP(X37,Feuil2!$C$1:$CD$9,9,FALSE) ->  | AP37: 114 | AR37: =IF(AP37,VLOOKUP(AP37,HOM!$AR$551:$AS$606,2)) -> 3.571
A38: H | F38: FALSE | X38: =IF(AND(J38>=40,J38<45),VLOOKUP(K38,Feuil2!$F$10:$P$28,9),IF(AND(J38>=45,J38<50),VLOOKUP(K38,Feuil2!$F$10:$P$28,8),IF(AND(J38>=50,J38<55),VLOOKUP(K38,Feuil2!$F$10:$P$28,7),IF(AND(J38>=55,J38<60),VLOOKUP(K38,Feuil2!$F$10:$P$28,6),IF(AND(J38>=60,J38<65),VLOOKUP(K38,Feuil2!$F$10:$P$28,5),IF(AND(J38>=65,J38<70),VLOOKUP(K38,Feuil2!$F$10:$P$28,4),IF(AND(J38>=70,J38<75),VLOOKUP(K38,Feuil2!$F$10:$P$28,3),IF(AND(J38>=75,J38<80),VLOOKUP(K38,Feuil2!$F$10:$P$28,2),VLOOKUP(K38,Feuil2!$F$10:$P$28,2))))))))) ->  | Z38: =T38-HLOOKUP(X38,Feuil2!$C$1:$CD$9,2,FALSE) ->  | AA38: =T38-HLOOKUP(X38,Feuil2!$C$1:$CD$9,3,FALSE) ->  | AB38: =T38-HLOOKUP(X38,Feuil2!$C$1:$CD$9,4,FALSE) ->  | AC38: =T38-HLOOKUP(X38,Feuil2!$C$1:$CD$9,5,FALSE) ->  | AD38: =T38-HLOOKUP(X38,Feuil2!$C$1:$CD$9,6,FALSE) ->  | AE38: =T38-HLOOKUP(X38,Feuil2!$C$1:$CD$9,7,FALSE) ->  | AF38: =T38-HLOOKUP(X38,Feuil2!$C$1:$CD$9,8,FALSE) ->  | AG38: =T38-HLOOKUP(X38,Feuil2!$C$1:$CD$9,9,FALSE) ->  | AP38: 114 | AR38: =IF(AP38,VLOOKUP(AP38,HOM!$AR$551:$AS$606,2)) -> 3.571
A39: H | F39: FALSE | X39: =IF(AND(J39>=40,J39<45),VLOOKUP(K39,Feuil2!$F$10:$P$28,9),IF(AND(J39>=45,J39<50),VLOOKUP(K39,Feuil2!$F$10:$P$28,8),IF(AND(J39>=50,J39<55),VLOOKUP(K39,Feuil2!$F$10:$P$28,7),IF(AND(J39>=55,J39<60),VLOOKUP(K39,Feuil2!$F$10:$P$28,6),IF(AND(J39>=60,J39<65),VLOOKUP(K39,Feuil2!$F$10:$P$28,5),IF(AND(J39>=65,J39<70),VLOOKUP(K39,Feuil2!$F$10:$P$28,4),IF(AND(J39>=70,J39<75),VLOOKUP(K39,Feuil2!$F$10:$P$28,3),IF(AND(J39>=75,J39<80),VLOOKUP(K39,Feuil2!$F$10:$P$28,2),VLOOKUP(K39,Feuil2!$F$10:$P$28,2))))))))) ->  | Z39: =T39-HLOOKUP(X39,Feuil2!$C$1:$CD$9,2,FALSE) ->  | AA39: =T39-HLOOKUP(X39,Feuil2!$C$1:$CD$9,3,FALSE) ->  | AB39: =T39-HLOOKUP(X39,Feuil2!$C$1:$CD$9,4,FALSE) ->  | AC39: =T39-HLOOKUP(X39,Feuil2!$C$1:$CD$9,5,FALSE) ->  | AD39: =T39-HLOOKUP(X39,Feuil2!$C$1:$CD$9,6,FALSE) ->  | AE39: =T39-HLOOKUP(X39,Feuil2!$C$1:$CD$9,7,FALSE) ->  | AF39: =T39-HLOOKUP(X39,Feuil2!$C$1:$CD$9,8,FALSE) ->  | AG39: =T39-HLOOKUP(X39,Feuil2!$C$1:$CD$9,9,FALSE) ->  | AP39: 114 | AR39: =IF(AP39,VLOOKUP(AP39,HOM!$AR$551:$AS$606,2)) -> 3.571
A40: H | F40: FALSE | X40: =IF(AND(J40>=40,J40<45),VLOOKUP(K40,Feuil2!$F$10:$P$28,9),IF(AND(J40>=45,J40<50),VLOOKUP(K40,Feuil2!$F$10:$P$28,8),IF(AND(J40>=50,J40<55),VLOOKUP(K40,Feuil2!$F$10:$P$28,7),IF(AND(J40>=55,J40<60),VLOOKUP(K40,Feuil2!$F$10:$P$28,6),IF(AND(J40>=60,J40<65),VLOOKUP(K40,Feuil2!$F$10:$P$28,5),IF(AND(J40>=65,J40<70),VLOOKUP(K40,Feuil2!$F$10:$P$28,4),IF(AND(J40>=70,J40<75),VLOOKUP(K40,Feuil2!$F$10:$P$28,3),IF(AND(J40>=75,J40<80),VLOOKUP(K40,Feuil2!$F$10:$P$28,2),VLOOKUP(K40,Feuil2!$F$10:$P$28,2))))))))) ->  | Z40: =T40-HLOOKUP(X40,Feuil2!$C$1:$CD$9,2,FALSE) ->  | AA40: =T40-HLOOKUP(X40,Feuil2!$C$1:$CD$9,3,FALSE) ->  | AB40: =T40-HLOOKUP(X40,Feuil2!$C$1:$CD$9,4,FALSE) ->  | AC40: =T40-HLOOKUP(X40,Feuil2!$C$1:$CD$9,5,FALSE) ->  | AD40: =T40-HLOOKUP(X40,Feuil2!$C$1:$CD$9,6,FALSE) ->  | AE40: =T40-HLOOKUP(X40,Feuil2!$C$1:$CD$9,7,FALSE) ->  | AF40: =T40-HLOOKUP(X40,Feuil2!$C$1:$CD$9,8,FALSE) ->  | AG40: =T40-HLOOKUP(X40,Feuil2!$C$1:$CD$9,9,FALSE) ->  | AP40: 114 | AR40: =IF(AP40,VLOOKUP(AP40,HOM!$AR$551:$AS$606,2)) -> 3.571
A41: H | F41: FALSE | X41: =IF(AND(J41>=40,J41<45),VLOOKUP(K41,Feuil2!$F$10:$P$28,9),IF(AND(J41>=45,J41<50),VLOOKUP(K41,Feuil2!$F$10:$P$28,8),IF(AND(J41>=50,J41<55),VLOOKUP(K41,Feuil2!$F$10:$P$28,7),IF(AND(J41>=55,J41<60),VLOOKUP(K41,Feuil2!$F$10:$P$28,6),IF(AND(J41>=60,J41<65),VLOOKUP(K41,Feuil2!$F$10:$P$28,5),IF(AND(J41>=65,J41<70),VLOOKUP(K41,Feuil2!$F$10:$P$28,4),IF(AND(J41>=70,J41<75),VLOOKUP(K41,Feuil2!$F$10:$P$28,3),IF(AND(J41>=75,J41<80),VLOOKUP(K41,Feuil2!$F$10:$P$28,2),VLOOKUP(K41,Feuil2!$F$10:$P$28,2))))))))) ->  | Z41: =T41-HLOOKUP(X41,Feuil2!$C$1:$CD$9,2,FALSE) ->  | AA41: =T41-HLOOKUP(X41,Feuil2!$C$1:$CD$9,3,FALSE) ->  | AB41: =T41-HLOOKUP(X41,Feuil2!$C$1:$CD$9,4,FALSE) ->  | AC41: =T41-HLOOKUP(X41,Feuil2!$C$1:$CD$9,5,FALSE) ->  | AD41: =T41-HLOOKUP(X41,Feuil2!$C$1:$CD$9,6,FALSE) ->  | AE41: =T41-HLOOKUP(X41,Feuil2!$C$1:$CD$9,7,FALSE) ->  | AF41: =T41-HLOOKUP(X41,Feuil2!$C$1:$CD$9,8,FALSE) ->  | AG41: =T41-HLOOKUP(X41,Feuil2!$C$1:$CD$9,9,FALSE) ->  | AP41: 114 | AR41: =IF(AP41,VLOOKUP(AP41,HOM!$AR$551:$AS$606,2)) -> 3.571
A42: H | F42: FALSE | X42: =IF(AND(J42>=40,J42<45),VLOOKUP(K42,Feuil2!$F$10:$P$28,9),IF(AND(J42>=45,J42<50),VLOOKUP(K42,Feuil2!$F$10:$P$28,8),IF(AND(J42>=50,J42<55),VLOOKUP(K42,Feuil2!$F$10:$P$28,7),IF(AND(J42>=55,J42<60),VLOOKUP(K42,Feuil2!$F$10:$P$28,6),IF(AND(J42>=60,J42<65),VLOOKUP(K42,Feuil2!$F$10:$P$28,5),IF(AND(J42>=65,J42<70),VLOOKUP(K42,Feuil2!$F$10:$P$28,4),IF(AND(J42>=70,J42<75),VLOOKUP(K42,Feuil2!$F$10:$P$28,3),IF(AND(J42>=75,J42<80),VLOOKUP(K42,Feuil2!$F$10:$P$28,2),VLOOKUP(K42,Feuil2!$F$10:$P$28,2))))))))) ->  | Z42: =T42-HLOOKUP(X42,Feuil2!$C$1:$CD$9,2,FALSE) ->  | AA42: =T42-HLOOKUP(X42,Feuil2!$C$1:$CD$9,3,FALSE) ->  | AB42: =T42-HLOOKUP(X42,Feuil2!$C$1:$CD$9,4,FALSE) ->  | AC42: =T42-HLOOKUP(X42,Feuil2!$C$1:$CD$9,5,FALSE) ->  | AD42: =T42-HLOOKUP(X42,Feuil2!$C$1:$CD$9,6,FALSE) ->  | AE42: =T42-HLOOKUP(X42,Feuil2!$C$1:$CD$9,7,FALSE) ->  | AF42: =T42-HLOOKUP(X42,Feuil2!$C$1:$CD$9,8,FALSE) ->  | AG42: =T42-HLOOKUP(X42,Feuil2!$C$1:$CD$9,9,FALSE) ->  | AP42: 114 | AR42: =IF(AP42,VLOOKUP(AP42,HOM!$AR$551:$AS$606,2)) -> 3.571
A43: H | F43: FALSE | X43: =IF(AND(J43>=40,J43<45),VLOOKUP(K43,Feuil2!$F$10:$P$28,9),IF(AND(J43>=45,J43<50),VLOOKUP(K43,Feuil2!$F$10:$P$28,8),IF(AND(J43>=50,J43<55),VLOOKUP(K43,Feuil2!$F$10:$P$28,7),IF(AND(J43>=55,J43<60),VLOOKUP(K43,Feuil2!$F$10:$P$28,6),IF(AND(J43>=60,J43<65),VLOOKUP(K43,Feuil2!$F$10:$P$28,5),IF(AND(J43>=65,J43<70),VLOOKUP(K43,Feuil2!$F$10:$P$28,4),IF(AND(J43>=70,J43<75),VLOOKUP(K43,Feuil2!$F$10:$P$28,3),IF(AND(J43>=75,J43<80),VLOOKUP(K43,Feuil2!$F$10:$P$28,2),VLOOKUP(K43,Feuil2!$F$10:$P$28,2))))))))) ->  | Z43: =T43-HLOOKUP(X43,Feuil2!$C$1:$CD$9,2,FALSE) ->  | AA43: =T43-HLOOKUP(X43,Feuil2!$C$1:$CD$9,3,FALSE) ->  | AB43: =T43-HLOOKUP(X43,Feuil2!$C$1:$CD$9,4,FALSE) ->  | AC43: =T43-HLOOKUP(X43,Feuil2!$C$1:$CD$9,5,FALSE) ->  | AD43: =T43-HLOOKUP(X43,Feuil2!$C$1:$CD$9,6,FALSE) ->  | AE43: =T43-HLOOKUP(X43,Feuil2!$C$1:$CD$9,7,FALSE) ->  | AF43: =T43-HLOOKUP(X43,Feuil2!$C$1:$CD$9,8,FALSE) ->  | AG43: =T43-HLOOKUP(X43,Feuil2!$C$1:$CD$9,9,FALSE) ->  | AP43: 114 | AR43: =IF(AP43,VLOOKUP(AP43,HOM!$AR$551:$AS$606,2)) -> 3.571
A44: H | F44: FALSE | X44: =IF(AND(J44>=40,J44<45),VLOOKUP(K44,Feuil2!$F$10:$P$28,9),IF(AND(J44>=45,J44<50),VLOOKUP(K44,Feuil2!$F$10:$P$28,8),IF(AND(J44>=50,J44<55),VLOOKUP(K44,Feuil2!$F$10:$P$28,7),IF(AND(J44>=55,J44<60),VLOOKUP(K44,Feuil2!$F$10:$P$28,6),IF(AND(J44>=60,J44<65),VLOOKUP(K44,Feuil2!$F$10:$P$28,5),IF(AND(J44>=65,J44<70),VLOOKUP(K44,Feuil2!$F$10:$P$28,4),IF(AND(J44>=70,J44<75),VLOOKUP(K44,Feuil2!$F$10:$P$28,3),IF(AND(J44>=75,J44<80),VLOOKUP(K44,Feuil2!$F$10:$P$28,2),VLOOKUP(K44,Feuil2!$F$10:$P$28,2))))))))) ->  | Z44: =T44-HLOOKUP(X44,Feuil2!$C$1:$CD$9,2,FALSE) ->  | AA44: =T44-HLOOKUP(X44,Feuil2!$C$1:$CD$9,3,FALSE) ->  | AB44: =T44-HLOOKUP(X44,Feuil2!$C$1:$CD$9,4,FALSE) ->  | AC44: =T44-HLOOKUP(X44,Feuil2!$C$1:$CD$9,5,FALSE) ->  | AD44: =T44-HLOOKUP(X44,Feuil2!$C$1:$CD$9,6,FALSE) ->  | AE44: =T44-HLOOKUP(X44,Feuil2!$C$1:$CD$9,7,FALSE) ->  | AF44: =T44-HLOOKUP(X44,Feuil2!$C$1:$CD$9,8,FALSE) ->  | AG44: =T44-HLOOKUP(X44,Feuil2!$C$1:$CD$9,9,FALSE) ->  | AP44: 114 | AR44: =IF(AP44,VLOOKUP(AP44,HOM!$AR$551:$AS$606,2)) -> 3.571
A45: H | F45: FALSE | X45: =IF(AND(J45>=40,J45<45),VLOOKUP(K45,Feuil2!$F$10:$P$28,9),IF(AND(J45>=45,J45<50),VLOOKUP(K45,Feuil2!$F$10:$P$28,8),IF(AND(J45>=50,J45<55),VLOOKUP(K45,Feuil2!$F$10:$P$28,7),IF(AND(J45>=55,J45<60),VLOOKUP(K45,Feuil2!$F$10:$P$28,6),IF(AND(J45>=60,J45<65),VLOOKUP(K45,Feuil2!$F$10:$P$28,5),IF(AND(J45>=65,J45<70),VLOOKUP(K45,Feuil2!$F$10:$P$28,4),IF(AND(J45>=70,J45<75),VLOOKUP(K45,Feuil2!$F$10:$P$28,3),IF(AND(J45>=75,J45<80),VLOOKUP(K45,Feuil2!$F$10:$P$28,2),VLOOKUP(K45,Feuil2!$F$10:$P$28,2))))))))) ->  | Z45: =T45-HLOOKUP(X45,Feuil2!$C$1:$CD$9,2,FALSE) ->  | AA45: =T45-HLOOKUP(X45,Feuil2!$C$1:$CD$9,3,FALSE) ->  | AB45: =T45-HLOOKUP(X45,Feuil2!$C$1:$CD$9,4,FALSE) ->  | AC45: =T45-HLOOKUP(X45,Feuil2!$C$1:$CD$9,5,FALSE) ->  | AD45: =T45-HLOOKUP(X45,Feuil2!$C$1:$CD$9,6,FALSE) ->  | AE45: =T45-HLOOKUP(X45,Feuil2!$C$1:$CD$9,7,FALSE) ->  | AF45: =T45-HLOOKUP(X45,Feuil2!$C$1:$CD$9,8,FALSE) ->  | AG45: =T45-HLOOKUP(X45,Feuil2!$C$1:$CD$9,9,FALSE) ->  | AP45: 114 | AR45: =IF(AP45,VLOOKUP(AP45,HOM!$AR$551:$AS$606,2)) -> 3.571
A46: H | F46: FALSE | O46: =IF(K46="","",IF(MAXA(L46:N46)<=0,0,MAXA(L46:N46))) ->  | X46: =IF(AND(J46>=40,J46<45),VLOOKUP(K46,Feuil2!$F$10:$P$28,9),IF(AND(J46>=45,J46<50),VLOOKUP(K46,Feuil2!$F$10:$P$28,8),IF(AND(J46>=50,J46<55),VLOOKUP(K46,Feuil2!$F$10:$P$28,7),IF(AND(J46>=55,J46<60),VLOOKUP(K46,Feuil2!$F$10:$P$28,6),IF(AND(J46>=60,J46<65),VLOOKUP(K46,Feuil2!$F$10:$P$28,5),IF(AND(J46>=65,J46<70),VLOOKUP(K46,Feuil2!$F$10:$P$28,4),IF(AND(J46>=70,J46<75),VLOOKUP(K46,Feuil2!$F$10:$P$28,3),IF(AND(J46>=75,J46<80),VLOOKUP(K46,Feuil2!$F$10:$P$28,2),VLOOKUP(K46,Feuil2!$F$10:$P$28,2))))))))) ->  | Z46: =T46-HLOOKUP(X46,Feuil2!$C$1:$CD$9,2,FALSE) ->  | AA46: =T46-HLOOKUP(X46,Feuil2!$C$1:$CD$9,3,FALSE) ->  | AB46: =T46-HLOOKUP(X46,Feuil2!$C$1:$CD$9,4,FALSE) ->  | AC46: =T46-HLOOKUP(X46,Feuil2!$C$1:$CD$9,5,FALSE) ->  | AD46: =T46-HLOOKUP(X46,Feuil2!$C$1:$CD$9,6,FALSE) ->  | AE46: =T46-HLOOKUP(X46,Feuil2!$C$1:$CD$9,7,FALSE) ->  | AF46: =T46-HLOOKUP(X46,Feuil2!$C$1:$CD$9,8,FALSE) ->  | AG46: =T46-HLOOKUP(X46,Feuil2!$C$1:$CD$9,9,FALSE) ->  | AP46: 114 | AR46: =IF(AP46,VLOOKUP(AP46,HOM!$AR$551:$AS$606,2)) -> 3.571
A47: H | F47: FALSE | X47: =IF(AND(J47>=40,J47<45),VLOOKUP(K47,Feuil2!$F$10:$P$28,9),IF(AND(J47>=45,J47<50),VLOOKUP(K47,Feuil2!$F$10:$P$28,8),IF(AND(J47>=50,J47<55),VLOOKUP(K47,Feuil2!$F$10:$P$28,7),IF(AND(J47>=55,J47<60),VLOOKUP(K47,Feuil2!$F$10:$P$28,6),IF(AND(J47>=60,J47<65),VLOOKUP(K47,Feuil2!$F$10:$P$28,5),IF(AND(J47>=65,J47<70),VLOOKUP(K47,Feuil2!$F$10:$P$28,4),IF(AND(J47>=70,J47<75),VLOOKUP(K47,Feuil2!$F$10:$P$28,3),IF(AND(J47>=75,J47<80),VLOOKUP(K47,Feuil2!$F$10:$P$28,2),VLOOKUP(K47,Feuil2!$F$10:$P$28,2))))))))) ->  | Z47: =T47-HLOOKUP(X47,Feuil2!$C$1:$CD$9,2,FALSE) ->  | AA47: =T47-HLOOKUP(X47,Feuil2!$C$1:$CD$9,3,FALSE) ->  | AB47: =T47-HLOOKUP(X47,Feuil2!$C$1:$CD$9,4,FALSE) ->  | AC47: =T47-HLOOKUP(X47,Feuil2!$C$1:$CD$9,5,FALSE) ->  | AD47: =T47-HLOOKUP(X47,Feuil2!$C$1:$CD$9,6,FALSE) ->  | AE47: =T47-HLOOKUP(X47,Feuil2!$C$1:$CD$9,7,FALSE) ->  | AF47: =T47-HLOOKUP(X47,Feuil2!$C$1:$CD$9,8,FALSE) ->  | AG47: =T47-HLOOKUP(X47,Feuil2!$C$1:$CD$9,9,FALSE) ->  | AP47: 114 | AR47: =IF(AP47,VLOOKUP(AP47,HOM!$AR$551:$AS$606,2)) -> 3.571
A48: H | F48: FALSE | S48: =IF(K48="","",IF(MAXA(P48:R48)<=0,0,MAXA(P48:R48))) ->  | X48: =IF(AND(J48>=40,J48<45),VLOOKUP(K48,Feuil2!$F$10:$P$28,9),IF(AND(J48>=45,J48<50),VLOOKUP(K48,Feuil2!$F$10:$P$28,8),IF(AND(J48>=50,J48<55),VLOOKUP(K48,Feuil2!$F$10:$P$28,7),IF(AND(J48>=55,J48<60),VLOOKUP(K48,Feuil2!$F$10:$P$28,6),IF(AND(J48>=60,J48<65),VLOOKUP(K48,Feuil2!$F$10:$P$28,5),IF(AND(J48>=65,J48<70),VLOOKUP(K48,Feuil2!$F$10:$P$28,4),IF(AND(J48>=70,J48<75),VLOOKUP(K48,Feuil2!$F$10:$P$28,3),IF(AND(J48>=75,J48<80),VLOOKUP(K48,Feuil2!$F$10:$P$28,2),VLOOKUP(K48,Feuil2!$F$10:$P$28,2))))))))) ->  | Z48: =T48-HLOOKUP(X48,Feuil2!$C$1:$CD$9,2,FALSE) ->  | AA48: =T48-HLOOKUP(X48,Feuil2!$C$1:$CD$9,3,FALSE) ->  | AB48: =T48-HLOOKUP(X48,Feuil2!$C$1:$CD$9,4,FALSE) ->  | AC48: =T48-HLOOKUP(X48,Feuil2!$C$1:$CD$9,5,FALSE) ->  | AD48: =T48-HLOOKUP(X48,Feuil2!$C$1:$CD$9,6,FALSE) ->  | AE48: =T48-HLOOKUP(X48,Feuil2!$C$1:$CD$9,7,FALSE) ->  | AF48: =T48-HLOOKUP(X48,Feuil2!$C$1:$CD$9,8,FALSE) ->  | AG48: =T48-HLOOKUP(X48,Feuil2!$C$1:$CD$9,9,FALSE) ->  | AP48: 114 | AR48: =IF(AP48,VLOOKUP(AP48,HOM!$AR$551:$AS$606,2)) -> 3.571
A49: H | F49: FALSE | T49: =IF(K49="","",IF(OR(O49=0,S49=0),0,O49+S49)) ->  | X49: =IF(AND(J49>=40,J49<45),VLOOKUP(K49,Feuil2!$F$10:$P$28,9),IF(AND(J49>=45,J49<50),VLOOKUP(K49,Feuil2!$F$10:$P$28,8),IF(AND(J49>=50,J49<55),VLOOKUP(K49,Feuil2!$F$10:$P$28,7),IF(AND(J49>=55,J49<60),VLOOKUP(K49,Feuil2!$F$10:$P$28,6),IF(AND(J49>=60,J49<65),VLOOKUP(K49,Feuil2!$F$10:$P$28,5),IF(AND(J49>=65,J49<70),VLOOKUP(K49,Feuil2!$F$10:$P$28,4),IF(AND(J49>=70,J49<75),VLOOKUP(K49,Feuil2!$F$10:$P$28,3),IF(AND(J49>=75,J49<80),VLOOKUP(K49,Feuil2!$F$10:$P$28,2),VLOOKUP(K49,Feuil2!$F$10:$P$28,2))))))))) ->  | Z49: =T49-HLOOKUP(X49,Feuil2!$C$1:$CD$9,2,FALSE) ->  | AA49: =T49-HLOOKUP(X49,Feuil2!$C$1:$CD$9,3,FALSE) ->  | AB49: =T49-HLOOKUP(X49,Feuil2!$C$1:$CD$9,4,FALSE) ->  | AC49: =T49-HLOOKUP(X49,Feuil2!$C$1:$CD$9,5,FALSE) ->  | AD49: =T49-HLOOKUP(X49,Feuil2!$C$1:$CD$9,6,FALSE) ->  | AE49: =T49-HLOOKUP(X49,Feuil2!$C$1:$CD$9,7,FALSE) ->  | AF49: =T49-HLOOKUP(X49,Feuil2!$C$1:$CD$9,8,FALSE) ->  | AG49: =T49-HLOOKUP(X49,Feuil2!$C$1:$CD$9,9,FALSE) ->  | AP49: 114 | AR49: =IF(AP49,VLOOKUP(AP49,HOM!$AR$551:$AS$606,2)) -> 3.571
A50: H | F50: FALSE | X50: =IF(AND(J50>=40,J50<45),VLOOKUP(K50,Feuil2!$F$10:$P$28,9),IF(AND(J50>=45,J50<50),VLOOKUP(K50,Feuil2!$F$10:$P$28,8),IF(AND(J50>=50,J50<55),VLOOKUP(K50,Feuil2!$F$10:$P$28,7),IF(AND(J50>=55,J50<60),VLOOKUP(K50,Feuil2!$F$10:$P$28,6),IF(AND(J50>=60,J50<65),VLOOKUP(K50,Feuil2!$F$10:$P$28,5),IF(AND(J50>=65,J50<70),VLOOKUP(K50,Feuil2!$F$10:$P$28,4),IF(AND(J50>=70,J50<75),VLOOKUP(K50,Feuil2!$F$10:$P$28,3),IF(AND(J50>=75,J50<80),VLOOKUP(K50,Feuil2!$F$10:$P$28,2),VLOOKUP(K50,Feuil2!$F$10:$P$28,2))))))))) ->  | Z50: =T50-HLOOKUP(X50,Feuil2!$C$1:$CD$9,2,FALSE) ->  | AA50: =T50-HLOOKUP(X50,Feuil2!$C$1:$CD$9,3,FALSE) ->  | AB50: =T50-HLOOKUP(X50,Feuil2!$C$1:$CD$9,4,FALSE) ->  | AC50: =T50-HLOOKUP(X50,Feuil2!$C$1:$CD$9,5,FALSE) ->  | AD50: =T50-HLOOKUP(X50,Feuil2!$C$1:$CD$9,6,FALSE) ->  | AE50: =T50-HLOOKUP(X50,Feuil2!$C$1:$CD$9,7,FALSE) ->  | AF50: =T50-HLOOKUP(X50,Feuil2!$C$1:$CD$9,8,FALSE) ->  | AG50: =T50-HLOOKUP(X50,Feuil2!$C$1:$CD$9,9,FALSE) ->  | AP50: 114 | AR50: =IF(AP50,VLOOKUP(AP50,HOM!$AR$551:$AS$606,2)) -> 3.571
A51: H | F51: FALSE | X51: =IF(AND(J51>=40,J51<45),VLOOKUP(K51,Feuil2!$F$10:$P$28,9),IF(AND(J51>=45,J51<50),VLOOKUP(K51,Feuil2!$F$10:$P$28,8),IF(AND(J51>=50,J51<55),VLOOKUP(K51,Feuil2!$F$10:$P$28,7),IF(AND(J51>=55,J51<60),VLOOKUP(K51,Feuil2!$F$10:$P$28,6),IF(AND(J51>=60,J51<65),VLOOKUP(K51,Feuil2!$F$10:$P$28,5),IF(AND(J51>=65,J51<70),VLOOKUP(K51,Feuil2!$F$10:$P$28,4),IF(AND(J51>=70,J51<75),VLOOKUP(K51,Feuil2!$F$10:$P$28,3),IF(AND(J51>=75,J51<80),VLOOKUP(K51,Feuil2!$F$10:$P$28,2),VLOOKUP(K51,Feuil2!$F$10:$P$28,2))))))))) ->  | Z51: =T51-HLOOKUP(X51,Feuil2!$C$1:$CD$9,2,FALSE) ->  | AA51: =T51-HLOOKUP(X51,Feuil2!$C$1:$CD$9,3,FALSE) ->  | AB51: =T51-HLOOKUP(X51,Feuil2!$C$1:$CD$9,4,FALSE) ->  | AC51: =T51-HLOOKUP(X51,Feuil2!$C$1:$CD$9,5,FALSE) ->  | AD51: =T51-HLOOKUP(X51,Feuil2!$C$1:$CD$9,6,FALSE) ->  | AE51: =T51-HLOOKUP(X51,Feuil2!$C$1:$CD$9,7,FALSE) ->  | AF51: =T51-HLOOKUP(X51,Feuil2!$C$1:$CD$9,8,FALSE) ->  | AG51: =T51-HLOOKUP(X51,Feuil2!$C$1:$CD$9,9,FALSE) ->  | AP51: 114 | AR51: =IF(AP51,VLOOKUP(AP51,HOM!$AR$551:$AS$606,2)) -> 3.571
A52: H | F52: FALSE | X52: =IF(AND(J52>=40,J52<45),VLOOKUP(K52,Feuil2!$F$10:$P$28,9),IF(AND(J52>=45,J52<50),VLOOKUP(K52,Feuil2!$F$10:$P$28,8),IF(AND(J52>=50,J52<55),VLOOKUP(K52,Feuil2!$F$10:$P$28,7),IF(AND(J52>=55,J52<60),VLOOKUP(K52,Feuil2!$F$10:$P$28,6),IF(AND(J52>=60,J52<65),VLOOKUP(K52,Feuil2!$F$10:$P$28,5),IF(AND(J52>=65,J52<70),VLOOKUP(K52,Feuil2!$F$10:$P$28,4),IF(AND(J52>=70,J52<75),VLOOKUP(K52,Feuil2!$F$10:$P$28,3),IF(AND(J52>=75,J52<80),VLOOKUP(K52,Feuil2!$F$10:$P$28,2),VLOOKUP(K52,Feuil2!$F$10:$P$28,2))))))))) ->  | Z52: =T52-HLOOKUP(X52,Feuil2!$C$1:$CD$9,2,FALSE) ->  | AA52: =T52-HLOOKUP(X52,Feuil2!$C$1:$CD$9,3,FALSE) ->  | AB52: =T52-HLOOKUP(X52,Feuil2!$C$1:$CD$9,4,FALSE) ->  | AC52: =T52-HLOOKUP(X52,Feuil2!$C$1:$CD$9,5,FALSE) ->  | AD52: =T52-HLOOKUP(X52,Feuil2!$C$1:$CD$9,6,FALSE) ->  | AE52: =T52-HLOOKUP(X52,Feuil2!$C$1:$CD$9,7,FALSE) ->  | AF52: =T52-HLOOKUP(X52,Feuil2!$C$1:$CD$9,8,FALSE) ->  | AG52: =T52-HLOOKUP(X52,Feuil2!$C$1:$CD$9,9,FALSE) ->  | AP52: 114 | AR52: =IF(AP52,VLOOKUP(AP52,HOM!$AR$551:$AS$606,2)) -> 3.571
A53: H | F53: FALSE | O53: =IF(K53="","",IF(MAXA(L53:N53)<=0,0,MAXA(L53:N53))) ->  | X53: =IF(AND(J53>=40,J53<45),VLOOKUP(K53,Feuil2!$F$10:$P$28,9),IF(AND(J53>=45,J53<50),VLOOKUP(K53,Feuil2!$F$10:$P$28,8),IF(AND(J53>=50,J53<55),VLOOKUP(K53,Feuil2!$F$10:$P$28,7),IF(AND(J53>=55,J53<60),VLOOKUP(K53,Feuil2!$F$10:$P$28,6),IF(AND(J53>=60,J53<65),VLOOKUP(K53,Feuil2!$F$10:$P$28,5),IF(AND(J53>=65,J53<70),VLOOKUP(K53,Feuil2!$F$10:$P$28,4),IF(AND(J53>=70,J53<75),VLOOKUP(K53,Feuil2!$F$10:$P$28,3),IF(AND(J53>=75,J53<80),VLOOKUP(K53,Feuil2!$F$10:$P$28,2),VLOOKUP(K53,Feuil2!$F$10:$P$28,2))))))))) ->  | Z53: =T53-HLOOKUP(X53,Feuil2!$C$1:$CD$9,2,FALSE) ->  | AA53: =T53-HLOOKUP(X53,Feuil2!$C$1:$CD$9,3,FALSE) ->  | AB53: =T53-HLOOKUP(X53,Feuil2!$C$1:$CD$9,4,FALSE) ->  | AC53: =T53-HLOOKUP(X53,Feuil2!$C$1:$CD$9,5,FALSE) ->  | AD53: =T53-HLOOKUP(X53,Feuil2!$C$1:$CD$9,6,FALSE) ->  | AE53: =T53-HLOOKUP(X53,Feuil2!$C$1:$CD$9,7,FALSE) ->  | AF53: =T53-HLOOKUP(X53,Feuil2!$C$1:$CD$9,8,FALSE) ->  | AG53: =T53-HLOOKUP(X53,Feuil2!$C$1:$CD$9,9,FALSE) ->  | AP53: 114 | AR53: =IF(AP53,VLOOKUP(AP53,HOM!$AR$551:$AS$606,2)) -> 3.571
A54: H | F54: FALSE | X54: =IF(AND(J54>=40,J54<45),VLOOKUP(K54,Feuil2!$F$10:$P$28,9),IF(AND(J54>=45,J54<50),VLOOKUP(K54,Feuil2!$F$10:$P$28,8),IF(AND(J54>=50,J54<55),VLOOKUP(K54,Feuil2!$F$10:$P$28,7),IF(AND(J54>=55,J54<60),VLOOKUP(K54,Feuil2!$F$10:$P$28,6),IF(AND(J54>=60,J54<65),VLOOKUP(K54,Feuil2!$F$10:$P$28,5),IF(AND(J54>=65,J54<70),VLOOKUP(K54,Feuil2!$F$10:$P$28,4),IF(AND(J54>=70,J54<75),VLOOKUP(K54,Feuil2!$F$10:$P$28,3),IF(AND(J54>=75,J54<80),VLOOKUP(K54,Feuil2!$F$10:$P$28,2),VLOOKUP(K54,Feuil2!$F$10:$P$28,2))))))))) ->  | Z54: =T54-HLOOKUP(X54,Feuil2!$C$1:$CD$9,2,FALSE) ->  | AA54: =T54-HLOOKUP(X54,Feuil2!$C$1:$CD$9,3,FALSE) ->  | AB54: =T54-HLOOKUP(X54,Feuil2!$C$1:$CD$9,4,FALSE) ->  | AC54: =T54-HLOOKUP(X54,Feuil2!$C$1:$CD$9,5,FALSE) ->  | AD54: =T54-HLOOKUP(X54,Feuil2!$C$1:$CD$9,6,FALSE) ->  | AE54: =T54-HLOOKUP(X54,Feuil2!$C$1:$CD$9,7,FALSE) ->  | AF54: =T54-HLOOKUP(X54,Feuil2!$C$1:$CD$9,8,FALSE) ->  | AG54: =T54-HLOOKUP(X54,Feuil2!$C$1:$CD$9,9,FALSE) ->  | AP54: 114 | AR54: =IF(AP54,VLOOKUP(AP54,HOM!$AR$551:$AS$606,2)) -> 3.571
A55: H | F55: FALSE | X55: =IF(AND(J55>=40,J55<45),VLOOKUP(K55,Feuil2!$F$10:$P$28,9),IF(AND(J55>=45,J55<50),VLOOKUP(K55,Feuil2!$F$10:$P$28,8),IF(AND(J55>=50,J55<55),VLOOKUP(K55,Feuil2!$F$10:$P$28,7),IF(AND(J55>=55,J55<60),VLOOKUP(K55,Feuil2!$F$10:$P$28,6),IF(AND(J55>=60,J55<65),VLOOKUP(K55,Feuil2!$F$10:$P$28,5),IF(AND(J55>=65,J55<70),VLOOKUP(K55,Feuil2!$F$10:$P$28,4),IF(AND(J55>=70,J55<75),VLOOKUP(K55,Feuil2!$F$10:$P$28,3),IF(AND(J55>=75,J55<80),VLOOKUP(K55,Feuil2!$F$10:$P$28,2),VLOOKUP(K55,Feuil2!$F$10:$P$28,2))))))))) ->  | Z55: =T55-HLOOKUP(X55,Feuil2!$C$1:$CD$9,2,FALSE) ->  | AA55: =T55-HLOOKUP(X55,Feuil2!$C$1:$CD$9,3,FALSE) ->  | AB55: =T55-HLOOKUP(X55,Feuil2!$C$1:$CD$9,4,FALSE) ->  | AC55: =T55-HLOOKUP(X55,Feuil2!$C$1:$CD$9,5,FALSE) ->  | AD55: =T55-HLOOKUP(X55,Feuil2!$C$1:$CD$9,6,FALSE) ->  | AE55: =T55-HLOOKUP(X55,Feuil2!$C$1:$CD$9,7,FALSE) ->  | AF55: =T55-HLOOKUP(X55,Feuil2!$C$1:$CD$9,8,FALSE) ->  | AG55: =T55-HLOOKUP(X55,Feuil2!$C$1:$CD$9,9,FALSE) ->  | AP55: 114 | AR55: =IF(AP55,VLOOKUP(AP55,HOM!$AR$551:$AS$606,2)) -> 3.571
A56: H | F56: FALSE | X56: =IF(AND(J56>=40,J56<45),VLOOKUP(K56,Feuil2!$F$10:$P$28,9),IF(AND(J56>=45,J56<50),VLOOKUP(K56,Feuil2!$F$10:$P$28,8),IF(AND(J56>=50,J56<55),VLOOKUP(K56,Feuil2!$F$10:$P$28,7),IF(AND(J56>=55,J56<60),VLOOKUP(K56,Feuil2!$F$10:$P$28,6),IF(AND(J56>=60,J56<65),VLOOKUP(K56,Feuil2!$F$10:$P$28,5),IF(AND(J56>=65,J56<70),VLOOKUP(K56,Feuil2!$F$10:$P$28,4),IF(AND(J56>=70,J56<75),VLOOKUP(K56,Feuil2!$F$10:$P$28,3),IF(AND(J56>=75,J56<80),VLOOKUP(K56,Feuil2!$F$10:$P$28,2),VLOOKUP(K56,Feuil2!$F$10:$P$28,2))))))))) ->  | Z56: =T56-HLOOKUP(X56,Feuil2!$C$1:$CD$9,2,FALSE) ->  | AA56: =T56-HLOOKUP(X56,Feuil2!$C$1:$CD$9,3,FALSE) ->  | AB56: =T56-HLOOKUP(X56,Feuil2!$C$1:$CD$9,4,FALSE) ->  | AC56: =T56-HLOOKUP(X56,Feuil2!$C$1:$CD$9,5,FALSE) ->  | AD56: =T56-HLOOKUP(X56,Feuil2!$C$1:$CD$9,6,FALSE) ->  | AE56: =T56-HLOOKUP(X56,Feuil2!$C$1:$CD$9,7,FALSE) ->  | AF56: =T56-HLOOKUP(X56,Feuil2!$C$1:$CD$9,8,FALSE) ->  | AG56: =T56-HLOOKUP(X56,Feuil2!$C$1:$CD$9,9,FALSE) ->  | AP56: 114 | AR56: =IF(AP56,VLOOKUP(AP56,HOM!$AR$551:$AS$606,2)) -> 3.571
A57: H | F57: FALSE | X57: =IF(AND(J57>=40,J57<45),VLOOKUP(K57,Feuil2!$F$10:$P$28,9),IF(AND(J57>=45,J57<50),VLOOKUP(K57,Feuil2!$F$10:$P$28,8),IF(AND(J57>=50,J57<55),VLOOKUP(K57,Feuil2!$F$10:$P$28,7),IF(AND(J57>=55,J57<60),VLOOKUP(K57,Feuil2!$F$10:$P$28,6),IF(AND(J57>=60,J57<65),VLOOKUP(K57,Feuil2!$F$10:$P$28,5),IF(AND(J57>=65,J57<70),VLOOKUP(K57,Feuil2!$F$10:$P$28,4),IF(AND(J57>=70,J57<75),VLOOKUP(K57,Feuil2!$F$10:$P$28,3),IF(AND(J57>=75,J57<80),VLOOKUP(K57,Feuil2!$F$10:$P$28,2),VLOOKUP(K57,Feuil2!$F$10:$P$28,2))))))))) ->  | Z57: =T57-HLOOKUP(X57,Feuil2!$C$1:$CD$9,2,FALSE) ->  | AA57: =T57-HLOOKUP(X57,Feuil2!$C$1:$CD$9,3,FALSE) ->  | AB57: =T57-HLOOKUP(X57,Feuil2!$C$1:$CD$9,4,FALSE) ->  | AC57: =T57-HLOOKUP(X57,Feuil2!$C$1:$CD$9,5,FALSE) ->  | AD57: =T57-HLOOKUP(X57,Feuil2!$C$1:$CD$9,6,FALSE) ->  | AE57: =T57-HLOOKUP(X57,Feuil2!$C$1:$CD$9,7,FALSE) ->  | AF57: =T57-HLOOKUP(X57,Feuil2!$C$1:$CD$9,8,FALSE) ->  | AG57: =T57-HLOOKUP(X57,Feuil2!$C$1:$CD$9,9,FALSE) ->  | AP57: 114 | AR57: =IF(AP57,VLOOKUP(AP57,HOM!$AR$551:$AS$606,2)) -> 3.571
A58: H | F58: FALSE | X58: =IF(AND(J58>=40,J58<45),VLOOKUP(K58,Feuil2!$F$10:$P$28,9),IF(AND(J58>=45,J58<50),VLOOKUP(K58,Feuil2!$F$10:$P$28,8),IF(AND(J58>=50,J58<55),VLOOKUP(K58,Feuil2!$F$10:$P$28,7),IF(AND(J58>=55,J58<60),VLOOKUP(K58,Feuil2!$F$10:$P$28,6),IF(AND(J58>=60,J58<65),VLOOKUP(K58,Feuil2!$F$10:$P$28,5),IF(AND(J58>=65,J58<70),VLOOKUP(K58,Feuil2!$F$10:$P$28,4),IF(AND(J58>=70,J58<75),VLOOKUP(K58,Feuil2!$F$10:$P$28,3),IF(AND(J58>=75,J58<80),VLOOKUP(K58,Feuil2!$F$10:$P$28,2),VLOOKUP(K58,Feuil2!$F$10:$P$28,2))))))))) ->  | Z58: =T58-HLOOKUP(X58,Feuil2!$C$1:$CD$9,2,FALSE) ->  | AA58: =T58-HLOOKUP(X58,Feuil2!$C$1:$CD$9,3,FALSE) ->  | AB58: =T58-HLOOKUP(X58,Feuil2!$C$1:$CD$9,4,FALSE) ->  | AC58: =T58-HLOOKUP(X58,Feuil2!$C$1:$CD$9,5,FALSE) ->  | AD58: =T58-HLOOKUP(X58,Feuil2!$C$1:$CD$9,6,FALSE) ->  | AE58: =T58-HLOOKUP(X58,Feuil2!$C$1:$CD$9,7,FALSE) ->  | AF58: =T58-HLOOKUP(X58,Feuil2!$C$1:$CD$9,8,FALSE) ->  | AG58: =T58-HLOOKUP(X58,Feuil2!$C$1:$CD$9,9,FALSE) ->  | AP58: 114 | AR58: =IF(AP58,VLOOKUP(AP58,HOM!$AR$551:$AS$606,2)) -> 3.571
A59: H | F59: FALSE | X59: =IF(AND(J59>=40,J59<45),VLOOKUP(K59,Feuil2!$F$10:$P$28,9),IF(AND(J59>=45,J59<50),VLOOKUP(K59,Feuil2!$F$10:$P$28,8),IF(AND(J59>=50,J59<55),VLOOKUP(K59,Feuil2!$F$10:$P$28,7),IF(AND(J59>=55,J59<60),VLOOKUP(K59,Feuil2!$F$10:$P$28,6),IF(AND(J59>=60,J59<65),VLOOKUP(K59,Feuil2!$F$10:$P$28,5),IF(AND(J59>=65,J59<70),VLOOKUP(K59,Feuil2!$F$10:$P$28,4),IF(AND(J59>=70,J59<75),VLOOKUP(K59,Feuil2!$F$10:$P$28,3),IF(AND(J59>=75,J59<80),VLOOKUP(K59,Feuil2!$F$10:$P$28,2),VLOOKUP(K59,Feuil2!$F$10:$P$28,2))))))))) ->  | Z59: =T59-HLOOKUP(X59,Feuil2!$C$1:$CD$9,2,FALSE) ->  | AA59: =T59-HLOOKUP(X59,Feuil2!$C$1:$CD$9,3,FALSE) ->  | AB59: =T59-HLOOKUP(X59,Feuil2!$C$1:$CD$9,4,FALSE) ->  | AC59: =T59-HLOOKUP(X59,Feuil2!$C$1:$CD$9,5,FALSE) ->  | AD59: =T59-HLOOKUP(X59,Feuil2!$C$1:$CD$9,6,FALSE) ->  | AE59: =T59-HLOOKUP(X59,Feuil2!$C$1:$CD$9,7,FALSE) ->  | AF59: =T59-HLOOKUP(X59,Feuil2!$C$1:$CD$9,8,FALSE) ->  | AG59: =T59-HLOOKUP(X59,Feuil2!$C$1:$CD$9,9,FALSE) ->  | AP59: 114 | AR59: =IF(AP59,VLOOKUP(AP59,HOM!$AR$551:$AS$606,2)) -> 3.571
A60: H | F60: FALSE | X60: =IF(AND(J60>=40,J60<45),VLOOKUP(K60,Feuil2!$F$10:$P$28,9),IF(AND(J60>=45,J60<50),VLOOKUP(K60,Feuil2!$F$10:$P$28,8),IF(AND(J60>=50,J60<55),VLOOKUP(K60,Feuil2!$F$10:$P$28,7),IF(AND(J60>=55,J60<60),VLOOKUP(K60,Feuil2!$F$10:$P$28,6),IF(AND(J60>=60,J60<65),VLOOKUP(K60,Feuil2!$F$10:$P$28,5),IF(AND(J60>=65,J60<70),VLOOKUP(K60,Feuil2!$F$10:$P$28,4),IF(AND(J60>=70,J60<75),VLOOKUP(K60,Feuil2!$F$10:$P$28,3),IF(AND(J60>=75,J60<80),VLOOKUP(K60,Feuil2!$F$10:$P$28,2),VLOOKUP(K60,Feuil2!$F$10:$P$28,2))))))))) ->  | Z60: =T60-HLOOKUP(X60,Feuil2!$C$1:$CD$9,2,FALSE) ->  | AA60: =T60-HLOOKUP(X60,Feuil2!$C$1:$CD$9,3,FALSE) ->  | AB60: =T60-HLOOKUP(X60,Feuil2!$C$1:$CD$9,4,FALSE) ->  | AC60: =T60-HLOOKUP(X60,Feuil2!$C$1:$CD$9,5,FALSE) ->  | AD60: =T60-HLOOKUP(X60,Feuil2!$C$1:$CD$9,6,FALSE) ->  | AE60: =T60-HLOOKUP(X60,Feuil2!$C$1:$CD$9,7,FALSE) ->  | AF60: =T60-HLOOKUP(X60,Feuil2!$C$1:$CD$9,8,FALSE) ->  | AG60: =T60-HLOOKUP(X60,Feuil2!$C$1:$CD$9,9,FALSE) ->  | AP60: 114 | AR60: =IF(AP60,VLOOKUP(AP60,HOM!$AR$551:$AS$606,2)) -> 3.571
A61: H | F61: FALSE | X61: =IF(AND(J61>=40,J61<45),VLOOKUP(K61,Feuil2!$F$10:$P$28,9),IF(AND(J61>=45,J61<50),VLOOKUP(K61,Feuil2!$F$10:$P$28,8),IF(AND(J61>=50,J61<55),VLOOKUP(K61,Feuil2!$F$10:$P$28,7),IF(AND(J61>=55,J61<60),VLOOKUP(K61,Feuil2!$F$10:$P$28,6),IF(AND(J61>=60,J61<65),VLOOKUP(K61,Feuil2!$F$10:$P$28,5),IF(AND(J61>=65,J61<70),VLOOKUP(K61,Feuil2!$F$10:$P$28,4),IF(AND(J61>=70,J61<75),VLOOKUP(K61,Feuil2!$F$10:$P$28,3),IF(AND(J61>=75,J61<80),VLOOKUP(K61,Feuil2!$F$10:$P$28,2),VLOOKUP(K61,Feuil2!$F$10:$P$28,2))))))))) ->  | Z61: =T61-HLOOKUP(X61,Feuil2!$C$1:$CD$9,2,FALSE) ->  | AA61: =T61-HLOOKUP(X61,Feuil2!$C$1:$CD$9,3,FALSE) ->  | AB61: =T61-HLOOKUP(X61,Feuil2!$C$1:$CD$9,4,FALSE) ->  | AC61: =T61-HLOOKUP(X61,Feuil2!$C$1:$CD$9,5,FALSE) ->  | AD61: =T61-HLOOKUP(X61,Feuil2!$C$1:$CD$9,6,FALSE) ->  | AE61: =T61-HLOOKUP(X61,Feuil2!$C$1:$CD$9,7,FALSE) ->  | AF61: =T61-HLOOKUP(X61,Feuil2!$C$1:$CD$9,8,FALSE) ->  | AG61: =T61-HLOOKUP(X61,Feuil2!$C$1:$CD$9,9,FALSE) ->  | AP61: 114 | AR61: =IF(AP61,VLOOKUP(AP61,HOM!$AR$551:$AS$606,2)) -> 3.571
A62: H | F62: FALSE | X62: =IF(AND(J62>=40,J62<45),VLOOKUP(K62,Feuil2!$F$10:$P$28,9),IF(AND(J62>=45,J62<50),VLOOKUP(K62,Feuil2!$F$10:$P$28,8),IF(AND(J62>=50,J62<55),VLOOKUP(K62,Feuil2!$F$10:$P$28,7),IF(AND(J62>=55,J62<60),VLOOKUP(K62,Feuil2!$F$10:$P$28,6),IF(AND(J62>=60,J62<65),VLOOKUP(K62,Feuil2!$F$10:$P$28,5),IF(AND(J62>=65,J62<70),VLOOKUP(K62,Feuil2!$F$10:$P$28,4),IF(AND(J62>=70,J62<75),VLOOKUP(K62,Feuil2!$F$10:$P$28,3),IF(AND(J62>=75,J62<80),VLOOKUP(K62,Feuil2!$F$10:$P$28,2),VLOOKUP(K62,Feuil2!$F$10:$P$28,2))))))))) ->  | Z62: =T62-HLOOKUP(X62,Feuil2!$C$1:$CD$9,2,FALSE) ->  | AA62: =T62-HLOOKUP(X62,Feuil2!$C$1:$CD$9,3,FALSE) ->  | AB62: =T62-HLOOKUP(X62,Feuil2!$C$1:$CD$9,4,FALSE) ->  | AC62: =T62-HLOOKUP(X62,Feuil2!$C$1:$CD$9,5,FALSE) ->  | AD62: =T62-HLOOKUP(X62,Feuil2!$C$1:$CD$9,6,FALSE) ->  | AE62: =T62-HLOOKUP(X62,Feuil2!$C$1:$CD$9,7,FALSE) ->  | AF62: =T62-HLOOKUP(X62,Feuil2!$C$1:$CD$9,8,FALSE) ->  | AG62: =T62-HLOOKUP(X62,Feuil2!$C$1:$CD$9,9,FALSE) ->  | AP62: 114 | AR62: =IF(AP62,VLOOKUP(AP62,HOM!$AR$551:$AS$606,2)) -> 3.571
A63: H | F63: FALSE | X63: =IF(AND(J63>=40,J63<45),VLOOKUP(K63,Feuil2!$F$10:$P$28,9),IF(AND(J63>=45,J63<50),VLOOKUP(K63,Feuil2!$F$10:$P$28,8),IF(AND(J63>=50,J63<55),VLOOKUP(K63,Feuil2!$F$10:$P$28,7),IF(AND(J63>=55,J63<60),VLOOKUP(K63,Feuil2!$F$10:$P$28,6),IF(AND(J63>=60,J63<65),VLOOKUP(K63,Feuil2!$F$10:$P$28,5),IF(AND(J63>=65,J63<70),VLOOKUP(K63,Feuil2!$F$10:$P$28,4),IF(AND(J63>=70,J63<75),VLOOKUP(K63,Feuil2!$F$10:$P$28,3),IF(AND(J63>=75,J63<80),VLOOKUP(K63,Feuil2!$F$10:$P$28,2),VLOOKUP(K63,Feuil2!$F$10:$P$28,2))))))))) ->  | Z63: =T63-HLOOKUP(X63,Feuil2!$C$1:$CD$9,2,FALSE) ->  | AA63: =T63-HLOOKUP(X63,Feuil2!$C$1:$CD$9,3,FALSE) ->  | AB63: =T63-HLOOKUP(X63,Feuil2!$C$1:$CD$9,4,FALSE) ->  | AC63: =T63-HLOOKUP(X63,Feuil2!$C$1:$CD$9,5,FALSE) ->  | AD63: =T63-HLOOKUP(X63,Feuil2!$C$1:$CD$9,6,FALSE) ->  | AE63: =T63-HLOOKUP(X63,Feuil2!$C$1:$CD$9,7,FALSE) ->  | AF63: =T63-HLOOKUP(X63,Feuil2!$C$1:$CD$9,8,FALSE) ->  | AG63: =T63-HLOOKUP(X63,Feuil2!$C$1:$CD$9,9,FALSE) ->  | AP63: 114 | AR63: =IF(AP63,VLOOKUP(AP63,HOM!$AR$551:$AS$606,2)) -> 3.571
A64: H | F64: FALSE | X64: =IF(AND(J64>=40,J64<45),VLOOKUP(K64,Feuil2!$F$10:$P$28,9),IF(AND(J64>=45,J64<50),VLOOKUP(K64,Feuil2!$F$10:$P$28,8),IF(AND(J64>=50,J64<55),VLOOKUP(K64,Feuil2!$F$10:$P$28,7),IF(AND(J64>=55,J64<60),VLOOKUP(K64,Feuil2!$F$10:$P$28,6),IF(AND(J64>=60,J64<65),VLOOKUP(K64,Feuil2!$F$10:$P$28,5),IF(AND(J64>=65,J64<70),VLOOKUP(K64,Feuil2!$F$10:$P$28,4),IF(AND(J64>=70,J64<75),VLOOKUP(K64,Feuil2!$F$10:$P$28,3),IF(AND(J64>=75,J64<80),VLOOKUP(K64,Feuil2!$F$10:$P$28,2),VLOOKUP(K64,Feuil2!$F$10:$P$28,2))))))))) ->  | Z64: =T64-HLOOKUP(X64,Feuil2!$C$1:$CD$9,2,FALSE) ->  | AA64: =T64-HLOOKUP(X64,Feuil2!$C$1:$CD$9,3,FALSE) ->  | AB64: =T64-HLOOKUP(X64,Feuil2!$C$1:$CD$9,4,FALSE) ->  | AC64: =T64-HLOOKUP(X64,Feuil2!$C$1:$CD$9,5,FALSE) ->  | AD64: =T64-HLOOKUP(X64,Feuil2!$C$1:$CD$9,6,FALSE) ->  | AE64: =T64-HLOOKUP(X64,Feuil2!$C$1:$CD$9,7,FALSE) ->  | AF64: =T64-HLOOKUP(X64,Feuil2!$C$1:$CD$9,8,FALSE) ->  | AG64: =T64-HLOOKUP(X64,Feuil2!$C$1:$CD$9,9,FALSE) ->  | AP64: 114 | AR64: =IF(AP64,VLOOKUP(AP64,HOM!$AR$551:$AS$606,2)) -> 3.571
A65: H | F65: FALSE | X65: =IF(AND(J65>=40,J65<45),VLOOKUP(K65,Feuil2!$F$10:$P$28,9),IF(AND(J65>=45,J65<50),VLOOKUP(K65,Feuil2!$F$10:$P$28,8),IF(AND(J65>=50,J65<55),VLOOKUP(K65,Feuil2!$F$10:$P$28,7),IF(AND(J65>=55,J65<60),VLOOKUP(K65,Feuil2!$F$10:$P$28,6),IF(AND(J65>=60,J65<65),VLOOKUP(K65,Feuil2!$F$10:$P$28,5),IF(AND(J65>=65,J65<70),VLOOKUP(K65,Feuil2!$F$10:$P$28,4),IF(AND(J65>=70,J65<75),VLOOKUP(K65,Feuil2!$F$10:$P$28,3),IF(AND(J65>=75,J65<80),VLOOKUP(K65,Feuil2!$F$10:$P$28,2),VLOOKUP(K65,Feuil2!$F$10:$P$28,2))))))))) ->  | Z65: =T65-HLOOKUP(X65,Feuil2!$C$1:$CD$9,2,FALSE) ->  | AA65: =T65-HLOOKUP(X65,Feuil2!$C$1:$CD$9,3,FALSE) ->  | AB65: =T65-HLOOKUP(X65,Feuil2!$C$1:$CD$9,4,FALSE) ->  | AC65: =T65-HLOOKUP(X65,Feuil2!$C$1:$CD$9,5,FALSE) ->  | AD65: =T65-HLOOKUP(X65,Feuil2!$C$1:$CD$9,6,FALSE) ->  | AE65: =T65-HLOOKUP(X65,Feuil2!$C$1:$CD$9,7,FALSE) ->  | AF65: =T65-HLOOKUP(X65,Feuil2!$C$1:$CD$9,8,FALSE) ->  | AG65: =T65-HLOOKUP(X65,Feuil2!$C$1:$CD$9,9,FALSE) ->  | AP65: 114 | AR65: =IF(AP65,VLOOKUP(AP65,HOM!$AR$551:$AS$606,2)) -> 3.571
A66: H | F66: FALSE | X66: =IF(AND(J66>=40,J66<45),VLOOKUP(K66,Feuil2!$F$10:$P$28,9),IF(AND(J66>=45,J66<50),VLOOKUP(K66,Feuil2!$F$10:$P$28,8),IF(AND(J66>=50,J66<55),VLOOKUP(K66,Feuil2!$F$10:$P$28,7),IF(AND(J66>=55,J66<60),VLOOKUP(K66,Feuil2!$F$10:$P$28,6),IF(AND(J66>=60,J66<65),VLOOKUP(K66,Feuil2!$F$10:$P$28,5),IF(AND(J66>=65,J66<70),VLOOKUP(K66,Feuil2!$F$10:$P$28,4),IF(AND(J66>=70,J66<75),VLOOKUP(K66,Feuil2!$F$10:$P$28,3),IF(AND(J66>=75,J66<80),VLOOKUP(K66,Feuil2!$F$10:$P$28,2),VLOOKUP(K66,Feuil2!$F$10:$P$28,2))))))))) ->  | Z66: =T66-HLOOKUP(X66,Feuil2!$C$1:$CD$9,2,FALSE) ->  | AA66: =T66-HLOOKUP(X66,Feuil2!$C$1:$CD$9,3,FALSE) ->  | AB66: =T66-HLOOKUP(X66,Feuil2!$C$1:$CD$9,4,FALSE) ->  | AC66: =T66-HLOOKUP(X66,Feuil2!$C$1:$CD$9,5,FALSE) ->  | AD66: =T66-HLOOKUP(X66,Feuil2!$C$1:$CD$9,6,FALSE) ->  | AE66: =T66-HLOOKUP(X66,Feuil2!$C$1:$CD$9,7,FALSE) ->  | AF66: =T66-HLOOKUP(X66,Feuil2!$C$1:$CD$9,8,FALSE) ->  | AG66: =T66-HLOOKUP(X66,Feuil2!$C$1:$CD$9,9,FALSE) ->  | AP66: =114-J66 -> 114 | AR66: =IF(AP66,VLOOKUP(AP66,HOM!$AR$551:$AS$606,2)) -> 3.571
A67: H | F67: FALSE | X67: =IF(AND(J67>=40,J67<45),VLOOKUP(K67,Feuil2!$F$10:$P$28,9),IF(AND(J67>=45,J67<50),VLOOKUP(K67,Feuil2!$F$10:$P$28,8),IF(AND(J67>=50,J67<55),VLOOKUP(K67,Feuil2!$F$10:$P$28,7),IF(AND(J67>=55,J67<60),VLOOKUP(K67,Feuil2!$F$10:$P$28,6),IF(AND(J67>=60,J67<65),VLOOKUP(K67,Feuil2!$F$10:$P$28,5),IF(AND(J67>=65,J67<70),VLOOKUP(K67,Feuil2!$F$10:$P$28,4),IF(AND(J67>=70,J67<75),VLOOKUP(K67,Feuil2!$F$10:$P$28,3),IF(AND(J67>=75,J67<80),VLOOKUP(K67,Feuil2!$F$10:$P$28,2),VLOOKUP(K67,Feuil2!$F$10:$P$28,2))))))))) ->  | Z67: =T67-HLOOKUP(X67,Feuil2!$C$1:$CD$9,2,FALSE) ->  | AA67: =T67-HLOOKUP(X67,Feuil2!$C$1:$CD$9,3,FALSE) ->  | AB67: =T67-HLOOKUP(X67,Feuil2!$C$1:$CD$9,4,FALSE) ->  | AC67: =T67-HLOOKUP(X67,Feuil2!$C$1:$CD$9,5,FALSE) ->  | AD67: =T67-HLOOKUP(X67,Feuil2!$C$1:$CD$9,6,FALSE) ->  | AE67: =T67-HLOOKUP(X67,Feuil2!$C$1:$CD$9,7,FALSE) ->  | AF67: =T67-HLOOKUP(X67,Feuil2!$C$1:$CD$9,8,FALSE) ->  | AG67: =T67-HLOOKUP(X67,Feuil2!$C$1:$CD$9,9,FALSE) ->  | AP67: 114 | AR67: =IF(AP67,VLOOKUP(AP67,HOM!$AR$551:$AS$606,2)) -> 3.571
A68: H | F68: FALSE | X68: =IF(AND(J68>=40,J68<45),VLOOKUP(K68,Feuil2!$F$10:$P$28,9),IF(AND(J68>=45,J68<50),VLOOKUP(K68,Feuil2!$F$10:$P$28,8),IF(AND(J68>=50,J68<55),VLOOKUP(K68,Feuil2!$F$10:$P$28,7),IF(AND(J68>=55,J68<60),VLOOKUP(K68,Feuil2!$F$10:$P$28,6),IF(AND(J68>=60,J68<65),VLOOKUP(K68,Feuil2!$F$10:$P$28,5),IF(AND(J68>=65,J68<70),VLOOKUP(K68,Feuil2!$F$10:$P$28,4),IF(AND(J68>=70,J68<75),VLOOKUP(K68,Feuil2!$F$10:$P$28,3),IF(AND(J68>=75,J68<80),VLOOKUP(K68,Feuil2!$F$10:$P$28,2),VLOOKUP(K68,Feuil2!$F$10:$P$28,2))))))))) ->  | Z68: =T68-HLOOKUP(X68,Feuil2!$C$1:$CD$9,2,FALSE) ->  | AA68: =T68-HLOOKUP(X68,Feuil2!$C$1:$CD$9,3,FALSE) ->  | AB68: =T68-HLOOKUP(X68,Feuil2!$C$1:$CD$9,4,FALSE) ->  | AC68: =T68-HLOOKUP(X68,Feuil2!$C$1:$CD$9,5,FALSE) ->  | AD68: =T68-HLOOKUP(X68,Feuil2!$C$1:$CD$9,6,FALSE) ->  | AE68: =T68-HLOOKUP(X68,Feuil2!$C$1:$CD$9,7,FALSE) ->  | AF68: =T68-HLOOKUP(X68,Feuil2!$C$1:$CD$9,8,FALSE) ->  | AG68: =T68-HLOOKUP(X68,Feuil2!$C$1:$CD$9,9,FALSE) ->  | AP68: 114 | AR68: =IF(AP68,VLOOKUP(AP68,HOM!$AR$551:$AS$606,2)) -> 3.571
A69: H | F69: =IF(AP69<95,IF(AP69<=90,VLOOKUP(AP69,$AP$550:$AQ$605,2))) -> FALSE | X69: =IF(AND(J69>=40,J69<45),VLOOKUP(K69,Feuil2!$F$10:$P$28,9),IF(AND(J69>=45,J69<50),VLOOKUP(K69,Feuil2!$F$10:$P$28,8),IF(AND(J69>=50,J69<55),VLOOKUP(K69,Feuil2!$F$10:$P$28,7),IF(AND(J69>=55,J69<60),VLOOKUP(K69,Feuil2!$F$10:$P$28,6),IF(AND(J69>=60,J69<65),VLOOKUP(K69,Feuil2!$F$10:$P$28,5),IF(AND(J69>=65,J69<70),VLOOKUP(K69,Feuil2!$F$10:$P$28,4),IF(AND(J69>=70,J69<75),VLOOKUP(K69,Feuil2!$F$10:$P$28,3),IF(AND(J69>=75,J69<80),VLOOKUP(K69,Feuil2!$F$10:$P$28,2),VLOOKUP(K69,Feuil2!$F$10:$P$28,2))))))))) ->  | Z69: =T69-HLOOKUP(X69,Feuil2!$C$1:$CD$9,2,FALSE) ->  | AA69: =T69-HLOOKUP(X69,Feuil2!$C$1:$CD$9,3,FALSE) ->  | AB69: =T69-HLOOKUP(X69,Feuil2!$C$1:$CD$9,4,FALSE) ->  | AC69: =T69-HLOOKUP(X69,Feuil2!$C$1:$CD$9,5,FALSE) ->  | AD69: =T69-HLOOKUP(X69,Feuil2!$C$1:$CD$9,6,FALSE) ->  | AE69: =T69-HLOOKUP(X69,Feuil2!$C$1:$CD$9,7,FALSE) ->  | AF69: =T69-HLOOKUP(X69,Feuil2!$C$1:$CD$9,8,FALSE) ->  | AG69: =T69-HLOOKUP(X69,Feuil2!$C$1:$CD$9,9,FALSE) ->  | AP69: 114 | AR69: =IF(AP69,VLOOKUP(AP69,HOM!$AR$551:$AS$606,2)) -> 3.571
A70: H | F70: FALSE | U70: =IF(K70="","",IF(A70="H",10^(0.794358141*LOG(K70/174.393)^2)*T70*AR70,IF(A70="F",10^(0.89726074 * LOG(K70/148.026)^2)*T70*AR70,""))) ->  | V70: =IF(K70="","",AO70) ->  | W70: =IF(K70="","",IF(AG70>=0,AG70,IF(AF70>=0,AF70,IF(AE70>=0,AE70,IF(AD70>=0,AD70,IF(AC70>=0,AC70,IF(AB70>=0,AB70,IF(AA70>=0,AA70,Z70)))))))) ->  | X70: =IF(AND(J70>=40,J70<45),VLOOKUP(K70,Feuil2!$F$10:$P$28,9),IF(AND(J70>=45,J70<50),VLOOKUP(K70,Feuil2!$F$10:$P$28,8),IF(AND(J70>=50,J70<55),VLOOKUP(K70,Feuil2!$F$10:$P$28,7),IF(AND(J70>=55,J70<60),VLOOKUP(K70,Feuil2!$F$10:$P$28,6),IF(AND(J70>=60,J70<65),VLOOKUP(K70,Feuil2!$F$10:$P$28,5),IF(AND(J70>=65,J70<70),VLOOKUP(K70,Feuil2!$F$10:$P$28,4),IF(AND(J70>=70,J70<75),VLOOKUP(K70,Feuil2!$F$10:$P$28,3),IF(AND(J70>=75,J70<80),VLOOKUP(K70,Feuil2!$F$10:$P$28,2),VLOOKUP(K70,Feuil2!$F$10:$P$28,2))))))))) ->  | Z70: =T70-HLOOKUP(X70,Feuil2!$C$1:$CD$9,2,FALSE) ->  | AA70: =T70-HLOOKUP(X70,Feuil2!$C$1:$CD$9,3,FALSE) ->  | AB70: =T70-HLOOKUP(X70,Feuil2!$C$1:$CD$9,4,FALSE) ->  | AC70: =T70-HLOOKUP(X70,Feuil2!$C$1:$CD$9,5,FALSE) ->  | AD70: =T70-HLOOKUP(X70,Feuil2!$C$1:$CD$9,6,FALSE) ->  | AE70: =T70-HLOOKUP(X70,Feuil2!$C$1:$CD$9,7,FALSE) ->  | AF70: =T70-HLOOKUP(X70,Feuil2!$C$1:$CD$9,8,FALSE) ->  | AG70: =T70-HLOOKUP(X70,Feuil2!$C$1:$CD$9,9,FALSE) ->  | AO70: =IF(AG70>=0,$AG$4,IF(AF70>=0,$AF$4,IF(AE70>=0,$AE$4,IF(AD70>=0,$AD$4,IF(AC70>=0,$AC$4,IF(AB70>=0,$AB$4,IF(AA70>=0,$AA$4,IF(Z70>=0,$Z$4,$AH$4)))))))) ->  | AP70: 114 | AR70: =IF(AP70,VLOOKUP(AP70,HOM!$AR$551:$AS$606,2)) -> 3.571
A71: H | F71: FALSE | X71: =IF(AND(J71>=40,J71<45),VLOOKUP(K71,Feuil2!$F$10:$P$28,9),IF(AND(J71>=45,J71<50),VLOOKUP(K71,Feuil2!$F$10:$P$28,8),IF(AND(J71>=50,J71<55),VLOOKUP(K71,Feuil2!$F$10:$P$28,7),IF(AND(J71>=55,J71<60),VLOOKUP(K71,Feuil2!$F$10:$P$28,6),IF(AND(J71>=60,J71<65),VLOOKUP(K71,Feuil2!$F$10:$P$28,5),IF(AND(J71>=65,J71<70),VLOOKUP(K71,Feuil2!$F$10:$P$28,4),IF(AND(J71>=70,J71<75),VLOOKUP(K71,Feuil2!$F$10:$P$28,3),IF(AND(J71>=75,J71<80),VLOOKUP(K71,Feuil2!$F$10:$P$28,2),VLOOKUP(K71,Feuil2!$F$10:$P$28,2))))))))) ->  | Z71: =T71-HLOOKUP(X71,Feuil2!$C$1:$CD$9,2,FALSE) ->  | AA71: =T71-HLOOKUP(X71,Feuil2!$C$1:$CD$9,3,FALSE) ->  | AB71: =T71-HLOOKUP(X71,Feuil2!$C$1:$CD$9,4,FALSE) ->  | AC71: =T71-HLOOKUP(X71,Feuil2!$C$1:$CD$9,5,FALSE) ->  | AD71: =T71-HLOOKUP(X71,Feuil2!$C$1:$CD$9,6,FALSE) ->  | AE71: =T71-HLOOKUP(X71,Feuil2!$C$1:$CD$9,7,FALSE) ->  | AF71: =T71-HLOOKUP(X71,Feuil2!$C$1:$CD$9,8,FALSE) ->  | AG71: =T71-HLOOKUP(X71,Feuil2!$C$1:$CD$9,9,FALSE) ->  | AP71: 114 | AR71: =IF(AP71,VLOOKUP(AP71,HOM!$AR$551:$AS$606,2)) -> 3.571
A72: H | F72: FALSE | X72: =IF(AND(J72>=40,J72<45),VLOOKUP(K72,Feuil2!$F$10:$P$28,9),IF(AND(J72>=45,J72<50),VLOOKUP(K72,Feuil2!$F$10:$P$28,8),IF(AND(J72>=50,J72<55),VLOOKUP(K72,Feuil2!$F$10:$P$28,7),IF(AND(J72>=55,J72<60),VLOOKUP(K72,Feuil2!$F$10:$P$28,6),IF(AND(J72>=60,J72<65),VLOOKUP(K72,Feuil2!$F$10:$P$28,5),IF(AND(J72>=65,J72<70),VLOOKUP(K72,Feuil2!$F$10:$P$28,4),IF(AND(J72>=70,J72<75),VLOOKUP(K72,Feuil2!$F$10:$P$28,3),IF(AND(J72>=75,J72<80),VLOOKUP(K72,Feuil2!$F$10:$P$28,2),VLOOKUP(K72,Feuil2!$F$10:$P$28,2))))))))) ->  | Z72: =T72-HLOOKUP(X72,Feuil2!$C$1:$CD$9,2,FALSE) ->  | AA72: =T72-HLOOKUP(X72,Feuil2!$C$1:$CD$9,3,FALSE) ->  | AB72: =T72-HLOOKUP(X72,Feuil2!$C$1:$CD$9,4,FALSE) ->  | AC72: =T72-HLOOKUP(X72,Feuil2!$C$1:$CD$9,5,FALSE) ->  | AD72: =T72-HLOOKUP(X72,Feuil2!$C$1:$CD$9,6,FALSE) ->  | AE72: =T72-HLOOKUP(X72,Feuil2!$C$1:$CD$9,7,FALSE) ->  | AF72: =T72-HLOOKUP(X72,Feuil2!$C$1:$CD$9,8,FALSE) ->  | AG72: =T72-HLOOKUP(X72,Feuil2!$C$1:$CD$9,9,FALSE) ->  | AP72: 114 | AR72: =IF(AP72,VLOOKUP(AP72,HOM!$AR$551:$AS$606,2)) -> 3.571
A73: H | F73: FALSE | S73: =IF(K73="","",IF(MAXA(P73:R73)<=0,0,MAXA(P73:R73))) ->  | T73: =IF(K73="","",IF(OR(O73=0,S73=0),0,O73+S73)) ->  | X73: =IF(AND(J73>=40,J73<45),VLOOKUP(K73,Feuil2!$F$10:$P$28,9),IF(AND(J73>=45,J73<50),VLOOKUP(K73,Feuil2!$F$10:$P$28,8),IF(AND(J73>=50,J73<55),VLOOKUP(K73,Feuil2!$F$10:$P$28,7),IF(AND(J73>=55,J73<60),VLOOKUP(K73,Feuil2!$F$10:$P$28,6),IF(AND(J73>=60,J73<65),VLOOKUP(K73,Feuil2!$F$10:$P$28,5),IF(AND(J73>=65,J73<70),VLOOKUP(K73,Feuil2!$F$10:$P$28,4),IF(AND(J73>=70,J73<75),VLOOKUP(K73,Feuil2!$F$10:$P$28,3),IF(AND(J73>=75,J73<80),VLOOKUP(K73,Feuil2!$F$10:$P$28,2),VLOOKUP(K73,Feuil2!$F$10:$P$28,2))))))))) ->  | Z73: =T73-HLOOKUP(X73,Feuil2!$C$1:$CD$9,2,FALSE) ->  | AA73: =T73-HLOOKUP(X73,Feuil2!$C$1:$CD$9,3,FALSE) ->  | AB73: =T73-HLOOKUP(X73,Feuil2!$C$1:$CD$9,4,FALSE) ->  | AC73: =T73-HLOOKUP(X73,Feuil2!$C$1:$CD$9,5,FALSE) ->  | AD73: =T73-HLOOKUP(X73,Feuil2!$C$1:$CD$9,6,FALSE) ->  | AE73: =T73-HLOOKUP(X73,Feuil2!$C$1:$CD$9,7,FALSE) ->  | AF73: =T73-HLOOKUP(X73,Feuil2!$C$1:$CD$9,8,FALSE) ->  | AG73: =T73-HLOOKUP(X73,Feuil2!$C$1:$CD$9,9,FALSE) ->  | AP73: 114 | AR73: =IF(AP73,VLOOKUP(AP73,HOM!$AR$551:$AS$606,2)) -> 3.571
A74: H | F74: FALSE | X74: =IF(AND(J74>=40,J74<45),VLOOKUP(K74,Feuil2!$F$10:$P$28,9),IF(AND(J74>=45,J74<50),VLOOKUP(K74,Feuil2!$F$10:$P$28,8),IF(AND(J74>=50,J74<55),VLOOKUP(K74,Feuil2!$F$10:$P$28,7),IF(AND(J74>=55,J74<60),VLOOKUP(K74,Feuil2!$F$10:$P$28,6),IF(AND(J74>=60,J74<65),VLOOKUP(K74,Feuil2!$F$10:$P$28,5),IF(AND(J74>=65,J74<70),VLOOKUP(K74,Feuil2!$F$10:$P$28,4),IF(AND(J74>=70,J74<75),VLOOKUP(K74,Feuil2!$F$10:$P$28,3),IF(AND(J74>=75,J74<80),VLOOKUP(K74,Feuil2!$F$10:$P$28,2),VLOOKUP(K74,Feuil2!$F$10:$P$28,2))))))))) ->  | Z74: =T74-HLOOKUP(X74,Feuil2!$C$1:$CD$9,2,FALSE) ->  | AA74: =T74-HLOOKUP(X74,Feuil2!$C$1:$CD$9,3,FALSE) ->  | AB74: =T74-HLOOKUP(X74,Feuil2!$C$1:$CD$9,4,FALSE) ->  | AC74: =T74-HLOOKUP(X74,Feuil2!$C$1:$CD$9,5,FALSE) ->  | AD74: =T74-HLOOKUP(X74,Feuil2!$C$1:$CD$9,6,FALSE) ->  | AE74: =T74-HLOOKUP(X74,Feuil2!$C$1:$CD$9,7,FALSE) ->  | AF74: =T74-HLOOKUP(X74,Feuil2!$C$1:$CD$9,8,FALSE) ->  | AG74: =T74-HLOOKUP(X74,Feuil2!$C$1:$CD$9,9,FALSE) ->  | AP74: 114 | AR74: =IF(AP74,VLOOKUP(AP74,HOM!$AR$551:$AS$606,2)) -> 3.571
A75: H | F75: FALSE | X75: =IF(AND(J75>=40,J75<45),VLOOKUP(K75,Feuil2!$F$10:$P$28,9),IF(AND(J75>=45,J75<50),VLOOKUP(K75,Feuil2!$F$10:$P$28,8),IF(AND(J75>=50,J75<55),VLOOKUP(K75,Feuil2!$F$10:$P$28,7),IF(AND(J75>=55,J75<60),VLOOKUP(K75,Feuil2!$F$10:$P$28,6),IF(AND(J75>=60,J75<65),VLOOKUP(K75,Feuil2!$F$10:$P$28,5),IF(AND(J75>=65,J75<70),VLOOKUP(K75,Feuil2!$F$10:$P$28,4),IF(AND(J75>=70,J75<75),VLOOKUP(K75,Feuil2!$F$10:$P$28,3),IF(AND(J75>=75,J75<80),VLOOKUP(K75,Feuil2!$F$10:$P$28,2),VLOOKUP(K75,Feuil2!$F$10:$P$28,2))))))))) ->  | Z75: =T75-HLOOKUP(X75,Feuil2!$C$1:$CD$9,2,FALSE) ->  | AA75: =T75-HLOOKUP(X75,Feuil2!$C$1:$CD$9,3,FALSE) ->  | AB75: =T75-HLOOKUP(X75,Feuil2!$C$1:$CD$9,4,FALSE) ->  | AC75: =T75-HLOOKUP(X75,Feuil2!$C$1:$CD$9,5,FALSE) ->  | AD75: =T75-HLOOKUP(X75,Feuil2!$C$1:$CD$9,6,FALSE) ->  | AE75: =T75-HLOOKUP(X75,Feuil2!$C$1:$CD$9,7,FALSE) ->  | AF75: =T75-HLOOKUP(X75,Feuil2!$C$1:$CD$9,8,FALSE) ->  | AG75: =T75-HLOOKUP(X75,Feuil2!$C$1:$CD$9,9,FALSE) ->  | AP75: 114 | AR75: =IF(AP75,VLOOKUP(AP75,HOM!$AR$551:$AS$606,2)) -> 3.571
A76: H | F76: FALSE | X76: =IF(AND(J76>=40,J76<45),VLOOKUP(K76,Feuil2!$F$10:$P$28,9),IF(AND(J76>=45,J76<50),VLOOKUP(K76,Feuil2!$F$10:$P$28,8),IF(AND(J76>=50,J76<55),VLOOKUP(K76,Feuil2!$F$10:$P$28,7),IF(AND(J76>=55,J76<60),VLOOKUP(K76,Feuil2!$F$10:$P$28,6),IF(AND(J76>=60,J76<65),VLOOKUP(K76,Feuil2!$F$10:$P$28,5),IF(AND(J76>=65,J76<70),VLOOKUP(K76,Feuil2!$F$10:$P$28,4),IF(AND(J76>=70,J76<75),VLOOKUP(K76,Feuil2!$F$10:$P$28,3),IF(AND(J76>=75,J76<80),VLOOKUP(K76,Feuil2!$F$10:$P$28,2),VLOOKUP(K76,Feuil2!$F$10:$P$28,2))))))))) ->  | Z76: =T76-HLOOKUP(X76,Feuil2!$C$1:$CD$9,2,FALSE) ->  | AA76: =T76-HLOOKUP(X76,Feuil2!$C$1:$CD$9,3,FALSE) ->  | AB76: =T76-HLOOKUP(X76,Feuil2!$C$1:$CD$9,4,FALSE) ->  | AC76: =T76-HLOOKUP(X76,Feuil2!$C$1:$CD$9,5,FALSE) ->  | AD76: =T76-HLOOKUP(X76,Feuil2!$C$1:$CD$9,6,FALSE) ->  | AE76: =T76-HLOOKUP(X76,Feuil2!$C$1:$CD$9,7,FALSE) ->  | AF76: =T76-HLOOKUP(X76,Feuil2!$C$1:$CD$9,8,FALSE) ->  | AG76: =T76-HLOOKUP(X76,Feuil2!$C$1:$CD$9,9,FALSE) ->  | AP76: 114 | AR76: =IF(AP76,VLOOKUP(AP76,HOM!$AR$551:$AS$606,2)) -> 3.571
A77: H | F77: FALSE | X77: =IF(AND(J77>=40,J77<45),VLOOKUP(K77,Feuil2!$F$10:$P$28,9),IF(AND(J77>=45,J77<50),VLOOKUP(K77,Feuil2!$F$10:$P$28,8),IF(AND(J77>=50,J77<55),VLOOKUP(K77,Feuil2!$F$10:$P$28,7),IF(AND(J77>=55,J77<60),VLOOKUP(K77,Feuil2!$F$10:$P$28,6),IF(AND(J77>=60,J77<65),VLOOKUP(K77,Feuil2!$F$10:$P$28,5),IF(AND(J77>=65,J77<70),VLOOKUP(K77,Feuil2!$F$10:$P$28,4),IF(AND(J77>=70,J77<75),VLOOKUP(K77,Feuil2!$F$10:$P$28,3),IF(AND(J77>=75,J77<80),VLOOKUP(K77,Feuil2!$F$10:$P$28,2),VLOOKUP(K77,Feuil2!$F$10:$P$28,2))))))))) ->  | Z77: =T77-HLOOKUP(X77,Feuil2!$C$1:$CD$9,2,FALSE) ->  | AA77: =T77-HLOOKUP(X77,Feuil2!$C$1:$CD$9,3,FALSE) ->  | AB77: =T77-HLOOKUP(X77,Feuil2!$C$1:$CD$9,4,FALSE) ->  | AC77: =T77-HLOOKUP(X77,Feuil2!$C$1:$CD$9,5,FALSE) ->  | AD77: =T77-HLOOKUP(X77,Feuil2!$C$1:$CD$9,6,FALSE) ->  | AE77: =T77-HLOOKUP(X77,Feuil2!$C$1:$CD$9,7,FALSE) ->  | AF77: =T77-HLOOKUP(X77,Feuil2!$C$1:$CD$9,8,FALSE) ->  | AG77: =T77-HLOOKUP(X77,Feuil2!$C$1:$CD$9,9,FALSE) ->  | AP77: 114 | AR77: =IF(AP77,VLOOKUP(AP77,HOM!$AR$551:$AS$606,2)) -> 3.571
A78: H | F78: FALSE | X78: =IF(AND(J78>=40,J78<45),VLOOKUP(K78,Feuil2!$F$10:$P$28,9),IF(AND(J78>=45,J78<50),VLOOKUP(K78,Feuil2!$F$10:$P$28,8),IF(AND(J78>=50,J78<55),VLOOKUP(K78,Feuil2!$F$10:$P$28,7),IF(AND(J78>=55,J78<60),VLOOKUP(K78,Feuil2!$F$10:$P$28,6),IF(AND(J78>=60,J78<65),VLOOKUP(K78,Feuil2!$F$10:$P$28,5),IF(AND(J78>=65,J78<70),VLOOKUP(K78,Feuil2!$F$10:$P$28,4),IF(AND(J78>=70,J78<75),VLOOKUP(K78,Feuil2!$F$10:$P$28,3),IF(AND(J78>=75,J78<80),VLOOKUP(K78,Feuil2!$F$10:$P$28,2),VLOOKUP(K78,Feuil2!$F$10:$P$28,2))))))))) ->  | Z78: =T78-HLOOKUP(X78,Feuil2!$C$1:$CD$9,2,FALSE) ->  | AA78: =T78-HLOOKUP(X78,Feuil2!$C$1:$CD$9,3,FALSE) ->  | AB78: =T78-HLOOKUP(X78,Feuil2!$C$1:$CD$9,4,FALSE) ->  | AC78: =T78-HLOOKUP(X78,Feuil2!$C$1:$CD$9,5,FALSE) ->  | AD78: =T78-HLOOKUP(X78,Feuil2!$C$1:$CD$9,6,FALSE) ->  | AE78: =T78-HLOOKUP(X78,Feuil2!$C$1:$CD$9,7,FALSE) ->  | AF78: =T78-HLOOKUP(X78,Feuil2!$C$1:$CD$9,8,FALSE) ->  | AG78: =T78-HLOOKUP(X78,Feuil2!$C$1:$CD$9,9,FALSE) ->  | AP78: 114 | AR78: =IF(AP78,VLOOKUP(AP78,HOM!$AR$551:$AS$606,2)) -> 3.571
A79: H | F79: FALSE | X79: =IF(AND(J79>=40,J79<45),VLOOKUP(K79,Feuil2!$F$10:$P$28,9),IF(AND(J79>=45,J79<50),VLOOKUP(K79,Feuil2!$F$10:$P$28,8),IF(AND(J79>=50,J79<55),VLOOKUP(K79,Feuil2!$F$10:$P$28,7),IF(AND(J79>=55,J79<60),VLOOKUP(K79,Feuil2!$F$10:$P$28,6),IF(AND(J79>=60,J79<65),VLOOKUP(K79,Feuil2!$F$10:$P$28,5),IF(AND(J79>=65,J79<70),VLOOKUP(K79,Feuil2!$F$10:$P$28,4),IF(AND(J79>=70,J79<75),VLOOKUP(K79,Feuil2!$F$10:$P$28,3),IF(AND(J79>=75,J79<80),VLOOKUP(K79,Feuil2!$F$10:$P$28,2),VLOOKUP(K79,Feuil2!$F$10:$P$28,2))))))))) ->  | Z79: =T79-HLOOKUP(X79,Feuil2!$C$1:$CD$9,2,FALSE) ->  | AA79: =T79-HLOOKUP(X79,Feuil2!$C$1:$CD$9,3,FALSE) ->  | AB79: =T79-HLOOKUP(X79,Feuil2!$C$1:$CD$9,4,FALSE) ->  | AC79: =T79-HLOOKUP(X79,Feuil2!$C$1:$CD$9,5,FALSE) ->  | AD79: =T79-HLOOKUP(X79,Feuil2!$C$1:$CD$9,6,FALSE) ->  | AE79: =T79-HLOOKUP(X79,Feuil2!$C$1:$CD$9,7,FALSE) ->  | AF79: =T79-HLOOKUP(X79,Feuil2!$C$1:$CD$9,8,FALSE) ->  | AG79: =T79-HLOOKUP(X79,Feuil2!$C$1:$CD$9,9,FALSE) ->  | AP79: 114 | AR79: =IF(AP79,VLOOKUP(AP79,HOM!$AR$551:$AS$606,2)) -> 3.571
A80: H | F80: FALSE | X80: =IF(AND(J80>=40,J80<45),VLOOKUP(K80,Feuil2!$F$10:$P$28,9),IF(AND(J80>=45,J80<50),VLOOKUP(K80,Feuil2!$F$10:$P$28,8),IF(AND(J80>=50,J80<55),VLOOKUP(K80,Feuil2!$F$10:$P$28,7),IF(AND(J80>=55,J80<60),VLOOKUP(K80,Feuil2!$F$10:$P$28,6),IF(AND(J80>=60,J80<65),VLOOKUP(K80,Feuil2!$F$10:$P$28,5),IF(AND(J80>=65,J80<70),VLOOKUP(K80,Feuil2!$F$10:$P$28,4),IF(AND(J80>=70,J80<75),VLOOKUP(K80,Feuil2!$F$10:$P$28,3),IF(AND(J80>=75,J80<80),VLOOKUP(K80,Feuil2!$F$10:$P$28,2),VLOOKUP(K80,Feuil2!$F$10:$P$28,2))))))))) ->  | Z80: =T80-HLOOKUP(X80,Feuil2!$C$1:$CD$9,2,FALSE) ->  | AA80: =T80-HLOOKUP(X80,Feuil2!$C$1:$CD$9,3,FALSE) ->  | AB80: =T80-HLOOKUP(X80,Feuil2!$C$1:$CD$9,4,FALSE) ->  | AC80: =T80-HLOOKUP(X80,Feuil2!$C$1:$CD$9,5,FALSE) ->  | AD80: =T80-HLOOKUP(X80,Feuil2!$C$1:$CD$9,6,FALSE) ->  | AE80: =T80-HLOOKUP(X80,Feuil2!$C$1:$CD$9,7,FALSE) ->  | AF80: =T80-HLOOKUP(X80,Feuil2!$C$1:$CD$9,8,FALSE) ->  | AG80: =T80-HLOOKUP(X80,Feuil2!$C$1:$CD$9,9,FALSE) ->  | AP80: 114 | AR80: =IF(AP80,VLOOKUP(AP80,HOM!$AR$551:$AS$606,2)) -> 3.571
A81: H | F81: FALSE | O81: =IF(K81="","",IF(MAXA(L81:N81)<=0,0,MAXA(L81:N81))) ->  | X81: =IF(AND(J81>=40,J81<45),VLOOKUP(K81,Feuil2!$F$10:$P$28,9),IF(AND(J81>=45,J81<50),VLOOKUP(K81,Feuil2!$F$10:$P$28,8),IF(AND(J81>=50,J81<55),VLOOKUP(K81,Feuil2!$F$10:$P$28,7),IF(AND(J81>=55,J81<60),VLOOKUP(K81,Feuil2!$F$10:$P$28,6),IF(AND(J81>=60,J81<65),VLOOKUP(K81,Feuil2!$F$10:$P$28,5),IF(AND(J81>=65,J81<70),VLOOKUP(K81,Feuil2!$F$10:$P$28,4),IF(AND(J81>=70,J81<75),VLOOKUP(K81,Feuil2!$F$10:$P$28,3),IF(AND(J81>=75,J81<80),VLOOKUP(K81,Feuil2!$F$10:$P$28,2),VLOOKUP(K81,Feuil2!$F$10:$P$28,2))))))))) ->  | Z81: =T81-HLOOKUP(X81,Feuil2!$C$1:$CD$9,2,FALSE) ->  | AA81: =T81-HLOOKUP(X81,Feuil2!$C$1:$CD$9,3,FALSE) ->  | AB81: =T81-HLOOKUP(X81,Feuil2!$C$1:$CD$9,4,FALSE) ->  | AC81: =T81-HLOOKUP(X81,Feuil2!$C$1:$CD$9,5,FALSE) ->  | AD81: =T81-HLOOKUP(X81,Feuil2!$C$1:$CD$9,6,FALSE) ->  | AE81: =T81-HLOOKUP(X81,Feuil2!$C$1:$CD$9,7,FALSE) ->  | AF81: =T81-HLOOKUP(X81,Feuil2!$C$1:$CD$9,8,FALSE) ->  | AG81: =T81-HLOOKUP(X81,Feuil2!$C$1:$CD$9,9,FALSE) ->  | AP81: 114 | AR81: =IF(AP81,VLOOKUP(AP81,HOM!$AR$551:$AS$606,2)) -> 3.571
A82: H | F82: FALSE | X82: =IF(AND(J82>=40,J82<45),VLOOKUP(K82,Feuil2!$F$10:$P$28,9),IF(AND(J82>=45,J82<50),VLOOKUP(K82,Feuil2!$F$10:$P$28,8),IF(AND(J82>=50,J82<55),VLOOKUP(K82,Feuil2!$F$10:$P$28,7),IF(AND(J82>=55,J82<60),VLOOKUP(K82,Feuil2!$F$10:$P$28,6),IF(AND(J82>=60,J82<65),VLOOKUP(K82,Feuil2!$F$10:$P$28,5),IF(AND(J82>=65,J82<70),VLOOKUP(K82,Feuil2!$F$10:$P$28,4),IF(AND(J82>=70,J82<75),VLOOKUP(K82,Feuil2!$F$10:$P$28,3),IF(AND(J82>=75,J82<80),VLOOKUP(K82,Feuil2!$F$10:$P$28,2),VLOOKUP(K82,Feuil2!$F$10:$P$28,2))))))))) ->  | Z82: =T82-HLOOKUP(X82,Feuil2!$C$1:$CD$9,2,FALSE) ->  | AA82: =T82-HLOOKUP(X82,Feuil2!$C$1:$CD$9,3,FALSE) ->  | AB82: =T82-HLOOKUP(X82,Feuil2!$C$1:$CD$9,4,FALSE) ->  | AC82: =T82-HLOOKUP(X82,Feuil2!$C$1:$CD$9,5,FALSE) ->  | AD82: =T82-HLOOKUP(X82,Feuil2!$C$1:$CD$9,6,FALSE) ->  | AE82: =T82-HLOOKUP(X82,Feuil2!$C$1:$CD$9,7,FALSE) ->  | AF82: =T82-HLOOKUP(X82,Feuil2!$C$1:$CD$9,8,FALSE) ->  | AG82: =T82-HLOOKUP(X82,Feuil2!$C$1:$CD$9,9,FALSE) ->  | AP82: 114 | AR82: =IF(AP82,VLOOKUP(AP82,HOM!$AR$551:$AS$606,2)) -> 3.571
A83: H | F83: FALSE | X83: =IF(AND(J83>=40,J83<45),VLOOKUP(K83,Feuil2!$F$10:$P$28,9),IF(AND(J83>=45,J83<50),VLOOKUP(K83,Feuil2!$F$10:$P$28,8),IF(AND(J83>=50,J83<55),VLOOKUP(K83,Feuil2!$F$10:$P$28,7),IF(AND(J83>=55,J83<60),VLOOKUP(K83,Feuil2!$F$10:$P$28,6),IF(AND(J83>=60,J83<65),VLOOKUP(K83,Feuil2!$F$10:$P$28,5),IF(AND(J83>=65,J83<70),VLOOKUP(K83,Feuil2!$F$10:$P$28,4),IF(AND(J83>=70,J83<75),VLOOKUP(K83,Feuil2!$F$10:$P$28,3),IF(AND(J83>=75,J83<80),VLOOKUP(K83,Feuil2!$F$10:$P$28,2),VLOOKUP(K83,Feuil2!$F$10:$P$28,2))))))))) ->  | Z83: =T83-HLOOKUP(X83,Feuil2!$C$1:$CD$9,2,FALSE) ->  | AA83: =T83-HLOOKUP(X83,Feuil2!$C$1:$CD$9,3,FALSE) ->  | AB83: =T83-HLOOKUP(X83,Feuil2!$C$1:$CD$9,4,FALSE) ->  | AC83: =T83-HLOOKUP(X83,Feuil2!$C$1:$CD$9,5,FALSE) ->  | AD83: =T83-HLOOKUP(X83,Feuil2!$C$1:$CD$9,6,FALSE) ->  | AE83: =T83-HLOOKUP(X83,Feuil2!$C$1:$CD$9,7,FALSE) ->  | AF83: =T83-HLOOKUP(X83,Feuil2!$C$1:$CD$9,8,FALSE) ->  | AG83: =T83-HLOOKUP(X83,Feuil2!$C$1:$CD$9,9,FALSE) ->  | AP83: 114 | AR83: =IF(AP83,VLOOKUP(AP83,HOM!$AR$551:$AS$606,2)) -> 3.571
A84: H | F84: FALSE | X84: =IF(AND(J84>=40,J84<45),VLOOKUP(K84,Feuil2!$F$10:$P$28,9),IF(AND(J84>=45,J84<50),VLOOKUP(K84,Feuil2!$F$10:$P$28,8),IF(AND(J84>=50,J84<55),VLOOKUP(K84,Feuil2!$F$10:$P$28,7),IF(AND(J84>=55,J84<60),VLOOKUP(K84,Feuil2!$F$10:$P$28,6),IF(AND(J84>=60,J84<65),VLOOKUP(K84,Feuil2!$F$10:$P$28,5),IF(AND(J84>=65,J84<70),VLOOKUP(K84,Feuil2!$F$10:$P$28,4),IF(AND(J84>=70,J84<75),VLOOKUP(K84,Feuil2!$F$10:$P$28,3),IF(AND(J84>=75,J84<80),VLOOKUP(K84,Feuil2!$F$10:$P$28,2),VLOOKUP(K84,Feuil2!$F$10:$P$28,2))))))))) ->  | Z84: =T84-HLOOKUP(X84,Feuil2!$C$1:$CD$9,2,FALSE) ->  | AA84: =T84-HLOOKUP(X84,Feuil2!$C$1:$CD$9,3,FALSE) ->  | AB84: =T84-HLOOKUP(X84,Feuil2!$C$1:$CD$9,4,FALSE) ->  | AC84: =T84-HLOOKUP(X84,Feuil2!$C$1:$CD$9,5,FALSE) ->  | AD84: =T84-HLOOKUP(X84,Feuil2!$C$1:$CD$9,6,FALSE) ->  | AE84: =T84-HLOOKUP(X84,Feuil2!$C$1:$CD$9,7,FALSE) ->  | AF84: =T84-HLOOKUP(X84,Feuil2!$C$1:$CD$9,8,FALSE) ->  | AG84: =T84-HLOOKUP(X84,Feuil2!$C$1:$CD$9,9,FALSE) ->  | AP84: 114 | AR84: =IF(AP84,VLOOKUP(AP84,HOM!$AR$551:$AS$606,2)) -> 3.571
A85: H | F85: FALSE | X85: =IF(AND(J85>=40,J85<45),VLOOKUP(K85,Feuil2!$F$10:$P$28,9),IF(AND(J85>=45,J85<50),VLOOKUP(K85,Feuil2!$F$10:$P$28,8),IF(AND(J85>=50,J85<55),VLOOKUP(K85,Feuil2!$F$10:$P$28,7),IF(AND(J85>=55,J85<60),VLOOKUP(K85,Feuil2!$F$10:$P$28,6),IF(AND(J85>=60,J85<65),VLOOKUP(K85,Feuil2!$F$10:$P$28,5),IF(AND(J85>=65,J85<70),VLOOKUP(K85,Feuil2!$F$10:$P$28,4),IF(AND(J85>=70,J85<75),VLOOKUP(K85,Feuil2!$F$10:$P$28,3),IF(AND(J85>=75,J85<80),VLOOKUP(K85,Feuil2!$F$10:$P$28,2),VLOOKUP(K85,Feuil2!$F$10:$P$28,2))))))))) ->  | Z85: =T85-HLOOKUP(X85,Feuil2!$C$1:$CD$9,2,FALSE) ->  | AA85: =T85-HLOOKUP(X85,Feuil2!$C$1:$CD$9,3,FALSE) ->  | AB85: =T85-HLOOKUP(X85,Feuil2!$C$1:$CD$9,4,FALSE) ->  | AC85: =T85-HLOOKUP(X85,Feuil2!$C$1:$CD$9,5,FALSE) ->  | AD85: =T85-HLOOKUP(X85,Feuil2!$C$1:$CD$9,6,FALSE) ->  | AE85: =T85-HLOOKUP(X85,Feuil2!$C$1:$CD$9,7,FALSE) ->  | AF85: =T85-HLOOKUP(X85,Feuil2!$C$1:$CD$9,8,FALSE) ->  | AG85: =T85-HLOOKUP(X85,Feuil2!$C$1:$CD$9,9,FALSE) ->  | AP85: 114 | AR85: =IF(AP85,VLOOKUP(AP85,HOM!$AR$551:$AS$606,2)) -> 3.571
A86: H | F86: FALSE | X86: =IF(AND(J86>=40,J86<45),VLOOKUP(K86,Feuil2!$F$10:$P$28,9),IF(AND(J86>=45,J86<50),VLOOKUP(K86,Feuil2!$F$10:$P$28,8),IF(AND(J86>=50,J86<55),VLOOKUP(K86,Feuil2!$F$10:$P$28,7),IF(AND(J86>=55,J86<60),VLOOKUP(K86,Feuil2!$F$10:$P$28,6),IF(AND(J86>=60,J86<65),VLOOKUP(K86,Feuil2!$F$10:$P$28,5),IF(AND(J86>=65,J86<70),VLOOKUP(K86,Feuil2!$F$10:$P$28,4),IF(AND(J86>=70,J86<75),VLOOKUP(K86,Feuil2!$F$10:$P$28,3),IF(AND(J86>=75,J86<80),VLOOKUP(K86,Feuil2!$F$10:$P$28,2),VLOOKUP(K86,Feuil2!$F$10:$P$28,2))))))))) ->  | Z86: =T86-HLOOKUP(X86,Feuil2!$C$1:$CD$9,2,FALSE) ->  | AA86: =T86-HLOOKUP(X86,Feuil2!$C$1:$CD$9,3,FALSE) ->  | AB86: =T86-HLOOKUP(X86,Feuil2!$C$1:$CD$9,4,FALSE) ->  | AC86: =T86-HLOOKUP(X86,Feuil2!$C$1:$CD$9,5,FALSE) ->  | AD86: =T86-HLOOKUP(X86,Feuil2!$C$1:$CD$9,6,FALSE) ->  | AE86: =T86-HLOOKUP(X86,Feuil2!$C$1:$CD$9,7,FALSE) ->  | AF86: =T86-HLOOKUP(X86,Feuil2!$C$1:$CD$9,8,FALSE) ->  | AG86: =T86-HLOOKUP(X86,Feuil2!$C$1:$CD$9,9,FALSE) ->  | AP86: 114 | AR86: =IF(AP86,VLOOKUP(AP86,HOM!$AR$551:$AS$606,2)) -> 3.571
A87: H | F87: FALSE | X87: =IF(AND(J87>=40,J87<45),VLOOKUP(K87,Feuil2!$F$10:$P$28,9),IF(AND(J87>=45,J87<50),VLOOKUP(K87,Feuil2!$F$10:$P$28,8),IF(AND(J87>=50,J87<55),VLOOKUP(K87,Feuil2!$F$10:$P$28,7),IF(AND(J87>=55,J87<60),VLOOKUP(K87,Feuil2!$F$10:$P$28,6),IF(AND(J87>=60,J87<65),VLOOKUP(K87,Feuil2!$F$10:$P$28,5),IF(AND(J87>=65,J87<70),VLOOKUP(K87,Feuil2!$F$10:$P$28,4),IF(AND(J87>=70,J87<75),VLOOKUP(K87,Feuil2!$F$10:$P$28,3),IF(AND(J87>=75,J87<80),VLOOKUP(K87,Feuil2!$F$10:$P$28,2),VLOOKUP(K87,Feuil2!$F$10:$P$28,2))))))))) ->  | Z87: =T87-HLOOKUP(X87,Feuil2!$C$1:$CD$9,2,FALSE) ->  | AA87: =T87-HLOOKUP(X87,Feuil2!$C$1:$CD$9,3,FALSE) ->  | AB87: =T87-HLOOKUP(X87,Feuil2!$C$1:$CD$9,4,FALSE) ->  | AC87: =T87-HLOOKUP(X87,Feuil2!$C$1:$CD$9,5,FALSE) ->  | AD87: =T87-HLOOKUP(X87,Feuil2!$C$1:$CD$9,6,FALSE) ->  | AE87: =T87-HLOOKUP(X87,Feuil2!$C$1:$CD$9,7,FALSE) ->  | AF87: =T87-HLOOKUP(X87,Feuil2!$C$1:$CD$9,8,FALSE) ->  | AG87: =T87-HLOOKUP(X87,Feuil2!$C$1:$CD$9,9,FALSE) ->  | AP87: 114 | AR87: =IF(AP87,VLOOKUP(AP87,HOM!$AR$551:$AS$606,2)) -> 3.571
A88: H | F88: FALSE | X88: =IF(AND(J88>=40,J88<45),VLOOKUP(K88,Feuil2!$F$10:$P$28,9),IF(AND(J88>=45,J88<50),VLOOKUP(K88,Feuil2!$F$10:$P$28,8),IF(AND(J88>=50,J88<55),VLOOKUP(K88,Feuil2!$F$10:$P$28,7),IF(AND(J88>=55,J88<60),VLOOKUP(K88,Feuil2!$F$10:$P$28,6),IF(AND(J88>=60,J88<65),VLOOKUP(K88,Feuil2!$F$10:$P$28,5),IF(AND(J88>=65,J88<70),VLOOKUP(K88,Feuil2!$F$10:$P$28,4),IF(AND(J88>=70,J88<75),VLOOKUP(K88,Feuil2!$F$10:$P$28,3),IF(AND(J88>=75,J88<80),VLOOKUP(K88,Feuil2!$F$10:$P$28,2),VLOOKUP(K88,Feuil2!$F$10:$P$28,2))))))))) ->  | Z88: =T88-HLOOKUP(X88,Feuil2!$C$1:$CD$9,2,FALSE) ->  | AA88: =T88-HLOOKUP(X88,Feuil2!$C$1:$CD$9,3,FALSE) ->  | AB88: =T88-HLOOKUP(X88,Feuil2!$C$1:$CD$9,4,FALSE) ->  | AC88: =T88-HLOOKUP(X88,Feuil2!$C$1:$CD$9,5,FALSE) ->  | AD88: =T88-HLOOKUP(X88,Feuil2!$C$1:$CD$9,6,FALSE) ->  | AE88: =T88-HLOOKUP(X88,Feuil2!$C$1:$CD$9,7,FALSE) ->  | AF88: =T88-HLOOKUP(X88,Feuil2!$C$1:$CD$9,8,FALSE) ->  | AG88: =T88-HLOOKUP(X88,Feuil2!$C$1:$CD$9,9,FALSE) ->  | AP88: 114 | AR88: =IF(AP88,VLOOKUP(AP88,HOM!$AR$551:$AS$606,2)) -> 3.571
A89: H | F89: FALSE | X89: =IF(AND(J89>=40,J89<45),VLOOKUP(K89,Feuil2!$F$10:$P$28,9),IF(AND(J89>=45,J89<50),VLOOKUP(K89,Feuil2!$F$10:$P$28,8),IF(AND(J89>=50,J89<55),VLOOKUP(K89,Feuil2!$F$10:$P$28,7),IF(AND(J89>=55,J89<60),VLOOKUP(K89,Feuil2!$F$10:$P$28,6),IF(AND(J89>=60,J89<65),VLOOKUP(K89,Feuil2!$F$10:$P$28,5),IF(AND(J89>=65,J89<70),VLOOKUP(K89,Feuil2!$F$10:$P$28,4),IF(AND(J89>=70,J89<75),VLOOKUP(K89,Feuil2!$F$10:$P$28,3),IF(AND(J89>=75,J89<80),VLOOKUP(K89,Feuil2!$F$10:$P$28,2),VLOOKUP(K89,Feuil2!$F$10:$P$28,2))))))))) ->  | Z89: =T89-HLOOKUP(X89,Feuil2!$C$1:$CD$9,2,FALSE) ->  | AA89: =T89-HLOOKUP(X89,Feuil2!$C$1:$CD$9,3,FALSE) ->  | AB89: =T89-HLOOKUP(X89,Feuil2!$C$1:$CD$9,4,FALSE) ->  | AC89: =T89-HLOOKUP(X89,Feuil2!$C$1:$CD$9,5,FALSE) ->  | AD89: =T89-HLOOKUP(X89,Feuil2!$C$1:$CD$9,6,FALSE) ->  | AE89: =T89-HLOOKUP(X89,Feuil2!$C$1:$CD$9,7,FALSE) ->  | AF89: =T89-HLOOKUP(X89,Feuil2!$C$1:$CD$9,8,FALSE) ->  | AG89: =T89-HLOOKUP(X89,Feuil2!$C$1:$CD$9,9,FALSE) ->  | AP89: 114 | AR89: =IF(AP89,VLOOKUP(AP89,HOM!$AR$551:$AS$606,2)) -> 3.571
A90: H | F90: FALSE | X90: =IF(AND(J90>=40,J90<45),VLOOKUP(K90,Feuil2!$F$10:$P$28,9),IF(AND(J90>=45,J90<50),VLOOKUP(K90,Feuil2!$F$10:$P$28,8),IF(AND(J90>=50,J90<55),VLOOKUP(K90,Feuil2!$F$10:$P$28,7),IF(AND(J90>=55,J90<60),VLOOKUP(K90,Feuil2!$F$10:$P$28,6),IF(AND(J90>=60,J90<65),VLOOKUP(K90,Feuil2!$F$10:$P$28,5),IF(AND(J90>=65,J90<70),VLOOKUP(K90,Feuil2!$F$10:$P$28,4),IF(AND(J90>=70,J90<75),VLOOKUP(K90,Feuil2!$F$10:$P$28,3),IF(AND(J90>=75,J90<80),VLOOKUP(K90,Feuil2!$F$10:$P$28,2),VLOOKUP(K90,Feuil2!$F$10:$P$28,2))))))))) ->  | Z90: =T90-HLOOKUP(X90,Feuil2!$C$1:$CD$9,2,FALSE) ->  | AA90: =T90-HLOOKUP(X90,Feuil2!$C$1:$CD$9,3,FALSE) ->  | AB90: =T90-HLOOKUP(X90,Feuil2!$C$1:$CD$9,4,FALSE) ->  | AC90: =T90-HLOOKUP(X90,Feuil2!$C$1:$CD$9,5,FALSE) ->  | AD90: =T90-HLOOKUP(X90,Feuil2!$C$1:$CD$9,6,FALSE) ->  | AE90: =T90-HLOOKUP(X90,Feuil2!$C$1:$CD$9,7,FALSE) ->  | AF90: =T90-HLOOKUP(X90,Feuil2!$C$1:$CD$9,8,FALSE) ->  | AG90: =T90-HLOOKUP(X90,Feuil2!$C$1:$CD$9,9,FALSE) ->  | AP90: 114 | AR90: =IF(AP90,VLOOKUP(AP90,HOM!$AR$551:$AS$606,2)) -> 3.571
A91: H | F91: FALSE | X91: =IF(AND(J91>=40,J91<45),VLOOKUP(K91,Feuil2!$F$10:$P$28,9),IF(AND(J91>=45,J91<50),VLOOKUP(K91,Feuil2!$F$10:$P$28,8),IF(AND(J91>=50,J91<55),VLOOKUP(K91,Feuil2!$F$10:$P$28,7),IF(AND(J91>=55,J91<60),VLOOKUP(K91,Feuil2!$F$10:$P$28,6),IF(AND(J91>=60,J91<65),VLOOKUP(K91,Feuil2!$F$10:$P$28,5),IF(AND(J91>=65,J91<70),VLOOKUP(K91,Feuil2!$F$10:$P$28,4),IF(AND(J91>=70,J91<75),VLOOKUP(K91,Feuil2!$F$10:$P$28,3),IF(AND(J91>=75,J91<80),VLOOKUP(K91,Feuil2!$F$10:$P$28,2),VLOOKUP(K91,Feuil2!$F$10:$P$28,2))))))))) ->  | Z91: =T91-HLOOKUP(X91,Feuil2!$C$1:$CD$9,2,FALSE) ->  | AA91: =T91-HLOOKUP(X91,Feuil2!$C$1:$CD$9,3,FALSE) ->  | AB91: =T91-HLOOKUP(X91,Feuil2!$C$1:$CD$9,4,FALSE) ->  | AC91: =T91-HLOOKUP(X91,Feuil2!$C$1:$CD$9,5,FALSE) ->  | AD91: =T91-HLOOKUP(X91,Feuil2!$C$1:$CD$9,6,FALSE) ->  | AE91: =T91-HLOOKUP(X91,Feuil2!$C$1:$CD$9,7,FALSE) ->  | AF91: =T91-HLOOKUP(X91,Feuil2!$C$1:$CD$9,8,FALSE) ->  | AG91: =T91-HLOOKUP(X91,Feuil2!$C$1:$CD$9,9,FALSE) ->  | AP91: 114 | AR91: =IF(AP91,VLOOKUP(AP91,HOM!$AR$551:$AS$606,2)) -> 3.571
A92: H | F92: FALSE | X92: =IF(AND(J92>=40,J92<45),VLOOKUP(K92,Feuil2!$F$10:$P$28,9),IF(AND(J92>=45,J92<50),VLOOKUP(K92,Feuil2!$F$10:$P$28,8),IF(AND(J92>=50,J92<55),VLOOKUP(K92,Feuil2!$F$10:$P$28,7),IF(AND(J92>=55,J92<60),VLOOKUP(K92,Feuil2!$F$10:$P$28,6),IF(AND(J92>=60,J92<65),VLOOKUP(K92,Feuil2!$F$10:$P$28,5),IF(AND(J92>=65,J92<70),VLOOKUP(K92,Feuil2!$F$10:$P$28,4),IF(AND(J92>=70,J92<75),VLOOKUP(K92,Feuil2!$F$10:$P$28,3),IF(AND(J92>=75,J92<80),VLOOKUP(K92,Feuil2!$F$10:$P$28,2),VLOOKUP(K92,Feuil2!$F$10:$P$28,2))))))))) ->  | Z92: =T92-HLOOKUP(X92,Feuil2!$C$1:$CD$9,2,FALSE) ->  | AA92: =T92-HLOOKUP(X92,Feuil2!$C$1:$CD$9,3,FALSE) ->  | AB92: =T92-HLOOKUP(X92,Feuil2!$C$1:$CD$9,4,FALSE) ->  | AC92: =T92-HLOOKUP(X92,Feuil2!$C$1:$CD$9,5,FALSE) ->  | AD92: =T92-HLOOKUP(X92,Feuil2!$C$1:$CD$9,6,FALSE) ->  | AE92: =T92-HLOOKUP(X92,Feuil2!$C$1:$CD$9,7,FALSE) ->  | AF92: =T92-HLOOKUP(X92,Feuil2!$C$1:$CD$9,8,FALSE) ->  | AG92: =T92-HLOOKUP(X92,Feuil2!$C$1:$CD$9,9,FALSE) ->  | AP92: 114 | AR92: =IF(AP92,VLOOKUP(AP92,HOM!$AR$551:$AS$606,2)) -> 3.571
A93: H | F93: FALSE | X93: =IF(AND(J93>=40,J93<45),VLOOKUP(K93,Feuil2!$F$10:$P$28,9),IF(AND(J93>=45,J93<50),VLOOKUP(K93,Feuil2!$F$10:$P$28,8),IF(AND(J93>=50,J93<55),VLOOKUP(K93,Feuil2!$F$10:$P$28,7),IF(AND(J93>=55,J93<60),VLOOKUP(K93,Feuil2!$F$10:$P$28,6),IF(AND(J93>=60,J93<65),VLOOKUP(K93,Feuil2!$F$10:$P$28,5),IF(AND(J93>=65,J93<70),VLOOKUP(K93,Feuil2!$F$10:$P$28,4),IF(AND(J93>=70,J93<75),VLOOKUP(K93,Feuil2!$F$10:$P$28,3),IF(AND(J93>=75,J93<80),VLOOKUP(K93,Feuil2!$F$10:$P$28,2),VLOOKUP(K93,Feuil2!$F$10:$P$28,2))))))))) ->  | Z93: =T93-HLOOKUP(X93,Feuil2!$C$1:$CD$9,2,FALSE) ->  | AA93: =T93-HLOOKUP(X93,Feuil2!$C$1:$CD$9,3,FALSE) ->  | AB93: =T93-HLOOKUP(X93,Feuil2!$C$1:$CD$9,4,FALSE) ->  | AC93: =T93-HLOOKUP(X93,Feuil2!$C$1:$CD$9,5,FALSE) ->  | AD93: =T93-HLOOKUP(X93,Feuil2!$C$1:$CD$9,6,FALSE) ->  | AE93: =T93-HLOOKUP(X93,Feuil2!$C$1:$CD$9,7,FALSE) ->  | AF93: =T93-HLOOKUP(X93,Feuil2!$C$1:$CD$9,8,FALSE) ->  | AG93: =T93-HLOOKUP(X93,Feuil2!$C$1:$CD$9,9,FALSE) ->  | AP93: 114 | AR93: =IF(AP93,VLOOKUP(AP93,HOM!$AR$551:$AS$606,2)) -> 3.571
A94: H | F94: FALSE | X94: =IF(AND(J94>=40,J94<45),VLOOKUP(K94,Feuil2!$F$10:$P$28,9),IF(AND(J94>=45,J94<50),VLOOKUP(K94,Feuil2!$F$10:$P$28,8),IF(AND(J94>=50,J94<55),VLOOKUP(K94,Feuil2!$F$10:$P$28,7),IF(AND(J94>=55,J94<60),VLOOKUP(K94,Feuil2!$F$10:$P$28,6),IF(AND(J94>=60,J94<65),VLOOKUP(K94,Feuil2!$F$10:$P$28,5),IF(AND(J94>=65,J94<70),VLOOKUP(K94,Feuil2!$F$10:$P$28,4),IF(AND(J94>=70,J94<75),VLOOKUP(K94,Feuil2!$F$10:$P$28,3),IF(AND(J94>=75,J94<80),VLOOKUP(K94,Feuil2!$F$10:$P$28,2),VLOOKUP(K94,Feuil2!$F$10:$P$28,2))))))))) ->  | Z94: =T94-HLOOKUP(X94,Feuil2!$C$1:$CD$9,2,FALSE) ->  | AA94: =T94-HLOOKUP(X94,Feuil2!$C$1:$CD$9,3,FALSE) ->  | AB94: =T94-HLOOKUP(X94,Feuil2!$C$1:$CD$9,4,FALSE) ->  | AC94: =T94-HLOOKUP(X94,Feuil2!$C$1:$CD$9,5,FALSE) ->  | AD94: =T94-HLOOKUP(X94,Feuil2!$C$1:$CD$9,6,FALSE) ->  | AE94: =T94-HLOOKUP(X94,Feuil2!$C$1:$CD$9,7,FALSE) ->  | AF94: =T94-HLOOKUP(X94,Feuil2!$C$1:$CD$9,8,FALSE) ->  | AG94: =T94-HLOOKUP(X94,Feuil2!$C$1:$CD$9,9,FALSE) ->  | AP94: 114 | AR94: =IF(AP94,VLOOKUP(AP94,HOM!$AR$551:$AS$606,2)) -> 3.571
A95: H | F95: FALSE | X95: =IF(AND(J95>=40,J95<45),VLOOKUP(K95,Feuil2!$F$10:$P$28,9),IF(AND(J95>=45,J95<50),VLOOKUP(K95,Feuil2!$F$10:$P$28,8),IF(AND(J95>=50,J95<55),VLOOKUP(K95,Feuil2!$F$10:$P$28,7),IF(AND(J95>=55,J95<60),VLOOKUP(K95,Feuil2!$F$10:$P$28,6),IF(AND(J95>=60,J95<65),VLOOKUP(K95,Feuil2!$F$10:$P$28,5),IF(AND(J95>=65,J95<70),VLOOKUP(K95,Feuil2!$F$10:$P$28,4),IF(AND(J95>=70,J95<75),VLOOKUP(K95,Feuil2!$F$10:$P$28,3),IF(AND(J95>=75,J95<80),VLOOKUP(K95,Feuil2!$F$10:$P$28,2),VLOOKUP(K95,Feuil2!$F$10:$P$28,2))))))))) ->  | Z95: =T95-HLOOKUP(X95,Feuil2!$C$1:$CD$9,2,FALSE) ->  | AA95: =T95-HLOOKUP(X95,Feuil2!$C$1:$CD$9,3,FALSE) ->  | AB95: =T95-HLOOKUP(X95,Feuil2!$C$1:$CD$9,4,FALSE) ->  | AC95: =T95-HLOOKUP(X95,Feuil2!$C$1:$CD$9,5,FALSE) ->  | AD95: =T95-HLOOKUP(X95,Feuil2!$C$1:$CD$9,6,FALSE) ->  | AE95: =T95-HLOOKUP(X95,Feuil2!$C$1:$CD$9,7,FALSE) ->  | AF95: =T95-HLOOKUP(X95,Feuil2!$C$1:$CD$9,8,FALSE) ->  | AG95: =T95-HLOOKUP(X95,Feuil2!$C$1:$CD$9,9,FALSE) ->  | AP95: 114 | AR95: =IF(AP95,VLOOKUP(AP95,HOM!$AR$551:$AS$606,2)) -> 3.571
A96: H | F96: FALSE | X96: =IF(AND(J96>=40,J96<45),VLOOKUP(K96,Feuil2!$F$10:$P$28,9),IF(AND(J96>=45,J96<50),VLOOKUP(K96,Feuil2!$F$10:$P$28,8),IF(AND(J96>=50,J96<55),VLOOKUP(K96,Feuil2!$F$10:$P$28,7),IF(AND(J96>=55,J96<60),VLOOKUP(K96,Feuil2!$F$10:$P$28,6),IF(AND(J96>=60,J96<65),VLOOKUP(K96,Feuil2!$F$10:$P$28,5),IF(AND(J96>=65,J96<70),VLOOKUP(K96,Feuil2!$F$10:$P$28,4),IF(AND(J96>=70,J96<75),VLOOKUP(K96,Feuil2!$F$10:$P$28,3),IF(AND(J96>=75,J96<80),VLOOKUP(K96,Feuil2!$F$10:$P$28,2),VLOOKUP(K96,Feuil2!$F$10:$P$28,2))))))))) ->  | Z96: =T96-HLOOKUP(X96,Feuil2!$C$1:$CD$9,2,FALSE) ->  | AA96: =T96-HLOOKUP(X96,Feuil2!$C$1:$CD$9,3,FALSE) ->  | AB96: =T96-HLOOKUP(X96,Feuil2!$C$1:$CD$9,4,FALSE) ->  | AC96: =T96-HLOOKUP(X96,Feuil2!$C$1:$CD$9,5,FALSE) ->  | AD96: =T96-HLOOKUP(X96,Feuil2!$C$1:$CD$9,6,FALSE) ->  | AE96: =T96-HLOOKUP(X96,Feuil2!$C$1:$CD$9,7,FALSE) ->  | AF96: =T96-HLOOKUP(X96,Feuil2!$C$1:$CD$9,8,FALSE) ->  | AG96: =T96-HLOOKUP(X96,Feuil2!$C$1:$CD$9,9,FALSE) ->  | AP96: 114 | AR96: =IF(AP96,VLOOKUP(AP96,HOM!$AR$551:$AS$606,2)) -> 3.571
A97: H | F97: FALSE | X97: =IF(AND(J97>=40,J97<45),VLOOKUP(K97,Feuil2!$F$10:$P$28,9),IF(AND(J97>=45,J97<50),VLOOKUP(K97,Feuil2!$F$10:$P$28,8),IF(AND(J97>=50,J97<55),VLOOKUP(K97,Feuil2!$F$10:$P$28,7),IF(AND(J97>=55,J97<60),VLOOKUP(K97,Feuil2!$F$10:$P$28,6),IF(AND(J97>=60,J97<65),VLOOKUP(K97,Feuil2!$F$10:$P$28,5),IF(AND(J97>=65,J97<70),VLOOKUP(K97,Feuil2!$F$10:$P$28,4),IF(AND(J97>=70,J97<75),VLOOKUP(K97,Feuil2!$F$10:$P$28,3),IF(AND(J97>=75,J97<80),VLOOKUP(K97,Feuil2!$F$10:$P$28,2),VLOOKUP(K97,Feuil2!$F$10:$P$28,2))))))))) ->  | Z97: =T97-HLOOKUP(X97,Feuil2!$C$1:$CD$9,2,FALSE) ->  | AA97: =T97-HLOOKUP(X97,Feuil2!$C$1:$CD$9,3,FALSE) ->  | AB97: =T97-HLOOKUP(X97,Feuil2!$C$1:$CD$9,4,FALSE) ->  | AC97: =T97-HLOOKUP(X97,Feuil2!$C$1:$CD$9,5,FALSE) ->  | AD97: =T97-HLOOKUP(X97,Feuil2!$C$1:$CD$9,6,FALSE) ->  | AE97: =T97-HLOOKUP(X97,Feuil2!$C$1:$CD$9,7,FALSE) ->  | AF97: =T97-HLOOKUP(X97,Feuil2!$C$1:$CD$9,8,FALSE) ->  | AG97: =T97-HLOOKUP(X97,Feuil2!$C$1:$CD$9,9,FALSE) ->  | AP97: 114 | AR97: =IF(AP97,VLOOKUP(AP97,HOM!$AR$551:$AS$606,2)) -> 3.571
A98: H | F98: FALSE | X98: =IF(AND(J98>=40,J98<45),VLOOKUP(K98,Feuil2!$F$10:$P$28,9),IF(AND(J98>=45,J98<50),VLOOKUP(K98,Feuil2!$F$10:$P$28,8),IF(AND(J98>=50,J98<55),VLOOKUP(K98,Feuil2!$F$10:$P$28,7),IF(AND(J98>=55,J98<60),VLOOKUP(K98,Feuil2!$F$10:$P$28,6),IF(AND(J98>=60,J98<65),VLOOKUP(K98,Feuil2!$F$10:$P$28,5),IF(AND(J98>=65,J98<70),VLOOKUP(K98,Feuil2!$F$10:$P$28,4),IF(AND(J98>=70,J98<75),VLOOKUP(K98,Feuil2!$F$10:$P$28,3),IF(AND(J98>=75,J98<80),VLOOKUP(K98,Feuil2!$F$10:$P$28,2),VLOOKUP(K98,Feuil2!$F$10:$P$28,2))))))))) ->  | Z98: =T98-HLOOKUP(X98,Feuil2!$C$1:$CD$9,2,FALSE) ->  | AA98: =T98-HLOOKUP(X98,Feuil2!$C$1:$CD$9,3,FALSE) ->  | AB98: =T98-HLOOKUP(X98,Feuil2!$C$1:$CD$9,4,FALSE) ->  | AC98: =T98-HLOOKUP(X98,Feuil2!$C$1:$CD$9,5,FALSE) ->  | AD98: =T98-HLOOKUP(X98,Feuil2!$C$1:$CD$9,6,FALSE) ->  | AE98: =T98-HLOOKUP(X98,Feuil2!$C$1:$CD$9,7,FALSE) ->  | AF98: =T98-HLOOKUP(X98,Feuil2!$C$1:$CD$9,8,FALSE) ->  | AG98: =T98-HLOOKUP(X98,Feuil2!$C$1:$CD$9,9,FALSE) ->  | AP98: 114 | AR98: =IF(AP98,VLOOKUP(AP98,HOM!$AR$551:$AS$606,2)) -> 3.571
A99: H | F99: FALSE | X99: =IF(AND(J99>=40,J99<45),VLOOKUP(K99,Feuil2!$F$10:$P$28,9),IF(AND(J99>=45,J99<50),VLOOKUP(K99,Feuil2!$F$10:$P$28,8),IF(AND(J99>=50,J99<55),VLOOKUP(K99,Feuil2!$F$10:$P$28,7),IF(AND(J99>=55,J99<60),VLOOKUP(K99,Feuil2!$F$10:$P$28,6),IF(AND(J99>=60,J99<65),VLOOKUP(K99,Feuil2!$F$10:$P$28,5),IF(AND(J99>=65,J99<70),VLOOKUP(K99,Feuil2!$F$10:$P$28,4),IF(AND(J99>=70,J99<75),VLOOKUP(K99,Feuil2!$F$10:$P$28,3),IF(AND(J99>=75,J99<80),VLOOKUP(K99,Feuil2!$F$10:$P$28,2),VLOOKUP(K99,Feuil2!$F$10:$P$28,2))))))))) ->  | Z99: =T99-HLOOKUP(X99,Feuil2!$C$1:$CD$9,2,FALSE) ->  | AA99: =T99-HLOOKUP(X99,Feuil2!$C$1:$CD$9,3,FALSE) ->  | AB99: =T99-HLOOKUP(X99,Feuil2!$C$1:$CD$9,4,FALSE) ->  | AC99: =T99-HLOOKUP(X99,Feuil2!$C$1:$CD$9,5,FALSE) ->  | AD99: =T99-HLOOKUP(X99,Feuil2!$C$1:$CD$9,6,FALSE) ->  | AE99: =T99-HLOOKUP(X99,Feuil2!$C$1:$CD$9,7,FALSE) ->  | AF99: =T99-HLOOKUP(X99,Feuil2!$C$1:$CD$9,8,FALSE) ->  | AG99: =T99-HLOOKUP(X99,Feuil2!$C$1:$CD$9,9,FALSE) ->  | AP99: 114 | AR99: =IF(AP99,VLOOKUP(AP99,HOM!$AR$551:$AS$606,2)) -> 3.571
A100: H | F100: FALSE | X100: =IF(AND(J100>=40,J100<45),VLOOKUP(K100,Feuil2!$F$10:$P$28,9),IF(AND(J100>=45,J100<50),VLOOKUP(K100,Feuil2!$F$10:$P$28,8),IF(AND(J100>=50,J100<55),VLOOKUP(K100,Feuil2!$F$10:$P$28,7),IF(AND(J100>=55,J100<60),VLOOKUP(K100,Feuil2!$F$10:$P$28,6),IF(AND(J100>=60,J100<65),VLOOKUP(K100,Feuil2!$F$10:$P$28,5),IF(AND(J100>=65,J100<70),VLOOKUP(K100,Feuil2!$F$10:$P$28,4),IF(AND(J100>=70,J100<75),VLOOKUP(K100,Feuil2!$F$10:$P$28,3),IF(AND(J100>=75,J100<80),VLOOKUP(K100,Feuil2!$F$10:$P$28,2),VLOOKUP(K100,Feuil2!$F$10:$P$28,2))))))))) ->  | Z100: =T100-HLOOKUP(X100,Feuil2!$C$1:$CD$9,2,FALSE) ->  | AA100: =T100-HLOOKUP(X100,Feuil2!$C$1:$CD$9,3,FALSE) ->  | AB100: =T100-HLOOKUP(X100,Feuil2!$C$1:$CD$9,4,FALSE) ->  | AC100: =T100-HLOOKUP(X100,Feuil2!$C$1:$CD$9,5,FALSE) ->  | AD100: =T100-HLOOKUP(X100,Feuil2!$C$1:$CD$9,6,FALSE) ->  | AE100: =T100-HLOOKUP(X100,Feuil2!$C$1:$CD$9,7,FALSE) ->  | AF100: =T100-HLOOKUP(X100,Feuil2!$C$1:$CD$9,8,FALSE) ->  | AG100: =T100-HLOOKUP(X100,Feuil2!$C$1:$CD$9,9,FALSE) ->  | AP100: 114 | AR100: =IF(AP100,VLOOKUP(AP100,HOM!$AR$551:$AS$606,2)) -> 3.571
